Workbook

Sheet HOME
F1: Estimating The Impacts of SuDS | I1: >>HIDE_ALONG | J1: =IF(J13<>"","PROJECT DETAILS - "&J13,"(Project Details Incomplete)") -> PROJECT DETAILS - No.: 41521691, Name: Killingworth & Longbenton SuDS, Assmt. Version: 3, Date: Sep 2015. | R1: 33.75
F2: =strVersion -> Version: 0.051, April-2015 | J2: do not edit this cell.. It is needed elsewhere..// move it if you HAVE to but don't delete! | R2: 12
C3: =ProjDetails -> PROJECT DETAILS - No.: 41521691, Name: Killingworth & Longbenton SuDS, Assmt. Version: 3, Date: Sep 2015. | R3: 15
B4: BASIC Instructions . . . | J4: Ciric Green; 91,184,21 | R4: 20
B5: l | C5: Use the menu to navigate and perform some management tasks.
B6: l | C6: If the CIRIA menu isn't working.. either Navigate away then back again, or press the sort Screen Button. | J6: STILL TO DO
B7: l | C7: Single click a point on the chart…to enter text Might need to do it twice before it will show data. | J7: To update the tool at a later date to match the colours in the guidance with the colours of the tab and the header.
B8: l | C8: Double click to select and pick/enter information in the page | J8: another menu item to inputs page (or ribbon whilst inputs page active) to clear all catchment information..// and to possible clear all top information.information
C10: ENTER Basic Project details below.
C11: for more Instructions please press help.
J12: No: Name: Assmt. Version: Date:
C13: PROJECT DETAILS | J13: =SUBSTITUTE(SUBSTITUTE(SUBSTITUTE(K13,"><",", "),"<",""),">",".") -> No.: 41521691, Name: Killingworth & Longbenton SuDS, Assmt. Version: 3, Date: Sep 2015. | K13: =K21&K19&K23&K17 -> <No.: 41521691><Name: Killingworth & Longbenton SuDS><Assmt. Version: 3><Date: Sep 2015> | M13: Values
C15: Author | D15: Bruce Horton | I15: pdAuthor | J15: =IF(INDIRECT(I15)="please enter","",INDIRECT(I15)) -> Bruce Horton | K15: =IF(J15="","","<"&J15&">") -> <Bruce Horton> | M15: please enter
C17: Date | D17: 2015-09-10 | I17: pdDate | J17: =IF(INDIRECT(I17)="please enter","",INDIRECT(I17)) -> 42257 | K17: =IF(J17="","","<Date: "&TEXT(J17,"mmm yyyy")&">") -> <Date: Sep 2015> | L17: 4 | M17: please enter
C19: Project Name | D19: Killingworth & Longbenton SuDS | I19: pdProjectName | J19: =IF(INDIRECT(I19)="please enter","",INDIRECT(I19)) -> Killingworth & Longbenton SuDS | K19: =IF(J19="","","<Name: "&J19&">") -> <Name: Killingworth & Longbenton SuDS> | L19: 2 | M19: please enter
C21: Project Reference Number | D21: 41521691 | I21: pdProjectNumber | J21: =IF(INDIRECT(I21)="please enter","",INDIRECT(I21)) -> 41521691 | K21: =IF(J21="","","<No.: "&J21&">") -> <No.: 41521691> | L21: 1 | M21: please enter
C23: Assessment version | D23: 3 | I23: pdAssessVer | J23: =IF(INDIRECT(I23)="please enter","",INDIRECT(I23)) -> 3 | K23: =IF(J23="","","<Assmt. Version: "&J23&">") -> <Assmt. Version: 3> | L23: 3 | M23: please enter
A26: >>HIDE_BELOW
C29: TO DO
C30: Add in present value calcs to support user defined valuation
C31: Add in more user defined lines in the values library where appropriate and link back into the tool
C32: Add in the sensitivity %s
C33: Add in the potential to change the % on the table
C36: KEY PRINCIPLES
C38: to add

Sheet Version Info
C1: Version Control | I1: >>HIDE_ALONG
F2: =strVersion -> Version: 0.051, April-2015
C3: =ProjDetails -> PROJECT DETAILS - No.: 41521691, Name: Killingworth & Longbenton SuDS, Assmt. Version: 3, Date: Sep 2015.
C4: This page contains information related to changes since the last version
C5: Version | D5: Date | E5: Description | F5: Author
C6: 0.025 | D6: 2014-07-21 | E6: In development | F6: CD, BH,GW
C7: 0.026 | D7: 2014-07-25 | E7: Development | F7: CD, BH,GW
C8: 0.028 | D8: 2014-07-28 | E8: In Development | F8: CD
C9: 0.037 | D9: 2014-09-19 | E9: Adding in impacts | F9: CD/GW
C10: 0.038 | D10: 2014-09-27 | E10: Amendments | F10: CD/GW
C11: 0.042 | D11: 2014-09-28 | E11: Amendments to formatting and input data | F11: CD/GW
C12: 0.043 | D12: 2014-11-17 | E12: Development and further updates following testing feedback | F12: CD/GW
C13: 0.044 | D13: 2014-11-18 | E13: Clean version for calculation | F13: CD
C14: 0.048 | D14: 2015-02-27 | E14: Updates to the tool following PSG feedback | F14: CD/GW
C15: 0.049 | D15: 2015-03-12 | E15: Minor updates to cells linked to summary pages | F15: CD
C16: 0.05 | D16: 2015-04-20 | E16: Charts amended, TBL added, pages added, | F16: CD/GW
C17: 0.051 | D17: 2015-04-28 | E17: Issue to PSG | F17: CD
A21: >>HIDE_BELOW

Sheet Control (hidden)
B1: AUTO LIST | D1: AUTO LIST | F1: Construction Mode | H1: AUTO LIST | K1: ="Version: "&TEXT(Version,VerTxtFmt)&", "&TEXT(VersionDate,"MMMM-YYYY") -> Version: 0.051, April-2015 | P1: manually correct pink ranges!! | Y1: z
F2: FALSE | K2: =IF(NOT(ConstructionMode),"Book Works normally","Construction mode active; (on selection macros disabled)") -> Book Works normally | V2: Likely start of impact | AD2: Electricity costs p/kWh | AJ2: default | AL2: retrofit | AN2: retrofit | AP2: New Development | AR2: New Development
B4: lstAdminUsers | D4: lstHidePages | H4: lstDefNames | K4: Page: | L4: Inputs | N4: Inputs | P4: Inputs | R4: Inputs | T4: Inputs | V4: Screening Q's | Y4: Cell/ Column Definitions (Inputs Page) | AD4: Energy and carbon | AJ4: Pumping Scenarios | AL4: Baseline | AN4: Proposed | AP4: Baseline | AR4: Proposed | BD4: GDP deflator (https://www.gov.uk/government/publications/gdp-deflators-at-market-prices-and-money-gdp-march-2013)
B5: Privilege List | D5: Hide Pages | F5: pgListAnchor | H5: Defined names | I5: nameListAnchor | K5: List Title: | L5: lstAsmntScale | N5: lstSchemeType | P5: lstSchmDrivers | R5: lstSchSupporters | T5: lstSchFunders | V5: lstImpactStart | Y5: Input Column | Z5: 4 | AA5: colMainInput | AD5: lstElecType | AF5: lstElecRate | AH5: lstTradedCarbon | AJ5: lstScnPumpBase | AL5: lstScnPumpBase1a | AN5: lstScnPumpBase1b | AP5: lstScnPumpBase2a | AR5: lstScnPumpBase2b | AT5: lstScnPumpprop | AV5: LstAirQualityLoc | AX5: lstWaterRegion | AZ5: lstWaterGrade | BB5: lstWaterSubGrade | BD5: Inflation year | BE5: Inflation value
B6: Chris Digman | D6: Control | F6: HOME | G6: =COUNTIF($I$6:$I$135,H6) | H6: anchorPageNameEnable | I6: Version | L6: Street | N6: New development | P6: New development | R6: Department of the Environment (Northern Ireland) | T6: Department of the Environment (Northern Ireland) | V6: Short term 0-5yrs | Y6: List Used Column | Z6: 10 | AA6: colListUsed | AD6: Domestic | AF6: Low | AH6: Low | AJ6: Please select option | AL6: Please select option | AN6: Please select option | AP6: Please select option | AR6: Please select option | AT6: Proposed option (current situation post scheme) | AV6: Urban | AX6: Anglian | AZ6: No Change | BB6: Lower | BD6: 1990 | BE6: 59.033
B7: digmancj | D7: Keys | H7: CBtn_Reset_Input | L7: Catchment | N7: Redevelopment | P7: Redevelopment | R7: Developer | T7: Developer | V7: Medium Term 5-15 yrs | Y7: Form Options Column | Z7: =Z6+1 -> 11 | AA7: colFormOps | AD7: Commercial/ Public sector | AF7: Central | AH7: Central | AJ7: Baseline (current situation) | AL7: Baseline (current situation) | AN7: Do nothing option (no interventions from baseline) | AP7: Base drainage scheme option (most likely the conventional drainage option) | AR7: Base drainage scheme option (most likely a SuDS drainage option) | AT7: Proposed option future (performance in the future post scheme) | AV7: Sub-urban | AX7: Dee | AZ7: Bad to Poor | BB7: Central | BD7: 1991 | BE7: 62.991
B8: Bruce Horton | D8: OutputKey | H8: CBtn_Reset_PIWF | L8: Strategic | N8: Retrofit | P8: Air quality | R8: Environment Agency | T8: Environment Agency | V8: Long term >15 yrs | Y8: Selected Items String Column | Z8: =Z7+1 -> 12 | AA8: colSelectedItems | AD8: Industrial | AF8: High | AH8: High | AJ8: Do nothing option (no interventions from baseline) | AL8: Do nothing option (no interventions from baseline) | AN8: Proposed option (current situation post scheme) | AV8: Peri-urban | AX8: Humber | AZ8: Poor to Moderate | BB8: Upper | BD8: 1992 | BE8: 64.822
B9: Gordon Wallace | D9: RibbonX | H9: cNonTrade | P9: Amenity / Liveability | R9: Environmental / Conservation Groups | T9: Health Trusts | V9: Please indicate | Y9: List Other Column | Z9: =Z8+1 -> 13 | AA9: colOtherText | AD9: User | AF9: User | AJ9: Proposed option (current situation post scheme) | AN9: Proposed option future (performance in the future post scheme) | AV9: Rural | AX9: North West | AZ9: Moderate to Good | BD9: 1993 | BE9: 66.044
B10: Gordon | D10: Scheme comparisons TBL | H10: cNonTradeLevels | P10: Recreation | R10: Health Trusts | T10: Highway Authority | Y10: Welcome Title | Z10: Welcome to the estimating the impact of SuDS tool. | AA10: strWelcomeTitle | AJ10: Proposed option future (performance in the future post scheme) | AX10: Northumbria | BD10: 1994 | BE10: 66.811
B11: WALLACG1 | D11: Working (ESS) | H11: cNonTradeYears | P11: Biodiversity (habitats) | R11: Highway Authority | T11: Housing Authorities | Y11: Welcome Text | Z11: If you are using this tool, we expect you have already decided that it is important or necessary to value the wider benefits that SuDS can bring. | AA11: strWelcomeText | AX11: Severn | BD11: 1995 | BE11: 68.418
D12: BlankImpactTab | H12: colFormOps | P12: Carbon | R12: Housing Authorities | T12: Local Authority | AX12: Solway Tweed | BD12: 1996 | BE12: 70.335
D13: Scheme comparisons TBL | H13: colListUsed | P13: Flood risk | R13: Local Action Group | T13: Natural Resources Wales | Y13: =CELL("filename",'Screening questions'!Z1) -> D:\University of Nottingham 2013-2019\Uon Data Repository uploads\Nottingham\NWL paper multiple benefits\[BeST analyses.xlsm]Screening questions | Z13: =FIND("[",Y13)-1 -> 105 | AA13: ThisBookName | AX13: South East | BD13: 1997 | BE13: 71.584
D14: Working (TBL) | H14: colMainInput | P14: Pollution (water bodies and groundwater) | R14: Local Authority | T14: School Trusts | Z14: =FIND("]",Y13) -> 125 | AA14: =MID(Y13,Z13+1,Z14-Z13) -> [BeST analyses.xlsm] | AX14: South West | BD14: 1998 | BE14: 72.951
D15: Spare | H15: colOtherText | P15: Reduced treatment / pumping | R15: Natural Resources Wales | T15: SEPA | AX15: Thames | BD15: 1999 | BE15: 74.53
H16: colPageVis | P16: Population growth / network capacity | R16: SEPA | T16: Sustrans | Y16: Click HERE for more information | AA16: URLAboutText | AX16: Western Wales | BD16: 2000 | BE16: 75.13
H17: colSelectedItems | P17: Air temperature | R17: Sustrans | T17: Water and Sewerage Company | Y17: http://www.play.com | AA17: URLAboutLink | AX17: E&W | BD17: 2001 | BE17: 76.842
H18: ConstructionMode | P18: Groundwater | R18: Water and Sewerage Company | AX18: User defined 1 | BD18: 2002 | BE18: 78.738
H19: createdDate | P19: Health | AX19: User defined 2 | BD19: 2003 | BE19: 80.443
H20: cTrade | P20: Water resource / rain water harvesting | AX20: User defined 3 | BD20: 2004 | BE20: 82.345
H21: cTradeLevels | P21: Crime | Y21: Visit MWH Website | AA21: URLHelp1Text | BD21: 2005 | BE21: 83.959
H22: cTradeYears | P22: Economic growth | Y22: http://www.mwhglobal.com/ | AA22: URLHelp1 | BD22: 2006 | BE22: 86.363
H23: DataSourceRURAL | P23: Education | BD23: 2007 | BE23: 88.351
H24: DataSourceURBAN | P24: Flexible infrastructure / CCA | Y24: Visit CIRIA Website | AA24: URLHelp2Text | BD24: 2008 | BE24: 91.185
H25: discRate | P25: Noise – (unlikely) | Y25: http://www.ciria.org/ | AA25: URLHelp2 | BD25: 2009 | BE25: 93.204
H26: discYears | P26: PR – business / CSR | BD26: 2010 | BE26: 96.096
H27: imgChartInsert1 | P27: Tourism (possibly) | Y27: Visit ICE | AA27: URLHelp3Text | BD27: 2011 | BE27: 98.317
H28: imgTBLChartInsert1 | P28: Traffic calming | Y28: http://www.ice.org.uk/ | AA28: URLHelp3 | BD28: 2012 | BE28: 100
H29: ImpactTBLTitles
H30: ImpactTBLTitlesPost
H31: ImpactTBLValues
H32: ImpactTBLValuesPost
H33: ImpactTitles
H34: ImpactTitlesPost
H35: ImpactValues
H36: ImpactValuesPost
H37: intOpenSudsUsed
H38: KeyL1
H39: KeyL2
H40: KeySummaryResults
H41: KeySummaryResultsTBL
H42: LimOuputAmber
H43: LimOuputGreen
H44: LkpBDGrade
H45: lkpBioDiversity
H46: lkpMonetised
H47: lstAdminUsers
H48: LstAirQualityLoc
H49: lstAsmntScale
H50: lstDefNames
H51: lstElecRate
H52: lstElecType
H53: lstHidePages
H54: lstImpactStart
H55: lstSchemeType
H56: lstSchFunders
H57: lstSchmDrivers
H58: lstSchSupporters
H59: lstScnPumpBase
H60: lstScnPumpBase1a
H61: lstScnPumpBase1b
H62: lstScnPumpBase2a
H63: lstScnPumpBase2b
H64: lstScnPumpprop
H65: lstTradedCarbon
H66: lstWaterGrade
H67: lstWaterRegion
H68: lstWaterSubGrade
H69: nameListAnchor
H70: pdAssessVer
H71: pdAuthor
H72: pdDate
H73: pdProjectName
H74: pdProjectNumber
H75: pgListAnchor
H76: progGreen
H77: ProjDetails
H78: pumpdrop1
H79: pumpdrop2
H80: pumpEndYr
H81: pumpEnergyRate
H82: pumpEnergyType
H83: pumpStartYr
H84: pumpTotalEnergySave
H85: pumpTradedCarbon
H86: rngChkMoneySelect
H87: rngEvalDescription
H88: rngInputResetArea
H89: rngKeyL1
H90: rngKeyL2
H91: rngKeyPSTK
H92: rngOutputSummary
H93: rngWaterGrade
H94: rngWaterRegion
H95: rngWaterSubGrade
H96: rngWaterValues
H97: rRibbonXPointer
H98: seqEqns
H99: seqTrees
H100: seqYearsCarbon
H101: shAmber
H102: shGreen
H103: shRed
H104: Stakeholdergreyout
H105: strLocationName
H106: strSchemeType
H107: strSchFunders
H108: strSchmDrivers
H109: strSchSupporters
H110: strVersion
H111: strWelcomeText
H112: strWelcomeTitle
H113: tblBDGrade
H114: tblBioDiversity
H115: test2Chart
H116: test3Chart
H117: test4chart
H118: test5chart
H119: testChart
H120: testTBL2Chart
H121: testTBL3Chart
H122: testTBL4chart
H123: testTBL5chart
H124: testTBLChart
H125: ThisBookName
H126: TotalValue
H127: URLAboutLink
H128: URLAboutText
H129: URLHelp1
H130: URLHelp1Text
H131: URLHelp2
H132: URLHelp2Text
H133: URLHelp3
H134: URLHelp3Text
H135: Version
H136: VersionDate
H137: VersionTxt
H138: VerTxtFmt

Sheet Keys (hidden)
D2: . | N2: .
B4: rngKeyL1 | F4: Input Data | I4: Select Information | L4: Calculation / Ouput
E5: .
D6: . | N6: .
D9: . | N9: .
B11: rngKeyL2 | F11: Input Data | I11: Select Information | L11: Calculation / Ouput
E12: .
D13: . | N13: .
F15: General Data | I15: Helps select level of detail for impacts / type of impacts | L15: Possibly used in the impact assessment | O15: Tick box selection to appear in rows | R15: Links to impacts / beneficaries / funders work | U15: Not possible to enter information / not required
D18: . | N18: .
B20: rngKeyL3 | F20: Input Data | I20: Select Information | L20: Calculation / Ouput | O20: Currently not in use
E21: .
D22: . | N22: . | AF22: INTERESTED STAKEHOLDERS
AC23: Strong potential
AC26: Modest potential or secondary funder requirement
AC30: Low potential
AB34: IMPACT CATEGORY
AA35: . | AG35: .
AH36: . | AL36: .
AH44: . | AL44: .
AM45: . | AQ45: .
AL48: .
AM55: . | AQ55: .

Sheet OutputKey (hidden)
D3: . | R3: .
B4: Outputs Summary | E4: SUMMARY | G4: Confidence factor not applied | H4: Total PV benefits | I4: Total PV Cost | J4: Benefit-cost ratio | K4: Net present value | M4: Confidence factor applied | N4: Total PV benefits | O4: Total PV Cost | P4: Benefit-cost ratio | Q4: Net present value
B5: rngOutputSummary | H5: ='Summary of outputs - Monetised'!D115 -> 52706317.19 | I5: ='Project Inputs'!$D$20 -> 8910864.766 | J5: =IFERROR((H5/'Project Inputs'!$D$20),"0") -> 5.914837513 | K5: =H5-'Project Inputs'!$D$20 -> 43795452.43 | N5: ='Summary of outputs - Monetised'!J115 -> 51218475.01 | O5: ='Project Inputs'!$D$20 -> 8910864.766 | P5: =IFERROR((N5/'Project Inputs'!$D$20),"0") -> 5.747868065 | Q5: =N5-'Project Inputs'!$D$20 -> 42307610.25
D6: . | R6: .
H7: ***
B8: unsure of where to get these values../ so have linked them possibly to the wrong items.. So that indicative values can be seen
B10: currently the layout on the outputs tab doesn’t have before and after values which this key would need.
B11: …. I probably need to build in another column with before / after… or alter how it is presented on the outputs tab

Sheet Project Inputs
F1: Project Inputs | H1: >>HIDE_ALONG | J1: 16 | K1: 10 | L1: 21 | M1: 21
B2: =ProjDetails -> PROJECT DETAILS - No.: 41521691, Name: Killingworth & Longbenton SuDS, Assmt. Version: 3, Date: Sep 2015. | J2: List Used | K2: Form Options | L2: Selected List Options | M2: List Other (if Applic.)
I3: 1
B4: K E Y | F4: Reset
B6: Title | D6: Input Box | F6: Notes | J6: =COLUMN() -> 10 | K6: =COLUMN() -> 11 | L6: =COLUMN() -> 12 | M6: =COLUMN() -> 13
B8: Location name | C8: 1 | D8: Killingworth and Longbenton | F8: Type text into box | H8: =COLUMN(CBtn_Reset_Input)-2 -> 4
B10: Development or Location size (nearest Ha) | C10: 1 | D10: 982 | F10: Enter size | H10: =COLUMN(CBtn_Reset_Input)-2 -> 4
B12: Scheme Type | C12: 2 | D12: =IF(AND(M12="",L12=""),"Please double click and select",SUBSTITUTE(L12&IF(AND(M12<>"",L12<>"")," || ","")&M12," || ",", ")) -> Retrofit | F12: Double click & select from list | H12: =COLUMN(CBtn_Reset_Input)+6&"|"&COLUMN(CBtn_Reset_Input)+7 -> 12|13 | I12: strSchemeType | J12: lstSchemeType | K12: S | L12: Retrofit
B14: Summarise baseline option | C14: 1 | D14: Includes grasslands, farmland, woodland, freshwater, semi-urban. With no intervention, flood risk, water quality will worsen. See report Table 1 | F14: =IF(N14,"Description too long (reduce length by "& LEN(D14)-144&IF( LEN(D14)-144>1," characters)"," character)"),"Enter option summary (MAX 144 Characters)") -> Enter option summary (MAX 144 Characters) | N14: =LEN(D14)>144 -> FALSE
B16: Summarise proposed option | C16: 1 | D16: Combination of surface water separation measures, inc attenuation areas, diversion of Longbenton Letch & underground pipeline (sites 1, 3, 5, 7) | F16: =IF(N16,"Description too long (reduce length by "& LEN(D16)-144&IF( LEN(D16)-144>1," characters)"," character)"),"Enter option summary (MAX 144 Characters)") -> Enter option summary (MAX 144 Characters) | N16: =LEN(D16)>144 -> FALSE
B18: Baseline option Present Value Cost (if applicable) | C18: 1 | D18: 0 | F18: Enter Cost
B20: Proposed option Present Value Cost | C20: 1 | D20: =[1]Summary!$D$27 -> 8910864.766 | F20: Cost from spreadsheet at this link including
B22: Scheme drivers / objectives | C22: 2 | D22: =IF(AND(M22="",L22=""),"Please double click and select",SUBSTITUTE(L22&IF(AND(M22<>"",L22<>"")," || ","")&M22," || ",", ")) -> Flood risk, Pollution (water bodies and groundwater), Population growth / network capacity | F22: Double click & select all that apply | H22: =COLUMN(CBtn_Reset_Input)+6&"|"&COLUMN(CBtn_Reset_Input)+7 -> 12|13 | I22: strSchmDrivers | J22: lstSchmDrivers | K22: M_O | L22: Flood risk || Pollution (water bodies and groundwater) || Population growth / network capacity
B24: Scheme supporters | C24: 2 | D24: =IF(AND(M24="",L24=""),"Please double click and select",SUBSTITUTE(L24&IF(AND(M24<>"",L24<>"")," || ","")&M24," || ",", ")) -> Environment Agency, Local Authority, Water and Sewerage Company | F24: Double click & select from list | H24: =COLUMN(CBtn_Reset_Input)+6&"|"&COLUMN(CBtn_Reset_Input)+7 -> 12|13 | I24: strSchSupporters | J24: lstSchSupporters | K24: M_O | L24: Environment Agency || Local Authority || Water and Sewerage Company
B26: Scheme funders | C26: 2 | D26: =IF(AND(M26="",L26=""),"Please double click and select",SUBSTITUTE(L26&IF(AND(M26<>"",L26<>"")," || ","")&M26," || ",", ")) -> Environment Agency, Local Authority, Water and Sewerage Company | F26: Double click & select from list | H26: =COLUMN(CBtn_Reset_Input)+6&"|"&COLUMN(CBtn_Reset_Input)+7 -> 12|13 | I26: strSchFunders | J26: lstSchFunders | K26: M_O | L26: Environment Agency || Local Authority || Water and Sewerage Company
B28: Discount rate to apply | C28: 1 | D28: 0.035 | F28: Type /change value in box
B30: Name of option/design being assessed here | C30: 1 | D30: Surface water separation | F30: Type text into box | H30: =COLUMN(CBtn_Reset_Input)-2 -> 4
B32: Descriptive summary of the option/design being assessed | C32: 1 | D32: As above - Combination of surface water separation measures, inc attenuation areas, diversion of Longbenton Letch & underground pipeline (sites 1, 3, 5, 7) | F32: Type text into box | H32: =COLUMN(CBtn_Reset_Input)-2 -> 4
A36: >>HIDE_BELOW
B38: How many alternative options/designs are you considering for your location (e.g. different drainage designs for the same location) | C38: 1 | F38: Type text into box | H38: 4

Sheet RibbonX (hidden)
B3: 431801364

Sheet Screening questions
D1: Screening Questions and initial qualitative assessment | Q1: >>HIDE_ALONG | T1: Significance of impact / effect of current baseline
B2: =ProjDetails -> PROJECT DETAILS - No.: 41521691, Name: Killingworth & Longbenton SuDS, Assmt. Version: 3, Date: Sep 2015. | AF2: =SUM(AF6:AF46) -> 0
B4: Impact | D4: Question | F4: Further aspects to consider | H4: Likely Impact | K4: Open impact sheet? | M4: Reasons /evidence for choosing the scale of the impact | O4: LINKS | Q4: =OFFSET(S4,0,R4,1,1) -> - | R4: 4 | T4: ++ | U4: + | V4: 0 | W4: - | X4: -- | Y4: '?' | AB4: CORRESPONDING PAGE TO OPEN | AD4: GREY OUT | AF4: OPEN SuDS Used? | AH4: Outcome
B6: Air quality | D6: Will the drainage / SuDS also change the level of air pollution? | F6: - Is the site in an air quality management area? - Will the scheme involve significant ‘greening’ (e.g. tree planting, green roofs)? - Is the scheme in a populated area or a transport corridor? | H6: + | K6: NO | M6: Some potential improvement in local air quality as a result of additional planting, but this is not expected to be significant | O6: =HYPERLINK(ThisBookName&"'"&AB6&"'!A1","LINK") -> LINK | T6: if selected sends you to the impact worksheet | U6: if selected possibly sends you to the impact worksheet depending upon when the impact may occur?? - this is more outline thinking currently | V6: do not consider the impact further | W6: if selected possibly sends you to the impact worksheet depending upon when the impact may occur?? - this is more outline thinking currently | X6: if selected sends you to the impact worksheet | Y6: further assessment may be required before this can be considered | AB6: AQ - Air quality | AD6: =IF(K6="no",B6,"") -> Air quality | AF6: =IF(K6="YES",1,0) -> 0 | AH6: =IF(H6<>"",HLOOKUP(H6,$T$4:$Y$8,5,0),"") -> not considered at this time, but reconsider with more information
B8: Amenity | D8: Will the drainage / SuDS also change the attractiveness of the place | F8: - Does the scheme involve significant landscaping or greening? - Is the scheme in a populated area, or an area used for recreation, work, commuting, tourism, etc? - Will SuDS features be visible to those living nearby or passing by? - Could the scheme lead to inconvenience/disruption to residents or others (e.g. during construction)? | H8: ++ | K8: YES | M8: Improved water quality and new attenuation areas will increase amenity value of individual properties and improve appearance of general area. | O8: =HYPERLINK(ThisBookName&"'"&AB8&"'!A1","LINK") -> LINK | T8: to impact sheet | U8: not considered at this time, but reconsider with more information | V8: do not consider | W8: not considered at this time, but reconsider with more information | X8: to impact sheet | Y8: unknown, collect further information | AB8: Am - Amenity | AD8: =IF(K8="no",B8,"") ->  | AH8: =IF(H8<>"",HLOOKUP(H8,$T$4:$Y$8,5,0),"") -> to impact sheet
B10: Biodiversity and Ecology | D10: Will the drainage / SuDS also lead to a change in habitats for plants and animals | F10: - Will the scheme impact on a designated site (e.g. SSSI, SAC, SPA), Habitats of Principal Importance (BAP priority habitats) or a site of local importance for nature? - Will the scheme involve SuDS features that may improve these sites, or create new sites? | H10: ++ | K10: YES | M10: Significant opportunity to create improved wildlife habitat along Forest Hall and Longbenton Letches in attenuation areas. In addition, there is a possible improvement to Gosforth Park Nature Reserve SSSI, as a result of additional flow from Killingworth Lake. | O10: =HYPERLINK(ThisBookName&"'"&AB10&"'!A1","LINK") -> LINK | AB10: BE - Biodiversity & Ecology | AD10: =IF(K10="no",B10,"") ->  | AH10: =IF(H10<>"",HLOOKUP(H10,$T$4:$Y$8,5,0),"") -> to impact sheet
B12: Building temperature | D12: Will the drainage / SuDS also change the potential for high temperatures in summer and cold temperatures in winter | F12: - Will the scheme involve significant ‘greening’ (e.g. tree planting, green roofs)? - Is the scheme in a built-up area? - Will the planting provide shading and wind protection to properties? | H12: 0 | K12: NO | O12: =HYPERLINK(ThisBookName&"'"&AB12&"'!A1","LINK") -> LINK | AB12: BT - Building Temperature | AD12: =IF(K12="no",B12,"") -> Building temperature | AF12: =IF(K12="YES",1,0) -> 0 | AH12: =IF(H12<>"",HLOOKUP(H12,$T$4:$Y$8,5,0),"") -> do not consider
B14: Carbon sequestration | D14: Will the drainage / SuDS also change the amount of carbon in the atmosphere | F14: - Will the scheme involve significant levels of planting? | H14: + | K14: NO | M14: Associated with reduced treatment and additional vegetation in detention areas. However, this is expected to be small and may be partially offset by additional energy and carbon associated with construction and maintenance. | O14: =HYPERLINK(ThisBookName&"'"&AB14&"'!A1","LINK") -> LINK | AB14: CS - Carbon sequestration | AD14: =IF(K14="no",B14,"") -> Carbon sequestration | AF14: =IF(K14="YES",1,0) -> 0 | AH14: =IF(H14<>"",HLOOKUP(H14,$T$4:$Y$8,5,0),"") -> not considered at this time, but reconsider with more information
B16: Enabling development | D16: Will the drainage / SuDS reduce demands on sewerage systems providing headroom for new development | F16: - Is growth or development currently occurring or expected in the future? - Is drainage a barrier to this growth or development? | H16: ++ | K16: YES | M16: Drainage capacity is a barrier to growth in this area | O16: =HYPERLINK(ThisBookName&"'"&AB16&"'!A1","LINK") -> LINK | AB16: ED - Enabling development | AD16: =IF(K16="no",B16,"") ->  | AH16: =IF(H16<>"",HLOOKUP(H16,$T$4:$Y$8,5,0),"") -> to impact sheet
B18: Flood risk | D18: Will the drainage / SuDS change the impact of flooding | F18: - Are there properties, buildings, areas or infrastructure (including transport) at risk of flooding currently? - Is growth or climate change expected to change the risk of flooding in the area? - Is the scheme expected to reduce this risk? | H18: ++ | K18: YES | M18: Flood risk in catchment would decrease, with benefits to nearby properties and potentially transport/congestion, with reduced flood risk at Westmoor roundabout. | O18: =HYPERLINK(ThisBookName&"'"&AB18&"'!A1","LINK") -> LINK | AB18: F - Flooding | AD18: =IF(K18="no",B18,"") ->  | AH18: =IF(H18<>"",HLOOKUP(H18,$T$4:$Y$8,5,0),"") -> to impact sheet
B20: Groundwater recharge | D20: Will the drainage / SuDS also increase infiltration into the ground | F20: - Is the scheme likely to increase the amount of infiltration to groundwater bodies? - Are groundwater bodies currently used for water abstraction, or expected to be used in the future? | H20: 0 | K20: NO | O20: =HYPERLINK(ThisBookName&"'"&AB20&"'!A1","LINK") -> LINK | AB20: GW - Groundwater recharge | AD20: =IF(K20="no",B20,"") -> Groundwater recharge | AH20: =IF(H20<>"",HLOOKUP(H20,$T$4:$Y$8,5,0),"") -> do not consider
B22: Health | D22: Will the drainage / SuDS also contribute to the health and wellbeing of local residents | F22: - Will the scheme involve significant ‘greening’ (e.g. tree planting, green roofs)? - Could the scheme encourage residents or others to spend more time outdoors or participating in physical activity/exercise? - Could the scheme improve health by reducing the potential for high temperatures in summer and cold temperatures in winter? | H22: + | K22: NO | M22: Some positive benefits to physical and psychological of local residents arising from more attractive areas and better quality of local environment. However, high risk of double counting with amenity and recreation. | O22: =HYPERLINK(ThisBookName&"'"&AB22&"'!A1","LINK") -> LINK | AB22: H - Health | AD22: =IF(K22="no",B22,"") -> Health | AH22: =IF(H22<>"",HLOOKUP(H22,$T$4:$Y$8,5,0),"") -> not considered at this time, but reconsider with more information
B24: Pumping wastewater | D24: Will the drainage / SuDS change the demands on sewerage systems saving money in pumping | F24: - Will the scheme lead to a change in the amount of water pumped? - Do proposed schemes require pumping stations to be added that increase energy use? | H24: + | K24: NO | M24: Potentially positive but negligible impact on flows to works | O24: =HYPERLINK(ThisBookName&"'"&AB24&"'!A1","LINK") -> LINK | AB24: P - Pumping | AD24: =IF(K24="no",B24,"") -> Pumping wastewater | AH24: =IF(H24<>"",HLOOKUP(H24,$T$4:$Y$8,5,0),"") -> not considered at this time, but reconsider with more information
B26: Rain water harvesting | D26: Will the drainage / SuDS also harvest water so that it can be put to other uses | F26: - Will the scheme include rain water harvesting that reduces water demand? | H26: 0 | K26: NO | O26: =HYPERLINK(ThisBookName&"'"&AB26&"'!A1","LINK") -> LINK | AB26: RWH - Rainwater harvesting | AD26: =IF(K26="no",B26,"") -> Rain water harvesting | AH26: =IF(H26<>"",HLOOKUP(H26,$T$4:$Y$8,5,0),"") -> do not consider
B28: Recreation | D28: Will the drainage / SuDS also change the available facilities for leisure | F28: - Is the site currently used for recreation (e.g. walking, fishing, sports - including water sports)? - Is the scheme expected to improve facilities or opportunities for recreation? | H28: ++ | K28: YES | M28: Reduced CSOs and improved water quality in Letches, West Moor tributary and further downstream in Jesmond Dene, along with new detention areas, will make area more attractive for walkers and other users, as well as reducing odour, increasing local recreational opportunities. | O28: =HYPERLINK(ThisBookName&"'"&AB28&"'!A1","LINK") -> LINK | AB28: R - Recreation | AD28: =IF(K28="no",B28,"") ->  | AH28: =IF(H28<>"",HLOOKUP(H28,$T$4:$Y$8,5,0),"") -> to impact sheet
B30: Treating wastewater | D30: Will the drainage / SuDS change the demands on sewage systems saving money in treatment? | F30: - Will the scheme lead to a change in the amount of water treated? - Is the size of works large and complex enough to make a meaningful impact on treatment costs? - Does the works include pumping stations? | H30: ++ | K30: YES | M30: Additional attenuation storage and disconnections of surface water flows from NWL combined system to which Longbenton Letch currently discharges likely to reduce demands on current treatment. | O30: =HYPERLINK(ThisBookName&"'"&AB30&"'!A1","LINK") -> LINK | AB30: TW - Treating wastewater | AD30: =IF(K30="no",B30,"") ->  | AH30: =IF(H30<>"",HLOOKUP(H30,$T$4:$Y$8,5,0),"") -> to impact sheet
B32: Water quality of receiving water | D32: Will the drainage / SuDS change the quality of rivers, lakes or the sea | F32: - Are there pollution or water quality issues in the area currently? - Is growth or climate change expected to change risk of pollution or water quality in the area? - Is the scheme expected to reduce pollution or improve water quality? | H32: ++ | K32: YES | M32: Improved water quality in letches and potentially in Ouseburn due to reduced number, frequency and volume of CSO spills. | O32: =HYPERLINK(ThisBookName&"'"&AB32&"'!A1","LINK") -> LINK | AB32: WQ - Water quality | AD32: =IF(K32="no",B32,"") ->  | AH32: =IF(H32<>"",HLOOKUP(H32,$T$4:$Y$8,5,0),"") -> to impact sheet
B34: Crime | D34: Will the drainage / SuDS GI also change the local environment and thereby contribute to a reduction in crime | F34: - Could the scheme provide a more pleasant vista that may help to reduce crime? | K34: NO | O34: =HYPERLINK(ThisBookName&"'"&AB34&"'!A1","LINK") -> LINK | AB34: CR - Crime | AD34: =IF(K34="no",B34,"") -> Crime | AH34: =IF(H34<>"",HLOOKUP(H34,$T$4:$Y$8,5,0),"") -> 
B36: Economic growth | D36: Will the drainage / SuDS unlock barriers to economic growth or provide new employment and business opportunities | F36: - Could the scheme lead to new jobs or training opportunities (e.g. green economy)? - Could the scheme play a part in regeneration programmes, tourism or other types of economic development? - Could the scheme lead to more productive landscapes or food production? | K36: NO | O36: =HYPERLINK(ThisBookName&"'"&AB36&"'!A1","LINK") -> LINK | AB36: EG - Economic growth | AD36: =IF(K36="no",B36,"") -> Economic growth | AH36: =IF(H36<>"",HLOOKUP(H36,$T$4:$Y$8,5,0),"") -> 
B38: Education | D38: Will the drainage/SuDS lead to greater awareness of water and stormwater management | F38: - Could the scheme lead to increase in number of children engaged about SuDS/drainage? - Could the scheme lead to more educational visits/talks? - Could the scheme lead to increase in number of community events or open days? | H38: ++ | K38: YES | M38: Site 3 exceedance areas will be built on school grounds, which will provide educational opportunities. | O38: =HYPERLINK(ThisBookName&"'"&AB38&"'!A1","LINK") -> LINK | AB38: Edu - Education | AD38: =IF(K38="no",B38,"") ->  | AH38: =IF(H38<>"",HLOOKUP(H38,$T$4:$Y$8,5,0),"") -> to impact sheet
B40: Flexible infrastructure / CCA | D40: Will the drainage / SuDS enable the area to be more resilient and adaptable to future climate and societal changes | F40: - Is the scheme expected to defer or delay investment in piped systems? - Will it create a more adaptable system resilient to future changes? | K40: Currently not available | O40: =HYPERLINK(ThisBookName&"'"&AB40&"'!A1","LINK") -> LINK | AB40: ??? | AD40: =IF(K40="no",B40,"") ->  | AH40: =IF(H40<>"",HLOOKUP(H40,$T$4:$Y$8,5,0),"") -> 
B42: Tourism | D42: - under consideration | F42: - Could the scheme lead to increase in number of visitors? - Could the scheme lead to increase in quality of visitor experience? | K42: NO | O42: =HYPERLINK(ThisBookName&"'"&AB42&"'!A1","LINK") -> LINK | AB42: T - Tourism | AD42: =IF(K42="no",B42,"") -> Tourism | AH42: =IF(H42<>"",HLOOKUP(H42,$T$4:$Y$8,5,0),"") -> 
B44: Traffic calming | D44: Will the drainage / SuDS enable traffic calming measures to be introduced | F44: - Will the scheme include traffic calming measures that could reduce risk of accidents, improve the liveability of the area or increase journey times? | K44: NO | O44: =HYPERLINK(ThisBookName&"'"&AB44&"'!A1","LINK") -> LINK | AB44: TC - Traffic calming | AD44: =IF(K44="no",B44,"") -> Traffic calming | AH44: =IF(H44<>"",HLOOKUP(H44,$T$4:$Y$8,5,0),"") -> 
B46: User defined benefits | D46: Benefits that you define and are not specifically included in the tool | F46: n/a | H46: -- | K46: YES | M46: Proposed option likely to lead to reduction in productive area currently used for crops, and to a temporary increase in noise/disturbance | O46: =HYPERLINK(ThisBookName&"'"&AB46&"'!A1","LINK") -> LINK | AB46: User-defined benefits | AD46: =IF(K46="no",B46,"") ->  | AH46: =IF(H46<>"",HLOOKUP(H46,$T$4:$Y$8,5,0),"") -> to impact sheet
A48: >>HIDE_BELOW
B50: PR – business / CSR | D50: - under consideration | F50: to be developed | M50: to add in | AH50: =IF(H50<>"",HLOOKUP(H50,$T$4:$Y$8,5,0),"") -> 

Sheet SuDS Used (hidden)
J1: SuDS Used | X1: Area and SuDS Type | AJ1: Area and SuDS Type | BB1: >>HIDE_ALONG
B2: =ProjDetails -> PROJECT DETAILS - No.: 41521691, Name: Killingworth & Longbenton SuDS, Assmt. Version: 3, Date: Sep 2015.
B4: K E Y
B6: NOTE: Complete this section outlining the types of SuDS in the scheme overall or in defined locations if you are assessing Air Quality, Building Temperature and Carbon Sequestration
B9: Light grey cells contain extra notes when you select the cell | P9: Vegetation swale plan area (m2) | R9: =SUMPRODUCT(P17:P55,R17:R55) -> 0 | T9: Grass swale plan area (m2) | V9: =SUMPRODUCT(T17:T55,V17:V55) -> 0 | X9: Infiltration swale plan area (m2) | Z9: =SUMPRODUCT(X17:X55,Z17:Z55) -> 0
F11: TOTAL | H11: =SUM(H17:H55) -> 0 | J11: =SUM(J17:J55) -> 0 | L11: =SUM(L17:L55) -> 0 | N11: =SUM(N17:N55) -> 0 | P11: =SUM(P17:P41) -> 0 | R11: 0 | T11: 0 | V11: 0 | X11: =SUM(X17:X55) -> 0 | Z11: =SUM(Z17:Z55) -> 0 | AB11: =SUM(AB17:AB55) -> 0 | AD11: =SUM(AD17:AD55) -> 0 | AF11: =SUM(AF17:AF55) -> 0 | AH11: =SUM(AH17:AH55) -> 0 | AJ11: =SUM(AJ17:AJ55) -> 0 | AL11: =SUM(AL17:AL55) -> 0 | AN11: =SUM(AN17:AN55) -> 0 | AP11: =SUM(AP17:AP55) -> 0 | BF11: =SUM(BF17:BF41) -> 0 | BG11: 0 | BI11: =SUM(BI17:BI55) -> 0 | BK11: =SUM(BK17:BK55) -> 0 | BM11: =SUM(BM17:BM55) -> 0 | BO11: =SUM(BO17:BO55) -> 0 | BQ11: =SUM(BQ17:BQ55) -> 0 | BS11: =SUM(BS17:BS55) -> 0 | BU11: =SUM(BU17:BU41) -> 0 | BW11: =SUM(BW17:BW41) -> 0 | BY11: =SUM(BY17:BY41) -> 0 | CA11: =SUM(CA17:CA55) -> 0 | CC11: =SUM(CC17:CC55) -> 0 | CE11: =SUM(CE17:CE55) -> 0 | CG11: =SUM(CG17:CG55) -> 0
H13: Source control | P13: Conveyance | X13: Infiltration | AF13: Storage | BI13: Total Area | BK13: Source control | CE13: Treatment
B15: Location reference / name | F15: Location summary | H15: Green Roof Intensive (size (m2)) | J15: Green Roof Extensive (size (m2)) | L15: Rain garden (total size) (m2) | N15: Trees (number) | P15: Vegetation - swale (length (m)) | R15: Vegetation - swale (typical width (m)) | T15: Grass - swale (length (m)) | V15: Grass - swale (typical width (m)) | X15: Swale (length (m)) | Z15: Swale (typical width (m)) | AB15: Basin (total size (m2)) | AD15: Basin (surrounding area size (m2)) | AF15: Detention (dry) basin size (m2) | AH15: Detention (dry) basin surrounding area size (m2) | AJ15: Retention (wet) basin size (m2) | AL15: Retention (wet) basin (surrounding area size (m2)) | AN15: Wetland size (m2) | AP15: Wetland surrounding area size (m2) | BF15: swale width * length | BG15: swale width * length | BI15: Total Catchment Area (ha) | BK15: Permeable Paving (m2) | BM15: Rain water harvesting proposed (Y/N) | BO15: Soakaway (number) | BQ15: Proprietary / pipe conveyance (Y/N) | BS15: Basin (number) | BU15: Detention (dry) basin (number) | BW15: retention (wet) basin (number) | BY15: Wetland (number) | CA15: Proprietary (e.g. geocellular) size (m3) | CC15: Proprietary (e.g. geocellular) (number) | CE15: Proprietary for treatment (number) | CG15: Number of treatment stages per catchment area
BF17: =P17*R17 -> 0 | BG17: =T17*V17 -> 0
BF19: =P19*R19 -> 0 | BG19: =T19*V19 -> 0
BF21: 0 | BG21: 0
BF23: 0 | BG23: 0
BF25: 0 | BG25: 0
BF27: 0 | BG27: 0
BF29: 0 | BG29: 0
BF31: 0 | BG31: 0
BF33: 0 | BG33: 0
BF35: 0 | BG35: 0
BF37: 0 | BG37: 0
BF39: 0 | BG39: 0
BF41: 0 | BG41: 0
BF43: 0 | BG43: 0
BF45: 0 | BG45: 0
BF47: 0 | BG47: 0
BF49: 0 | BG49: 0
BF51: 0 | BG51: 0
BF53: 0 | BG53: 0
BF55: 0 | BG55: 0
A59: >>HIDE_BELOW

Sheet Potential double counting
S1: Potential for double counting | X1: >>HIDE_ALONG
B2: =ProjDetails -> PROJECT DETAILS - No.: 41521691, Name: Killingworth & Longbenton SuDS, Assmt. Version: 3, Date: Sep 2015.
B4: This worksheet is for information only to help you understand where double counting may occur between benefit categories
B6: Impact | C6: Air quality | D6: Amenity | E6: Biodiversity (habitats) | F6: Carbon sequestration / reduction | G6: Crime | H6: Economic growth | I6: Education | J6: Enabling development | K6: Flexible infrastructure / CCA | L6: Flood risk | M6: Groundwater recharge | N6: Health | O6: Pumping wastewater | P6: Recreation | Q6: Building Temperature | R6: Tourism | S6: Traffic calming | T6: Treating wastewater | U6: Water quality of receiving water | AB6: Public relations / Corporate Social Responsibility | AC6: Water resource
B7: Air quality | AE7: Air quality
B8: Amenity | AE8: Amenity
B9: Biodiversity (habitats) | AE9: Biodiversity and Ecology
B10: Carbon sequestration / reduction | AE10: Building temperature
B11: Crime | AE11: Carbon sequestration
B12: Economic growth | AE12: Enabling development
B13: Education | AE13: Flood risk
B14: Enabling development | AE14: Groundwater recharge
B15: Flexible infrastructure / CCA | AE15: Health
B16: Flood risk | AE16: Pumping wastewater
B17: Groundwater recharge | AE17: Rain water harvesting
B18: Health | AE18: Recreation
B19: Pumping wastewater | AE19: Treating wastewater
B20: Recreation | AE20: Water quality of receiving water
B21: Building Temperature | AE21: Crime
B22: Tourism | AE22: Economic growth
B23: Traffic calming | AE23: Education
B24: Treating wastewater | AE24: Flexible infrastructure / CCA
B25: Water quality of receiving water | AE25: Tourism
AE26: Traffic calming
A30: >>HIDE_BELOW
B34: Public relations / Corporate Social Responsibility
B35: Water resource

Sheet Potential Stakeholders
AT1: Potential interested stakeholders and organisations | AV1: >>HIDE_ALONG | AX1: =AI4="YES" -> FALSE | AY1: =W4="YES" -> TRUE | AZ1: =J4="YES" -> TRUE
B2: =ProjDetails -> PROJECT DETAILS - No.: 41521691, Name: Killingworth & Longbenton SuDS, Assmt. Version: 3, Date: Sep 2015. | AX2: shRed | AY2: shAmber | AZ2: shGreen
C4: Strong potential - Benefit is a priority or qualifying criterion for this stakeholder | J4: YES | M4: Modest potential - Benefit is not a priority but may be linked to another which is | W4: YES | Z4: Low potential - Benefit is not a specific priority or criterion | AI4: NO
B5: This sheet indicates the potential stakeholders and organisations to discuss the impacts of SuDS with. It is intended as an initial guide to help direct engagement efforts and relies on assumed values
C7: National, Regional & Local Authority | W7: EU | AB7: Corporate | AF7: Lottery | AI7: Others | AQ7: Services
C8: Flood & Coastal Risk Management Grant in Aid (FCRM GiA) | D8: Local Levy Funding | E8: Community Infrastructure Levy (CIL) | F8: Developer based contributions (S106) | G8: Council Tax (Add. Levies and Precepts) | H8: Public Works Loan Board (PWLB) | I8: Business Rate Supplement | J8: Regional Growth Fund | K8: Tax Increment Funding | L8: Business Rate Retention | M8: LEP's | N8: New Homes Bonus* | O8: Business Improvement Districts | P8: Asset backed financing | Q8: PPI / PFI | R8: DEFRA one-off grants & pilot projects | S8: WFD funding | T8: Clinical Commissions Groups (NHS) | U8: Housing Association | W8: ERDF | X8: LIFE + | Y8: ESF | Z8: European Investment Bank | AB8: Volunteering | AC8: Sponsorship CSR | AD8: Private Beneficiary Funding | AF8: Heritage Lottery Fund | AG8: Big Lottery | AI8: Grant Making Trusts | AJ8: Landfill Community Fund | AK8: Volunteering | AL8: Public Appeal | AM8: General Drainage Charge | AN8: Walking / Cycling / Angling groups etc | AO8: Not-for-profits & Charities | AQ8: Water | AR8: Power | AS8: Network Rail | AT8: Highways Agency
B10: Air quality | C10: R | D10: R | E10: A | F10: A | G10: R | H10: A | I10: r | J10: r | K10: r | L10: r | M10: r | N10: a | O10: r | P10: R | Q10: R | R10: G | S10: R | T10: G | U10: r | W10: A | X10: G | Y10: A | Z10: a | AB10: A | AC10: A | AD10: G | AF10: R | AG10: a | AI10: A | AJ10: A | AK10: A | AL10: A | AM10: R | AN10: A | AO10: a | AQ10: R | AR10: R | AS10: R | AT10: a
B11: Amenity | C11: A | D11: A | E11: A | F11: G | G11: R | H11: A | I11: A | J11: r | K11: A | L11: A | M11: A | N11: G | O11: A | P11: R | Q11: R | R11: R | S11: R | T11: g | U11: a | W11: A | X11: R | Y11: A | Z11: R | AB11: A | AC11: A | AD11: A | AF11: G | AG11: G | AI11: G | AJ11: G | AK11: A | AL11: A | AM11: R | AN11: A | AO11: A | AQ11: A | AR11: A | AS11: a | AT11: a
B12: Biodiversity and Ecology | C12: A | D12: A | E12: a | F12: a | G12: R | H12: A | I12: R | J12: r | K12: r | L12: R | M12: r | N12: a | O12: R | P12: R | Q12: R | R12: G | S12: a | T12: R | U12: R | W12: A | X12: G | Y12: r | Z12: g | AB12: A | AC12: A | AD12: A | AF12: G | AG12: G | AI12: G | AJ12: G | AK12: A | AL12: A | AM12: R | AN12: A | AO12: a | AQ12: a | AR12: a | AS12: A | AT12: A
B13: Building temperature | C13: a | D13: a | E13: a | F13: A | G13: R | H13: A | I13: r | J13: r | K13: R | L13: R | M13: r | N13: a | O13: r | P13: R | Q13: R | R13: G | S13: R | T13: G | U13: R | W13: r | X13: a | Y13: r | Z13: R | AB13: A | AC13: A | AD13: G | AF13: R | AG13: R | AI13: G | AJ13: R | AK13: A | AL13: A | AM13: R | AN13: A | AO13: A | AQ13: R | AR13: G | AS13: R | AT13: R
B14: Carbon sequestration | C14: A | D14: A | E14: A | F14: A | G14: R | H14: A | I14: r | J14: r | K14: R | L14: R | M14: r | N14: a | O14: R | P14: R | Q14: R | R14: G | S14: R | T14: R | U14: R | W14: r | X14: G | Y14: r | Z14: A | AB14: A | AC14: A | AD14: G | AF14: R | AG14: G | AI14: G | AJ14: A | AK14: A | AL14: A | AM14: R | AN14: R | AO14: a | AQ14: A | AR14: a | AS14: a | AT14: a
B15: Enabling development | C15: A | D15: A | E15: G | F15: g | G15: G | H15: g | I15: a | J15: a | K15: a | L15: a | M15: a | N15: g | O15: a | P15: G | Q15: R | R15: R | S15: R | T15: R | U15: R | W15: A | X15: R | Y15: A | Z15: G | AB15: R | AC15: R | AD15: G | AF15: R | AG15: A | AI15: G | AJ15: R | AK15: A | AL15: A | AM15: R | AN15: R | AO15: R | AQ15: A | AR15: a | AS15: a | AT15: a
B16: Flood risk | C16: G | D16: G | E16: G | F16: G | G16: G | H16: G | I16: a | J16: a | K16: a | L16: a | M16: a | N16: g | O16: a | P16: G | Q16: G | R16: G | S16: R | T16: a | U16: a | W16: A | X16: A | Y16: r | Z16: G | AB16: A | AC16: A | AD16: G | AF16: A | AG16: R | AI16: G | AJ16: A | AK16: A | AL16: A | AM16: G | AN16: A | AO16: A | AQ16: G | AR16: a | AS16: a | AT16: a
B17: Groundwater recharge | C17: a | D17: a | E17: a | F17: A | G17: R | H17: A | I17: R | J17: R | K17: R | L17: R | M17: R | N17: a | O17: R | P17: R | Q17: R | R17: G | S17: G | T17: R | U17: r | W17: r | X17: A | Y17: r | Z17: A | AB17: A | AC17: A | AD17: A | AF17: R | AG17: R | AI17: G | AJ17: R | AK17: A | AL17: A | AM17: G | AN17: A | AO17: A | AQ17: G | AR17: R | AS17: R | AT17: R
B18: Health | C18: A | D18: A | E18: a | F18: A | G18: R | H18: A | I18: r | J18: r | K18: r | L18: r | M18: r | N18: A | O18: R | P18: R | Q18: R | R18: R | S18: R | T18: G | U18: r | W18: a | X18: R | Y18: A | Z18: R | AB18: A | AC18: A | AD18: A | AF18: R | AG18: G | AI18: G | AJ18: A | AK18: A | AL18: A | AM18: R | AN18: A | AO18: a | AQ18: r | AR18: r | AS18: R | AT18: r
B19: Pumping wastewater | C19: A | D19: A | E19: A | F19: A | G19: R | H19: a | I19: r | J19: r | K19: R | L19: R | M19: R | N19: a | O19: R | P19: R | Q19: G | R19: R | S19: G | T19: R | U19: R | W19: r | X19: r | Y19: r | Z19: r | AB19: A | AC19: A | AD19: G | AF19: R | AG19: R | AI19: G | AJ19: A | AK19: A | AL19: A | AM19: G | AN19: A | AO19: R | AQ19: G | AR19: R | AS19: R | AT19: R
B20: Rain water harvesting | C20: A | D20: A | E20: a | F20: a | G20: A | H20: A | I20: R | J20: R | K20: a | L20: R | M20: a | N20: a | O20: r | P20: R | Q20: R | R20: G | S20: G | T20: R | U20: A | W20: r | X20: a | Y20: r | Z20: A | AB20: A | AC20: A | AD20: A | AF20: R | AG20: a | AI20: G | AJ20: R | AK20: A | AL20: A | AM20: G | AN20: A | AO20: a | AQ20: G | AR20: R | AS20: R | AT20: R
B21: Recreation | C21: A | D21: A | E21: A | F21: G | G21: R | H21: A | I21: R | J21: r | K21: a | L21: a | M21: a | N21: g | O21: a | P21: R | Q21: R | R21: R | S21: R | T21: G | U21: G | W21: A | X21: R | Y21: r | Z21: R | AB21: A | AC21: A | AD21: R | AF21: G | AG21: G | AI21: G | AJ21: G | AK21: A | AL21: A | AM21: R | AN21: A | AO21: a | AQ21: A | AR21: A | AS21: a | AT21: A
B22: Treating wastewater | C22: A | D22: A | E22: A | F22: A | G22: R | H22: a | I22: r | J22: r | K22: R | L22: R | M22: R | N22: a | O22: R | P22: R | Q22: G | R22: R | S22: G | T22: R | U22: R | W22: r | X22: a | Y22: r | Z22: A | AB22: A | AC22: A | AD22: G | AF22: R | AG22: R | AI22: G | AJ22: A | AK22: A | AL22: A | AM22: G | AN22: A | AO22: R | AQ22: G | AR22: R | AS22: R | AT22: R
B23: Water quality of receiving water | C23: A | D23: A | E23: A | F23: G | G23: R | H23: a | I23: r | J23: r | K23: R | L23: r | M23: r | N23: a | O23: r | P23: R | Q23: R | R23: G | S23: G | T23: A | U23: r | W23: A | X23: G | Y23: r | Z23: A | AB23: A | AC23: A | AD23: G | AF23: R | AG23: R | AI23: G | AJ23: G | AK23: A | AL23: A | AM23: G | AN23: A | AO23: R | AQ23: G | AR23: G | AS23: G | AT23: G
B24: Crime | C24: a | D24: a | E24: A | F24: A | G24: G | H24: A | I24: a | J24: R | K24: a | L24: a | M24: a | N24: A | O24: A | P24: R | Q24: R | R24: R | S24: R | T24: R | U24: a | W24: r | X24: R | Y24: A | Z24: R | AB24: A | AC24: A | AD24: R | AF24: r | AG24: A | AI24: G | AJ24: R | AK24: A | AL24: A | AM24: R | AN24: A | AO24: a | AQ24: R | AR24: R | AS24: r | AT24: R
B25: Economic growth | C25: A | D25: A | E25: G | F25: A | G25: G | H25: G | I25: G | J25: G | K25: G | L25: G | M25: G | N25: A | O25: G | P25: G | Q25: R | R25: R | S25: R | T25: R | U25: R | W25: A | X25: R | Y25: g | Z25: G | AB25: R | AC25: R | AD25: G | AF25: r | AG25: A | AI25: G | AJ25: R | AK25: A | AL25: A | AM25: R | AN25: R | AO25: A | AQ25: a | AR25: a | AS25: a | AT25: a
B26: Education | C26: A | D26: A | E26: A | F26: A | G26: R | H26: G | I26: A | J26: R | K26: a | L26: a | M26: A | N26: A | O26: a | P26: R | Q26: R | R26: R | S26: R | T26: R | U26: R | W26: A | X26: A | Y26: g | Z26: a | AB26: A | AC26: A | AD26: R | AF26: G | AG26: A | AI26: G | AJ26: G | AK26: A | AL26: A | AM26: R | AN26: A | AO26: a | AQ26: a | AR26: a | AS26: A | AT26: R
B27: Flexible infrastructure / CCA | C27: A | D27: A | E27: a | F27: A | G27: A | H27: G | I27: A | J27: r | K27: a | L27: a | M27: A | N27: A | O27: A | P27: G | Q27: G | R27: g | S27: R | T27: R | U27: A | W27: A | X27: R | Y27: r | Z27: G | AB27: A | AC27: A | AD27: A | AF27: R | AG27: A | AI27: R | AJ27: R | AK27: A | AL27: A | AM27: R | AN27: A | AO27: A | AQ27: A | AR27: A | AS27: a | AT27: a
B28: Tourism | C28: A | D28: A | E28: G | F28: a | G28: R | H28: G | I28: R | J28: R | K28: r | L28: r | M28: r | N28: a | O28: R | P28: R | Q28: R | R28: R | S28: R | T28: R | U28: R | W28: A | X28: R | Y28: A | Z28: a | AB28: A | AC28: A | AD28: R | AF28: A | AG28: R | AI28: R | AJ28: R | AK28: A | AL28: A | AM28: R | AN28: A | AO28: A | AQ28: R | AR28: R | AS28: G | AT28: R
B29: Traffic calming | C29: A | D29: A | E29: a | F29: G | G29: R | H29: G | I29: a | J29: R | K29: a | L29: a | M29: a | N29: a | O29: a | P29: R | Q29: r | R29: R | S29: R | T29: R | U29: a | W29: r | X29: R | Y29: r | Z29: R | AB29: R | AC29: R | AD29: R | AF29: R | AG29: R | AI29: R | AJ29: R | AK29: A | AL29: A | AM29: R | AN29: R | AO29: A | AQ29: R | AR29: R | AS29: R | AT29: G
C32: * Finishes in 2016
A36: >>HIDE_BELOW
B42: Noise | C42: A | D42: A | E42: A | F42: A | G42: R | H42: A | I42: A | J42: A | K42: R | L42: R | M42: G | N42: G | O42: A | P42: R | Q42: R | R42: R | S42: R | T42: A | U42: G | W42: A | X42: R | Y42: A | Z42: A | AB42: A | AC42: A | AD42: G | AF42: R | AG42: R | AI42: G | AJ42: R | AK42: A | AL42: A | AM42: R | AN42: A | AO42: G | AQ42: R | AR42: G | AS42: G | AT42: G | BA42: A | BB42: A | BC42: A | BD42: A | BE42: R | BF42: A | BG42: A | BH42: A | BI42: R | BJ42: R | BK42: G | BL42: G | BM42: A | BN42: R | BO42: R | BP42: R | BQ42: R | BR42: A | BS42: G | BU42: A | BV42: R | BW42: A | BX42: A | BZ42: A | CA42: A | CB42: G | CD42: R | CE42: R | CG42: G | CH42: R | CI42: A | CJ42: A | CK42: R | CL42: A | CM42: G | CO42: R | CP42: G | CQ42: G | CR42: G
B45: CSR | C45: R | D45: R | E45: R | F45: R | G45: R | H45: R | I45: R | J45: R | K45: R | L45: R | M45: R | N45: R | O45: R | P45: R | Q45: R | R45: R | S45: R | T45: R | U45: G | W45: A | X45: R | Y45: A | Z45: R | AB45: A | AC45: A | AD45: G | AF45: R | AG45: R | AI45: R | AJ45: R | AK45: A | AL45: A | AM45: R | AN45: A | AO45: A | AQ45: G | AR45: G | AS45: G | AT45: G | BA45: R | BB45: R | BC45: R | BD45: R | BE45: R | BF45: R | BG45: R | BH45: R | BI45: R | BJ45: R | BK45: R | BL45: R | BM45: R | BN45: R | BO45: R | BP45: R | BQ45: R | BR45: R | BS45: G | BU45: A | BV45: R | BW45: A | BX45: R | BZ45: A | CA45: A | CB45: G | CD45: R | CE45: R | CG45: R | CH45: R | CI45: A | CJ45: A | CK45: R | CL45: A | CM45: A | CO45: G | CP45: G | CQ45: G | CR45: G

Sheet AQ - Air quality (hidden)
V1: Air Quality | X1: >>HIDE_ALONG
B2: =ProjDetails -> PROJECT DETAILS - No.: 41521691, Name: Killingworth & Longbenton SuDS, Assmt. Version: 3, Date: Sep 2015.
B4: K E Y
B6: Evidence
B7: Provide evidence here…
C9: Notes
C10: Overview of the sections to help choose which one to capture the impact on air quality
C11: Only complete one section.
C12: Retrofit or redevelopment only like to create an impact in improving air quality. Where comparing with a conventional scheme, this is the additional benefit the SuDS (proposed) bring.
C13: Further help is provided in the guidance on how to estimate the impact depending upon the available data
E15: SECTION AQ1 | K15: SECTION AQ2
E16: If you have already calculated the impact on air quality from the schemes, enter the data here. | K16: Use this section if you need to estimate the impact on air quality
B19: SECTION AQ1 - use this if you have already calculated the impact
C21: Notes:
C22: If you have calculated the impact of the proposals on air quality enter the present values here. Assumes that only a retrofit will contribute to an improvement in air quality | AE22: Note to check: Do we need to consider the positive and negative impact to the WaSC (loss of revenue)
Q24: Confirm the start and end year of the evaluation
E26: Scenario | G26: Present value before certainty / confidence applied | I26: Level of certainty of the quantity calculated (select from list) | K26: Level of confidence of the monetary value selected/used | M26: Present value after certainty / confidence applied | Q26: Start | S26: End
C28: Proposed scenario | E28: ='Project Inputs'!$D$16 -> Combination of surface water separation measures, inc attenuation areas, diversion of Longbenton Letch & underground pipeline (sites 1, 3, 5, 7) | M28: =G28*I28*K28 -> 0
B32: SECTION AQ2 - use this section to estimate the impact of the proposals
C34: Proposed option
C36: Select information for new green roofs and vegetative SuDS | K36: Select vegetation pollutant removal levels (incl extensive green roofs) (tonnes/year/ha)
E38: Green roof Intensive | G38: =('SuDS Used'!H11)/10000 -> 0 | I38: ha | K38: SO2 | AJ38: 10-20 µg /m3 | AL38: Cells automatically up date
E40: Green roof extensive | G40: ='SuDS Used'!J11/10000 -> 0 | I40: ha | K40: NO2 | AJ40: 20-30 µg /m3 | AL40: Cells automatically calculate present value
E42: New basins (total incl. surrounding) | G42: =(SUM('SuDS Used'!AP11,'SuDS Used'!AN11,'SuDS Used'!AL11,'SuDS Used'!AJ11,'SuDS Used'!AH11,'SuDS Used'!AF11,'SuDS Used'!AD11,'SuDS Used'!AB11))/10000 -> 0 | I42: ha | K42: O3 | AJ42: 30-40 µg /m3
E44: Area of other vegetative SuDS e.g. raingardens | G44: =(SUM('SuDS Used'!L11,'SuDS Used'!R9,'SuDS Used'!V9,'SuDS Used'!Z9))/10000 -> 0 | I44: ha | K44: PM-10 | AJ44: 40-50 µg /m3 | AL44: Further work required
AJ45: 50-60 µg /m3
E46: Total contributing vegetative SuDS area | G46: =SUM(G38+G44+G42+G122+G40) -> 0 | I46: ha | K46: CO | AJ46: > 60 µg /m3
C48: New trees planted
E50: Total number of trees | G50: ='SuDS Used'!N11 -> 0 | M50: GENERAL NOTES
E52: Tree size | G52: Tree type (small) | I52: Tree type (medium) | K52: Tree type (large) | M52: When the tree (species) has matured
E54: Numbers | M54: Distribute the total number of trees
C56: Select tree pollutant removal levels from ranges (tonnes/year/tree): Low, Central, High, User defined | E56: SO2 | M56: More values to be added in the Values Library
E58: NO2 | M58: Need to consider growth rate and impact
E60: O3
E62: PM-10
E64: CO | M64: Values to be added at a later date
C67: Pollutant removal monetary values
O68: Evaluation time frame (year)
C70: Select pollutant removal health benefit values (£/tonnes) | E70: SO2 | O70: Start | Q70: End
E72: NO2
E74: O3 | I74: Values to be added at a later date
E76: PM-10
E78: CO | I78: Values to be added at a later date
C80: Benefit estimation | AI80: Consider weighting based upon existing context | AK80: (to consider this further)
K81: Confirm the confidence you have in the calculation method and valuation
E83: Annual pollutant removal estimates (vegetation) tonnes | G83: Annual pollutant removal estimates (trees) tonnes | I83: Annual pollutant removal benefit (£) | K83: Quantity | M83: Valuation (£) | O83: Present value before confidence applied | Q83: Present value after confidence applied
C85: SO2 | E85: =$G$46*M38 -> 0 | G85: =$G$54*G56+$I$54*I56+$K$54*K56 -> 0 | I85: =(E85+G85)*G70 -> 0 | O85: ='Present Value Calcs'!BQ13 -> 0 | Q85: =O85*M85*K85 -> 0
C87: NO2 | E87: =$G$46*M40 -> 0 | G87: =$G$54*G58+$I$54*I58+$K$54*K58 -> 0 | I87: =(E87+G87)*G72 -> 0 | O87: ='Present Value Calcs'!BS13 -> 0 | Q87: =O87*M87*K87 -> 0
C89: O3 | E89: =$G$46*M42 -> 0 | G89: =$G$54*G60+$I$54*I60+$K$54*K60 -> 0 | I89: =(E89+G89)*G74 -> 0 | Q89: =O89*M89*K89 -> 0
C91: PM-10 | E91: =$G$46*M44 -> 0 | G91: =$G$54*G62+$I$54*I62+$K$54*K62 -> 0 | I91: =(E91+G91)*G76 -> 0 | O91: ='Present Value Calcs'!BU13 -> 0 | Q91: =O91*M91*K91 -> 0
C93: CO | E93: =$G$46*M46 -> 0 | G93: =$I$54*I64 -> 0 | I93: =E93+G93 -> 0 | Q93: =O93*M93*K93 -> 0
M95: Difference | O95: =SUM(O85:O93) -> 0 | Q95: =SUM(Q85:Q93) -> 0
A99: >>HIDE_BELOW
C103: Existing context to understand if air pollution is a problem
C105: Air pollution levels (from available data) to indicate pollution levels and the extent of the problem | M105: http://naei.defra.gov.uk/data/gis-mapping
C106: SO2
C107: NO2
C108: O3
C109: PM-10
C110: CO
E116: Likely size at full growth | G116: Please select | I116: Please select | K116: Please select | M116: Currently considering if to include for size of tree type and the impact this has on the value
E118: Pollutant removal type | G118: Please select | I118: Please select | K118: Please select
E122: New green walls | I122: ha

Sheet Am - Amenity
U1: Amenity | W1: >>HIDE_ALONG
B2: =ProjDetails -> PROJECT DETAILS - No.: 41521691, Name: Killingworth & Longbenton SuDS, Assmt. Version: 3, Date: Sep 2015.
B4: K E Y
B6: Evidence: Qualitative summary and written evidence
B7: 1 | D7: Average house price used for NE12 postcode, with a value of £155k from Zoopla. House type not investigated, therefore used 'other' category.
B8: 2 | D8: Attenuation areas around Forest Hall Letch expected to significantly improve appearance and attractiveness of area. This will increase amenity value of individual properties and improve appearance of general area.
B9: 3 | D9: Approx 300 homes impacted, in area bordered by Killingworth Road (West), Great Lime Road (South) and Forest Gate/railway (East)
B10: 4 | D10: Time allowed for planting to mature prior to an increase in value
B11: 5
D13: Notes
D14: Overview of the sections to help assess the amenity value
D15: Only complete one section.
F18: SECTION AM1 | H18: SECTION AM2
F19: Enables you to enter your own present value calculations as a result of enhancing the amenity / quality of space | H19: Use this section to help you estimate the impact of changing the quality of space / amenity.
B22: SECTION AM1
D24: Notes
D25: If you have calculated the amenity benefits for the option as a present value, enter it here.
H27: Confirm the confidence you have in the calculation method and valuation | P27: Confirm the start and end year of the evaluation
F29: Confirm the present value of the benefit £ | H29: Quantity | J29: Valuation (£) | L29: Present benefit after applying the confidence values | P29: Start | R29: End
L31: =J31*H31*F31 -> 0
B35: SECTION AM2
D37: Notes:
D38: Guidance to assess the character / quality of space to be issued soon
B41: Street improvements through greening | J41: Confirm the confidence you have in the calculation method and valuation
B43: Scenario | F43: Estimated no. of residents living in green streets | H43: Select appropriate monetary value description (or enter used defined) £/yr/resident | J43: Quantity | L43: Valuation (£) | N43: Present value before certainty applied | P43: Present value after certainty applied
B45: Baseline scenario | D45: ='Project Inputs'!$D$14 -> Includes grasslands, farmland, woodland, freshwater, semi-urban. With no intervention, flood risk, water quality will worsen. See report Table 1 | N45: ='Present Value Calcs'!CV13 -> 0 | P45: =N45*L45*J45 -> 0 | AC45: 1.73
B47: Proposed scenario | D47: ='Project Inputs'!$D$16 -> Combination of surface water separation measures, inc attenuation areas, diversion of Longbenton Letch & underground pipeline (sites 1, 3, 5, 7) | N47: ='Present Value Calcs'!CX13 -> 0 | P47: =N47*L47*J47 -> 0 | AC47: 2.3
AC48: 5.36
D49: Confirm the start and end year of the evaluation | L49: Difference | N49: =N47-N45 -> 0 | P49: =P47-P45 -> 0
D51: Start | F51: End
B57: Permanent body of water | J57: Confirm the confidence you have in the calculation method and valuation
B59: Scenario | F59: Estimated no. of homes overlooking ponds | H59: Select appropriate monetary value description (or enter used defined) £/yr/resident household | J59: Quantity | L59: Valuation (£) | N59: Present value before certainty applied | P59: Present value after certainty applied
B61: Baseline scenario | D61: ='Project Inputs'!$D$14 -> Includes grasslands, farmland, woodland, freshwater, semi-urban. With no intervention, flood risk, water quality will worsen. See report Table 1 | N61: ='Present Value Calcs'!CZ13 -> 0 | P61: =N61*L61*J61 -> 0
B63: Proposed scenario | D63: ='Project Inputs'!$D$16 -> Combination of surface water separation measures, inc attenuation areas, diversion of Longbenton Letch & underground pipeline (sites 1, 3, 5, 7) | N63: ='Present Value Calcs'!DB13 -> 0 | P63: =N63*L63*J63 -> 0
D65: Confirm the start and end year of the evaluation | L65: Difference | N65: =N63-N61 -> 0 | P65: =P63-P61 -> 0
D67: Start | F67: End
B72: Property price increase as a result of enhancements to parks
F74: Average house price, £ | L74: Benefit, £ (one-off) before certainty | N74: Confirm the confidence you have in the calculation method and valuation | R74: Benefit, £ (one-off) after certainty
F76: Detached | H76: Other houses | J76: Flats
H78: 155000 | N78: Quantity | P78: Valuation (£)
B80: City public park enhancement | D80: No. of detached houses <450m from park | L80: =(0.1997*F78*J80)+(0.0293*H78*J81)+(0.0754*J78*J82) -> 0 | R80: =P80*N80*L80 -> 0
D81: No. of other houses <450m from park
D82: No. of flats <450m from park
B84: Local public park enhancement | D84: No. of detached houses <450m from park | L84: =(0.0962*F78*J84)+(0.0944*H78*J85)+(0.0792*J78*J86) -> 0 | R84: =P84*N84*L84 -> 0
D85: No. of other houses <450m from park
D86: No. of flats <450m from park
B88: Public open green space enhancement | D88: No. of detached houses <450m from park | L88: =(0.0271*F78*J88)+(0.0044*H78*J89)+(0.0271*J78*J90) -> 204600 | N88: 0.75 | P88: 0.75 | R88: =P88*N88*L88 -> 115087.5
D89: No. of other houses <450m from park | J89: 300
D90: No. of flats <450m from park
D92: Confirm the year the impact will occur | J92: Annual Value | L92: =SUM(L80:L90) -> 204600
D94: Start | F94: End | N94: Average confidence values
D96: 2017 | F96: =D96 -> 2017 | J96: Present value of benefit | L96: ='Present Value Calcs'!DD13 -> 178297.0798 | N96: =IFERROR(AVERAGE(N80:N90),"") -> 0.75 | P96: =IFERROR(AVERAGE(P80:P90),"") -> 0.75 | R96: =PRODUCT(L96,N96,P96) -> 100292.1074
A98: >>HIDE_BELOW

Sheet BE - Biodiversity & Ecology
AC1: Biodiversity and ecology | AM1: >>HIDE_ALONG
B2: =ProjDetails -> PROJECT DETAILS - No.: 41521691, Name: Killingworth & Longbenton SuDS, Assmt. Version: 3, Date: Sep 2015.
B4: K E Y | AT4: Designated status | AU4: Habitat type (habitats of principal importance) | AV4: Habitat type (other, locally important) | AX4: Section 41 of the Natural Environment and Rural Communities (NERC) Act 2006 - Habitats and Species of Principal Importance in England
B5: Evidence: Qualitative summary and written evidence | AT5: None | AU5: None | AV5: None | AX5: Broad habitat | AY5: Habitat of principal importance
B6: 1 | C6: Significant opportunity to create improved wildlife habitat along Forest Hall and Longbenton Letches in attenuation areas. In addition, there is a possible improvement to Gosforth Park Nature Reserve SSSI, as a result of additional flow from Killingworth Lake. | AT6: Statutory wildlife site | AU6: Pond | AV6: Ditch/watercourse | AX6: Arable and horticulture | AY6: Arable field margins
B7: 2 | C7: Total potential area of newly created habitat estimated as 1.7ha (5,000m² at Forest Hall Letch; 5,000m² at Longbenton Community College; 7,000m² at Killingworth Lake) | AT7: Local statutory wildlife site | AU7: Reed bed | AV7: Grassland | AX7: Arable and horticulture | AY7: Traditional orchards
B8: 3 | C8: Average values from BeST guidance for ‘inland marsh’ used to consider the impact, since this is most appropriate where basins are created/improved | AT8: Non-statutory wildlife site | AU8: Wet woodland | AV8: Shrubs/scrub | AX8: Boundary | AY8: Hedgerows
B9: 4 | C9: Benefits assumed to start in 2017 (delay to allow for sites to mature) and end in 2055 | AT9: Other designations (not wildlife) - enter type | AU9: Lowland mixed deciduous woodland | AV9: Individual trees | AX9: Coastal | AY9: Coastal saltmarsh
B10: 5 | C10: High confidence scores assumed for quantitative estimate (100% since this is based on modeling and detailed designs) and monetary estimate (75% since exceedance areas will be dry most of time) | AU10: Hedgerows | AV10: Marshy/wet grassland | AX10: Coastal | AY10: Coastal sand dunes
AU11: Other - enter from S41 habitats list (NERC) | AV11: Other - enter other habitat present
C13: Notes: Overview of the sections to help choose which one to use to assess the potential change in biodiversity and ecology. Only complete one section
E15: SECTION BE1 | G15: SECTION BE2
E16: Complete this section it you have already assessed the present value benefit of the change in biodiversity and ecology | G16: Use this section if you need to estimate the impact of the proposals on the ecology and biodiversity
AV17: Other - enter other habitat present | AX17: Coastal | AY17: Coastal vegetated shingle
B19: SECTION BE1
AU20: Other - enter from S41 habitats list (NERC) | AV20: Other - enter other habitat present | AX20: Coastal | AY20: Coastal vegetated shingle
C21: NOTES | AX21: Coastal | AY21: Intertidal mudflats
C22: Have you undertaken an assessment of present value of the enhancement of the Ecology and Biodiversity? If Yes please enter the information below. | AT22: Guidance to provide brief explanations of what these designations are & provide photo examples. | AU22: Define in guidance & provide photo examples | AV22: Provide photo examples in guidance | AX22: Coastal | AY22: Maritime cliff and slopes
C23: If not, please go to the section BE2 and consider a detailed or basic assessment of the changes to ecology and biodiversity | AX23: Coastal | AY23: Saline lagoons
C24: For a retrofit / redevelopment only complete the Proposed Scenario Row. For new development, complete both | AX24: Coastal | AY24: Saline lagoons
AX25: Freshwater | AY25: Aquifer-fed naturally fluctuating water bodies
E26: Scenario | G26: Present value of the ecology and biodiversity before certainty confidence applied | I26: Level of certainty of the quantity calculated (select from list) | K26: Level of confidence of the monetary value selected/used | M26: Present value the ecology and biodiversity after certainty / confidence applied | Q26: Confirm the start and end year of the evaluation | AT26: Surrounding land use * | AU26: Associated weighting ** | AX26: Freshwater | AY26: Eutrophic standing waters
AT27: Parkland - public open spaces (amenity grassland etc.) | AX27: Grassland | AY27: Lowland calcareous grassland
C28: Baseline scenario | E28: ='Project Inputs'!$D$14 -> Includes grasslands, farmland, woodland, freshwater, semi-urban. With no intervention, flood risk, water quality will worsen. See report Table 1 | G28: 0 | M28: =G28*I28*K28 -> 0 | Q28: Start | S28: End | AT28: select from drop-down menu | AU28: Autofill based on landuse selection | AX28: Freshwater | AY28: Mesotrophic lakes
AX29: Grassland | AY29: Lowland calcareous grassland
C30: Proposed scenario | E30: ='Project Inputs'!$D$16 -> Combination of surface water separation measures, inc attenuation areas, diversion of Longbenton Letch & underground pipeline (sites 1, 3, 5, 7) | G30: 0 | M30: =G30*I30*K30 -> 0 | AX30: Freshwater | AY30: Oligotrophic and dystrophic lakes
AT31: Urban - no green space, no trees | AX31: Grassland | AY31: Lowland calcareous grassland
E32: Comparative Present Value of the options | G32: =G30-G28 -> 0 | M32: =M30-M28 -> 0 | AT32: Urban - isolated trees/hedges/grass verges | AX32: Freshwater | AY32: Ponds
AT33: Suburban - domestic gardens, grass verges, some open space | AX33: Freshwater | AY33: Rivers
AT34: Parkland - public open spaces (amenity grassland etc.) | AX34: Grassland | AY34: Lowland calcareous grassland
AT35: Highways - local B and C roads | AX35: Grassland | AY35: Lowland dry acid grassland
AT36: Highways - trunk and major roads (A roads, duel carriageways, motorways) | AX36: Grassland | AY36: Lowland meadows
AT37: Countryside - intensively farmed land (arable, grazed pasture) | AX37: Grassland | AY37: Purple moor-grass and rush pastures
B38: SECTION BE2 | AT38: Countryside - low intensity farmland, semi-natural habitats (woodlands, meadows, wetlands, rivers etc.)
AU39: Other - enter from S41 habitats list (NERC) | AV39: Other - enter other habitat present | AX39: Coastal | AY39: Coastal vegetated shingle
C40: NOTES | AX40: Grassland | AY40: Upland calcareous grassland
C41: Use the following structure to help record your decisions and estimate the change in ecology and biodiversity before estimating the monetary value | AX41: Grassland | AY41: Upland hay meadows
C42: Use the structure whether following a detailed or basic assessment approach | AX42: Grassland | AY42: Upland hay meadows
C43: Use the supporting guidance to help you complete this assessment (being drafted). | AX43: Heathland | AY43: Lowland heathland
C44: For a retrofit / redevelopment only complete the Proposed Scenario Rows. For new development, complete both | AX44: Coastal | AY44: Saline lagoons
C48: Baseline scenario | E48: ='Project Inputs'!$D$14 -> Includes grasslands, farmland, woodland, freshwater, semi-urban. With no intervention, flood risk, water quality will worsen. See report Table 1 | W48: Enter user defined value OR select value (not both) | AX48: Heathland | AY48: Mountain heaths and willow scrub
AT49: Parkland - public open spaces (amenity grassland etc.) | AX49: Grassland | AY49: Lowland calcareous grassland
C50: Location (describe or reference from map) | E50: Existing land use | G50: Designated status | I50: Dominant habitat type (habitats of principal importance) | K50: Dominant habitat type (other, locally important) | M50: Quality of habitat | O50: Habitat connectivity | Q50: Additional information * | S50: Enter the quantity (to match the monetary value units, e.g. Ha ) | U50: Select appropriate monetary value description (or enter user defined) | W50: User defined value if available (to match the monetary value units) | Y50: Select low, average or high monetary value | AA50: Enter Monetary Value (or enter user defined) | AC50: Units | AE50: Annual Value £ | AX50: Heathland | AY50: Upland heathland
AT51: Parkland - public open spaces (amenity grassland etc.) | AX51: Grassland | AY51: Lowland calcareous grassland
G52: None | I52: None | K52: Grassland | M52: Parkland - public open spaces (amenity grassland etc.) | O52: Good - (managed green space) - connected to other habitats via heavily managed grass verges, amenity grassland etc.) | U52: Inland marsh | AA52: =IF(ISNUMBER($W52),$W52,IFERROR(VLOOKUP($U52,tblBioDiversity,HLOOKUP($Y52,tblBDGrade,2,0),0),"-")) -> - | AC52: =IFERROR(SUBSTITUTE(VLOOKUP($U52,tblBioDiversity,6,0),"/"," / "),"") -> £ / ha / year | AE52: =IFERROR(AA52*S52,"") ->  | AX52: Inland rock | AY52: Calaminarian grasslands
AT53: Parkland - public open spaces (amenity grassland etc.) | AX53: Grassland | AY53: Lowland calcareous grassland
G54: None | I54: None | K54: Grassland | M54: Low - Botanically poor (e.g. monoculture grassland) or provides poor potential habitat for range of species | O54: Good - (managed green space) - connected to other habitats via heavily managed grass verges, amenity grassland etc.) | Q54: exceedance area - detention basins only | U54: Inland marsh | AA54: - | AC54: £ / ha / year | AT54: * Categories above need to be consistent with existing landuse categories from other tools. | AX54: Heathland | AY54: Lowland heathland
AT55: Parkland - public open spaces (amenity grassland etc.) | AX55: Grassland | AY55: Lowland calcareous grassland
G56: None | I56: None | K56: Grassland | M56: Parkland - public open spaces (amenity grassland etc.) | O56: Good - (managed green space) - connected to other habitats via heavily managed grass verges, amenity grassland etc.) | Q56: exceedance area - detention basins only | U56: Inland marsh | AA56: - | AC56: £ / ha / year | AX56: Heathland | AY56: Mountain heaths and willow scrub
AT57: Parkland - public open spaces (amenity grassland etc.) | AX57: Grassland | AY57: Lowland calcareous grassland
AA58: - | AT58: ** Need to allocate a weighting to overall biodiversity scores, based on existing landuse and therefore context with surrounding land e.g. creating a pond, or green roof in an area otherwise devoid of all habitat could be 'valued' higher than similar measures within a parkland where there is existing habitat. This is linked to habitat connectivity. | AX58: Heathland | AY58: Upland heathland
AT59: Parkland - public open spaces (amenity grassland etc.) | AX59: Grassland | AY59: Lowland calcareous grassland
AA60: - | AX60: Inland rock | AY60: Calaminarian grasslands
AT61: Parkland - public open spaces (amenity grassland etc.) | AX61: Grassland | AY61: Lowland calcareous grassland
AA62: - | AT62: * Categories above need to be consistent with existing landuse categories from other tools. | AX62: Heathland | AY62: Lowland heathland
AT63: Parkland - public open spaces (amenity grassland etc.) | AX63: Grassland | AY63: Lowland calcareous grassland
AA64: - | AX64: Heathland | AY64: Mountain heaths and willow scrub
AT65: Parkland - public open spaces (amenity grassland etc.) | AX65: Grassland | AY65: Lowland calcareous grassland
AA66: - | AT66: ** Need to allocate a weighting to overall biodiversity scores, based on existing landuse and therefore context with surrounding land e.g. creating a pond, or green roof in an area otherwise devoid of all habitat could be 'valued' higher than similar measures within a parkland where there is existing habitat. This is linked to habitat connectivity. | AX66: Heathland | AY66: Upland heathland
AT67: Parkland - public open spaces (amenity grassland etc.) | AX67: Grassland | AY67: Lowland calcareous grassland
AA68: - | AX68: Inland rock | AY68: Calaminarian grasslands
AT69: Parkland - public open spaces (amenity grassland etc.) | AX69: Grassland | AY69: Lowland calcareous grassland
AA70: - | AT70: * Categories above need to be consistent with existing landuse categories from other tools. | AX70: Inland rock | AY70: Inland rock outcrop and scree habitats
AT71: Parkland - public open spaces (amenity grassland etc.) | AX71: Grassland | AY71: Lowland calcareous grassland
AA72: - | AX72: Inland rock | AY72: Limestone pavements
AT73: Parkland - public open spaces (amenity grassland etc.) | AX73: Grassland | AY73: Lowland calcareous grassland
AA74: - | AT74: ** Need to allocate a weighting to overall biodiversity scores, based on existing landuse and therefore context with surrounding land e.g. creating a pond, or green roof in an area otherwise devoid of all habitat could be 'valued' higher than similar measures within a parkland where there is existing habitat. This is linked to habitat connectivity. | AX74: Inland rock | AY74: Open mosaic habitats on previously developed land
AT75: Parkland - public open spaces (amenity grassland etc.) | AX75: Grassland | AY75: Lowland calcareous grassland
AA76: - | AX76: Marine | AY76: Blue mussel beds
AT77: Parkland - public open spaces (amenity grassland etc.) | AX77: Grassland | AY77: Lowland calcareous grassland
AA78: - | AX78: Marine | AY78: Estuarine rocky habitats
AC79: TOTAL | AE79: =SUM(AE52:AE78) -> 0 | AT79: Habitat quality | AU79: Definition (subjective assessment, based on professional judgement) | AX79: Marine | AY79: Fragile sponge and anthozoan communities on subtidal rocky habitats
AX80: Marine | AY80: Horse mussel beds
AX81: Marine | AY81: Intertidal boulder communities
C82: Proposed scenario | E82: ='Project Inputs'!$D$16 -> Combination of surface water separation measures, inc attenuation areas, diversion of Longbenton Letch & underground pipeline (sites 1, 3, 5, 7) | W82: Enter user defined value or select value | AX82: Marine | AY82: Intertidal chalk
AT83: Parkland - public open spaces (amenity grassland etc.) | AX83: Grassland | AY83: Lowland calcareous grassland
C84: Location (describe or reference from map) | E84: Land use | G84: Designated status | I84: Dominant habitat type (habitats of principal importance) | K84: Dominant habitat type (other, locally important) | M84: Quality of habitat | O84: Habitat connectivity | Q84: Additional information * | S84: Enter the quantity (to match the monetary value units) | U84: Select appropriate monetary value description (or enter user defined) | W84: User defined value if available | Y84: Select low, average or high monetary value | AA84: Enter Monetary Value (or enter user defined) | AC84: Units | AE84: Annual Value £ | AX84: Marine | AY84: Maërl beds
AT85: Parkland - public open spaces (amenity grassland etc.) | AX85: Grassland | AY85: Lowland calcareous grassland
C86: Site 1 - Forest Hall Letch | E86: Countryside - low intensity farmland, semi-natural habitats (woodlands, meadows, wetlands, rivers etc.) | G86: None | I86: None | K86: Grassland | M86: Parkland - public open spaces (amenity grassland etc.) | O86: Good - (managed green space) - connected to other habitats via heavily managed grass verges, amenity grassland etc.) | S86: 0.5 | U86: Inland marsh | Y86: Average | AA86: =IF(ISNUMBER($W86),$W86,IFERROR(VLOOKUP($U86,tblBioDiversity,HLOOKUP($Y86,tblBDGrade,2,0),0),"-")) -> 1352.813853 | AC86: =IFERROR(SUBSTITUTE(VLOOKUP($U86,tblBioDiversity,6,0),"/"," / "),"") -> £ / ha / year | AE86: =IFERROR(AA86*S86,"") -> 676.4069264 | AX86: Marine | AY86: Mud habitats in deep water
AT87: Parkland - public open spaces (amenity grassland etc.) | AX87: Grassland | AY87: Lowland calcareous grassland
C88: Site 3 - Longbenton Community College | E88: Parkland - public open spaces (amenity grassland etc.) | G88: None | I88: None | K88: Grassland | M88: Low - Botanically poor (e.g. monoculture grassland) or provides poor potential habitat for range of species | O88: Good - (managed green space) - connected to other habitats via heavily managed grass verges, amenity grassland etc.) | Q88: exceedance area - detention basins only | S88: 0.5 | U88: Inland marsh | Y88: Average | AA88: =IF(ISNUMBER($W88),$W88,IFERROR(VLOOKUP($U88,tblBioDiversity,HLOOKUP($Y88,tblBDGrade,2,0),0),"-")) -> 1352.813853 | AC88: £ / ha / year | AE88: 676.4069264 | AX88: Marine | AY88: Peat and clay exposures
AT89: Parkland - public open spaces (amenity grassland etc.) | AX89: Grassland | AY89: Lowland calcareous grassland
C90: Site 5 - Killingworth Lake | E90: Parkland - public open spaces (amenity grassland etc.) | G90: None | I90: None | K90: Grassland | M90: Parkland - public open spaces (amenity grassland etc.) | O90: Good - (managed green space) - connected to other habitats via heavily managed grass verges, amenity grassland etc.) | Q90: exceedance area - detention basins only | S90: 0.7 | U90: Inland marsh | Y90: Average | AA90: 1352.813853 | AC90: £ / ha / year | AE90: 946.969697 | AX90: Marine | AY90: Sabellaria alveolata reefs
AT91: Parkland - public open spaces (amenity grassland etc.) | AX91: Grassland | AY91: Lowland calcareous grassland
AA92: - | AX92: Marine | AY92: Sabellaria spinulosa reefs
AT93: Parkland - public open spaces (amenity grassland etc.) | AX93: Grassland | AY93: Lowland calcareous grassland
AA94: - | AX94: Marine | AY94: Seagrass beds
AT95: Parkland - public open spaces (amenity grassland etc.) | AX95: Grassland | AY95: Lowland calcareous grassland
AA96: - | AX96: Marine | AY96: Sheltered muddy gravels
AT97: Parkland - public open spaces (amenity grassland etc.) | AX97: Grassland | AY97: Lowland calcareous grassland
AA98: - | AX98: Marine | AY98: Subtidal chalk
AT99: Parkland - public open spaces (amenity grassland etc.) | AX99: Grassland | AY99: Lowland calcareous grassland
AA100: - | AX100: Marine | AY100: Subtidal sands and gravels
AT101: Parkland - public open spaces (amenity grassland etc.) | AX101: Grassland | AY101: Lowland calcareous grassland
AA102: - | AX102: Marine | AY102: Tide-swept channels
AT103: Parkland - public open spaces (amenity grassland etc.) | AX103: Grassland | AY103: Lowland calcareous grassland
AA104: - | AX104: Wetland | AY104: Blanket bog
AT105: Parkland - public open spaces (amenity grassland etc.) | AX105: Grassland | AY105: Lowland calcareous grassland
AA106: - | AX106: Wetland | AY106: Coastal and floodplain grazing marsh
AT107: Parkland - public open spaces (amenity grassland etc.) | AX107: Grassland | AY107: Lowland calcareous grassland
AA108: - | AX108: Wetland | AY108: Lowland fens
AT109: Parkland - public open spaces (amenity grassland etc.) | AX109: Grassland | AY109: Lowland calcareous grassland
AA110: - | AX110: Wetland | AY110: Lowland raised bog
AT111: Parkland - public open spaces (amenity grassland etc.) | AX111: Grassland | AY111: Lowland calcareous grassland
AA112: - | AX112: Wetland | AY112: Reedbeds
AT113: Parkland - public open spaces (amenity grassland etc.) | AX113: Grassland | AY113: Lowland calcareous grassland
AC114: TOTAL | AE114: =SUM(AE86:AE112) -> 2299.78355 | AX114: Wetland | AY114: Upland flushes, fens and swamps
AT115: Parkland - public open spaces (amenity grassland etc.) | AX115: Grassland | AY115: Lowland calcareous grassland
U116: Comparative Annual Value of the SuDS Proposed | AE116: =AE114-AE79 -> 2299.78355 | AX116: Woodland | AY116: Upland mixed ashwoods
AX117: Woodland | AY117: Upland oakwood
AX118: Woodland | AY118: Wet woodland
AT119: High - Botanically rich or provides excellent potential habitat for range of species | AX119: Woodland | AY119: Wood-pasture and parkland
E120: Confirm the start and end year of the evaluation | AT120: Medium - Provides good potential habitat for range of species.
AT121: Parkland - public open spaces (amenity grassland etc.) | AX121: Grassland | AY121: Lowland calcareous grassland
E122: Start | G122: End | K122: Present value damage before certainty confidence applied | M122: Level of certainty of the quantity calculated (select from list) | O122: Level of confidence of the monetary value selected/used | Q122: Present value damage after certainty / confidence applied | AT122: Low - Botanically poor (e.g. monoculture grassland) or provides poor potential habitat for range of species
AT123: Parkland - public open spaces (amenity grassland etc.) | AX123: Grassland | AY123: Lowland calcareous grassland
E124: 2017 | G124: 2055 | K124: =IFERROR(('Present Value Calcs'!BG13),"0") -> 43904.20315 | M124: 1 | O124: 0.75 | Q124: =K124*M124*O124 -> 32928.15236
AT125: Note - no standard categories readily available, as definition of habitat quality will vary depending on habitat type.
A127: >>HIDE_BELOW | AT127: Guidance to provide brief explanation of each category & provide photo examples . Need to ensure guidance stresses need for professional ecological judgement for defining habitat quality.
AT131: Habitat connectivity
AT132: Excellent - (unmanaged green space) - connected to other habitats via ditches, hedges, grass verges, gardens
AT133: Good - (managed green space) - connected to other habitats via heavily managed grass verges, amenity grassland etc.)
AT134: Poor - surrounded by hard-standing areas (concrete, paths, roads). No 'green space' present.
AT136: Note - no standard categories readily available. To reduce subjectiveness, this requires clear definition.
AT138: Guidance to provide brief explanation of each category & provide photo examples .
AU146: Suggested values (2013 prices)
AT147: Evaluation description | AU147: Low | AV147: Central / Average | AW147: High | AX147: Units
AS148: 6 | AT148: Inland marsh or similar | AU148: =ValuesLibrary!J77 -> 0 | AV148: =ValuesLibrary!K77 -> 4.785202352 | AW148: =ValuesLibrary!L77 -> High not defined | AX148: £/ha/year
AT149: Woodlands/wetlands or similar | AU149: n/a | AV149: =ValuesLibrary!F87 -> 0 | AW149: n/a | AX149: £/ha/household/yr
AT150: All habitats | AU150: n/a | AV150: =ValuesLibrary!F88 -> 0 | AW150: n/a | AX150: £/ha/year
O158: Enter the area or number of measures
AT165: Inland marsh or similar
AT166: Inland marsh or similar
AT167: Inland marsh or similar
O177: Enter the area or number of measures

Sheet BT - Building Temperature (hidden)
S1: Building temperature | U1: >>HIDE_ALONG
B2: =ProjDetails -> PROJECT DETAILS - No.: 41521691, Name: Killingworth & Longbenton SuDS, Assmt. Version: 3, Date: Sep 2015.
B4: K E Y
B6: Evidence: Qualitative summary and written evidence
B7: 1
B8: 2
B9: 3
B10: 4
B11: 5
C13: Notes
C14: Overview of the sections to help choose which section to assess the potential impact on buildings
C15: Only complete one section.
C16: The expected impact from green roofs will only occur under a SuDS scenario, therefore no scenarios are shown for section BT1 and BT2.
D18: SECTION BT1 | F18: SECTION BT2
D19: If you have know the annual energy savings for heating and cooling, then enter the values in this section | F19: Use this section if you need to estimate the impact of green roofs on buildings
B22: SECTION BT1 - Benefits of green roofs on buildings
C24: Notes
C25: If you have calculated the energy savings to buildings from green roofs for heating and cooling, please enter the information here
F27: Confirm the confidence you have in the calculation method and valuation | N27: Confirm the start and end year of the evaluation
D29: Energy saving to buildings through installing green roofs (Kw/year) for heating and cooling | F29: Quantity | H29: Valuation (£) | J29: Proportion (%) of properties heated through electricity | L29: Proportion (%) of properties heated through gas | N29: Start | P29: End | AB29: 1 square foot = x square metre
AB31: 0.09290304
F33: Properties using electricity | J33: Properties using gas
D35: Traded Carbon | F35: Energy Type | H35: Energy Rate | J35: Energy Type | L35: Energy Rate | N35: Discount rate | AB35: 11.34 sqft | AC35: =AB31*11.34/1.8 -> 0.585289152 | AD35: co-efficient for m2
N37: ='Project Inputs'!D28 -> 0.035
AB38: 23.4 sqft | AC38: =AB31*23.4/1.8 -> 1.20773952 | AD38: co-efficient for m2
H40: Estimated present value before confidence scores | J40: Estimated present value after confidence scores | AB40: 1 kw = 3412 Btu
D42: Energy savings | H42: ='Present Value Calcs'!V13 -> 0 | J42: =H42*$F$31*$H$31 -> 0
D44: Energy savings through gas | H44: ='Present Value Calcs'!Z13 -> 0 | J44: =H44*$F$77*$H$77 -> 0
D46: Carbon Savings through not generating energy over evaluation period | H46: ='Present Value Calcs'!X13 -> 0 | J46: =H46*$F$31*$H$31 -> 0
D48: Carbon Savings through not generating gas over evaluation period | H48: ='Present Value Calcs'!AB13 -> 0 | J48: =H48*$F$77*$H$77 -> 0
B52: SECTION BT2
C54: Notes
C55: Use this section to estimate the present value benefit of installing green roofs for cooling and heating if you have not undertaken this calculation. Daily heating and cooling days can be found from 77 UK Weather Stations
C56: http://www.eci.ox.ac.uk/research/energy/degreedays.php
C61: Input data for green roofs
D63: Green Roof Size for all buildings (m2) | J63: ='SuDS Used'!J11+'SuDS Used'!H11 -> 0
D65: Green Roof Size for buildings using air conditioning (m2) | N65: Confirm the start and end year of the evaluation
D67: Annual number of heating degree days (Degrees Celsius) | N67: Start | P67: End
D69: Annual number of cooling degree days (if air conditioning is used) (Degrees Celsius)
C71: Energy saving through heating
F73: Confirm the confidence you have in the calculation method and valuation
D75: Energy saving to buildings through installing green roofs for heating (Kwh) | F75: Quantity | H75: Valuation (£) | J75: Proportion (%) of properties heated through electricity | L75: Proportion (%) of properties heated through gas
D77: =J63*((J67*24/AC35)-(J67*24/AC38))/3412.142 -> 0
F79: Properties using electricity | J79: Properties using gas
D81: Traded Carbon | F81: Energy Type | H81: Energy Rate | J81: Energy Type | L81: Energy Rate
H86: Estimated present value before confidence scores | J86: Estimated present value after confidence scores
D88: Energy savings through electricity | H88: ='Present Value Calcs'!N13 -> 0 | J88: =H88*$F$77*$H$77 -> 0
D90: Energy savings through gas | H90: ='Present Value Calcs'!R13 -> 0 | J90: =H90*$F$77*$H$77 -> 0
D92: Carbon Savings through not generating electricity over evaluation period | H92: ='Present Value Calcs'!P13 -> 0 | J92: =H92*$F$77*$H$77 -> 0
D94: Carbon Savings through not generating gas over evaluation period | H94: ='Present Value Calcs'!T13 -> 0 | J94: =H94*$F$77*$H$77 -> 0
C97: Energy saving through cooling
F99: Confirm the confidence you have in the calculation method and valuation
D101: Energy saving to buildings through installing green roofs for cooling (kwh) | F101: Quantity | H101: Valuation (£)
D103: =(J65*((J69*24/AC35)-(J69*24/AC38)))/3412.142 -> 0
D105: Traded Carbon | F105: Energy Type | H105: Energy Rate
H110: Estimated present value before confidence scores | J110: Estimated present value after confidence scores
D112: Energy savings | H112: ='Present Value Calcs'!J13 -> 0 | J112: =H112*$F$103*$H$103 -> 0
D114: Carbon Savings through not generating energy over evaluation period | H114: ='Present Value Calcs'!L13 -> 0 | J114: =H114*$F$103*$H$103 -> 0
A117: >>HIDE_BELOW
B121: Benefits of trees to buildings | F121: Under development
C123: If you have calculated the energy savings to buildings from trees planted in specific locations for heating and cooling, please enter the information here
F125: Confirm the confidence you have in the calculation method and valuation | J125: Confirm the start and end year of the evaluation
D126: Energy saving to buildings through planting trees (Kw/year) for heating and cooling | F126: Quantity | H126: Valuation (£) | J126: Start | L126: End
D127: insert value
D129: Energy Type | F129: Energy Rate | H129: Discount rate
D130: Services | F130: High | H130: ='Project Inputs'!$D$28 -> 0.035
H133: Estimated present value before confidence scores | J133: Estimated present value after confidence scores
D134: Energy savings | H134: auto calc | J134: auto calc
D135: Carbon Savings through not generating energy over evaluation period | H135: Auto calculate | J135: Auto calculate
F145: Average for BT2
F146: Quantity | H146: Valuation (£)
F148: =IFERROR(AVERAGE(F103,F77),0) -> 0 | H148: =IFERROR(AVERAGE(H103,H77),0) -> 0

Sheet CS - Carbon sequestration (hidden)
T1: Carbon sequestration | V1: >>HIDE_ALONG
B2: =ProjDetails -> PROJECT DETAILS - No.: 41521691, Name: Killingworth & Longbenton SuDS, Assmt. Version: 3, Date: Sep 2015.
B4: K E Y
B6: Evidence: Qualitative summary and written evidence
B7: 1
B8: 2
B9: 3
B10: 4
B11: 5
C13: Notes
C14: Overview of the sections to help assess the sequestered carbon value
C15: Only complete one section.
C16: Trees should be planted for a long time period. New trees only, not as part of a like for like replacement strategy.
D18: SECTION CS1 | F18: SECTION CS2
D19: You have undertaken an independent or more detailed assessment of carbon sequestration as a result of planting | F19: You require support to assess the carbon sequestration from trees planted as part of the SuDS solution.
B22: SECTION CS1
C24: Notes
C25: If you have calculated the sequestered carbon as a present value, enter it here. This should be the difference between the two options.
C26: We recommend using 100% for the confidence in the price of carbon (valuation).
F28: Confirm the confidence you have in the calculation method and valuation | N28: Confirm the start and end year of the evaluation
AY29: 9 | AZ29: =AZ$92+$AY29-1 -> 8 | BA29: =IF($AY29<=VLOOKUP(BA$90,seqYearsCarbon,2,0),(((VLOOKUP(BA$90,seqEqns,2,0)*$AY29^4)+(VLOOKUP(BA$90,seqEqns,3,0)*$AY29^3)+(VLOOKUP(BA$90,seqEqns,4,0)*$AY29^2)+(VLOOKUP(BA$90,seqEqns,5,0)*$AY29))*(VLOOKUP(BA$90,seqTrees,2,0)/100)),(VLOOKUP(BA$90,seqYearsCarbon,4,0)*VLOOKUP(BA$90,seqTrees,2,0)/100)) -> 0 | BB29: =BB28+BA29 -> 0 | BC29: =(BA29/1000)*BE29*BF29 ->  | BD29: =BC29+BD28 ->  | BE29: =VLOOKUP(AZ29,discYears,2,0) ->  | BF29: =SUMPRODUCT((cNonTradeLevels=$AR$68)*(cNonTradeYears=AZ29)*(cNonTrade)) -> 0 | BH29: =BH$92+$AY29-1 -> 8 | BI29: =IF($AY29<=VLOOKUP(BI$90,seqYearsCarbon,2,0),(((VLOOKUP(BI$90,seqEqns,2,0)*$AY29^4)+(VLOOKUP(BI$90,seqEqns,3,0)*$AY29^3)+(VLOOKUP(BI$90,seqEqns,4,0)*$AY29^2)+(VLOOKUP(BI$90,seqEqns,5,0)*$AY29))*(VLOOKUP(BI$90,seqTrees,2,0)/100)),(VLOOKUP(BI$90,seqYearsCarbon,4,0)*VLOOKUP(BI$90,seqTrees,2,0)/100)) -> 0 | BJ29: =BJ28+BI29 -> 0 | BK29: =(BI29/1000)*BM29*BN29 ->  | BL29: =BK29+BL28 ->  | BM29: =VLOOKUP(BH29,discYears,2,0) ->  | BN29: =SUMPRODUCT((cNonTradeLevels=$AR$68)*(cNonTradeYears=BH29)*(cNonTrade)) -> 0 | BP29: =BP$92+$AY29-1 -> 8 | BQ29: =IF($AY29<=VLOOKUP(BQ$90,seqYearsCarbon,2,0),(((VLOOKUP(BQ$90,seqEqns,2,0)*$AY29^4)+(VLOOKUP(BQ$90,seqEqns,3,0)*$AY29^3)+(VLOOKUP(BQ$90,seqEqns,4,0)*$AY29^2)+(VLOOKUP(BQ$90,seqEqns,5,0)*$AY29))*(VLOOKUP(BQ$90,seqTrees,2,0)/100)),(VLOOKUP(BQ$90,seqYearsCarbon,4,0)*VLOOKUP(BQ$90,seqTrees,2,0)/100)) -> 0 | BR29: =BR28+BQ29 -> 0 | BS29: =(BQ29/1000)*BU29*BV29 ->  | BT29: =BS29+BT28 ->  | BU29: =VLOOKUP(BP29,discYears,2,0) ->  | BV29: =SUMPRODUCT((cNonTradeLevels=$AR$68)*(cNonTradeYears=BP29)*(cNonTrade)) -> 0 | BX29: =BX$92+$AY29-1 -> 8 | BY29: =IF($AY29<=VLOOKUP(BY$90,seqYearsCarbon,2,0),(((VLOOKUP(BY$90,seqEqns,2,0)*$AY29^4)+(VLOOKUP(BY$90,seqEqns,3,0)*$AY29^3)+(VLOOKUP(BY$90,seqEqns,4,0)*$AY29^2)+(VLOOKUP(BY$90,seqEqns,5,0)*$AY29))*(VLOOKUP(BY$90,seqTrees,2,0)/100)),(VLOOKUP(BY$90,seqYearsCarbon,4,0)*VLOOKUP(BY$90,seqTrees,2,0)/100)) -> 0 | BZ29: =BZ28+BY29 -> 0 | CA29: =(BY29/1000)*CC29*CD29 ->  | CB29: =CA29+CB28 ->  | CC29: =VLOOKUP(BX29,discYears,2,0) ->  | CD29: =SUMPRODUCT((cNonTradeLevels=$AR$68)*(cNonTradeYears=BX29)*(cNonTrade)) -> 0 | CF29: =CF$92+$AY29-1 -> 8 | CG29: =IF($AY29<=VLOOKUP(CG$90,seqYearsCarbon,2,0),(((VLOOKUP(CG$90,seqEqns,2,0)*$AY29^4)+(VLOOKUP(CG$90,seqEqns,3,0)*$AY29^3)+(VLOOKUP(CG$90,seqEqns,4,0)*$AY29^2)+(VLOOKUP(CG$90,seqEqns,5,0)*$AY29))*(VLOOKUP(CG$90,seqTrees,2,0)/100)),(VLOOKUP(CG$90,seqYearsCarbon,4,0)*VLOOKUP(CG$90,seqTrees,2,0)/100)) -> 0 | CH29: =CH28+CG29 -> 0 | CI29: =(CG29/1000)*CK29*CL29 ->  | CJ29: =CI29+CJ28 ->  | CK29: =VLOOKUP(CF29,discYears,2,0) ->  | CL29: =SUMPRODUCT((cNonTradeLevels=$AR$68)*(cNonTradeYears=CF29)*(cNonTrade)) -> 0
D30: Confirm the present value of the benefit £ | F30: Quantity | H30: Valuation (£) | J30: Present benefit after applying the confidence values | N30: Start | P30: End
AY31: 9 | AZ31: =AZ$92+$AY31-1 -> 8 | BA31: =IF($AY31<=VLOOKUP(BA$90,seqYearsCarbon,2,0),(((VLOOKUP(BA$90,seqEqns,2,0)*$AY31^4)+(VLOOKUP(BA$90,seqEqns,3,0)*$AY31^3)+(VLOOKUP(BA$90,seqEqns,4,0)*$AY31^2)+(VLOOKUP(BA$90,seqEqns,5,0)*$AY31))*(VLOOKUP(BA$90,seqTrees,2,0)/100)),(VLOOKUP(BA$90,seqYearsCarbon,4,0)*VLOOKUP(BA$90,seqTrees,2,0)/100)) -> 0 | BB31: =BB30+BA31 -> 0 | BC31: =(BA31/1000)*BE31*BF31 ->  | BD31: =BC31+BD30 ->  | BE31: =VLOOKUP(AZ31,discYears,2,0) ->  | BF31: =SUMPRODUCT((cNonTradeLevels=$AR$68)*(cNonTradeYears=AZ31)*(cNonTrade)) -> 0 | BH31: =BH$92+$AY31-1 -> 8 | BI31: =IF($AY31<=VLOOKUP(BI$90,seqYearsCarbon,2,0),(((VLOOKUP(BI$90,seqEqns,2,0)*$AY31^4)+(VLOOKUP(BI$90,seqEqns,3,0)*$AY31^3)+(VLOOKUP(BI$90,seqEqns,4,0)*$AY31^2)+(VLOOKUP(BI$90,seqEqns,5,0)*$AY31))*(VLOOKUP(BI$90,seqTrees,2,0)/100)),(VLOOKUP(BI$90,seqYearsCarbon,4,0)*VLOOKUP(BI$90,seqTrees,2,0)/100)) -> 0 | BJ31: =BJ30+BI31 -> 0 | BK31: =(BI31/1000)*BM31*BN31 ->  | BL31: =BK31+BL30 ->  | BM31: =VLOOKUP(BH31,discYears,2,0) ->  | BN31: =SUMPRODUCT((cNonTradeLevels=$AR$68)*(cNonTradeYears=BH31)*(cNonTrade)) -> 0 | BP31: =BP$92+$AY31-1 -> 8 | BQ31: =IF($AY31<=VLOOKUP(BQ$90,seqYearsCarbon,2,0),(((VLOOKUP(BQ$90,seqEqns,2,0)*$AY31^4)+(VLOOKUP(BQ$90,seqEqns,3,0)*$AY31^3)+(VLOOKUP(BQ$90,seqEqns,4,0)*$AY31^2)+(VLOOKUP(BQ$90,seqEqns,5,0)*$AY31))*(VLOOKUP(BQ$90,seqTrees,2,0)/100)),(VLOOKUP(BQ$90,seqYearsCarbon,4,0)*VLOOKUP(BQ$90,seqTrees,2,0)/100)) -> 0 | BR31: =BR30+BQ31 -> 0 | BS31: =(BQ31/1000)*BU31*BV31 ->  | BT31: =BS31+BT30 ->  | BU31: =VLOOKUP(BP31,discYears,2,0) ->  | BV31: =SUMPRODUCT((cNonTradeLevels=$AR$68)*(cNonTradeYears=BP31)*(cNonTrade)) -> 0 | BX31: =BX$92+$AY31-1 -> 8 | BY31: =IF($AY31<=VLOOKUP(BY$90,seqYearsCarbon,2,0),(((VLOOKUP(BY$90,seqEqns,2,0)*$AY31^4)+(VLOOKUP(BY$90,seqEqns,3,0)*$AY31^3)+(VLOOKUP(BY$90,seqEqns,4,0)*$AY31^2)+(VLOOKUP(BY$90,seqEqns,5,0)*$AY31))*(VLOOKUP(BY$90,seqTrees,2,0)/100)),(VLOOKUP(BY$90,seqYearsCarbon,4,0)*VLOOKUP(BY$90,seqTrees,2,0)/100)) -> 0 | BZ31: =BZ30+BY31 -> 0 | CA31: =(BY31/1000)*CC31*CD31 ->  | CB31: =CA31+CB30 ->  | CC31: =VLOOKUP(BX31,discYears,2,0) ->  | CD31: =SUMPRODUCT((cNonTradeLevels=$AR$68)*(cNonTradeYears=BX31)*(cNonTrade)) -> 0 | CF31: =CF$92+$AY31-1 -> 8 | CG31: =IF($AY31<=VLOOKUP(CG$90,seqYearsCarbon,2,0),(((VLOOKUP(CG$90,seqEqns,2,0)*$AY31^4)+(VLOOKUP(CG$90,seqEqns,3,0)*$AY31^3)+(VLOOKUP(CG$90,seqEqns,4,0)*$AY31^2)+(VLOOKUP(CG$90,seqEqns,5,0)*$AY31))*(VLOOKUP(CG$90,seqTrees,2,0)/100)),(VLOOKUP(CG$90,seqYearsCarbon,4,0)*VLOOKUP(CG$90,seqTrees,2,0)/100)) -> 0 | CH31: =CH30+CG31 -> 0 | CI31: =(CG31/1000)*CK31*CL31 ->  | CJ31: =CI31+CJ30 ->  | CK31: =VLOOKUP(CF31,discYears,2,0) ->  | CL31: =SUMPRODUCT((cNonTradeLevels=$AR$68)*(cNonTradeYears=CF31)*(cNonTrade)) -> 0
J32: =H32*F32*D32 -> 0
B36: SECTION CS2
C38: Notes: | AQ38: Western Washington and oregon tables - tree guide
C39: Carbon sequestered is estimated using values from the SMUD Tree Benefits Estimator https://usage.smud.org/treebenefit/calculate.aspx | AC39: Values/yr for 100 trees | AE39: Decidous | AH39: Broad leaf evergreen | AK39: Conifer
C40: When using this estimation we suggest a confidence value of 50% for the quantity to account for tree mortality and the simplified approach and 100% for the price of carbon | AD40: Tree Age | AE40: Small | AF40: Medium | AG40: Large | AH40: Small | AI40: Medium | AJ40: Large | AK40: Small | AL40: Medium | AM40: Large | AO40: Small | AP40: Medium | AQ40: large
AD41: 1 | AE41: 68 | AF41: 185 | AG41: 465 | AJ41: 54 | AM41: 151
AD42: 2 | AE42: 96 | AF42: 1114 | AG42: 814 | AJ42: 248 | AM42: 1263
P43: Confirm the confidence you have in the calculation method and valuation | AD43: 5 | AE43: 166 | AF43: 3647 | AG43: 1917 | AJ43: 1424 | AM43: 5556 | AO43: =AI112 -> 0 | AP43: =AJ112 -> 0 | AQ43: 272.4
AY44: 9 | AZ44: =AZ$92+$AY44-1 -> 8 | BA44: =IF($AY44<=VLOOKUP(BA$90,seqYearsCarbon,2,0),(((VLOOKUP(BA$90,seqEqns,2,0)*$AY44^4)+(VLOOKUP(BA$90,seqEqns,3,0)*$AY44^3)+(VLOOKUP(BA$90,seqEqns,4,0)*$AY44^2)+(VLOOKUP(BA$90,seqEqns,5,0)*$AY44))*(VLOOKUP(BA$90,seqTrees,2,0)/100)),(VLOOKUP(BA$90,seqYearsCarbon,4,0)*VLOOKUP(BA$90,seqTrees,2,0)/100)) -> 0 | BB44: =BB43+BA44 -> 0 | BC44: =(BA44/1000)*BE44*BF44 ->  | BD44: =BC44+BD43 ->  | BE44: =VLOOKUP(AZ44,discYears,2,0) ->  | BF44: =SUMPRODUCT((cNonTradeLevels=$AR$68)*(cNonTradeYears=AZ44)*(cNonTrade)) -> 0 | BH44: =BH$92+$AY44-1 -> 8 | BI44: =IF($AY44<=VLOOKUP(BI$90,seqYearsCarbon,2,0),(((VLOOKUP(BI$90,seqEqns,2,0)*$AY44^4)+(VLOOKUP(BI$90,seqEqns,3,0)*$AY44^3)+(VLOOKUP(BI$90,seqEqns,4,0)*$AY44^2)+(VLOOKUP(BI$90,seqEqns,5,0)*$AY44))*(VLOOKUP(BI$90,seqTrees,2,0)/100)),(VLOOKUP(BI$90,seqYearsCarbon,4,0)*VLOOKUP(BI$90,seqTrees,2,0)/100)) -> 0 | BJ44: =BJ43+BI44 -> 0 | BK44: =(BI44/1000)*BM44*BN44 ->  | BL44: =BK44+BL43 ->  | BM44: =VLOOKUP(BH44,discYears,2,0) ->  | BN44: =SUMPRODUCT((cNonTradeLevels=$AR$68)*(cNonTradeYears=BH44)*(cNonTrade)) -> 0 | BP44: =BP$92+$AY44-1 -> 8 | BQ44: =IF($AY44<=VLOOKUP(BQ$90,seqYearsCarbon,2,0),(((VLOOKUP(BQ$90,seqEqns,2,0)*$AY44^4)+(VLOOKUP(BQ$90,seqEqns,3,0)*$AY44^3)+(VLOOKUP(BQ$90,seqEqns,4,0)*$AY44^2)+(VLOOKUP(BQ$90,seqEqns,5,0)*$AY44))*(VLOOKUP(BQ$90,seqTrees,2,0)/100)),(VLOOKUP(BQ$90,seqYearsCarbon,4,0)*VLOOKUP(BQ$90,seqTrees,2,0)/100)) -> 0 | BR44: =BR43+BQ44 -> 0 | BS44: =(BQ44/1000)*BU44*BV44 ->  | BT44: =BS44+BT43 ->  | BU44: =VLOOKUP(BP44,discYears,2,0) ->  | BV44: =SUMPRODUCT((cNonTradeLevels=$AR$68)*(cNonTradeYears=BP44)*(cNonTrade)) -> 0 | BX44: =BX$92+$AY44-1 -> 8 | BY44: =IF($AY44<=VLOOKUP(BY$90,seqYearsCarbon,2,0),(((VLOOKUP(BY$90,seqEqns,2,0)*$AY44^4)+(VLOOKUP(BY$90,seqEqns,3,0)*$AY44^3)+(VLOOKUP(BY$90,seqEqns,4,0)*$AY44^2)+(VLOOKUP(BY$90,seqEqns,5,0)*$AY44))*(VLOOKUP(BY$90,seqTrees,2,0)/100)),(VLOOKUP(BY$90,seqYearsCarbon,4,0)*VLOOKUP(BY$90,seqTrees,2,0)/100)) -> 0 | BZ44: =BZ43+BY44 -> 0 | CA44: =(BY44/1000)*CC44*CD44 ->  | CB44: =CA44+CB43 ->  | CC44: =VLOOKUP(BX44,discYears,2,0) ->  | CD44: =SUMPRODUCT((cNonTradeLevels=$AR$68)*(cNonTradeYears=BX44)*(cNonTrade)) -> 0 | CF44: =CF$92+$AY44-1 -> 8 | CG44: =IF($AY44<=VLOOKUP(CG$90,seqYearsCarbon,2,0),(((VLOOKUP(CG$90,seqEqns,2,0)*$AY44^4)+(VLOOKUP(CG$90,seqEqns,3,0)*$AY44^3)+(VLOOKUP(CG$90,seqEqns,4,0)*$AY44^2)+(VLOOKUP(CG$90,seqEqns,5,0)*$AY44))*(VLOOKUP(CG$90,seqTrees,2,0)/100)),(VLOOKUP(CG$90,seqYearsCarbon,4,0)*VLOOKUP(CG$90,seqTrees,2,0)/100)) -> 0 | CH44: =CH43+CG44 -> 0 | CI44: =(CG44/1000)*CK44*CL44 ->  | CJ44: =CI44+CJ43 ->  | CK44: =VLOOKUP(CF44,discYears,2,0) ->  | CL44: =SUMPRODUCT((cNonTradeLevels=$AR$68)*(cNonTradeYears=CF44)*(cNonTrade)) -> 0
D45: Type of Trees | F45: Number of trees planted | H45: Start Year of the evaluation period | J45: Finish Year of the evaluation period | L45: Total Carbon Sequestered (tonnes) | N45: Present Value of Carbon £ | P45: Quantity | R45: Valuation (£) | AD45: 10 | AE45: 242 | AF45: 5234 | AG45: 3710 | AJ45: 3680 | AM45: 9157 | AO45: =AI113 -> 90.8 | AP45: =AJ113 -> 499.4 | AQ45: 2633.2
AY46: 9 | AZ46: =AZ$92+$AY46-1 -> 8 | BA46: =IF($AY46<=VLOOKUP(BA$90,seqYearsCarbon,2,0),(((VLOOKUP(BA$90,seqEqns,2,0)*$AY46^4)+(VLOOKUP(BA$90,seqEqns,3,0)*$AY46^3)+(VLOOKUP(BA$90,seqEqns,4,0)*$AY46^2)+(VLOOKUP(BA$90,seqEqns,5,0)*$AY46))*(VLOOKUP(BA$90,seqTrees,2,0)/100)),(VLOOKUP(BA$90,seqYearsCarbon,4,0)*VLOOKUP(BA$90,seqTrees,2,0)/100)) -> 0 | BB46: =BB45+BA46 -> 0 | BC46: =(BA46/1000)*BE46*BF46 ->  | BD46: =BC46+BD45 ->  | BE46: =VLOOKUP(AZ46,discYears,2,0) ->  | BF46: =SUMPRODUCT((cNonTradeLevels=$AR$68)*(cNonTradeYears=AZ46)*(cNonTrade)) -> 0 | BH46: =BH$92+$AY46-1 -> 8 | BI46: =IF($AY46<=VLOOKUP(BI$90,seqYearsCarbon,2,0),(((VLOOKUP(BI$90,seqEqns,2,0)*$AY46^4)+(VLOOKUP(BI$90,seqEqns,3,0)*$AY46^3)+(VLOOKUP(BI$90,seqEqns,4,0)*$AY46^2)+(VLOOKUP(BI$90,seqEqns,5,0)*$AY46))*(VLOOKUP(BI$90,seqTrees,2,0)/100)),(VLOOKUP(BI$90,seqYearsCarbon,4,0)*VLOOKUP(BI$90,seqTrees,2,0)/100)) -> 0 | BJ46: =BJ45+BI46 -> 0 | BK46: =(BI46/1000)*BM46*BN46 ->  | BL46: =BK46+BL45 ->  | BM46: =VLOOKUP(BH46,discYears,2,0) ->  | BN46: =SUMPRODUCT((cNonTradeLevels=$AR$68)*(cNonTradeYears=BH46)*(cNonTrade)) -> 0 | BP46: =BP$92+$AY46-1 -> 8 | BQ46: =IF($AY46<=VLOOKUP(BQ$90,seqYearsCarbon,2,0),(((VLOOKUP(BQ$90,seqEqns,2,0)*$AY46^4)+(VLOOKUP(BQ$90,seqEqns,3,0)*$AY46^3)+(VLOOKUP(BQ$90,seqEqns,4,0)*$AY46^2)+(VLOOKUP(BQ$90,seqEqns,5,0)*$AY46))*(VLOOKUP(BQ$90,seqTrees,2,0)/100)),(VLOOKUP(BQ$90,seqYearsCarbon,4,0)*VLOOKUP(BQ$90,seqTrees,2,0)/100)) -> 0 | BR46: =BR45+BQ46 -> 0 | BS46: =(BQ46/1000)*BU46*BV46 ->  | BT46: =BS46+BT45 ->  | BU46: =VLOOKUP(BP46,discYears,2,0) ->  | BV46: =SUMPRODUCT((cNonTradeLevels=$AR$68)*(cNonTradeYears=BP46)*(cNonTrade)) -> 0 | BX46: =BX$92+$AY46-1 -> 8 | BY46: =IF($AY46<=VLOOKUP(BY$90,seqYearsCarbon,2,0),(((VLOOKUP(BY$90,seqEqns,2,0)*$AY46^4)+(VLOOKUP(BY$90,seqEqns,3,0)*$AY46^3)+(VLOOKUP(BY$90,seqEqns,4,0)*$AY46^2)+(VLOOKUP(BY$90,seqEqns,5,0)*$AY46))*(VLOOKUP(BY$90,seqTrees,2,0)/100)),(VLOOKUP(BY$90,seqYearsCarbon,4,0)*VLOOKUP(BY$90,seqTrees,2,0)/100)) -> 0 | BZ46: =BZ45+BY46 -> 0 | CA46: =(BY46/1000)*CC46*CD46 ->  | CB46: =CA46+CB45 ->  | CC46: =VLOOKUP(BX46,discYears,2,0) ->  | CD46: =SUMPRODUCT((cNonTradeLevels=$AR$68)*(cNonTradeYears=BX46)*(cNonTrade)) -> 0 | CF46: =CF$92+$AY46-1 -> 8 | CG46: =IF($AY46<=VLOOKUP(CG$90,seqYearsCarbon,2,0),(((VLOOKUP(CG$90,seqEqns,2,0)*$AY46^4)+(VLOOKUP(CG$90,seqEqns,3,0)*$AY46^3)+(VLOOKUP(CG$90,seqEqns,4,0)*$AY46^2)+(VLOOKUP(CG$90,seqEqns,5,0)*$AY46))*(VLOOKUP(CG$90,seqTrees,2,0)/100)),(VLOOKUP(CG$90,seqYearsCarbon,4,0)*VLOOKUP(CG$90,seqTrees,2,0)/100)) -> 0 | CH46: =CH45+CG46 -> 0 | CI46: =(CG46/1000)*CK46*CL46 ->  | CJ46: =CI46+CJ45 ->  | CK46: =VLOOKUP(CF46,discYears,2,0) ->  | CL46: =SUMPRODUCT((cNonTradeLevels=$AR$68)*(cNonTradeYears=CF46)*(cNonTrade)) -> 0
D47: Deciduous - Small | L47: =AU85 -> 0 | N47: =AV85 -> 0 | AD47: 15 | AE47: 294 | AF47: 5708 | AG47: 5314 | AJ47: 5558 | AM47: 10631 | AO47: =AI114 -> 363.2 | AP47: =AJ114 -> 1407.4 | AQ47: 6492.2
AY48: 9 | AZ48: =AZ$92+$AY48-1 -> 8 | BA48: =IF($AY48<=VLOOKUP(BA$90,seqYearsCarbon,2,0),(((VLOOKUP(BA$90,seqEqns,2,0)*$AY48^4)+(VLOOKUP(BA$90,seqEqns,3,0)*$AY48^3)+(VLOOKUP(BA$90,seqEqns,4,0)*$AY48^2)+(VLOOKUP(BA$90,seqEqns,5,0)*$AY48))*(VLOOKUP(BA$90,seqTrees,2,0)/100)),(VLOOKUP(BA$90,seqYearsCarbon,4,0)*VLOOKUP(BA$90,seqTrees,2,0)/100)) -> 0 | BB48: =BB47+BA48 -> 0 | BC48: =(BA48/1000)*BE48*BF48 ->  | BD48: =BC48+BD47 ->  | BE48: =VLOOKUP(AZ48,discYears,2,0) ->  | BF48: =SUMPRODUCT((cNonTradeLevels=$AR$68)*(cNonTradeYears=AZ48)*(cNonTrade)) -> 0 | BH48: =BH$92+$AY48-1 -> 8 | BI48: =IF($AY48<=VLOOKUP(BI$90,seqYearsCarbon,2,0),(((VLOOKUP(BI$90,seqEqns,2,0)*$AY48^4)+(VLOOKUP(BI$90,seqEqns,3,0)*$AY48^3)+(VLOOKUP(BI$90,seqEqns,4,0)*$AY48^2)+(VLOOKUP(BI$90,seqEqns,5,0)*$AY48))*(VLOOKUP(BI$90,seqTrees,2,0)/100)),(VLOOKUP(BI$90,seqYearsCarbon,4,0)*VLOOKUP(BI$90,seqTrees,2,0)/100)) -> 0 | BJ48: =BJ47+BI48 -> 0 | BK48: =(BI48/1000)*BM48*BN48 ->  | BL48: =BK48+BL47 ->  | BM48: =VLOOKUP(BH48,discYears,2,0) ->  | BN48: =SUMPRODUCT((cNonTradeLevels=$AR$68)*(cNonTradeYears=BH48)*(cNonTrade)) -> 0 | BP48: =BP$92+$AY48-1 -> 8 | BQ48: =IF($AY48<=VLOOKUP(BQ$90,seqYearsCarbon,2,0),(((VLOOKUP(BQ$90,seqEqns,2,0)*$AY48^4)+(VLOOKUP(BQ$90,seqEqns,3,0)*$AY48^3)+(VLOOKUP(BQ$90,seqEqns,4,0)*$AY48^2)+(VLOOKUP(BQ$90,seqEqns,5,0)*$AY48))*(VLOOKUP(BQ$90,seqTrees,2,0)/100)),(VLOOKUP(BQ$90,seqYearsCarbon,4,0)*VLOOKUP(BQ$90,seqTrees,2,0)/100)) -> 0 | BR48: =BR47+BQ48 -> 0 | BS48: =(BQ48/1000)*BU48*BV48 ->  | BT48: =BS48+BT47 ->  | BU48: =VLOOKUP(BP48,discYears,2,0) ->  | BV48: =SUMPRODUCT((cNonTradeLevels=$AR$68)*(cNonTradeYears=BP48)*(cNonTrade)) -> 0 | BX48: =BX$92+$AY48-1 -> 8 | BY48: =IF($AY48<=VLOOKUP(BY$90,seqYearsCarbon,2,0),(((VLOOKUP(BY$90,seqEqns,2,0)*$AY48^4)+(VLOOKUP(BY$90,seqEqns,3,0)*$AY48^3)+(VLOOKUP(BY$90,seqEqns,4,0)*$AY48^2)+(VLOOKUP(BY$90,seqEqns,5,0)*$AY48))*(VLOOKUP(BY$90,seqTrees,2,0)/100)),(VLOOKUP(BY$90,seqYearsCarbon,4,0)*VLOOKUP(BY$90,seqTrees,2,0)/100)) -> 0 | BZ48: =BZ47+BY48 -> 0 | CA48: =(BY48/1000)*CC48*CD48 ->  | CB48: =CA48+CB47 ->  | CC48: =VLOOKUP(BX48,discYears,2,0) ->  | CD48: =SUMPRODUCT((cNonTradeLevels=$AR$68)*(cNonTradeYears=BX48)*(cNonTrade)) -> 0 | CF48: =CF$92+$AY48-1 -> 8 | CG48: =IF($AY48<=VLOOKUP(CG$90,seqYearsCarbon,2,0),(((VLOOKUP(CG$90,seqEqns,2,0)*$AY48^4)+(VLOOKUP(CG$90,seqEqns,3,0)*$AY48^3)+(VLOOKUP(CG$90,seqEqns,4,0)*$AY48^2)+(VLOOKUP(CG$90,seqEqns,5,0)*$AY48))*(VLOOKUP(CG$90,seqTrees,2,0)/100)),(VLOOKUP(CG$90,seqYearsCarbon,4,0)*VLOOKUP(CG$90,seqTrees,2,0)/100)) -> 0 | CH48: =CH47+CG48 -> 0 | CI48: =(CG48/1000)*CK48*CL48 ->  | CJ48: =CI48+CJ47 ->  | CK48: =VLOOKUP(CF48,discYears,2,0) ->  | CL48: =SUMPRODUCT((cNonTradeLevels=$AR$68)*(cNonTradeYears=CF48)*(cNonTrade)) -> 0
D49: Deciduous - Medium | L49: =AU86 -> 0 | N49: =AV86 -> 0 | AD49: 20 | AE49: 335 | AF49: 5831 | AG49: 6693 | AJ49: 7043 | AM49: 11284 | AO49: =AI115 -> 681 | AP49: =AJ115 -> 2451.6 | AQ49: 10714.4
AY50: 9 | AZ50: =AZ$92+$AY50-1 -> 8 | BA50: =IF($AY50<=VLOOKUP(BA$90,seqYearsCarbon,2,0),(((VLOOKUP(BA$90,seqEqns,2,0)*$AY50^4)+(VLOOKUP(BA$90,seqEqns,3,0)*$AY50^3)+(VLOOKUP(BA$90,seqEqns,4,0)*$AY50^2)+(VLOOKUP(BA$90,seqEqns,5,0)*$AY50))*(VLOOKUP(BA$90,seqTrees,2,0)/100)),(VLOOKUP(BA$90,seqYearsCarbon,4,0)*VLOOKUP(BA$90,seqTrees,2,0)/100)) -> 0 | BB50: =BB49+BA50 -> 0 | BC50: =(BA50/1000)*BE50*BF50 ->  | BD50: =BC50+BD49 ->  | BE50: =VLOOKUP(AZ50,discYears,2,0) ->  | BF50: =SUMPRODUCT((cNonTradeLevels=$AR$68)*(cNonTradeYears=AZ50)*(cNonTrade)) -> 0 | BH50: =BH$92+$AY50-1 -> 8 | BI50: =IF($AY50<=VLOOKUP(BI$90,seqYearsCarbon,2,0),(((VLOOKUP(BI$90,seqEqns,2,0)*$AY50^4)+(VLOOKUP(BI$90,seqEqns,3,0)*$AY50^3)+(VLOOKUP(BI$90,seqEqns,4,0)*$AY50^2)+(VLOOKUP(BI$90,seqEqns,5,0)*$AY50))*(VLOOKUP(BI$90,seqTrees,2,0)/100)),(VLOOKUP(BI$90,seqYearsCarbon,4,0)*VLOOKUP(BI$90,seqTrees,2,0)/100)) -> 0 | BJ50: =BJ49+BI50 -> 0 | BK50: =(BI50/1000)*BM50*BN50 ->  | BL50: =BK50+BL49 ->  | BM50: =VLOOKUP(BH50,discYears,2,0) ->  | BN50: =SUMPRODUCT((cNonTradeLevels=$AR$68)*(cNonTradeYears=BH50)*(cNonTrade)) -> 0 | BP50: =BP$92+$AY50-1 -> 8 | BQ50: =IF($AY50<=VLOOKUP(BQ$90,seqYearsCarbon,2,0),(((VLOOKUP(BQ$90,seqEqns,2,0)*$AY50^4)+(VLOOKUP(BQ$90,seqEqns,3,0)*$AY50^3)+(VLOOKUP(BQ$90,seqEqns,4,0)*$AY50^2)+(VLOOKUP(BQ$90,seqEqns,5,0)*$AY50))*(VLOOKUP(BQ$90,seqTrees,2,0)/100)),(VLOOKUP(BQ$90,seqYearsCarbon,4,0)*VLOOKUP(BQ$90,seqTrees,2,0)/100)) -> 0 | BR50: =BR49+BQ50 -> 0 | BS50: =(BQ50/1000)*BU50*BV50 ->  | BT50: =BS50+BT49 ->  | BU50: =VLOOKUP(BP50,discYears,2,0) ->  | BV50: =SUMPRODUCT((cNonTradeLevels=$AR$68)*(cNonTradeYears=BP50)*(cNonTrade)) -> 0 | BX50: =BX$92+$AY50-1 -> 8 | BY50: =IF($AY50<=VLOOKUP(BY$90,seqYearsCarbon,2,0),(((VLOOKUP(BY$90,seqEqns,2,0)*$AY50^4)+(VLOOKUP(BY$90,seqEqns,3,0)*$AY50^3)+(VLOOKUP(BY$90,seqEqns,4,0)*$AY50^2)+(VLOOKUP(BY$90,seqEqns,5,0)*$AY50))*(VLOOKUP(BY$90,seqTrees,2,0)/100)),(VLOOKUP(BY$90,seqYearsCarbon,4,0)*VLOOKUP(BY$90,seqTrees,2,0)/100)) -> 0 | BZ50: =BZ49+BY50 -> 0 | CA50: =(BY50/1000)*CC50*CD50 ->  | CB50: =CA50+CB49 ->  | CC50: =VLOOKUP(BX50,discYears,2,0) ->  | CD50: =SUMPRODUCT((cNonTradeLevels=$AR$68)*(cNonTradeYears=BX50)*(cNonTrade)) -> 0 | CF50: =CF$92+$AY50-1 -> 8 | CG50: =IF($AY50<=VLOOKUP(CG$90,seqYearsCarbon,2,0),(((VLOOKUP(CG$90,seqEqns,2,0)*$AY50^4)+(VLOOKUP(CG$90,seqEqns,3,0)*$AY50^3)+(VLOOKUP(CG$90,seqEqns,4,0)*$AY50^2)+(VLOOKUP(CG$90,seqEqns,5,0)*$AY50))*(VLOOKUP(CG$90,seqTrees,2,0)/100)),(VLOOKUP(CG$90,seqYearsCarbon,4,0)*VLOOKUP(CG$90,seqTrees,2,0)/100)) -> 0 | CH50: =CH49+CG50 -> 0 | CI50: =(CG50/1000)*CK50*CL50 ->  | CJ50: =CI50+CJ49 ->  | CK50: =VLOOKUP(CF50,discYears,2,0) ->  | CL50: =SUMPRODUCT((cNonTradeLevels=$AR$68)*(cNonTradeYears=CF50)*(cNonTrade)) -> 0
D51: Deciduous - Large | L51: =AU87 -> 0 | N51: =AV87 -> 0 | AD51: 30 | AE51: 367 | AF51: 5739 | AG51: 8791 | AJ51: 9184 | AM51: 11652 | AO51: =AI117 -> 1089.6 | AP51: =AJ117 -> 4222.2 | AQ51: 17706
AY52: 9 | AZ52: =AZ$92+$AY52-1 -> 8 | BA52: =IF($AY52<=VLOOKUP(BA$90,seqYearsCarbon,2,0),(((VLOOKUP(BA$90,seqEqns,2,0)*$AY52^4)+(VLOOKUP(BA$90,seqEqns,3,0)*$AY52^3)+(VLOOKUP(BA$90,seqEqns,4,0)*$AY52^2)+(VLOOKUP(BA$90,seqEqns,5,0)*$AY52))*(VLOOKUP(BA$90,seqTrees,2,0)/100)),(VLOOKUP(BA$90,seqYearsCarbon,4,0)*VLOOKUP(BA$90,seqTrees,2,0)/100)) -> 0 | BB52: =BB51+BA52 -> 0 | BC52: =(BA52/1000)*BE52*BF52 ->  | BD52: =BC52+BD51 ->  | BE52: =VLOOKUP(AZ52,discYears,2,0) ->  | BF52: =SUMPRODUCT((cNonTradeLevels=$AR$68)*(cNonTradeYears=AZ52)*(cNonTrade)) -> 0 | BH52: =BH$92+$AY52-1 -> 8 | BI52: =IF($AY52<=VLOOKUP(BI$90,seqYearsCarbon,2,0),(((VLOOKUP(BI$90,seqEqns,2,0)*$AY52^4)+(VLOOKUP(BI$90,seqEqns,3,0)*$AY52^3)+(VLOOKUP(BI$90,seqEqns,4,0)*$AY52^2)+(VLOOKUP(BI$90,seqEqns,5,0)*$AY52))*(VLOOKUP(BI$90,seqTrees,2,0)/100)),(VLOOKUP(BI$90,seqYearsCarbon,4,0)*VLOOKUP(BI$90,seqTrees,2,0)/100)) -> 0 | BJ52: =BJ51+BI52 -> 0 | BK52: =(BI52/1000)*BM52*BN52 ->  | BL52: =BK52+BL51 ->  | BM52: =VLOOKUP(BH52,discYears,2,0) ->  | BN52: =SUMPRODUCT((cNonTradeLevels=$AR$68)*(cNonTradeYears=BH52)*(cNonTrade)) -> 0 | BP52: =BP$92+$AY52-1 -> 8 | BQ52: =IF($AY52<=VLOOKUP(BQ$90,seqYearsCarbon,2,0),(((VLOOKUP(BQ$90,seqEqns,2,0)*$AY52^4)+(VLOOKUP(BQ$90,seqEqns,3,0)*$AY52^3)+(VLOOKUP(BQ$90,seqEqns,4,0)*$AY52^2)+(VLOOKUP(BQ$90,seqEqns,5,0)*$AY52))*(VLOOKUP(BQ$90,seqTrees,2,0)/100)),(VLOOKUP(BQ$90,seqYearsCarbon,4,0)*VLOOKUP(BQ$90,seqTrees,2,0)/100)) -> 0 | BR52: =BR51+BQ52 -> 0 | BS52: =(BQ52/1000)*BU52*BV52 ->  | BT52: =BS52+BT51 ->  | BU52: =VLOOKUP(BP52,discYears,2,0) ->  | BV52: =SUMPRODUCT((cNonTradeLevels=$AR$68)*(cNonTradeYears=BP52)*(cNonTrade)) -> 0 | BX52: =BX$92+$AY52-1 -> 8 | BY52: =IF($AY52<=VLOOKUP(BY$90,seqYearsCarbon,2,0),(((VLOOKUP(BY$90,seqEqns,2,0)*$AY52^4)+(VLOOKUP(BY$90,seqEqns,3,0)*$AY52^3)+(VLOOKUP(BY$90,seqEqns,4,0)*$AY52^2)+(VLOOKUP(BY$90,seqEqns,5,0)*$AY52))*(VLOOKUP(BY$90,seqTrees,2,0)/100)),(VLOOKUP(BY$90,seqYearsCarbon,4,0)*VLOOKUP(BY$90,seqTrees,2,0)/100)) -> 0 | BZ52: =BZ51+BY52 -> 0 | CA52: =(BY52/1000)*CC52*CD52 ->  | CB52: =CA52+CB51 ->  | CC52: =VLOOKUP(BX52,discYears,2,0) ->  | CD52: =SUMPRODUCT((cNonTradeLevels=$AR$68)*(cNonTradeYears=BX52)*(cNonTrade)) -> 0 | CF52: =CF$92+$AY52-1 -> 8 | CG52: =IF($AY52<=VLOOKUP(CG$90,seqYearsCarbon,2,0),(((VLOOKUP(CG$90,seqEqns,2,0)*$AY52^4)+(VLOOKUP(CG$90,seqEqns,3,0)*$AY52^3)+(VLOOKUP(CG$90,seqEqns,4,0)*$AY52^2)+(VLOOKUP(CG$90,seqEqns,5,0)*$AY52))*(VLOOKUP(CG$90,seqTrees,2,0)/100)),(VLOOKUP(CG$90,seqYearsCarbon,4,0)*VLOOKUP(CG$90,seqTrees,2,0)/100)) -> 0 | CH52: =CH51+CG52 -> 0 | CI52: =(CG52/1000)*CK52*CL52 ->  | CJ52: =CI52+CJ51 ->  | CK52: =VLOOKUP(CF52,discYears,2,0) ->  | CL52: =SUMPRODUCT((cNonTradeLevels=$AR$68)*(cNonTradeYears=CF52)*(cNonTrade)) -> 0
D53: Broadleaf Evergreen - Large | L53: =AU88 -> 0 | N53: =AV88 -> 0 | AD53: 40 | AE53: 367 | AF53: 5525 | AG53: 10141 | AJ53: 10626 | AM53: 11560 | AO53: =AI119 -> 1225.8 | AP53: =AJ119 -> 5130.2 | AQ53: 21156.4
AY54: 9 | AZ54: =AZ$92+$AY54-1 -> 8 | BA54: =IF($AY54<=VLOOKUP(BA$90,seqYearsCarbon,2,0),(((VLOOKUP(BA$90,seqEqns,2,0)*$AY54^4)+(VLOOKUP(BA$90,seqEqns,3,0)*$AY54^3)+(VLOOKUP(BA$90,seqEqns,4,0)*$AY54^2)+(VLOOKUP(BA$90,seqEqns,5,0)*$AY54))*(VLOOKUP(BA$90,seqTrees,2,0)/100)),(VLOOKUP(BA$90,seqYearsCarbon,4,0)*VLOOKUP(BA$90,seqTrees,2,0)/100)) -> 0 | BB54: =BB53+BA54 -> 0 | BC54: =(BA54/1000)*BE54*BF54 ->  | BD54: =BC54+BD53 ->  | BE54: =VLOOKUP(AZ54,discYears,2,0) ->  | BF54: =SUMPRODUCT((cNonTradeLevels=$AR$68)*(cNonTradeYears=AZ54)*(cNonTrade)) -> 0 | BH54: =BH$92+$AY54-1 -> 8 | BI54: =IF($AY54<=VLOOKUP(BI$90,seqYearsCarbon,2,0),(((VLOOKUP(BI$90,seqEqns,2,0)*$AY54^4)+(VLOOKUP(BI$90,seqEqns,3,0)*$AY54^3)+(VLOOKUP(BI$90,seqEqns,4,0)*$AY54^2)+(VLOOKUP(BI$90,seqEqns,5,0)*$AY54))*(VLOOKUP(BI$90,seqTrees,2,0)/100)),(VLOOKUP(BI$90,seqYearsCarbon,4,0)*VLOOKUP(BI$90,seqTrees,2,0)/100)) -> 0 | BJ54: =BJ53+BI54 -> 0 | BK54: =(BI54/1000)*BM54*BN54 ->  | BL54: =BK54+BL53 ->  | BM54: =VLOOKUP(BH54,discYears,2,0) ->  | BN54: =SUMPRODUCT((cNonTradeLevels=$AR$68)*(cNonTradeYears=BH54)*(cNonTrade)) -> 0 | BP54: =BP$92+$AY54-1 -> 8 | BQ54: =IF($AY54<=VLOOKUP(BQ$90,seqYearsCarbon,2,0),(((VLOOKUP(BQ$90,seqEqns,2,0)*$AY54^4)+(VLOOKUP(BQ$90,seqEqns,3,0)*$AY54^3)+(VLOOKUP(BQ$90,seqEqns,4,0)*$AY54^2)+(VLOOKUP(BQ$90,seqEqns,5,0)*$AY54))*(VLOOKUP(BQ$90,seqTrees,2,0)/100)),(VLOOKUP(BQ$90,seqYearsCarbon,4,0)*VLOOKUP(BQ$90,seqTrees,2,0)/100)) -> 0 | BR54: =BR53+BQ54 -> 0 | BS54: =(BQ54/1000)*BU54*BV54 ->  | BT54: =BS54+BT53 ->  | BU54: =VLOOKUP(BP54,discYears,2,0) ->  | BV54: =SUMPRODUCT((cNonTradeLevels=$AR$68)*(cNonTradeYears=BP54)*(cNonTrade)) -> 0 | BX54: =BX$92+$AY54-1 -> 8 | BY54: =IF($AY54<=VLOOKUP(BY$90,seqYearsCarbon,2,0),(((VLOOKUP(BY$90,seqEqns,2,0)*$AY54^4)+(VLOOKUP(BY$90,seqEqns,3,0)*$AY54^3)+(VLOOKUP(BY$90,seqEqns,4,0)*$AY54^2)+(VLOOKUP(BY$90,seqEqns,5,0)*$AY54))*(VLOOKUP(BY$90,seqTrees,2,0)/100)),(VLOOKUP(BY$90,seqYearsCarbon,4,0)*VLOOKUP(BY$90,seqTrees,2,0)/100)) -> 0 | BZ54: =BZ53+BY54 -> 0 | CA54: =(BY54/1000)*CC54*CD54 ->  | CB54: =CA54+CB53 ->  | CC54: =VLOOKUP(BX54,discYears,2,0) ->  | CD54: =SUMPRODUCT((cNonTradeLevels=$AR$68)*(cNonTradeYears=BX54)*(cNonTrade)) -> 0 | CF54: =CF$92+$AY54-1 -> 8 | CG54: =IF($AY54<=VLOOKUP(CG$90,seqYearsCarbon,2,0),(((VLOOKUP(CG$90,seqEqns,2,0)*$AY54^4)+(VLOOKUP(CG$90,seqEqns,3,0)*$AY54^3)+(VLOOKUP(CG$90,seqEqns,4,0)*$AY54^2)+(VLOOKUP(CG$90,seqEqns,5,0)*$AY54))*(VLOOKUP(CG$90,seqTrees,2,0)/100)),(VLOOKUP(CG$90,seqYearsCarbon,4,0)*VLOOKUP(CG$90,seqTrees,2,0)/100)) -> 0 | CH54: =CH53+CG54 -> 0 | CI54: =(CG54/1000)*CK54*CL54 ->  | CJ54: =CI54+CJ53 ->  | CK54: =VLOOKUP(CF54,discYears,2,0) ->  | CL54: =SUMPRODUCT((cNonTradeLevels=$AR$68)*(cNonTradeYears=CF54)*(cNonTrade)) -> 0
D55: Conifer - Large | L55: =AU89 -> 0 | N55: =AV89 -> 0 | AD55: 50 | AE55: 367 | AF55: 5525 | AG55: 10929 | AJ55: 11646 | AM55: 11560
AD56: 60 | AE56: 367 | AF56: 5525 | AG56: 10929 | AJ56: 11646 | AM56: 11560
F57: Non-traded Carbon | H57: Estimated present value before confidence scores | J57: Estimated present value after confidence scores | AD57: 80 | AF57: 5525 | AG57: 10929 | AJ57: 11646 | AM57: 11560
AY58: 9 | AZ58: =AZ$92+$AY58-1 -> 8 | BA58: =IF($AY58<=VLOOKUP(BA$90,seqYearsCarbon,2,0),(((VLOOKUP(BA$90,seqEqns,2,0)*$AY58^4)+(VLOOKUP(BA$90,seqEqns,3,0)*$AY58^3)+(VLOOKUP(BA$90,seqEqns,4,0)*$AY58^2)+(VLOOKUP(BA$90,seqEqns,5,0)*$AY58))*(VLOOKUP(BA$90,seqTrees,2,0)/100)),(VLOOKUP(BA$90,seqYearsCarbon,4,0)*VLOOKUP(BA$90,seqTrees,2,0)/100)) -> 0 | BB58: =BB57+BA58 -> 0 | BC58: =(BA58/1000)*BE58*BF58 ->  | BD58: =BC58+BD57 ->  | BE58: =VLOOKUP(AZ58,discYears,2,0) ->  | BF58: =SUMPRODUCT((cNonTradeLevels=$AR$68)*(cNonTradeYears=AZ58)*(cNonTrade)) -> 0 | BH58: =BH$92+$AY58-1 -> 8 | BI58: =IF($AY58<=VLOOKUP(BI$90,seqYearsCarbon,2,0),(((VLOOKUP(BI$90,seqEqns,2,0)*$AY58^4)+(VLOOKUP(BI$90,seqEqns,3,0)*$AY58^3)+(VLOOKUP(BI$90,seqEqns,4,0)*$AY58^2)+(VLOOKUP(BI$90,seqEqns,5,0)*$AY58))*(VLOOKUP(BI$90,seqTrees,2,0)/100)),(VLOOKUP(BI$90,seqYearsCarbon,4,0)*VLOOKUP(BI$90,seqTrees,2,0)/100)) -> 0 | BJ58: =BJ57+BI58 -> 0 | BK58: =(BI58/1000)*BM58*BN58 ->  | BL58: =BK58+BL57 ->  | BM58: =VLOOKUP(BH58,discYears,2,0) ->  | BN58: =SUMPRODUCT((cNonTradeLevels=$AR$68)*(cNonTradeYears=BH58)*(cNonTrade)) -> 0 | BP58: =BP$92+$AY58-1 -> 8 | BQ58: =IF($AY58<=VLOOKUP(BQ$90,seqYearsCarbon,2,0),(((VLOOKUP(BQ$90,seqEqns,2,0)*$AY58^4)+(VLOOKUP(BQ$90,seqEqns,3,0)*$AY58^3)+(VLOOKUP(BQ$90,seqEqns,4,0)*$AY58^2)+(VLOOKUP(BQ$90,seqEqns,5,0)*$AY58))*(VLOOKUP(BQ$90,seqTrees,2,0)/100)),(VLOOKUP(BQ$90,seqYearsCarbon,4,0)*VLOOKUP(BQ$90,seqTrees,2,0)/100)) -> 0 | BR58: =BR57+BQ58 -> 0 | BS58: =(BQ58/1000)*BU58*BV58 ->  | BT58: =BS58+BT57 ->  | BU58: =VLOOKUP(BP58,discYears,2,0) ->  | BV58: =SUMPRODUCT((cNonTradeLevels=$AR$68)*(cNonTradeYears=BP58)*(cNonTrade)) -> 0 | BX58: =BX$92+$AY58-1 -> 8 | BY58: =IF($AY58<=VLOOKUP(BY$90,seqYearsCarbon,2,0),(((VLOOKUP(BY$90,seqEqns,2,0)*$AY58^4)+(VLOOKUP(BY$90,seqEqns,3,0)*$AY58^3)+(VLOOKUP(BY$90,seqEqns,4,0)*$AY58^2)+(VLOOKUP(BY$90,seqEqns,5,0)*$AY58))*(VLOOKUP(BY$90,seqTrees,2,0)/100)),(VLOOKUP(BY$90,seqYearsCarbon,4,0)*VLOOKUP(BY$90,seqTrees,2,0)/100)) -> 0 | BZ58: =BZ57+BY58 -> 0 | CA58: =(BY58/1000)*CC58*CD58 ->  | CB58: =CA58+CB57 ->  | CC58: =VLOOKUP(BX58,discYears,2,0) ->  | CD58: =SUMPRODUCT((cNonTradeLevels=$AR$68)*(cNonTradeYears=BX58)*(cNonTrade)) -> 0 | CF58: =CF$92+$AY58-1 -> 8 | CG58: =IF($AY58<=VLOOKUP(CG$90,seqYearsCarbon,2,0),(((VLOOKUP(CG$90,seqEqns,2,0)*$AY58^4)+(VLOOKUP(CG$90,seqEqns,3,0)*$AY58^3)+(VLOOKUP(CG$90,seqEqns,4,0)*$AY58^2)+(VLOOKUP(CG$90,seqEqns,5,0)*$AY58))*(VLOOKUP(CG$90,seqTrees,2,0)/100)),(VLOOKUP(CG$90,seqYearsCarbon,4,0)*VLOOKUP(CG$90,seqTrees,2,0)/100)) -> 0 | CH58: =CH57+CG58 -> 0 | CI58: =(CG58/1000)*CK58*CL58 ->  | CJ58: =CI58+CJ57 ->  | CK58: =VLOOKUP(CF58,discYears,2,0) ->  | CL58: =SUMPRODUCT((cNonTradeLevels=$AR$68)*(cNonTradeYears=CF58)*(cNonTrade)) -> 0
H59: =SUM(N47:N55) -> 0 | J59: =SUMPRODUCT(N47:N55,P47:P55,R47:R55) -> 0 | AD59: 100 | AG59: 10929 | AJ59: 11646 | AM59: 11560
P61: Average confidence score | AE61: American Holly | AF61: Asian Pear | AG61: Black Walnut | AJ61: California Live Oak | AM61: Black Pine
AY62: 9 | AZ62: =AZ$92+$AY62-1 -> 8 | BA62: =IF($AY62<=VLOOKUP(BA$90,seqYearsCarbon,2,0),(((VLOOKUP(BA$90,seqEqns,2,0)*$AY62^4)+(VLOOKUP(BA$90,seqEqns,3,0)*$AY62^3)+(VLOOKUP(BA$90,seqEqns,4,0)*$AY62^2)+(VLOOKUP(BA$90,seqEqns,5,0)*$AY62))*(VLOOKUP(BA$90,seqTrees,2,0)/100)),(VLOOKUP(BA$90,seqYearsCarbon,4,0)*VLOOKUP(BA$90,seqTrees,2,0)/100)) -> 0 | BB62: =BB61+BA62 -> 0 | BC62: =(BA62/1000)*BE62*BF62 ->  | BD62: =BC62+BD61 ->  | BE62: =VLOOKUP(AZ62,discYears,2,0) ->  | BF62: =SUMPRODUCT((cNonTradeLevels=$AR$68)*(cNonTradeYears=AZ62)*(cNonTrade)) -> 0 | BH62: =BH$92+$AY62-1 -> 8 | BI62: =IF($AY62<=VLOOKUP(BI$90,seqYearsCarbon,2,0),(((VLOOKUP(BI$90,seqEqns,2,0)*$AY62^4)+(VLOOKUP(BI$90,seqEqns,3,0)*$AY62^3)+(VLOOKUP(BI$90,seqEqns,4,0)*$AY62^2)+(VLOOKUP(BI$90,seqEqns,5,0)*$AY62))*(VLOOKUP(BI$90,seqTrees,2,0)/100)),(VLOOKUP(BI$90,seqYearsCarbon,4,0)*VLOOKUP(BI$90,seqTrees,2,0)/100)) -> 0 | BJ62: =BJ61+BI62 -> 0 | BK62: =(BI62/1000)*BM62*BN62 ->  | BL62: =BK62+BL61 ->  | BM62: =VLOOKUP(BH62,discYears,2,0) ->  | BN62: =SUMPRODUCT((cNonTradeLevels=$AR$68)*(cNonTradeYears=BH62)*(cNonTrade)) -> 0 | BP62: =BP$92+$AY62-1 -> 8 | BQ62: =IF($AY62<=VLOOKUP(BQ$90,seqYearsCarbon,2,0),(((VLOOKUP(BQ$90,seqEqns,2,0)*$AY62^4)+(VLOOKUP(BQ$90,seqEqns,3,0)*$AY62^3)+(VLOOKUP(BQ$90,seqEqns,4,0)*$AY62^2)+(VLOOKUP(BQ$90,seqEqns,5,0)*$AY62))*(VLOOKUP(BQ$90,seqTrees,2,0)/100)),(VLOOKUP(BQ$90,seqYearsCarbon,4,0)*VLOOKUP(BQ$90,seqTrees,2,0)/100)) -> 0 | BR62: =BR61+BQ62 -> 0 | BS62: =(BQ62/1000)*BU62*BV62 ->  | BT62: =BS62+BT61 ->  | BU62: =VLOOKUP(BP62,discYears,2,0) ->  | BV62: =SUMPRODUCT((cNonTradeLevels=$AR$68)*(cNonTradeYears=BP62)*(cNonTrade)) -> 0 | BX62: =BX$92+$AY62-1 -> 8 | BY62: =IF($AY62<=VLOOKUP(BY$90,seqYearsCarbon,2,0),(((VLOOKUP(BY$90,seqEqns,2,0)*$AY62^4)+(VLOOKUP(BY$90,seqEqns,3,0)*$AY62^3)+(VLOOKUP(BY$90,seqEqns,4,0)*$AY62^2)+(VLOOKUP(BY$90,seqEqns,5,0)*$AY62))*(VLOOKUP(BY$90,seqTrees,2,0)/100)),(VLOOKUP(BY$90,seqYearsCarbon,4,0)*VLOOKUP(BY$90,seqTrees,2,0)/100)) -> 0 | BZ62: =BZ61+BY62 -> 0 | CA62: =(BY62/1000)*CC62*CD62 ->  | CB62: =CA62+CB61 ->  | CC62: =VLOOKUP(BX62,discYears,2,0) ->  | CD62: =SUMPRODUCT((cNonTradeLevels=$AR$68)*(cNonTradeYears=BX62)*(cNonTrade)) -> 0 | CF62: =CF$92+$AY62-1 -> 8 | CG62: =IF($AY62<=VLOOKUP(CG$90,seqYearsCarbon,2,0),(((VLOOKUP(CG$90,seqEqns,2,0)*$AY62^4)+(VLOOKUP(CG$90,seqEqns,3,0)*$AY62^3)+(VLOOKUP(CG$90,seqEqns,4,0)*$AY62^2)+(VLOOKUP(CG$90,seqEqns,5,0)*$AY62))*(VLOOKUP(CG$90,seqTrees,2,0)/100)),(VLOOKUP(CG$90,seqYearsCarbon,4,0)*VLOOKUP(CG$90,seqTrees,2,0)/100)) -> 0 | CH62: =CH61+CG62 -> 0 | CI62: =(CG62/1000)*CK62*CL62 ->  | CJ62: =CI62+CJ61 ->  | CK62: =VLOOKUP(CF62,discYears,2,0) ->  | CL62: =SUMPRODUCT((cNonTradeLevels=$AR$68)*(cNonTradeYears=CF62)*(cNonTrade)) -> 0
H63: Average start year | J63: Average Finish Year | L63: for the summary of outputs | P63: Quantity | R63: Valuation (£) | S63: for the summary of outputs
AY64: 9 | AZ64: =AZ$92+$AY64-1 -> 8 | BA64: =IF($AY64<=VLOOKUP(BA$90,seqYearsCarbon,2,0),(((VLOOKUP(BA$90,seqEqns,2,0)*$AY64^4)+(VLOOKUP(BA$90,seqEqns,3,0)*$AY64^3)+(VLOOKUP(BA$90,seqEqns,4,0)*$AY64^2)+(VLOOKUP(BA$90,seqEqns,5,0)*$AY64))*(VLOOKUP(BA$90,seqTrees,2,0)/100)),(VLOOKUP(BA$90,seqYearsCarbon,4,0)*VLOOKUP(BA$90,seqTrees,2,0)/100)) -> 0 | BB64: =BB63+BA64 -> 0 | BC64: =(BA64/1000)*BE64*BF64 ->  | BD64: =BC64+BD63 ->  | BE64: =VLOOKUP(AZ64,discYears,2,0) ->  | BF64: =SUMPRODUCT((cNonTradeLevels=$AR$68)*(cNonTradeYears=AZ64)*(cNonTrade)) -> 0 | BH64: =BH$92+$AY64-1 -> 8 | BI64: =IF($AY64<=VLOOKUP(BI$90,seqYearsCarbon,2,0),(((VLOOKUP(BI$90,seqEqns,2,0)*$AY64^4)+(VLOOKUP(BI$90,seqEqns,3,0)*$AY64^3)+(VLOOKUP(BI$90,seqEqns,4,0)*$AY64^2)+(VLOOKUP(BI$90,seqEqns,5,0)*$AY64))*(VLOOKUP(BI$90,seqTrees,2,0)/100)),(VLOOKUP(BI$90,seqYearsCarbon,4,0)*VLOOKUP(BI$90,seqTrees,2,0)/100)) -> 0 | BJ64: =BJ63+BI64 -> 0 | BK64: =(BI64/1000)*BM64*BN64 ->  | BL64: =BK64+BL63 ->  | BM64: =VLOOKUP(BH64,discYears,2,0) ->  | BN64: =SUMPRODUCT((cNonTradeLevels=$AR$68)*(cNonTradeYears=BH64)*(cNonTrade)) -> 0 | BP64: =BP$92+$AY64-1 -> 8 | BQ64: =IF($AY64<=VLOOKUP(BQ$90,seqYearsCarbon,2,0),(((VLOOKUP(BQ$90,seqEqns,2,0)*$AY64^4)+(VLOOKUP(BQ$90,seqEqns,3,0)*$AY64^3)+(VLOOKUP(BQ$90,seqEqns,4,0)*$AY64^2)+(VLOOKUP(BQ$90,seqEqns,5,0)*$AY64))*(VLOOKUP(BQ$90,seqTrees,2,0)/100)),(VLOOKUP(BQ$90,seqYearsCarbon,4,0)*VLOOKUP(BQ$90,seqTrees,2,0)/100)) -> 0 | BR64: =BR63+BQ64 -> 0 | BS64: =(BQ64/1000)*BU64*BV64 ->  | BT64: =BS64+BT63 ->  | BU64: =VLOOKUP(BP64,discYears,2,0) ->  | BV64: =SUMPRODUCT((cNonTradeLevels=$AR$68)*(cNonTradeYears=BP64)*(cNonTrade)) -> 0 | BX64: =BX$92+$AY64-1 -> 8 | BY64: =IF($AY64<=VLOOKUP(BY$90,seqYearsCarbon,2,0),(((VLOOKUP(BY$90,seqEqns,2,0)*$AY64^4)+(VLOOKUP(BY$90,seqEqns,3,0)*$AY64^3)+(VLOOKUP(BY$90,seqEqns,4,0)*$AY64^2)+(VLOOKUP(BY$90,seqEqns,5,0)*$AY64))*(VLOOKUP(BY$90,seqTrees,2,0)/100)),(VLOOKUP(BY$90,seqYearsCarbon,4,0)*VLOOKUP(BY$90,seqTrees,2,0)/100)) -> 0 | BZ64: =BZ63+BY64 -> 0 | CA64: =(BY64/1000)*CC64*CD64 ->  | CB64: =CA64+CB63 ->  | CC64: =VLOOKUP(BX64,discYears,2,0) ->  | CD64: =SUMPRODUCT((cNonTradeLevels=$AR$68)*(cNonTradeYears=BX64)*(cNonTrade)) -> 0 | CF64: =CF$92+$AY64-1 -> 8 | CG64: =IF($AY64<=VLOOKUP(CG$90,seqYearsCarbon,2,0),(((VLOOKUP(CG$90,seqEqns,2,0)*$AY64^4)+(VLOOKUP(CG$90,seqEqns,3,0)*$AY64^3)+(VLOOKUP(CG$90,seqEqns,4,0)*$AY64^2)+(VLOOKUP(CG$90,seqEqns,5,0)*$AY64))*(VLOOKUP(CG$90,seqTrees,2,0)/100)),(VLOOKUP(CG$90,seqYearsCarbon,4,0)*VLOOKUP(CG$90,seqTrees,2,0)/100)) -> 0 | CH64: =CH63+CG64 -> 0 | CI64: =(CG64/1000)*CK64*CL64 ->  | CJ64: =CI64+CJ63 ->  | CK64: =VLOOKUP(CF64,discYears,2,0) ->  | CL64: =SUMPRODUCT((cNonTradeLevels=$AR$68)*(cNonTradeYears=CF64)*(cNonTrade)) -> 0
H65: =IFERROR((AVERAGE(H47:H55)),"0") -> 0 | J65: =IFERROR((AVERAGE(J47:J55)),"0") -> 0 | P65: =IFERROR((AVERAGE(P47:P55)),"0") -> 0 | R65: =IFERROR((AVERAGE(R47:R55)),"0") -> 0 | AE65: 55 | AF65: 0 | AG65: =612-AG41 -> 147 | AJ65: 2 | AM65: 0
AD66: Note that SMUD indicates there is a value between years 0 and 1 for two trees only.
AQ68: Traded Carbon | AR68: =F59 -> 0
A69: >>HIDE_BELOW | AQ69: seqYearsCarbon
AQ70: Type of Trees | AR70: max year - after that it is fixed | AS70: Carbon | AT70: > max year use max value | AU70: up to yr | AW70: .
AQ71: Deciduous - Small | AR71: 30 | AS71: =-0.0032*AR71^4 + 0.206*AR71^3 - 4.6898*AR71^2 + 53.926*AR71 -> 366.96 | AT71: 367 | AU71: 60 | AW71: .
B72: Evidence notes | AQ72: Deciduous - Medium | AR72: 40 | AS72: =-0.0074*AR72^4 + 0.9495*AR72^3 - 44.211*AR72^2 + 860.38*AR72 -> 5501.6 | AT72: 5525 | AU72: 80 | AW72: .
C73: Whitford et al paper uses a simple methodology of % of tree cover of x ha. This is based on work from Noavke and Flemming. Look back at the novak work to come up with appropriate values. | AQ73: Deciduous - Large | AR73: 50 | AS73: =0.00067*AR73^4 - 0.0544*AR73^3 - 2.6254*AR73^2 + 403.17*AR73 -> 10982.5 | AT73: 10929 | AU73: 100 | AV73: amended to be 0.00067 rather than 0.0007 | AW73: .
C74: GINW does not calculate Carbon sequested for non woodland landscpaes (i.e. urban areas) | AQ74: Broadleaf Evergreen - Large | AR74: 50 | AS74: =-3.583*AR74^2 + 411.87*AR74 -> 11636 | AT74: 11646 | AU74: 100 | AW74: .
C75: CNT uses values from Michigan state university (Getter et al 2009) (pg40) for green roofs | AQ75: Confier - Large | AR75: 40 | AS75: =0.4729*AR75^3-42.816*AR75^2+1245.1*AR75 -> 11564 | AT75: 11560 | AU75: 100 | AW75: .
C76: CNT uses values from the tree guides to estimate the carbon impact of trees (pg40) | AW76: .
C77: CNT highlights further research requried from other SuDS such as swales etc before placing a carbon value on them | AQ77: seqEqns | AR77: x4 | AS77: x3 | AT77: x2 | AU77: x | AW77: .
AQ78: Deciduous - Small | AR78: -0.0032 | AS78: 0.206 | AT78: -4.6898 | AU78: 53.926 | AV78: y = -0.0032x4 + 0.206x3 - 4.6898x2 + 53.926x | AW78: .
C79: waiting for I tool installation | AQ79: Deciduous - Medium | AR79: -0.0074 | AS79: 0.9495 | AT79: -44.211 | AU79: 860.38 | AV79: y = -0.0074x4 + 0.9495x3 - 44.211x2 + 860.38x | AW79: .
C80: waiting for feedback from Neil McL colleague | AQ80: Deciduous - Large | AR80: 0.0007 | AS80: -0.0544 | AT80: -2.6254 | AU80: 403.17 | AV80: y = 0.0007x4 - 0.0544x3 - 2.6254x2 + 403.17x | AW80: . | AX80: <<< amended to be 0.00067 rather than 0.0007 | BE80: <<< not amended yet
AQ81: Broadleaf Evergreen - Large | AR81: 0 | AS81: 0 | AT81: -3.583 | AU81: 411.87 | AV81: y = -3.583x2 + 411.87x | AW81: .
AQ82: Confier - Large | AR82: 0 | AS82: 0.4729 | AT82: -42.816 | AU82: 1245.1 | AV82: y = 0.4729x3 - 42.816x2 + 1245.1x | AW82: .
J83: large | L83: conifer | AW83: .
J84: medium | L84: decidous | AQ84: seqTrees | AR84: Number of trees | AS84: Start Year | AT84: Finish Year | AU84: Total Carbon Sequested (tonnes) | AV84: Present Value of Carbon £ | AW84: Main | AX84: seqCarb | AY84: pvCarb
AQ85: Deciduous - Small | AR85: =F47 -> 0 | AS85: =H47 -> 0 | AT85: =J47 -> 0 | AU85: =VLOOKUP(AT85,OFFSET($AY$92,0,AW85,100,AX85-AW85+1),AX85-AW85+1,0)/1000 -> 0 | AV85: =IFERROR((VLOOKUP(AT85,OFFSET($AY$92,0,AW85,100,AY85-AW85+1),AY85-AW85+1,0)),"0") -> 0 | AW85: =MATCH(AW$84&$AQ85,$AZ$88:$CL$88,0) -> 1 | AX85: =MATCH(AX$84&$AQ85,$AZ$88:$CL$88,0) -> 3 | AY85: 5
B86: SMUD tool | D86: https://usage.smud.org/treebenefit/default.aspx | AQ86: Deciduous - Medium | AR86: =F49 -> 0 | AS86: =H49 -> 0 | AT86: =J49 -> 0 | AU86: =VLOOKUP(AT86,OFFSET($AY$92,0,AW86,100,AX86-AW86+1),AX86-AW86+1,0)/1000 -> 0 | AV86: =IFERROR((VLOOKUP(AT86,OFFSET($AY$92,0,AW86,100,AY86-AW86+1),AY86-AW86+1,0)),"0") -> 0 | AW86: =MATCH(AW$84&$AQ86,$AZ$88:$CL$88,0) -> 9 | AX86: 11 | AY86: 13
AQ87: Deciduous - Large | AR87: =F51 -> 0 | AS87: =H51 -> 0 | AT87: =J51 -> 0 | AU87: =VLOOKUP(AT87,OFFSET($AY$92,0,AW87,100,AX87-AW87+1),AX87-AW87+1,0)/1000 -> 0 | AV87: =IFERROR((VLOOKUP(AT87,OFFSET($AY$92,0,AW87,100,AY87-AW87+1),AY87-AW87+1,0)),"0") -> 0 | AW87: 17 | AX87: 19 | AY87: 21
B88: Approach taken | AQ88: Broadleaf Evergreen - Large | AR88: =F53 -> 0 | AS88: =H53 -> 0 | AT88: =J53 -> 0 | AU88: =VLOOKUP(AT88,OFFSET($AY$92,0,AW88,100,AX88-AW88+1),AX88-AW88+1,0)/1000 -> 0 | AV88: =IFERROR((VLOOKUP(AT88,OFFSET($AY$92,0,AW88,100,AY88-AW88+1),AY88-AW88+1,0)),"0") -> 0 | AW88: 25 | AX88: 27 | AY88: 29 | AZ88: =AZ89&AZ90 -> MainDeciduous - Small | BA88: =BA89&BA90 -> Deciduous - Small | BB88: seqCarbDeciduous - Small | BC88: Deciduous - Small | BD88: pvCarbDeciduous - Small | BH88: MainDeciduous - Medium | BI88: Deciduous - Medium | BJ88: seqCarbDeciduous - Medium | BK88: Deciduous - Medium | BL88: pvCarbDeciduous - Medium | BP88: MainDeciduous - Large | BQ88: Deciduous - Large | BR88: seqCarbDeciduous - Large | BS88: Deciduous - Large | BT88: pvCarbDeciduous - Large | BX88: MainBroadleaf Evergreen - Large | BY88: Broadleaf Evergreen - Large | BZ88: seqCarbBroadleaf Evergreen - Large | CA88: Broadleaf Evergreen - Large | CB88: pvCarbBroadleaf Evergreen - Large | CF88: MainConfier - Large | CG88: Confier - Large | CH88: seqCarbConfier - Large | CI88: Confier - Large | CJ88: pvCarbConfier - Large
B89: Values developed from the SMUD tool for small, medium and large decidious and large broadleaf evergreen and conifers. | AQ89: Confier - Large | AR89: =F55 -> 0 | AS89: =H55 -> 0 | AT89: =J55 -> 0 | AU89: =VLOOKUP(AT89,OFFSET($AY$92,0,AW89,100,AX89-AW89+1),AX89-AW89+1,0)/1000 -> 0 | AV89: =IFERROR((VLOOKUP(AT89,OFFSET($AY$92,0,AW89,100,AY89-AW89+1),AY89-AW89+1,0)),"0") -> 0 | AW89: 33 | AX89: 35 | AY89: 37 | AZ89: Main | BB89: seqCarb | BD89: pvCarb | BH89: Main | BJ89: seqCarb | BL89: pvCarb | BP89: Main | BR89: seqCarb | BT89: pvCarb | BX89: Main | BZ89: seqCarb | CB89: pvCarb | CF89: Main | CH89: seqCarb | CJ89: pvCarb
B90: 1,2,5,10,20,30,(40), (50) used to give values and create equations. | AZ90: Deciduous - Small | BA90: =AZ90 -> Deciduous - Small | BB90: =BA90 -> Deciduous - Small | BC90: =BB90 -> Deciduous - Small | BD90: =BC90 -> Deciduous - Small | BH90: Deciduous - Medium | BI90: =BH90 -> Deciduous - Medium | BJ90: =BI90 -> Deciduous - Medium | BK90: =BJ90 -> Deciduous - Medium | BL90: =BK90 -> Deciduous - Medium | BP90: Deciduous - Large | BQ90: =BP90 -> Deciduous - Large | BR90: =BQ90 -> Deciduous - Large | BS90: =BR90 -> Deciduous - Large | BT90: =BS90 -> Deciduous - Large | BX90: Broadleaf Evergreen - Large | BY90: =BX90 -> Broadleaf Evergreen - Large | BZ90: =BY90 -> Broadleaf Evergreen - Large | CA90: =BZ90 -> Broadleaf Evergreen - Large | CB90: =CA90 -> Broadleaf Evergreen - Large | CF90: Confier - Large | CG90: =CF90 -> Confier - Large | CH90: =CG90 -> Confier - Large | CI90: =CH90 -> Confier - Large | CJ90: =CI90 -> Confier - Large
B91: Values cease for small trees at 30 years therefore constant value used thereafter - conservative would be to not include any further values after 30 | AY91: Year | BA91: Carbon per year per no trees (kg) | BB91: Cumulative Carbon | BC91: Present value /yr | BD91: Cumulative PV | BI91: Carbon per year per no trees (kg) | BJ91: Cumulative Carbon | BK91: Present value /yr | BL91: Cumulative PV | BQ91: Carbon per year per no trees (kg) | BR91: Cumulative Carbon | BS91: Present value /yr | BT91: Cumulative PV | BY91: Carbon per year per no trees (kg) | BZ91: Cumulative Carbon | CA91: Present value /yr | CB91: Cumulative PV | CG91: Carbon per year per no trees (kg) | CH91: Cumulative Carbon | CI91: Present value /yr | CJ91: Cumulative PV
B92: Values cease at 40 for medium and conifer trees - conservative approach again would be to stop at 40 years | AY92: 1 | AZ92: =VLOOKUP(AZ90,$AQ$85:$AS$89,3,0) -> 0 | BA92: =IF($AY92<=VLOOKUP(BA$90,seqYearsCarbon,2,0),(((VLOOKUP(BA$90,seqEqns,2,0)*$AY92^4)+(VLOOKUP(BA$90,seqEqns,3,0)*$AY92^3)+(VLOOKUP(BA$90,seqEqns,4,0)*$AY92^2)+(VLOOKUP(BA$90,seqEqns,5,0)*$AY92))*(VLOOKUP(BA$90,seqTrees,2,0)/100)),(VLOOKUP(BA$90,seqYearsCarbon,4,0)*VLOOKUP(BA$90,seqTrees,2,0)/100)) -> 0 | BB92: =BA92 -> 0 | BC92: =(BA92/1000)*BE92*BF92 -> 0 | BD92: =BC92 -> 0 | BE92: =IFERROR(VLOOKUP(AZ92,discYears,2,0),0) -> 0 | BF92: =SUMPRODUCT((cNonTradeLevels=$AR$68)*(cNonTradeYears=AZ92)*(cNonTrade)) -> 0 | BH92: =VLOOKUP(BH90,$AQ$85:$AS$89,3,0) -> 0 | BI92: =IF($AY92<=VLOOKUP(BI$90,seqYearsCarbon,2,0),(((VLOOKUP(BI$90,seqEqns,2,0)*$AY92^4)+(VLOOKUP(BI$90,seqEqns,3,0)*$AY92^3)+(VLOOKUP(BI$90,seqEqns,4,0)*$AY92^2)+(VLOOKUP(BI$90,seqEqns,5,0)*$AY92))*(VLOOKUP(BI$90,seqTrees,2,0)/100)),(VLOOKUP(BI$90,seqYearsCarbon,4,0)*VLOOKUP(BI$90,seqTrees,2,0)/100)) -> 0 | BJ92: =BI92 -> 0 | BK92: =(BI92/1000)*BM92*BN92 -> 0 | BL92: =BK92 -> 0 | BM92: =IFERROR(VLOOKUP(BH92,discYears,2,0),0) -> 0 | BN92: =SUMPRODUCT((cNonTradeLevels=$AR$68)*(cNonTradeYears=BH92)*(cNonTrade)) -> 0 | BP92: =VLOOKUP(BP90,$AQ$85:$AS$89,3,0) -> 0 | BQ92: =IF($AY92<=VLOOKUP(BQ$90,seqYearsCarbon,2,0),(((VLOOKUP(BQ$90,seqEqns,2,0)*$AY92^4)+(VLOOKUP(BQ$90,seqEqns,3,0)*$AY92^3)+(VLOOKUP(BQ$90,seqEqns,4,0)*$AY92^2)+(VLOOKUP(BQ$90,seqEqns,5,0)*$AY92))*(VLOOKUP(BQ$90,seqTrees,2,0)/100)),(VLOOKUP(BQ$90,seqYearsCarbon,4,0)*VLOOKUP(BQ$90,seqTrees,2,0)/100)) -> 0 | BR92: =BQ92 -> 0 | BS92: =(BQ92/1000)*BU92*BV92 -> 0 | BT92: =BS92 -> 0 | BU92: =IFERROR(VLOOKUP(BP92,discYears,2,0),0) -> 0 | BV92: =SUMPRODUCT((cNonTradeLevels=$AR$68)*(cNonTradeYears=BP92)*(cNonTrade)) -> 0 | BX92: =VLOOKUP(BX90,$AQ$85:$AS$89,3,0) -> 0 | BY92: =IF($AY92<=VLOOKUP(BY$90,seqYearsCarbon,2,0),(((VLOOKUP(BY$90,seqEqns,2,0)*$AY92^4)+(VLOOKUP(BY$90,seqEqns,3,0)*$AY92^3)+(VLOOKUP(BY$90,seqEqns,4,0)*$AY92^2)+(VLOOKUP(BY$90,seqEqns,5,0)*$AY92))*(VLOOKUP(BY$90,seqTrees,2,0)/100)),(VLOOKUP(BY$90,seqYearsCarbon,4,0)*VLOOKUP(BY$90,seqTrees,2,0)/100)) -> 0 | BZ92: =BY92 -> 0 | CA92: =(BY92/1000)*CC92*CD92 -> 0 | CB92: =CA92 -> 0 | CC92: =IFERROR(VLOOKUP(BX92,discYears,2,0),0) -> 0 | CD92: =SUMPRODUCT((cNonTradeLevels=$AR$68)*(cNonTradeYears=BX92)*(cNonTrade)) -> 0 | CF92: =VLOOKUP(CF90,$AQ$85:$AS$89,3,0) -> 0 | CG92: =IF($AY92<=VLOOKUP(CG$90,seqYearsCarbon,2,0),(((VLOOKUP(CG$90,seqEqns,2,0)*$AY92^4)+(VLOOKUP(CG$90,seqEqns,3,0)*$AY92^3)+(VLOOKUP(CG$90,seqEqns,4,0)*$AY92^2)+(VLOOKUP(CG$90,seqEqns,5,0)*$AY92))*(VLOOKUP(CG$90,seqTrees,2,0)/100)),(VLOOKUP(CG$90,seqYearsCarbon,4,0)*VLOOKUP(CG$90,seqTrees,2,0)/100)) -> 0 | CH92: =CG92 -> 0 | CI92: =(CG92/1000)*CK92*CL92 -> 0 | CJ92: =CI92 -> 0 | CK92: =IFERROR(VLOOKUP(CF92,discYears,2,0),0) -> 0 | CL92: =SUMPRODUCT((cNonTradeLevels=$AR$68)*(cNonTradeYears=CF92)*(cNonTrade)) -> 0
B93: Values for large trees deciduous and broadlead stop at 50 - conservative appraoch could be adopted again. | AY93: 2 | AZ93: =AZ$92+$AY93-1 -> 1 | BA93: =IF($AY93<=VLOOKUP(BA$90,seqYearsCarbon,2,0),(((VLOOKUP(BA$90,seqEqns,2,0)*$AY93^4)+(VLOOKUP(BA$90,seqEqns,3,0)*$AY93^3)+(VLOOKUP(BA$90,seqEqns,4,0)*$AY93^2)+(VLOOKUP(BA$90,seqEqns,5,0)*$AY93))*(VLOOKUP(BA$90,seqTrees,2,0)/100)),(VLOOKUP(BA$90,seqYearsCarbon,4,0)*VLOOKUP(BA$90,seqTrees,2,0)/100)) -> 0 | BB93: =BB92+BA93 -> 0 | BC93: =(BA93/1000)*BE93*BF93 -> 0 | BD93: =BC93+BD92 -> 0 | BE93: 0 | BF93: 0 | BH93: =BH$92+$AY93-1 -> 1 | BI93: 0 | BJ93: =BJ92+BI93 -> 0 | BK93: =(BI93/1000)*BM93*BN93 -> 0 | BL93: =BK93+BL92 -> 0 | BM93: =IFERROR(VLOOKUP(BH93,discYears,2,0),0) -> 0 | BN93: 0 | BP93: =BP$92+$AY93-1 -> 1 | BQ93: 0 | BR93: =BR92+BQ93 -> 0 | BS93: =(BQ93/1000)*BU93*BV93 -> 0 | BT93: =BS93+BT92 -> 0 | BU93: 0 | BV93: 0 | BX93: =BX$92+$AY93-1 -> 1 | BY93: 0 | BZ93: =BZ92+BY93 -> 0 | CA93: =(BY93/1000)*CC93*CD93 -> 0 | CB93: =CA93+CB92 -> 0 | CC93: 0 | CD93: 0 | CF93: =CF$92+$AY93-1 -> 1 | CG93: 0 | CH93: =CH92+CG93 -> 0 | CI93: =(CG93/1000)*CK93*CL93 -> 0 | CJ93: =CI93+CJ92 -> 0 | CK93: 0 | CL93: 0
B94: The Tree Benefit Estimator, developed by Sacramento Municipal Utility District (SMUD), was based on the experience of the SMUD's Shade Tree program. In developing this simplified and easy-to-use method for estimating the tree planting benefits, broad assumptions have been made regarding trees' impact on direct shading benefits, impacts of indirect or evapotranspiration effect, heating penalty in winter months, tree growth rates and tree survival rates. As a result, this method may yield less precise results than a more tailored approach. Staff from the Center for Urban Forest Research, Pacific Southwest Research Station, USDA Forest Service, University of California, Davis, have reviewed the Tree Benefits Estimator. THis is a simplified method adopted for this tool, and if these values are signficant, then a more detailed study is appropriate. | AT94: =IFERROR((((1.846*(D66*E66*F66)^1.061)/((G66^0.0424)*(H66^0.0217)*(C66^0.0854)))*I66),"0") | AY94: 3 | AZ94: =AZ$92+$AY94-1 -> 2 | BA94: 0 | BB94: =BB93+BA94 -> 0 | BC94: =(BA94/1000)*BE94*BF94 -> 0 | BD94: =BC94+BD93 -> 0 | BE94: 0 | BF94: 0 | BH94: =BH$92+$AY94-1 -> 2 | BI94: 0 | BJ94: =BJ93+BI94 -> 0 | BK94: =(BI94/1000)*BM94*BN94 -> 0 | BL94: =BK94+BL93 -> 0 | BM94: 0 | BN94: 0 | BP94: =BP$92+$AY94-1 -> 2 | BQ94: =IF($AY94<=VLOOKUP(BQ$90,seqYearsCarbon,2,0),(((VLOOKUP(BQ$90,seqEqns,2,0)*$AY94^4)+(VLOOKUP(BQ$90,seqEqns,3,0)*$AY94^3)+(VLOOKUP(BQ$90,seqEqns,4,0)*$AY94^2)+(VLOOKUP(BQ$90,seqEqns,5,0)*$AY94))*(VLOOKUP(BQ$90,seqTrees,2,0)/100)),(VLOOKUP(BQ$90,seqYearsCarbon,4,0)*VLOOKUP(BQ$90,seqTrees,2,0)/100)) -> 0 | BR94: =BR93+BQ94 -> 0 | BS94: =(BQ94/1000)*BU94*BV94 -> 0 | BT94: =BS94+BT93 -> 0 | BU94: 0 | BV94: 0 | BX94: =BX$92+$AY94-1 -> 2 | BY94: 0 | BZ94: =BZ93+BY94 -> 0 | CA94: =(BY94/1000)*CC94*CD94 -> 0 | CB94: =CA94+CB93 -> 0 | CC94: 0 | CD94: 0 | CF94: =CF$92+$AY94-1 -> 2 | CG94: 0 | CH94: =CH93+CG94 -> 0 | CI94: =(CG94/1000)*CK94*CL94 -> 0 | CJ94: =CI94+CJ93 -> 0 | CK94: 0 | CL94: 0
AY95: 4 | AZ95: 3 | BA95: 0 | BB95: 0 | BC95: =(BA95/1000)*BE95*BF95 -> 0 | BD95: 0 | BE95: 0 | BF95: 0 | BH95: 3 | BI95: 0 | BJ95: 0 | BK95: =(BI95/1000)*BM95*BN95 -> 0 | BL95: 0 | BM95: 0 | BN95: 0 | BP95: 3 | BQ95: 0 | BR95: 0 | BS95: =(BQ95/1000)*BU95*BV95 -> 0 | BT95: 0 | BU95: 0 | BV95: 0 | BX95: 3 | BY95: 0 | BZ95: 0 | CA95: =(BY95/1000)*CC95*CD95 -> 0 | CB95: 0 | CC95: 0 | CD95: 0 | CF95: 3 | CG95: 0 | CH95: 0 | CI95: =(CG95/1000)*CK95*CL95 -> 0 | CJ95: 0 | CK95: 0 | CL95: 0
AY96: 5 | AZ96: 4 | BA96: 0 | BB96: 0 | BC96: 0 | BD96: 0 | BE96: 0 | BF96: 0 | BH96: 4 | BI96: 0 | BJ96: 0 | BK96: 0 | BL96: 0 | BM96: 0 | BN96: 0 | BP96: 4 | BQ96: 0 | BR96: 0 | BS96: 0 | BT96: 0 | BU96: 0 | BV96: 0 | BX96: 4 | BY96: 0 | BZ96: 0 | CA96: 0 | CB96: 0 | CC96: 0 | CD96: 0 | CF96: 4 | CG96: 0 | CH96: 0 | CI96: 0 | CJ96: 0 | CK96: 0 | CL96: 0
AY97: 6 | AZ97: 5 | BA97: 0 | BB97: 0 | BC97: 0 | BD97: 0 | BE97: 0 | BF97: 0 | BH97: 5 | BI97: 0 | BJ97: 0 | BK97: 0 | BL97: 0 | BM97: 0 | BN97: 0 | BP97: 5 | BQ97: 0 | BR97: 0 | BS97: 0 | BT97: 0 | BU97: 0 | BV97: 0 | BX97: 5 | BY97: 0 | BZ97: 0 | CA97: 0 | CB97: 0 | CC97: 0 | CD97: 0 | CF97: 5 | CG97: 0 | CH97: 0 | CI97: 0 | CJ97: 0 | CK97: 0 | CL97: 0
AY98: 7 | AZ98: 6 | BA98: 0 | BB98: 0 | BC98: 0 | BD98: 0 | BE98: 0 | BF98: 0 | BH98: 6 | BI98: 0 | BJ98: 0 | BK98: 0 | BL98: 0 | BM98: 0 | BN98: 0 | BP98: 6 | BQ98: 0 | BR98: 0 | BS98: 0 | BT98: 0 | BU98: 0 | BV98: 0 | BX98: 6 | BY98: 0 | BZ98: 0 | CA98: 0 | CB98: 0 | CC98: 0 | CD98: 0 | CF98: 6 | CG98: 0 | CH98: 0 | CI98: 0 | CJ98: 0 | CK98: 0 | CL98: 0
AY99: 8 | AZ99: 7 | BA99: 0 | BB99: 0 | BC99: 0 | BD99: 0 | BE99: 0 | BF99: =SUMPRODUCT((cNonTradeLevels=$AR$68)*(cNonTradeYears=AZ99)*(cNonTrade)) -> 0 | BH99: 7 | BI99: 0 | BJ99: 0 | BK99: 0 | BL99: 0 | BM99: 0 | BN99: 0 | BP99: 7 | BQ99: 0 | BR99: 0 | BS99: 0 | BT99: 0 | BU99: 0 | BV99: 0 | BX99: 7 | BY99: 0 | BZ99: 0 | CA99: 0 | CB99: 0 | CC99: 0 | CD99: 0 | CF99: 7 | CG99: 0 | CH99: 0 | CI99: 0 | CJ99: 0 | CK99: 0 | CL99: 0
AY100: 9 | AZ100: 8 | BA100: 0 | BB100: 0 | BC100: 0 | BD100: 0 | BE100: 0 | BF100: 0 | BH100: 8 | BI100: 0 | BJ100: 0 | BK100: 0 | BL100: 0 | BM100: 0 | BN100: 0 | BP100: 8 | BQ100: 0 | BR100: 0 | BS100: 0 | BT100: 0 | BU100: 0 | BV100: 0 | BX100: 8 | BY100: 0 | BZ100: 0 | CA100: 0 | CB100: 0 | CC100: 0 | CD100: 0 | CF100: 8 | CG100: 0 | CH100: 0 | CI100: 0 | CJ100: 0 | CK100: 0 | CL100: 0
AY101: 10 | AZ101: 9 | BA101: 0 | BB101: 0 | BC101: 0 | BD101: 0 | BE101: 0 | BF101: 0 | BH101: 9 | BI101: 0 | BJ101: 0 | BK101: 0 | BL101: 0 | BM101: 0 | BN101: 0 | BP101: 9 | BQ101: 0 | BR101: 0 | BS101: 0 | BT101: 0 | BU101: 0 | BV101: 0 | BX101: 9 | BY101: 0 | BZ101: 0 | CA101: 0 | CB101: 0 | CC101: 0 | CD101: 0 | CF101: 9 | CG101: 0 | CH101: 0 | CI101: 0 | CJ101: 0 | CK101: 0 | CL101: 0
AY102: 11 | AZ102: 10 | BA102: 0 | BB102: 0 | BC102: 0 | BD102: 0 | BE102: 0 | BF102: 0 | BH102: 10 | BI102: 0 | BJ102: 0 | BK102: 0 | BL102: 0 | BM102: 0 | BN102: 0 | BP102: 10 | BQ102: 0 | BR102: 0 | BS102: 0 | BT102: 0 | BU102: 0 | BV102: 0 | BX102: 10 | BY102: 0 | BZ102: 0 | CA102: 0 | CB102: 0 | CC102: 0 | CD102: 0 | CF102: 10 | CG102: 0 | CH102: 0 | CI102: 0 | CJ102: 0 | CK102: 0 | CL102: 0
B103: Link below outlines the carbon sequestration methodology. | AY103: 12 | AZ103: 11 | BA103: 0 | BB103: 0 | BC103: 0 | BD103: 0 | BE103: 0 | BF103: 0 | BH103: 11 | BI103: 0 | BJ103: 0 | BK103: 0 | BL103: 0 | BM103: 0 | BN103: 0 | BP103: 11 | BQ103: 0 | BR103: 0 | BS103: 0 | BT103: 0 | BU103: 0 | BV103: 0 | BX103: 11 | BY103: 0 | BZ103: 0 | CA103: 0 | CB103: 0 | CC103: 0 | CD103: 0 | CF103: 11 | CG103: 0 | CH103: 0 | CI103: 0 | CJ103: 0 | CK103: 0 | CL103: 0
B104: https://usage.smud.org/treebenefit/SavingCarbon.aspx | AY104: 13 | AZ104: 12 | BA104: 0 | BB104: 0 | BC104: 0 | BD104: 0 | BE104: 0 | BF104: 0 | BH104: 12 | BI104: 0 | BJ104: 0 | BK104: 0 | BL104: 0 | BM104: 0 | BN104: 0 | BP104: 12 | BQ104: 0 | BR104: 0 | BS104: 0 | BT104: 0 | BU104: 0 | BV104: 0 | BX104: 12 | BY104: 0 | BZ104: 0 | CA104: 0 | CB104: 0 | CC104: 0 | CD104: 0 | CF104: 12 | CG104: 0 | CH104: 0 | CI104: 0 | CJ104: 0 | CK104: 0 | CL104: 0
AY105: 14 | AZ105: 13 | BA105: 0 | BB105: 0 | BC105: 0 | BD105: 0 | BE105: 0 | BF105: 0 | BH105: 13 | BI105: 0 | BJ105: 0 | BK105: 0 | BL105: 0 | BM105: 0 | BN105: 0 | BP105: 13 | BQ105: 0 | BR105: 0 | BS105: 0 | BT105: 0 | BU105: 0 | BV105: 0 | BX105: 13 | BY105: 0 | BZ105: 0 | CA105: 0 | CB105: 0 | CC105: 0 | CD105: 0 | CF105: 13 | CG105: 0 | CH105: 0 | CI105: 0 | CJ105: 0 | CK105: 0 | CL105: 0
AY106: 15 | AZ106: 14 | BA106: 0 | BB106: 0 | BC106: 0 | BD106: 0 | BE106: 0 | BF106: 0 | BH106: 14 | BI106: 0 | BJ106: 0 | BK106: 0 | BL106: 0 | BM106: 0 | BN106: 0 | BP106: 14 | BQ106: 0 | BR106: 0 | BS106: 0 | BT106: 0 | BU106: 0 | BV106: 0 | BX106: 14 | BY106: 0 | BZ106: 0 | CA106: 0 | CB106: 0 | CC106: 0 | CD106: 0 | CF106: 14 | CG106: 0 | CH106: 0 | CI106: 0 | CJ106: 0 | CK106: 0 | CL106: 0
AY107: 16 | AZ107: 15 | BA107: 0 | BB107: 0 | BC107: 0 | BD107: 0 | BE107: 0 | BF107: 0 | BH107: 15 | BI107: 0 | BJ107: 0 | BK107: 0 | BL107: 0 | BM107: 0 | BN107: 0 | BP107: 15 | BQ107: 0 | BR107: 0 | BS107: 0 | BT107: 0 | BU107: 0 | BV107: 0 | BX107: 15 | BY107: 0 | BZ107: 0 | CA107: 0 | CB107: 0 | CC107: 0 | CD107: 0 | CF107: 15 | CG107: 0 | CH107: 0 | CI107: 0 | CJ107: 0 | CK107: 0 | CL107: 0
AY108: 17 | AZ108: 16 | BA108: 0 | BB108: 0 | BC108: 0 | BD108: 0 | BE108: 0 | BF108: 0 | BH108: 16 | BI108: 0 | BJ108: 0 | BK108: 0 | BL108: 0 | BM108: 0 | BN108: 0 | BP108: 16 | BQ108: 0 | BR108: 0 | BS108: 0 | BT108: 0 | BU108: 0 | BV108: 0 | BX108: 16 | BY108: 0 | BZ108: 0 | CA108: 0 | CB108: 0 | CC108: 0 | CD108: 0 | CF108: 16 | CG108: 0 | CH108: 0 | CI108: 0 | CJ108: 0 | CK108: 0 | CL108: 0
AD109: Western oregong and washington tree guide | AY109: 18 | AZ109: 17 | BA109: 0 | BB109: 0 | BC109: 0 | BD109: 0 | BE109: 0 | BF109: 0 | BH109: 17 | BI109: 0 | BJ109: 0 | BK109: 0 | BL109: 0 | BM109: 0 | BN109: 0 | BP109: 17 | BQ109: 0 | BR109: 0 | BS109: 0 | BT109: 0 | BU109: 0 | BV109: 0 | BX109: 17 | BY109: 0 | BZ109: 0 | CA109: 0 | CB109: 0 | CC109: 0 | CD109: 0 | CF109: 17 | CG109: 0 | CH109: 0 | CI109: 0 | CJ109: 0 | CK109: 0 | CL109: 0
AD110: Values in pounds lbs | AI110: value in kgs and 1000 trees | AY110: 19 | AZ110: 18 | BA110: 0 | BB110: 0 | BC110: 0 | BD110: 0 | BE110: 0 | BF110: 0 | BH110: 18 | BI110: 0 | BJ110: 0 | BK110: 0 | BL110: 0 | BM110: 0 | BN110: 0 | BP110: 18 | BQ110: 0 | BR110: 0 | BS110: 0 | BT110: 0 | BU110: 0 | BV110: 0 | BX110: 18 | BY110: 0 | BZ110: 0 | CA110: 0 | CB110: 0 | CC110: 0 | CD110: 0 | CF110: 18 | CG110: 0 | CH110: 0 | CI110: 0 | CJ110: 0 | CK110: 0 | CL110: 0
AD111: Years | AE111: Small | AF111: Medium | AG111: large | AI111: Small | AJ111: Medium | AK111: large | AY111: 20 | AZ111: 19 | BA111: 0 | BB111: 0 | BC111: 0 | BD111: 0 | BE111: 0 | BF111: 0 | BH111: 19 | BI111: 0 | BJ111: 0 | BK111: 0 | BL111: 0 | BM111: 0 | BN111: 0 | BP111: 19 | BQ111: 0 | BR111: 0 | BS111: 0 | BT111: 0 | BU111: 0 | BV111: 0 | BX111: 19 | BY111: 0 | BZ111: 0 | CA111: 0 | CB111: 0 | CC111: 0 | CD111: 0 | CF111: 19 | CG111: 0 | CH111: 0 | CI111: 0 | CJ111: 0 | CK111: 0 | CL111: 0
AD112: 5 | AE112: 0 | AF112: 0 | AG112: 6 | AI112: =100*AE112*0.454 -> 0 | AJ112: =100*AF112*0.454 -> 0 | AK112: =100*AG112*0.454 -> 272.4 | AY112: 21 | AZ112: 20 | BA112: 0 | BB112: 0 | BC112: 0 | BD112: 0 | BE112: 0 | BF112: 0 | BH112: 20 | BI112: 0 | BJ112: 0 | BK112: 0 | BL112: 0 | BM112: 0 | BN112: 0 | BP112: 20 | BQ112: 0 | BR112: 0 | BS112: 0 | BT112: 0 | BU112: 0 | BV112: 0 | BX112: 20 | BY112: 0 | BZ112: 0 | CA112: 0 | CB112: 0 | CC112: 0 | CD112: 0 | CF112: 20 | CG112: 0 | CH112: 0 | CI112: 0 | CJ112: 0 | CK112: 0 | CL112: 0
AD113: 10 | AE113: 2 | AF113: 11 | AG113: 58 | AI113: =100*AE113*0.454 -> 90.8 | AJ113: 499.4 | AK113: 2633.2 | AY113: 22 | AZ113: 21 | BA113: 0 | BB113: 0 | BC113: 0 | BD113: 0 | BE113: 0 | BF113: 0 | BH113: 21 | BI113: 0 | BJ113: 0 | BK113: 0 | BL113: 0 | BM113: 0 | BN113: 0 | BP113: 21 | BQ113: 0 | BR113: 0 | BS113: 0 | BT113: 0 | BU113: 0 | BV113: 0 | BX113: 21 | BY113: 0 | BZ113: 0 | CA113: 0 | CB113: 0 | CC113: 0 | CD113: 0 | CF113: 21 | CG113: 0 | CH113: 0 | CI113: 0 | CJ113: 0 | CK113: 0 | CL113: 0
AD114: 15 | AE114: 8 | AF114: 31 | AG114: 143 | AI114: 363.2 | AJ114: 1407.4 | AK114: 6492.2 | AY114: 23 | AZ114: 22 | BA114: 0 | BB114: 0 | BC114: 0 | BD114: 0 | BE114: 0 | BF114: 0 | BH114: 22 | BI114: 0 | BJ114: 0 | BK114: 0 | BL114: 0 | BM114: 0 | BN114: 0 | BP114: 22 | BQ114: 0 | BR114: 0 | BS114: 0 | BT114: 0 | BU114: 0 | BV114: 0 | BX114: 22 | BY114: 0 | BZ114: 0 | CA114: 0 | CB114: 0 | CC114: 0 | CD114: 0 | CF114: 22 | CG114: 0 | CH114: 0 | CI114: 0 | CJ114: 0 | CK114: 0 | CL114: 0
AD115: 20 | AE115: 15 | AF115: 54 | AG115: 236 | AI115: 681 | AJ115: 2451.6 | AK115: 10714.4 | AY115: 24 | AZ115: 23 | BA115: 0 | BB115: 0 | BC115: 0 | BD115: 0 | BE115: 0 | BF115: 0 | BH115: 23 | BI115: 0 | BJ115: 0 | BK115: 0 | BL115: 0 | BM115: 0 | BN115: 0 | BP115: 23 | BQ115: 0 | BR115: 0 | BS115: 0 | BT115: 0 | BU115: 0 | BV115: 0 | BX115: 23 | BY115: 0 | BZ115: 0 | CA115: 0 | CB115: 0 | CC115: 0 | CD115: 0 | CF115: 23 | CG115: 0 | CH115: 0 | CI115: 0 | CJ115: 0 | CK115: 0 | CL115: 0
AD116: 25 | AE116: 20 | AF116: 76 | AG116: 321 | AI116: 908 | AJ116: 3450.4 | AK116: 14573.4 | AY116: 25 | AZ116: 24 | BA116: 0 | BB116: 0 | BC116: 0 | BD116: 0 | BE116: 0 | BF116: 0 | BH116: 24 | BI116: 0 | BJ116: 0 | BK116: 0 | BL116: 0 | BM116: 0 | BN116: 0 | BP116: 24 | BQ116: 0 | BR116: 0 | BS116: 0 | BT116: 0 | BU116: 0 | BV116: 0 | BX116: 24 | BY116: 0 | BZ116: 0 | CA116: 0 | CB116: 0 | CC116: 0 | CD116: 0 | CF116: 24 | CG116: 0 | CH116: 0 | CI116: 0 | CJ116: 0 | CK116: 0 | CL116: 0
AD117: 30 | AE117: 24 | AF117: 93 | AG117: 390 | AI117: 1089.6 | AJ117: 4222.2 | AK117: 17706 | AY117: 26 | AZ117: 25 | BA117: 0 | BB117: 0 | BC117: 0 | BD117: 0 | BE117: 0 | BF117: 0 | BH117: 25 | BI117: 0 | BJ117: 0 | BK117: 0 | BL117: 0 | BM117: 0 | BN117: 0 | BP117: 25 | BQ117: 0 | BR117: 0 | BS117: 0 | BT117: 0 | BU117: 0 | BV117: 0 | BX117: 25 | BY117: 0 | BZ117: 0 | CA117: 0 | CB117: 0 | CC117: 0 | CD117: 0 | CF117: 25 | CG117: 0 | CH117: 0 | CI117: 0 | CJ117: 0 | CK117: 0 | CL117: 0
AD118: 35 | AE118: 27 | AF118: 106 | AG118: 439 | AI118: 1225.8 | AJ118: 4812.4 | AK118: 19930.6 | AY118: 27 | AZ118: 26 | BA118: 0 | BB118: 0 | BC118: 0 | BD118: 0 | BE118: 0 | BF118: 0 | BH118: 26 | BI118: 0 | BJ118: 0 | BK118: 0 | BL118: 0 | BM118: 0 | BN118: 0 | BP118: 26 | BQ118: 0 | BR118: 0 | BS118: 0 | BT118: 0 | BU118: 0 | BV118: 0 | BX118: 26 | BY118: 0 | BZ118: 0 | CA118: 0 | CB118: 0 | CC118: 0 | CD118: 0 | CF118: 26 | CG118: 0 | CH118: 0 | CI118: 0 | CJ118: 0 | CK118: 0 | CL118: 0
AD119: 40 | AE119: 27 | AF119: 113 | AG119: 466 | AI119: 1225.8 | AJ119: 5130.2 | AK119: 21156.4 | AY119: 28 | AZ119: 27 | BA119: 0 | BB119: 0 | BC119: 0 | BD119: 0 | BE119: 0 | BF119: 0 | BH119: 27 | BI119: 0 | BJ119: 0 | BK119: 0 | BL119: 0 | BM119: 0 | BN119: 0 | BP119: 27 | BQ119: 0 | BR119: 0 | BS119: 0 | BT119: 0 | BU119: 0 | BV119: 0 | BX119: 27 | BY119: 0 | BZ119: 0 | CA119: 0 | CB119: 0 | CC119: 0 | CD119: 0 | CF119: 27 | CG119: 0 | CH119: 0 | CI119: 0 | CJ119: 0 | CK119: 0 | CL119: 0
AY120: 29 | AZ120: 28 | BA120: 0 | BB120: 0 | BC120: 0 | BD120: 0 | BE120: 0 | BF120: 0 | BH120: 28 | BI120: 0 | BJ120: 0 | BK120: 0 | BL120: 0 | BM120: 0 | BN120: 0 | BP120: 28 | BQ120: 0 | BR120: 0 | BS120: 0 | BT120: 0 | BU120: 0 | BV120: 0 | BX120: 28 | BY120: 0 | BZ120: 0 | CA120: 0 | CB120: 0 | CC120: 0 | CD120: 0 | CF120: 28 | CG120: 0 | CH120: 0 | CI120: 0 | CJ120: 0 | CK120: 0 | CL120: 0
AY121: 30 | AZ121: 29 | BA121: 0 | BB121: 0 | BC121: 0 | BD121: 0 | BE121: 0 | BF121: 0 | BH121: 29 | BI121: 0 | BJ121: 0 | BK121: 0 | BL121: 0 | BM121: 0 | BN121: 0 | BP121: 29 | BQ121: 0 | BR121: 0 | BS121: 0 | BT121: 0 | BU121: 0 | BV121: 0 | BX121: 29 | BY121: 0 | BZ121: 0 | CA121: 0 | CB121: 0 | CC121: 0 | CD121: 0 | CF121: 29 | CG121: 0 | CH121: 0 | CI121: 0 | CJ121: 0 | CK121: 0 | CL121: 0
AY122: 31 | AZ122: 30 | BA122: 0 | BB122: 0 | BC122: 0 | BD122: 0 | BE122: 0 | BF122: 0 | BH122: 30 | BI122: 0 | BJ122: 0 | BK122: 0 | BL122: 0 | BM122: 0 | BN122: 0 | BP122: 30 | BQ122: 0 | BR122: 0 | BS122: 0 | BT122: 0 | BU122: 0 | BV122: 0 | BX122: 30 | BY122: 0 | BZ122: 0 | CA122: 0 | CB122: 0 | CC122: 0 | CD122: 0 | CF122: 30 | CG122: 0 | CH122: 0 | CI122: 0 | CJ122: 0 | CK122: 0 | CL122: 0
AY123: 32 | AZ123: 31 | BA123: 0 | BB123: 0 | BC123: 0 | BD123: 0 | BE123: 0 | BF123: 0 | BH123: 31 | BI123: 0 | BJ123: 0 | BK123: 0 | BL123: 0 | BM123: 0 | BN123: 0 | BP123: 31 | BQ123: 0 | BR123: 0 | BS123: 0 | BT123: 0 | BU123: 0 | BV123: 0 | BX123: 31 | BY123: 0 | BZ123: 0 | CA123: 0 | CB123: 0 | CC123: 0 | CD123: 0 | CF123: 31 | CG123: 0 | CH123: 0 | CI123: 0 | CJ123: 0 | CK123: 0 | CL123: 0
AY124: 33 | AZ124: 32 | BA124: =IF($AY124<=VLOOKUP(BA$90,seqYearsCarbon,2,0),(((VLOOKUP(BA$90,seqEqns,2,0)*$AY124^4)+(VLOOKUP(BA$90,seqEqns,3,0)*$AY124^3)+(VLOOKUP(BA$90,seqEqns,4,0)*$AY124^2)+(VLOOKUP(BA$90,seqEqns,5,0)*$AY124))*(VLOOKUP(BA$90,seqTrees,2,0)/100)),(VLOOKUP(BA$90,seqYearsCarbon,4,0)*VLOOKUP(BA$90,seqTrees,2,0)/100)) -> 0 | BB124: 0 | BC124: 0 | BD124: 0 | BE124: =IFERROR(VLOOKUP(AZ124,discYears,2,0),0) -> 0 | BF124: =SUMPRODUCT((cNonTradeLevels=$AR$68)*(cNonTradeYears=AZ124)*(cNonTrade)) -> 0 | BH124: 32 | BI124: =IF($AY124<=VLOOKUP(BI$90,seqYearsCarbon,2,0),(((VLOOKUP(BI$90,seqEqns,2,0)*$AY124^4)+(VLOOKUP(BI$90,seqEqns,3,0)*$AY124^3)+(VLOOKUP(BI$90,seqEqns,4,0)*$AY124^2)+(VLOOKUP(BI$90,seqEqns,5,0)*$AY124))*(VLOOKUP(BI$90,seqTrees,2,0)/100)),(VLOOKUP(BI$90,seqYearsCarbon,4,0)*VLOOKUP(BI$90,seqTrees,2,0)/100)) -> 0 | BJ124: 0 | BK124: 0 | BL124: 0 | BM124: =IFERROR(VLOOKUP(BH124,discYears,2,0),0) -> 0 | BN124: =SUMPRODUCT((cNonTradeLevels=$AR$68)*(cNonTradeYears=BH124)*(cNonTrade)) -> 0 | BP124: 32 | BQ124: =IF($AY124<=VLOOKUP(BQ$90,seqYearsCarbon,2,0),(((VLOOKUP(BQ$90,seqEqns,2,0)*$AY124^4)+(VLOOKUP(BQ$90,seqEqns,3,0)*$AY124^3)+(VLOOKUP(BQ$90,seqEqns,4,0)*$AY124^2)+(VLOOKUP(BQ$90,seqEqns,5,0)*$AY124))*(VLOOKUP(BQ$90,seqTrees,2,0)/100)),(VLOOKUP(BQ$90,seqYearsCarbon,4,0)*VLOOKUP(BQ$90,seqTrees,2,0)/100)) -> 0 | BR124: 0 | BS124: 0 | BT124: 0 | BU124: =IFERROR(VLOOKUP(BP124,discYears,2,0),0) -> 0 | BV124: =SUMPRODUCT((cNonTradeLevels=$AR$68)*(cNonTradeYears=BP124)*(cNonTrade)) -> 0 | BX124: 32 | BY124: =IF($AY124<=VLOOKUP(BY$90,seqYearsCarbon,2,0),(((VLOOKUP(BY$90,seqEqns,2,0)*$AY124^4)+(VLOOKUP(BY$90,seqEqns,3,0)*$AY124^3)+(VLOOKUP(BY$90,seqEqns,4,0)*$AY124^2)+(VLOOKUP(BY$90,seqEqns,5,0)*$AY124))*(VLOOKUP(BY$90,seqTrees,2,0)/100)),(VLOOKUP(BY$90,seqYearsCarbon,4,0)*VLOOKUP(BY$90,seqTrees,2,0)/100)) -> 0 | BZ124: 0 | CA124: 0 | CB124: 0 | CC124: =IFERROR(VLOOKUP(BX124,discYears,2,0),0) -> 0 | CD124: =SUMPRODUCT((cNonTradeLevels=$AR$68)*(cNonTradeYears=BX124)*(cNonTrade)) -> 0 | CF124: 32 | CG124: =IF($AY124<=VLOOKUP(CG$90,seqYearsCarbon,2,0),(((VLOOKUP(CG$90,seqEqns,2,0)*$AY124^4)+(VLOOKUP(CG$90,seqEqns,3,0)*$AY124^3)+(VLOOKUP(CG$90,seqEqns,4,0)*$AY124^2)+(VLOOKUP(CG$90,seqEqns,5,0)*$AY124))*(VLOOKUP(CG$90,seqTrees,2,0)/100)),(VLOOKUP(CG$90,seqYearsCarbon,4,0)*VLOOKUP(CG$90,seqTrees,2,0)/100)) -> 0 | CH124: 0 | CI124: 0 | CJ124: 0 | CK124: =IFERROR(VLOOKUP(CF124,discYears,2,0),0) -> 0 | CL124: =SUMPRODUCT((cNonTradeLevels=$AR$68)*(cNonTradeYears=CF124)*(cNonTrade)) -> 0
AY125: 34 | AZ125: 33 | BA125: 0 | BB125: 0 | BC125: 0 | BD125: 0 | BE125: 0 | BF125: 0 | BH125: 33 | BI125: 0 | BJ125: 0 | BK125: 0 | BL125: 0 | BM125: 0 | BN125: 0 | BP125: 33 | BQ125: 0 | BR125: 0 | BS125: 0 | BT125: 0 | BU125: 0 | BV125: 0 | BX125: 33 | BY125: 0 | BZ125: 0 | CA125: 0 | CB125: 0 | CC125: 0 | CD125: 0 | CF125: 33 | CG125: 0 | CH125: 0 | CI125: 0 | CJ125: 0 | CK125: 0 | CL125: 0
AY126: 35 | AZ126: 34 | BA126: 0 | BB126: 0 | BC126: 0 | BD126: 0 | BE126: 0 | BF126: 0 | BH126: 34 | BI126: 0 | BJ126: 0 | BK126: 0 | BL126: 0 | BM126: 0 | BN126: 0 | BP126: 34 | BQ126: 0 | BR126: 0 | BS126: 0 | BT126: 0 | BU126: 0 | BV126: 0 | BX126: 34 | BY126: 0 | BZ126: 0 | CA126: 0 | CB126: 0 | CC126: 0 | CD126: 0 | CF126: 34 | CG126: 0 | CH126: 0 | CI126: 0 | CJ126: 0 | CK126: 0 | CL126: 0
AY127: 36 | AZ127: 35 | BA127: 0 | BB127: 0 | BC127: 0 | BD127: 0 | BE127: 0 | BF127: 0 | BH127: 35 | BI127: 0 | BJ127: 0 | BK127: 0 | BL127: 0 | BM127: 0 | BN127: 0 | BP127: 35 | BQ127: 0 | BR127: 0 | BS127: 0 | BT127: 0 | BU127: 0 | BV127: 0 | BX127: 35 | BY127: 0 | BZ127: 0 | CA127: 0 | CB127: 0 | CC127: 0 | CD127: 0 | CF127: 35 | CG127: 0 | CH127: 0 | CI127: 0 | CJ127: 0 | CK127: 0 | CL127: 0
AY128: 37 | AZ128: 36 | BA128: 0 | BB128: 0 | BC128: 0 | BD128: 0 | BE128: 0 | BF128: 0 | BH128: 36 | BI128: 0 | BJ128: 0 | BK128: 0 | BL128: 0 | BM128: 0 | BN128: 0 | BP128: 36 | BQ128: 0 | BR128: 0 | BS128: 0 | BT128: 0 | BU128: 0 | BV128: 0 | BX128: 36 | BY128: 0 | BZ128: 0 | CA128: 0 | CB128: 0 | CC128: 0 | CD128: 0 | CF128: 36 | CG128: 0 | CH128: 0 | CI128: 0 | CJ128: 0 | CK128: 0 | CL128: 0
AY129: 38 | AZ129: 37 | BA129: 0 | BB129: 0 | BC129: 0 | BD129: 0 | BE129: 0 | BF129: 0 | BH129: 37 | BI129: 0 | BJ129: 0 | BK129: 0 | BL129: 0 | BM129: 0 | BN129: 0 | BP129: 37 | BQ129: 0 | BR129: 0 | BS129: 0 | BT129: 0 | BU129: 0 | BV129: 0 | BX129: 37 | BY129: 0 | BZ129: 0 | CA129: 0 | CB129: 0 | CC129: 0 | CD129: 0 | CF129: 37 | CG129: 0 | CH129: 0 | CI129: 0 | CJ129: 0 | CK129: 0 | CL129: 0
AY130: 39 | AZ130: 38 | BA130: 0 | BB130: 0 | BC130: 0 | BD130: 0 | BE130: 0 | BF130: 0 | BH130: 38 | BI130: 0 | BJ130: 0 | BK130: 0 | BL130: 0 | BM130: 0 | BN130: 0 | BP130: 38 | BQ130: 0 | BR130: 0 | BS130: 0 | BT130: 0 | BU130: 0 | BV130: 0 | BX130: 38 | BY130: 0 | BZ130: 0 | CA130: 0 | CB130: 0 | CC130: 0 | CD130: 0 | CF130: 38 | CG130: 0 | CH130: 0 | CI130: 0 | CJ130: 0 | CK130: 0 | CL130: 0
AY131: 40 | AZ131: 39 | BA131: 0 | BB131: 0 | BC131: 0 | BD131: 0 | BE131: 0 | BF131: 0 | BH131: 39 | BI131: 0 | BJ131: 0 | BK131: 0 | BL131: 0 | BM131: 0 | BN131: 0 | BP131: 39 | BQ131: 0 | BR131: 0 | BS131: 0 | BT131: 0 | BU131: 0 | BV131: 0 | BX131: 39 | BY131: 0 | BZ131: 0 | CA131: 0 | CB131: 0 | CC131: 0 | CD131: 0 | CF131: 39 | CG131: 0 | CH131: 0 | CI131: 0 | CJ131: 0 | CK131: 0 | CL131: 0
AY132: 41 | AZ132: 40 | BA132: 0 | BB132: 0 | BC132: 0 | BD132: 0 | BE132: 0 | BF132: 0 | BH132: 40 | BI132: 0 | BJ132: 0 | BK132: 0 | BL132: 0 | BM132: 0 | BN132: 0 | BP132: 40 | BQ132: 0 | BR132: 0 | BS132: 0 | BT132: 0 | BU132: 0 | BV132: 0 | BX132: 40 | BY132: 0 | BZ132: 0 | CA132: 0 | CB132: 0 | CC132: 0 | CD132: 0 | CF132: 40 | CG132: 0 | CH132: 0 | CI132: 0 | CJ132: 0 | CK132: 0 | CL132: 0
AY133: 42 | AZ133: 41 | BA133: 0 | BB133: 0 | BC133: 0 | BD133: 0 | BE133: 0 | BF133: 0 | BH133: 41 | BI133: 0 | BJ133: 0 | BK133: 0 | BL133: 0 | BM133: 0 | BN133: 0 | BP133: 41 | BQ133: 0 | BR133: 0 | BS133: 0 | BT133: 0 | BU133: 0 | BV133: 0 | BX133: 41 | BY133: 0 | BZ133: 0 | CA133: 0 | CB133: 0 | CC133: 0 | CD133: 0 | CF133: 41 | CG133: 0 | CH133: 0 | CI133: 0 | CJ133: 0 | CK133: 0 | CL133: 0
AY134: 43 | AZ134: 42 | BA134: 0 | BB134: 0 | BC134: 0 | BD134: 0 | BE134: 0 | BF134: 0 | BH134: 42 | BI134: 0 | BJ134: 0 | BK134: 0 | BL134: 0 | BM134: 0 | BN134: 0 | BP134: 42 | BQ134: 0 | BR134: 0 | BS134: 0 | BT134: 0 | BU134: 0 | BV134: 0 | BX134: 42 | BY134: 0 | BZ134: 0 | CA134: 0 | CB134: 0 | CC134: 0 | CD134: 0 | CF134: 42 | CG134: 0 | CH134: 0 | CI134: 0 | CJ134: 0 | CK134: 0 | CL134: 0
AY135: 44 | AZ135: 43 | BA135: 0 | BB135: 0 | BC135: 0 | BD135: 0 | BE135: 0 | BF135: 0 | BH135: 43 | BI135: 0 | BJ135: 0 | BK135: 0 | BL135: 0 | BM135: 0 | BN135: 0 | BP135: 43 | BQ135: 0 | BR135: 0 | BS135: 0 | BT135: 0 | BU135: 0 | BV135: 0 | BX135: 43 | BY135: 0 | BZ135: 0 | CA135: 0 | CB135: 0 | CC135: 0 | CD135: 0 | CF135: 43 | CG135: 0 | CH135: 0 | CI135: 0 | CJ135: 0 | CK135: 0 | CL135: 0
AY136: 45 | AZ136: 44 | BA136: 0 | BB136: 0 | BC136: 0 | BD136: 0 | BE136: 0 | BF136: 0 | BH136: 44 | BI136: 0 | BJ136: 0 | BK136: 0 | BL136: 0 | BM136: 0 | BN136: 0 | BP136: 44 | BQ136: 0 | BR136: 0 | BS136: 0 | BT136: 0 | BU136: 0 | BV136: 0 | BX136: 44 | BY136: 0 | BZ136: 0 | CA136: 0 | CB136: 0 | CC136: 0 | CD136: 0 | CF136: 44 | CG136: 0 | CH136: 0 | CI136: 0 | CJ136: 0 | CK136: 0 | CL136: 0
AY137: 46 | AZ137: 45 | BA137: 0 | BB137: 0 | BC137: 0 | BD137: 0 | BE137: 0 | BF137: 0 | BH137: 45 | BI137: 0 | BJ137: 0 | BK137: 0 | BL137: 0 | BM137: 0 | BN137: 0 | BP137: 45 | BQ137: 0 | BR137: 0 | BS137: 0 | BT137: 0 | BU137: 0 | BV137: 0 | BX137: 45 | BY137: 0 | BZ137: 0 | CA137: 0 | CB137: 0 | CC137: 0 | CD137: 0 | CF137: 45 | CG137: 0 | CH137: 0 | CI137: 0 | CJ137: 0 | CK137: 0 | CL137: 0
AY138: 47 | AZ138: 46 | BA138: 0 | BB138: 0 | BC138: 0 | BD138: 0 | BE138: 0 | BF138: 0 | BH138: 46 | BI138: 0 | BJ138: 0 | BK138: 0 | BL138: 0 | BM138: 0 | BN138: 0 | BP138: 46 | BQ138: 0 | BR138: 0 | BS138: 0 | BT138: 0 | BU138: 0 | BV138: 0 | BX138: 46 | BY138: 0 | BZ138: 0 | CA138: 0 | CB138: 0 | CC138: 0 | CD138: 0 | CF138: 46 | CG138: 0 | CH138: 0 | CI138: 0 | CJ138: 0 | CK138: 0 | CL138: 0
AY139: 48 | AZ139: 47 | BA139: 0 | BB139: 0 | BC139: 0 | BD139: 0 | BE139: 0 | BF139: 0 | BH139: 47 | BI139: 0 | BJ139: 0 | BK139: 0 | BL139: 0 | BM139: 0 | BN139: 0 | BP139: 47 | BQ139: 0 | BR139: 0 | BS139: 0 | BT139: 0 | BU139: 0 | BV139: 0 | BX139: 47 | BY139: 0 | BZ139: 0 | CA139: 0 | CB139: 0 | CC139: 0 | CD139: 0 | CF139: 47 | CG139: 0 | CH139: 0 | CI139: 0 | CJ139: 0 | CK139: 0 | CL139: 0
AY140: 49 | AZ140: 48 | BA140: 0 | BB140: 0 | BC140: 0 | BD140: 0 | BE140: 0 | BF140: 0 | BH140: 48 | BI140: 0 | BJ140: 0 | BK140: 0 | BL140: 0 | BM140: 0 | BN140: 0 | BP140: 48 | BQ140: 0 | BR140: 0 | BS140: 0 | BT140: 0 | BU140: 0 | BV140: 0 | BX140: 48 | BY140: 0 | BZ140: 0 | CA140: 0 | CB140: 0 | CC140: 0 | CD140: 0 | CF140: 48 | CG140: 0 | CH140: 0 | CI140: 0 | CJ140: 0 | CK140: 0 | CL140: 0
AY141: 50 | AZ141: 49 | BA141: 0 | BB141: 0 | BC141: 0 | BD141: 0 | BE141: 0 | BF141: 0 | BH141: 49 | BI141: 0 | BJ141: 0 | BK141: 0 | BL141: 0 | BM141: 0 | BN141: 0 | BP141: 49 | BQ141: 0 | BR141: 0 | BS141: 0 | BT141: 0 | BU141: 0 | BV141: 0 | BX141: 49 | BY141: 0 | BZ141: 0 | CA141: 0 | CB141: 0 | CC141: 0 | CD141: 0 | CF141: 49 | CG141: 0 | CH141: 0 | CI141: 0 | CJ141: 0 | CK141: 0 | CL141: 0
AY142: 51 | AZ142: 50 | BA142: 0 | BB142: 0 | BC142: 0 | BD142: 0 | BE142: 0 | BF142: 0 | BH142: 50 | BI142: 0 | BJ142: 0 | BK142: 0 | BL142: 0 | BM142: 0 | BN142: 0 | BP142: 50 | BQ142: 0 | BR142: 0 | BS142: 0 | BT142: 0 | BU142: 0 | BV142: 0 | BX142: 50 | BY142: 0 | BZ142: 0 | CA142: 0 | CB142: 0 | CC142: 0 | CD142: 0 | CF142: 50 | CG142: 0 | CH142: 0 | CI142: 0 | CJ142: 0 | CK142: 0 | CL142: 0
AY143: 52 | AZ143: 51 | BA143: 0 | BB143: 0 | BC143: 0 | BD143: 0 | BE143: 0 | BF143: 0 | BH143: 51 | BI143: 0 | BJ143: 0 | BK143: 0 | BL143: 0 | BM143: 0 | BN143: 0 | BP143: 51 | BQ143: 0 | BR143: 0 | BS143: 0 | BT143: 0 | BU143: 0 | BV143: 0 | BX143: 51 | BY143: 0 | BZ143: 0 | CA143: 0 | CB143: 0 | CC143: 0 | CD143: 0 | CF143: 51 | CG143: 0 | CH143: 0 | CI143: 0 | CJ143: 0 | CK143: 0 | CL143: 0
AY144: 53 | AZ144: 52 | BA144: 0 | BB144: 0 | BC144: 0 | BD144: 0 | BE144: 0 | BF144: 0 | BH144: 52 | BI144: 0 | BJ144: 0 | BK144: 0 | BL144: 0 | BM144: 0 | BN144: 0 | BP144: 52 | BQ144: 0 | BR144: 0 | BS144: 0 | BT144: 0 | BU144: 0 | BV144: 0 | BX144: 52 | BY144: 0 | BZ144: 0 | CA144: 0 | CB144: 0 | CC144: 0 | CD144: 0 | CF144: 52 | CG144: 0 | CH144: 0 | CI144: 0 | CJ144: 0 | CK144: 0 | CL144: 0
AY145: 54 | AZ145: 53 | BA145: 0 | BB145: 0 | BC145: 0 | BD145: 0 | BE145: 0 | BF145: 0 | BH145: 53 | BI145: 0 | BJ145: 0 | BK145: 0 | BL145: 0 | BM145: 0 | BN145: 0 | BP145: 53 | BQ145: 0 | BR145: 0 | BS145: 0 | BT145: 0 | BU145: 0 | BV145: 0 | BX145: 53 | BY145: 0 | BZ145: 0 | CA145: 0 | CB145: 0 | CC145: 0 | CD145: 0 | CF145: 53 | CG145: 0 | CH145: 0 | CI145: 0 | CJ145: 0 | CK145: 0 | CL145: 0
AY146: 55 | AZ146: 54 | BA146: 0 | BB146: 0 | BC146: 0 | BD146: 0 | BE146: 0 | BF146: 0 | BH146: 54 | BI146: 0 | BJ146: 0 | BK146: 0 | BL146: 0 | BM146: 0 | BN146: 0 | BP146: 54 | BQ146: 0 | BR146: 0 | BS146: 0 | BT146: 0 | BU146: 0 | BV146: 0 | BX146: 54 | BY146: 0 | BZ146: 0 | CA146: 0 | CB146: 0 | CC146: 0 | CD146: 0 | CF146: 54 | CG146: 0 | CH146: 0 | CI146: 0 | CJ146: 0 | CK146: 0 | CL146: 0
AY147: 56 | AZ147: 55 | BA147: 0 | BB147: 0 | BC147: 0 | BD147: 0 | BE147: 0 | BF147: 0 | BH147: 55 | BI147: 0 | BJ147: 0 | BK147: 0 | BL147: 0 | BM147: 0 | BN147: 0 | BP147: 55 | BQ147: 0 | BR147: 0 | BS147: 0 | BT147: 0 | BU147: 0 | BV147: 0 | BX147: 55 | BY147: 0 | BZ147: 0 | CA147: 0 | CB147: 0 | CC147: 0 | CD147: 0 | CF147: 55 | CG147: 0 | CH147: 0 | CI147: 0 | CJ147: 0 | CK147: 0 | CL147: 0
AY148: 57 | AZ148: 56 | BA148: 0 | BB148: 0 | BC148: 0 | BD148: 0 | BE148: 0 | BF148: 0 | BH148: 56 | BI148: 0 | BJ148: 0 | BK148: 0 | BL148: 0 | BM148: 0 | BN148: 0 | BP148: 56 | BQ148: 0 | BR148: 0 | BS148: 0 | BT148: 0 | BU148: 0 | BV148: 0 | BX148: 56 | BY148: 0 | BZ148: 0 | CA148: 0 | CB148: 0 | CC148: 0 | CD148: 0 | CF148: 56 | CG148: 0 | CH148: 0 | CI148: 0 | CJ148: 0 | CK148: 0 | CL148: 0
AY149: 58 | AZ149: 57 | BA149: 0 | BB149: 0 | BC149: 0 | BD149: 0 | BE149: 0 | BF149: 0 | BH149: 57 | BI149: 0 | BJ149: 0 | BK149: 0 | BL149: 0 | BM149: 0 | BN149: 0 | BP149: 57 | BQ149: 0 | BR149: 0 | BS149: 0 | BT149: 0 | BU149: 0 | BV149: 0 | BX149: 57 | BY149: 0 | BZ149: 0 | CA149: 0 | CB149: 0 | CC149: 0 | CD149: 0 | CF149: 57 | CG149: 0 | CH149: 0 | CI149: 0 | CJ149: 0 | CK149: 0 | CL149: 0
AY150: 59 | AZ150: 58 | BA150: 0 | BB150: 0 | BC150: 0 | BD150: 0 | BE150: 0 | BF150: 0 | BH150: 58 | BI150: 0 | BJ150: 0 | BK150: 0 | BL150: 0 | BM150: 0 | BN150: 0 | BP150: 58 | BQ150: 0 | BR150: 0 | BS150: 0 | BT150: 0 | BU150: 0 | BV150: 0 | BX150: 58 | BY150: 0 | BZ150: 0 | CA150: 0 | CB150: 0 | CC150: 0 | CD150: 0 | CF150: 58 | CG150: 0 | CH150: 0 | CI150: 0 | CJ150: 0 | CK150: 0 | CL150: 0
AY151: 60 | AZ151: 59 | BA151: 0 | BB151: 0 | BC151: 0 | BD151: 0 | BE151: 0 | BF151: 0 | BH151: 59 | BI151: 0 | BJ151: 0 | BK151: 0 | BL151: 0 | BM151: 0 | BN151: 0 | BP151: 59 | BQ151: 0 | BR151: 0 | BS151: 0 | BT151: 0 | BU151: 0 | BV151: 0 | BX151: 59 | BY151: 0 | BZ151: 0 | CA151: 0 | CB151: 0 | CC151: 0 | CD151: 0 | CF151: 59 | CG151: 0 | CH151: 0 | CI151: 0 | CJ151: 0 | CK151: 0 | CL151: 0
AY152: 61 | AZ152: 60 | BA152: 0 | BB152: 0 | BC152: 0 | BD152: 0 | BE152: 0 | BF152: 0 | BH152: 60 | BI152: 0 | BJ152: 0 | BK152: 0 | BL152: 0 | BM152: 0 | BN152: 0 | BP152: 60 | BQ152: 0 | BR152: 0 | BS152: 0 | BT152: 0 | BU152: 0 | BV152: 0 | BX152: 60 | BY152: 0 | BZ152: 0 | CA152: 0 | CB152: 0 | CC152: 0 | CD152: 0 | CF152: 60 | CG152: 0 | CH152: 0 | CI152: 0 | CJ152: 0 | CK152: 0 | CL152: 0
AY153: 62 | AZ153: 61 | BA153: 0 | BB153: 0 | BC153: 0 | BD153: 0 | BE153: 0 | BF153: 0 | BH153: 61 | BI153: 0 | BJ153: 0 | BK153: 0 | BL153: 0 | BM153: 0 | BN153: 0 | BP153: 61 | BQ153: 0 | BR153: 0 | BS153: 0 | BT153: 0 | BU153: 0 | BV153: 0 | BX153: 61 | BY153: 0 | BZ153: 0 | CA153: 0 | CB153: 0 | CC153: 0 | CD153: 0 | CF153: 61 | CG153: 0 | CH153: 0 | CI153: 0 | CJ153: 0 | CK153: 0 | CL153: 0
AY154: 63 | AZ154: 62 | BA154: 0 | BB154: 0 | BC154: 0 | BD154: 0 | BE154: 0 | BF154: 0 | BH154: 62 | BI154: 0 | BJ154: 0 | BK154: 0 | BL154: 0 | BM154: 0 | BN154: 0 | BP154: 62 | BQ154: 0 | BR154: 0 | BS154: 0 | BT154: 0 | BU154: 0 | BV154: 0 | BX154: 62 | BY154: 0 | BZ154: 0 | CA154: 0 | CB154: 0 | CC154: 0 | CD154: 0 | CF154: 62 | CG154: 0 | CH154: 0 | CI154: 0 | CJ154: 0 | CK154: 0 | CL154: 0
AY155: 64 | AZ155: 63 | BA155: 0 | BB155: 0 | BC155: 0 | BD155: 0 | BE155: 0 | BF155: 0 | BH155: 63 | BI155: 0 | BJ155: 0 | BK155: 0 | BL155: 0 | BM155: 0 | BN155: 0 | BP155: 63 | BQ155: 0 | BR155: 0 | BS155: 0 | BT155: 0 | BU155: 0 | BV155: 0 | BX155: 63 | BY155: 0 | BZ155: 0 | CA155: 0 | CB155: 0 | CC155: 0 | CD155: 0 | CF155: 63 | CG155: 0 | CH155: 0 | CI155: 0 | CJ155: 0 | CK155: 0 | CL155: 0
AY156: 65 | AZ156: 64 | BA156: =IF($AY156<=VLOOKUP(BA$90,seqYearsCarbon,2,0),(((VLOOKUP(BA$90,seqEqns,2,0)*$AY156^4)+(VLOOKUP(BA$90,seqEqns,3,0)*$AY156^3)+(VLOOKUP(BA$90,seqEqns,4,0)*$AY156^2)+(VLOOKUP(BA$90,seqEqns,5,0)*$AY156))*(VLOOKUP(BA$90,seqTrees,2,0)/100)),(VLOOKUP(BA$90,seqYearsCarbon,4,0)*VLOOKUP(BA$90,seqTrees,2,0)/100)) -> 0 | BB156: 0 | BC156: 0 | BD156: 0 | BE156: =IFERROR(VLOOKUP(AZ156,discYears,2,0),0) -> 0 | BF156: =SUMPRODUCT((cNonTradeLevels=$AR$68)*(cNonTradeYears=AZ156)*(cNonTrade)) -> 0 | BH156: 64 | BI156: =IF($AY156<=VLOOKUP(BI$90,seqYearsCarbon,2,0),(((VLOOKUP(BI$90,seqEqns,2,0)*$AY156^4)+(VLOOKUP(BI$90,seqEqns,3,0)*$AY156^3)+(VLOOKUP(BI$90,seqEqns,4,0)*$AY156^2)+(VLOOKUP(BI$90,seqEqns,5,0)*$AY156))*(VLOOKUP(BI$90,seqTrees,2,0)/100)),(VLOOKUP(BI$90,seqYearsCarbon,4,0)*VLOOKUP(BI$90,seqTrees,2,0)/100)) -> 0 | BJ156: 0 | BK156: 0 | BL156: 0 | BM156: =IFERROR(VLOOKUP(BH156,discYears,2,0),0) -> 0 | BN156: =SUMPRODUCT((cNonTradeLevels=$AR$68)*(cNonTradeYears=BH156)*(cNonTrade)) -> 0 | BP156: 64 | BQ156: =IF($AY156<=VLOOKUP(BQ$90,seqYearsCarbon,2,0),(((VLOOKUP(BQ$90,seqEqns,2,0)*$AY156^4)+(VLOOKUP(BQ$90,seqEqns,3,0)*$AY156^3)+(VLOOKUP(BQ$90,seqEqns,4,0)*$AY156^2)+(VLOOKUP(BQ$90,seqEqns,5,0)*$AY156))*(VLOOKUP(BQ$90,seqTrees,2,0)/100)),(VLOOKUP(BQ$90,seqYearsCarbon,4,0)*VLOOKUP(BQ$90,seqTrees,2,0)/100)) -> 0 | BR156: 0 | BS156: 0 | BT156: 0 | BU156: =IFERROR(VLOOKUP(BP156,discYears,2,0),0) -> 0 | BV156: =SUMPRODUCT((cNonTradeLevels=$AR$68)*(cNonTradeYears=BP156)*(cNonTrade)) -> 0 | BX156: 64 | BY156: =IF($AY156<=VLOOKUP(BY$90,seqYearsCarbon,2,0),(((VLOOKUP(BY$90,seqEqns,2,0)*$AY156^4)+(VLOOKUP(BY$90,seqEqns,3,0)*$AY156^3)+(VLOOKUP(BY$90,seqEqns,4,0)*$AY156^2)+(VLOOKUP(BY$90,seqEqns,5,0)*$AY156))*(VLOOKUP(BY$90,seqTrees,2,0)/100)),(VLOOKUP(BY$90,seqYearsCarbon,4,0)*VLOOKUP(BY$90,seqTrees,2,0)/100)) -> 0 | BZ156: 0 | CA156: 0 | CB156: 0 | CC156: =IFERROR(VLOOKUP(BX156,discYears,2,0),0) -> 0 | CD156: =SUMPRODUCT((cNonTradeLevels=$AR$68)*(cNonTradeYears=BX156)*(cNonTrade)) -> 0 | CF156: 64 | CG156: =IF($AY156<=VLOOKUP(CG$90,seqYearsCarbon,2,0),(((VLOOKUP(CG$90,seqEqns,2,0)*$AY156^4)+(VLOOKUP(CG$90,seqEqns,3,0)*$AY156^3)+(VLOOKUP(CG$90,seqEqns,4,0)*$AY156^2)+(VLOOKUP(CG$90,seqEqns,5,0)*$AY156))*(VLOOKUP(CG$90,seqTrees,2,0)/100)),(VLOOKUP(CG$90,seqYearsCarbon,4,0)*VLOOKUP(CG$90,seqTrees,2,0)/100)) -> 0 | CH156: 0 | CI156: 0 | CJ156: 0 | CK156: =IFERROR(VLOOKUP(CF156,discYears,2,0),0) -> 0 | CL156: =SUMPRODUCT((cNonTradeLevels=$AR$68)*(cNonTradeYears=CF156)*(cNonTrade)) -> 0
AY157: 66 | AZ157: 65 | BA157: 0 | BB157: 0 | BC157: 0 | BD157: 0 | BE157: 0 | BF157: 0 | BH157: 65 | BI157: 0 | BJ157: 0 | BK157: 0 | BL157: 0 | BM157: 0 | BN157: 0 | BP157: 65 | BQ157: 0 | BR157: 0 | BS157: 0 | BT157: 0 | BU157: 0 | BV157: 0 | BX157: 65 | BY157: 0 | BZ157: 0 | CA157: 0 | CB157: 0 | CC157: 0 | CD157: 0 | CF157: 65 | CG157: 0 | CH157: 0 | CI157: 0 | CJ157: 0 | CK157: 0 | CL157: 0
AY158: 67 | AZ158: =AZ$92+$AY158-1 -> 66 | BA158: 0 | BB158: =BB157+BA158 -> 0 | BC158: 0 | BD158: =BC158+BD157 -> 0 | BE158: 0 | BF158: 0 | BH158: =BH$92+$AY158-1 -> 66 | BI158: 0 | BJ158: =BJ157+BI158 -> 0 | BK158: 0 | BL158: =BK158+BL157 -> 0 | BM158: 0 | BN158: 0 | BP158: =BP$92+$AY158-1 -> 66 | BQ158: 0 | BR158: =BR157+BQ158 -> 0 | BS158: 0 | BT158: =BS158+BT157 -> 0 | BU158: 0 | BV158: 0 | BX158: =BX$92+$AY158-1 -> 66 | BY158: 0 | BZ158: =BZ157+BY158 -> 0 | CA158: 0 | CB158: =CA158+CB157 -> 0 | CC158: 0 | CD158: 0 | CF158: =CF$92+$AY158-1 -> 66 | CG158: 0 | CH158: =CH157+CG158 -> 0 | CI158: 0 | CJ158: =CI158+CJ157 -> 0 | CK158: 0 | CL158: 0
AY159: 68 | AZ159: 67 | BA159: 0 | BB159: 0 | BC159: =(BA159/1000)*BE159*BF159 -> 0 | BD159: 0 | BE159: 0 | BF159: 0 | BH159: 67 | BI159: 0 | BJ159: 0 | BK159: =(BI159/1000)*BM159*BN159 -> 0 | BL159: 0 | BM159: 0 | BN159: 0 | BP159: 67 | BQ159: 0 | BR159: 0 | BS159: =(BQ159/1000)*BU159*BV159 -> 0 | BT159: 0 | BU159: 0 | BV159: 0 | BX159: 67 | BY159: 0 | BZ159: 0 | CA159: =(BY159/1000)*CC159*CD159 -> 0 | CB159: 0 | CC159: 0 | CD159: 0 | CF159: 67 | CG159: 0 | CH159: 0 | CI159: =(CG159/1000)*CK159*CL159 -> 0 | CJ159: 0 | CK159: 0 | CL159: 0
AY160: 69 | AZ160: 68 | BA160: 0 | BB160: 0 | BC160: 0 | BD160: 0 | BE160: 0 | BF160: 0 | BH160: 68 | BI160: 0 | BJ160: 0 | BK160: 0 | BL160: 0 | BM160: 0 | BN160: 0 | BP160: 68 | BQ160: 0 | BR160: 0 | BS160: 0 | BT160: 0 | BU160: 0 | BV160: 0 | BX160: 68 | BY160: 0 | BZ160: 0 | CA160: 0 | CB160: 0 | CC160: 0 | CD160: 0 | CF160: 68 | CG160: 0 | CH160: 0 | CI160: 0 | CJ160: 0 | CK160: 0 | CL160: 0
AY161: 70 | AZ161: 69 | BA161: 0 | BB161: 0 | BC161: 0 | BD161: 0 | BE161: 0 | BF161: 0 | BH161: 69 | BI161: 0 | BJ161: 0 | BK161: 0 | BL161: 0 | BM161: 0 | BN161: 0 | BP161: 69 | BQ161: 0 | BR161: 0 | BS161: 0 | BT161: 0 | BU161: 0 | BV161: 0 | BX161: 69 | BY161: 0 | BZ161: 0 | CA161: 0 | CB161: 0 | CC161: 0 | CD161: 0 | CF161: 69 | CG161: 0 | CH161: 0 | CI161: 0 | CJ161: 0 | CK161: 0 | CL161: 0
AY162: 71 | AZ162: 70 | BA162: 0 | BB162: 0 | BC162: 0 | BD162: 0 | BE162: 0 | BF162: 0 | BH162: 70 | BI162: 0 | BJ162: 0 | BK162: 0 | BL162: 0 | BM162: 0 | BN162: 0 | BP162: 70 | BQ162: 0 | BR162: 0 | BS162: 0 | BT162: 0 | BU162: 0 | BV162: 0 | BX162: 70 | BY162: 0 | BZ162: 0 | CA162: 0 | CB162: 0 | CC162: 0 | CD162: 0 | CF162: 70 | CG162: 0 | CH162: 0 | CI162: 0 | CJ162: 0 | CK162: 0 | CL162: 0
AY163: 72 | AZ163: 71 | BA163: 0 | BB163: 0 | BC163: 0 | BD163: 0 | BE163: 0 | BF163: 0 | BH163: 71 | BI163: 0 | BJ163: 0 | BK163: 0 | BL163: 0 | BM163: 0 | BN163: 0 | BP163: 71 | BQ163: 0 | BR163: 0 | BS163: 0 | BT163: 0 | BU163: 0 | BV163: 0 | BX163: 71 | BY163: 0 | BZ163: 0 | CA163: 0 | CB163: 0 | CC163: 0 | CD163: 0 | CF163: 71 | CG163: 0 | CH163: 0 | CI163: 0 | CJ163: 0 | CK163: 0 | CL163: 0
AY164: 73 | AZ164: 72 | BA164: 0 | BB164: 0 | BC164: 0 | BD164: 0 | BE164: 0 | BF164: 0 | BH164: 72 | BI164: 0 | BJ164: 0 | BK164: 0 | BL164: 0 | BM164: 0 | BN164: 0 | BP164: 72 | BQ164: 0 | BR164: 0 | BS164: 0 | BT164: 0 | BU164: 0 | BV164: 0 | BX164: 72 | BY164: 0 | BZ164: 0 | CA164: 0 | CB164: 0 | CC164: 0 | CD164: 0 | CF164: 72 | CG164: 0 | CH164: 0 | CI164: 0 | CJ164: 0 | CK164: 0 | CL164: 0
AY165: 74 | AZ165: 73 | BA165: 0 | BB165: 0 | BC165: 0 | BD165: 0 | BE165: 0 | BF165: 0 | BH165: 73 | BI165: 0 | BJ165: 0 | BK165: 0 | BL165: 0 | BM165: 0 | BN165: 0 | BP165: 73 | BQ165: 0 | BR165: 0 | BS165: 0 | BT165: 0 | BU165: 0 | BV165: 0 | BX165: 73 | BY165: 0 | BZ165: 0 | CA165: 0 | CB165: 0 | CC165: 0 | CD165: 0 | CF165: 73 | CG165: 0 | CH165: 0 | CI165: 0 | CJ165: 0 | CK165: 0 | CL165: 0
AY166: 75 | AZ166: 74 | BA166: 0 | BB166: 0 | BC166: 0 | BD166: 0 | BE166: 0 | BF166: 0 | BH166: 74 | BI166: 0 | BJ166: 0 | BK166: 0 | BL166: 0 | BM166: 0 | BN166: 0 | BP166: 74 | BQ166: 0 | BR166: 0 | BS166: 0 | BT166: 0 | BU166: 0 | BV166: 0 | BX166: 74 | BY166: 0 | BZ166: 0 | CA166: 0 | CB166: 0 | CC166: 0 | CD166: 0 | CF166: 74 | CG166: 0 | CH166: 0 | CI166: 0 | CJ166: 0 | CK166: 0 | CL166: 0
AY167: 76 | AZ167: 75 | BA167: 0 | BB167: 0 | BC167: 0 | BD167: 0 | BE167: 0 | BF167: 0 | BH167: 75 | BI167: 0 | BJ167: 0 | BK167: 0 | BL167: 0 | BM167: 0 | BN167: 0 | BP167: 75 | BQ167: 0 | BR167: 0 | BS167: 0 | BT167: 0 | BU167: 0 | BV167: 0 | BX167: 75 | BY167: 0 | BZ167: 0 | CA167: 0 | CB167: 0 | CC167: 0 | CD167: 0 | CF167: 75 | CG167: 0 | CH167: 0 | CI167: 0 | CJ167: 0 | CK167: 0 | CL167: 0
AY168: 77 | AZ168: 76 | BA168: 0 | BB168: 0 | BC168: 0 | BD168: 0 | BE168: 0 | BF168: 0 | BH168: 76 | BI168: 0 | BJ168: 0 | BK168: 0 | BL168: 0 | BM168: 0 | BN168: 0 | BP168: 76 | BQ168: 0 | BR168: 0 | BS168: 0 | BT168: 0 | BU168: 0 | BV168: 0 | BX168: 76 | BY168: 0 | BZ168: 0 | CA168: 0 | CB168: 0 | CC168: 0 | CD168: 0 | CF168: 76 | CG168: 0 | CH168: 0 | CI168: 0 | CJ168: 0 | CK168: 0 | CL168: 0
AY169: 78 | AZ169: 77 | BA169: 0 | BB169: 0 | BC169: 0 | BD169: 0 | BE169: 0 | BF169: 0 | BH169: 77 | BI169: 0 | BJ169: 0 | BK169: 0 | BL169: 0 | BM169: 0 | BN169: 0 | BP169: 77 | BQ169: 0 | BR169: 0 | BS169: 0 | BT169: 0 | BU169: 0 | BV169: 0 | BX169: 77 | BY169: 0 | BZ169: 0 | CA169: 0 | CB169: 0 | CC169: 0 | CD169: 0 | CF169: 77 | CG169: 0 | CH169: 0 | CI169: 0 | CJ169: 0 | CK169: 0 | CL169: 0
AY170: 79 | AZ170: 78 | BA170: 0 | BB170: 0 | BC170: 0 | BD170: 0 | BE170: 0 | BF170: 0 | BH170: 78 | BI170: 0 | BJ170: 0 | BK170: 0 | BL170: 0 | BM170: 0 | BN170: 0 | BP170: 78 | BQ170: 0 | BR170: 0 | BS170: 0 | BT170: 0 | BU170: 0 | BV170: 0 | BX170: 78 | BY170: 0 | BZ170: 0 | CA170: 0 | CB170: 0 | CC170: 0 | CD170: 0 | CF170: 78 | CG170: 0 | CH170: 0 | CI170: 0 | CJ170: 0 | CK170: 0 | CL170: 0
AY171: 80 | AZ171: 79 | BA171: 0 | BB171: 0 | BC171: 0 | BD171: 0 | BE171: 0 | BF171: 0 | BH171: 79 | BI171: 0 | BJ171: 0 | BK171: 0 | BL171: 0 | BM171: 0 | BN171: 0 | BP171: 79 | BQ171: 0 | BR171: 0 | BS171: 0 | BT171: 0 | BU171: 0 | BV171: 0 | BX171: 79 | BY171: 0 | BZ171: 0 | CA171: 0 | CB171: 0 | CC171: 0 | CD171: 0 | CF171: 79 | CG171: 0 | CH171: 0 | CI171: 0 | CJ171: 0 | CK171: 0 | CL171: 0
AY172: 81 | AZ172: 80 | BA172: 0 | BB172: 0 | BC172: 0 | BD172: 0 | BE172: 0 | BF172: 0 | BH172: 80 | BI172: 0 | BJ172: 0 | BK172: 0 | BL172: 0 | BM172: 0 | BN172: 0 | BP172: 80 | BQ172: 0 | BR172: 0 | BS172: 0 | BT172: 0 | BU172: 0 | BV172: 0 | BX172: 80 | BY172: 0 | BZ172: 0 | CA172: 0 | CB172: 0 | CC172: 0 | CD172: 0 | CF172: 80 | CG172: 0 | CH172: 0 | CI172: 0 | CJ172: 0 | CK172: 0 | CL172: 0
AY173: 82 | AZ173: 81 | BA173: 0 | BB173: 0 | BC173: 0 | BD173: 0 | BE173: 0 | BF173: 0 | BH173: 81 | BI173: 0 | BJ173: 0 | BK173: 0 | BL173: 0 | BM173: 0 | BN173: 0 | BP173: 81 | BQ173: 0 | BR173: 0 | BS173: 0 | BT173: 0 | BU173: 0 | BV173: 0 | BX173: 81 | BY173: 0 | BZ173: 0 | CA173: 0 | CB173: 0 | CC173: 0 | CD173: 0 | CF173: 81 | CG173: 0 | CH173: 0 | CI173: 0 | CJ173: 0 | CK173: 0 | CL173: 0
AY174: 83 | AZ174: 82 | BA174: 0 | BB174: 0 | BC174: 0 | BD174: 0 | BE174: 0 | BF174: 0 | BH174: 82 | BI174: 0 | BJ174: 0 | BK174: 0 | BL174: 0 | BM174: 0 | BN174: 0 | BP174: 82 | BQ174: 0 | BR174: 0 | BS174: 0 | BT174: 0 | BU174: 0 | BV174: 0 | BX174: 82 | BY174: 0 | BZ174: 0 | CA174: 0 | CB174: 0 | CC174: 0 | CD174: 0 | CF174: 82 | CG174: 0 | CH174: 0 | CI174: 0 | CJ174: 0 | CK174: 0 | CL174: 0
AY175: 84 | AZ175: 83 | BA175: 0 | BB175: 0 | BC175: 0 | BD175: 0 | BE175: 0 | BF175: 0 | BH175: 83 | BI175: 0 | BJ175: 0 | BK175: 0 | BL175: 0 | BM175: 0 | BN175: 0 | BP175: 83 | BQ175: 0 | BR175: 0 | BS175: 0 | BT175: 0 | BU175: 0 | BV175: 0 | BX175: 83 | BY175: 0 | BZ175: 0 | CA175: 0 | CB175: 0 | CC175: 0 | CD175: 0 | CF175: 83 | CG175: 0 | CH175: 0 | CI175: 0 | CJ175: 0 | CK175: 0 | CL175: 0
AY176: 85 | AZ176: 84 | BA176: 0 | BB176: 0 | BC176: 0 | BD176: 0 | BE176: 0 | BF176: 0 | BH176: 84 | BI176: 0 | BJ176: 0 | BK176: 0 | BL176: 0 | BM176: 0 | BN176: 0 | BP176: 84 | BQ176: 0 | BR176: 0 | BS176: 0 | BT176: 0 | BU176: 0 | BV176: 0 | BX176: 84 | BY176: 0 | BZ176: 0 | CA176: 0 | CB176: 0 | CC176: 0 | CD176: 0 | CF176: 84 | CG176: 0 | CH176: 0 | CI176: 0 | CJ176: 0 | CK176: 0 | CL176: 0
AY177: 86 | AZ177: 85 | BA177: 0 | BB177: 0 | BC177: 0 | BD177: 0 | BE177: 0 | BF177: 0 | BH177: 85 | BI177: 0 | BJ177: 0 | BK177: 0 | BL177: 0 | BM177: 0 | BN177: 0 | BP177: 85 | BQ177: 0 | BR177: 0 | BS177: 0 | BT177: 0 | BU177: 0 | BV177: 0 | BX177: 85 | BY177: 0 | BZ177: 0 | CA177: 0 | CB177: 0 | CC177: 0 | CD177: 0 | CF177: 85 | CG177: 0 | CH177: 0 | CI177: 0 | CJ177: 0 | CK177: 0 | CL177: 0
AY178: 87 | AZ178: 86 | BA178: 0 | BB178: 0 | BC178: 0 | BD178: 0 | BE178: 0 | BF178: 0 | BH178: 86 | BI178: 0 | BJ178: 0 | BK178: 0 | BL178: 0 | BM178: 0 | BN178: 0 | BP178: 86 | BQ178: 0 | BR178: 0 | BS178: 0 | BT178: 0 | BU178: 0 | BV178: 0 | BX178: 86 | BY178: 0 | BZ178: 0 | CA178: 0 | CB178: 0 | CC178: 0 | CD178: 0 | CF178: 86 | CG178: 0 | CH178: 0 | CI178: 0 | CJ178: 0 | CK178: 0 | CL178: 0
AY179: 88 | AZ179: 87 | BA179: 0 | BB179: 0 | BC179: 0 | BD179: 0 | BE179: 0 | BF179: 0 | BH179: 87 | BI179: 0 | BJ179: 0 | BK179: 0 | BL179: 0 | BM179: 0 | BN179: 0 | BP179: 87 | BQ179: 0 | BR179: 0 | BS179: 0 | BT179: 0 | BU179: 0 | BV179: 0 | BX179: 87 | BY179: 0 | BZ179: 0 | CA179: 0 | CB179: 0 | CC179: 0 | CD179: 0 | CF179: 87 | CG179: 0 | CH179: 0 | CI179: 0 | CJ179: 0 | CK179: 0 | CL179: 0
AY180: 89 | AZ180: 88 | BA180: 0 | BB180: 0 | BC180: 0 | BD180: 0 | BE180: 0 | BF180: 0 | BH180: 88 | BI180: 0 | BJ180: 0 | BK180: 0 | BL180: 0 | BM180: 0 | BN180: 0 | BP180: 88 | BQ180: 0 | BR180: 0 | BS180: 0 | BT180: 0 | BU180: 0 | BV180: 0 | BX180: 88 | BY180: 0 | BZ180: 0 | CA180: 0 | CB180: 0 | CC180: 0 | CD180: 0 | CF180: 88 | CG180: 0 | CH180: 0 | CI180: 0 | CJ180: 0 | CK180: 0 | CL180: 0
AY181: 90 | AZ181: 89 | BA181: 0 | BB181: 0 | BC181: 0 | BD181: 0 | BE181: 0 | BF181: 0 | BH181: 89 | BI181: 0 | BJ181: 0 | BK181: 0 | BL181: 0 | BM181: 0 | BN181: 0 | BP181: 89 | BQ181: 0 | BR181: 0 | BS181: 0 | BT181: 0 | BU181: 0 | BV181: 0 | BX181: 89 | BY181: 0 | BZ181: 0 | CA181: 0 | CB181: 0 | CC181: 0 | CD181: 0 | CF181: 89 | CG181: 0 | CH181: 0 | CI181: 0 | CJ181: 0 | CK181: 0 | CL181: 0
AY182: 91 | AZ182: 90 | BA182: 0 | BB182: 0 | BC182: 0 | BD182: 0 | BE182: 0 | BF182: 0 | BH182: 90 | BI182: 0 | BJ182: 0 | BK182: 0 | BL182: 0 | BM182: 0 | BN182: 0 | BP182: 90 | BQ182: 0 | BR182: 0 | BS182: 0 | BT182: 0 | BU182: 0 | BV182: 0 | BX182: 90 | BY182: 0 | BZ182: 0 | CA182: 0 | CB182: 0 | CC182: 0 | CD182: 0 | CF182: 90 | CG182: 0 | CH182: 0 | CI182: 0 | CJ182: 0 | CK182: 0 | CL182: 0
AY183: 92 | AZ183: 91 | BA183: 0 | BB183: 0 | BC183: 0 | BD183: 0 | BE183: 0 | BF183: 0 | BH183: 91 | BI183: 0 | BJ183: 0 | BK183: 0 | BL183: 0 | BM183: 0 | BN183: 0 | BP183: 91 | BQ183: 0 | BR183: 0 | BS183: 0 | BT183: 0 | BU183: 0 | BV183: 0 | BX183: 91 | BY183: 0 | BZ183: 0 | CA183: 0 | CB183: 0 | CC183: 0 | CD183: 0 | CF183: 91 | CG183: 0 | CH183: 0 | CI183: 0 | CJ183: 0 | CK183: 0 | CL183: 0
AY184: 93 | AZ184: 92 | BA184: 0 | BB184: 0 | BC184: 0 | BD184: 0 | BE184: 0 | BF184: 0 | BH184: 92 | BI184: 0 | BJ184: 0 | BK184: 0 | BL184: 0 | BM184: 0 | BN184: 0 | BP184: 92 | BQ184: 0 | BR184: 0 | BS184: 0 | BT184: 0 | BU184: 0 | BV184: 0 | BX184: 92 | BY184: 0 | BZ184: 0 | CA184: 0 | CB184: 0 | CC184: 0 | CD184: 0 | CF184: 92 | CG184: 0 | CH184: 0 | CI184: 0 | CJ184: 0 | CK184: 0 | CL184: 0
AY185: 94 | AZ185: 93 | BA185: 0 | BB185: 0 | BC185: 0 | BD185: 0 | BE185: 0 | BF185: 0 | BH185: 93 | BI185: 0 | BJ185: 0 | BK185: 0 | BL185: 0 | BM185: 0 | BN185: 0 | BP185: 93 | BQ185: 0 | BR185: 0 | BS185: 0 | BT185: 0 | BU185: 0 | BV185: 0 | BX185: 93 | BY185: 0 | BZ185: 0 | CA185: 0 | CB185: 0 | CC185: 0 | CD185: 0 | CF185: 93 | CG185: 0 | CH185: 0 | CI185: 0 | CJ185: 0 | CK185: 0 | CL185: 0
AY186: 95 | AZ186: 94 | BA186: 0 | BB186: 0 | BC186: 0 | BD186: 0 | BE186: 0 | BF186: 0 | BH186: 94 | BI186: 0 | BJ186: 0 | BK186: 0 | BL186: 0 | BM186: 0 | BN186: 0 | BP186: 94 | BQ186: 0 | BR186: 0 | BS186: 0 | BT186: 0 | BU186: 0 | BV186: 0 | BX186: 94 | BY186: 0 | BZ186: 0 | CA186: 0 | CB186: 0 | CC186: 0 | CD186: 0 | CF186: 94 | CG186: 0 | CH186: 0 | CI186: 0 | CJ186: 0 | CK186: 0 | CL186: 0
AY187: 96 | AZ187: 95 | BA187: 0 | BB187: 0 | BC187: 0 | BD187: 0 | BE187: 0 | BF187: 0 | BH187: 95 | BI187: 0 | BJ187: 0 | BK187: 0 | BL187: 0 | BM187: 0 | BN187: 0 | BP187: 95 | BQ187: 0 | BR187: 0 | BS187: 0 | BT187: 0 | BU187: 0 | BV187: 0 | BX187: 95 | BY187: 0 | BZ187: 0 | CA187: 0 | CB187: 0 | CC187: 0 | CD187: 0 | CF187: 95 | CG187: 0 | CH187: 0 | CI187: 0 | CJ187: 0 | CK187: 0 | CL187: 0
AY188: 97 | AZ188: 96 | BA188: 0 | BB188: 0 | BC188: 0 | BD188: 0 | BE188: 0 | BF188: 0 | BH188: 96 | BI188: 0 | BJ188: 0 | BK188: 0 | BL188: 0 | BM188: 0 | BN188: 0 | BP188: 96 | BQ188: 0 | BR188: 0 | BS188: 0 | BT188: 0 | BU188: 0 | BV188: 0 | BX188: 96 | BY188: 0 | BZ188: 0 | CA188: 0 | CB188: 0 | CC188: 0 | CD188: 0 | CF188: 96 | CG188: 0 | CH188: 0 | CI188: 0 | CJ188: 0 | CK188: 0 | CL188: 0
AY189: 98 | AZ189: 97 | BA189: 0 | BB189: 0 | BC189: 0 | BD189: 0 | BE189: 0 | BF189: 0 | BH189: 97 | BI189: 0 | BJ189: 0 | BK189: 0 | BL189: 0 | BM189: 0 | BN189: 0 | BP189: 97 | BQ189: 0 | BR189: 0 | BS189: 0 | BT189: 0 | BU189: 0 | BV189: 0 | BX189: 97 | BY189: 0 | BZ189: 0 | CA189: 0 | CB189: 0 | CC189: 0 | CD189: 0 | CF189: 97 | CG189: 0 | CH189: 0 | CI189: 0 | CJ189: 0 | CK189: 0 | CL189: 0
AY190: 99 | AZ190: 98 | BA190: 0 | BB190: 0 | BC190: 0 | BD190: 0 | BE190: 0 | BF190: 0 | BH190: 98 | BI190: 0 | BJ190: 0 | BK190: 0 | BL190: 0 | BM190: 0 | BN190: 0 | BP190: 98 | BQ190: 0 | BR190: 0 | BS190: 0 | BT190: 0 | BU190: 0 | BV190: 0 | BX190: 98 | BY190: 0 | BZ190: 0 | CA190: 0 | CB190: 0 | CC190: 0 | CD190: 0 | CF190: 98 | CG190: 0 | CH190: 0 | CI190: 0 | CJ190: 0 | CK190: 0 | CL190: 0
AY191: 100 | AZ191: 99 | BA191: 0 | BB191: 0 | BC191: 0 | BD191: 0 | BE191: 0 | BF191: 0 | BH191: 99 | BI191: 0 | BJ191: 0 | BK191: 0 | BL191: 0 | BM191: 0 | BN191: 0 | BP191: 99 | BQ191: 0 | BR191: 0 | BS191: 0 | BT191: 0 | BU191: 0 | BV191: 0 | BX191: 99 | BY191: 0 | BZ191: 0 | CA191: 0 | CB191: 0 | CC191: 0 | CD191: 0 | CF191: 99 | CG191: 0 | CH191: 0 | CI191: 0 | CJ191: 0 | CK191: 0 | CL191: 0
AY192: 101 | AZ192: 100 | BA192: 0 | BB192: =BB191+BA192 -> 0 | BC192: =(BA192/1000)*BE192*BF192 -> 0 | BD192: =BC192+BD191 -> 0 | BE192: =IFERROR(VLOOKUP(AZ192,discYears,2,0),0) -> 0 | BF192: =SUMPRODUCT((cNonTradeLevels=$AR$68)*(cNonTradeYears=AZ192)*(cNonTrade)) -> 0 | BH192: 100 | BI192: 0 | BJ192: =BJ191+BI192 -> 0 | BK192: =(BI192/1000)*BM192*BN192 -> 0 | BL192: =BK192+BL191 -> 0 | BM192: =IFERROR(VLOOKUP(BH192,discYears,2,0),0) -> 0 | BN192: =SUMPRODUCT((cNonTradeLevels=$AR$68)*(cNonTradeYears=BH192)*(cNonTrade)) -> 0 | BP192: 100 | BQ192: 0 | BR192: =BR191+BQ192 -> 0 | BS192: =(BQ192/1000)*BU192*BV192 -> 0 | BT192: =BS192+BT191 -> 0 | BU192: =IFERROR(VLOOKUP(BP192,discYears,2,0),0) -> 0 | BV192: =SUMPRODUCT((cNonTradeLevels=$AR$68)*(cNonTradeYears=BP192)*(cNonTrade)) -> 0 | BX192: 100 | BY192: 0 | BZ192: =BZ191+BY192 -> 0 | CA192: =(BY192/1000)*CC192*CD192 -> 0 | CB192: =CA192+CB191 -> 0 | CC192: =IFERROR(VLOOKUP(BX192,discYears,2,0),0) -> 0 | CD192: =SUMPRODUCT((cNonTradeLevels=$AR$68)*(cNonTradeYears=BX192)*(cNonTrade)) -> 0 | CF192: 100 | CG192: 0 | CH192: =CH191+CG192 -> 0 | CI192: =(CG192/1000)*CK192*CL192 -> 0 | CJ192: =CI192+CJ191 -> 0 | CK192: =IFERROR(VLOOKUP(CF192,discYears,2,0),0) -> 0 | CL192: =SUMPRODUCT((cNonTradeLevels=$AR$68)*(cNonTradeYears=CF192)*(cNonTrade)) -> 0
AY193: 102 | AZ193: 101 | BA193: 0 | BB193: 0 | BC193: 0 | BD193: 0 | BE193: 0 | BF193: 0 | BH193: 101 | BI193: 0 | BJ193: 0 | BK193: 0 | BL193: 0 | BM193: 0 | BN193: 0 | BP193: 101 | BQ193: 0 | BR193: 0 | BS193: 0 | BT193: 0 | BU193: 0 | BV193: 0 | BX193: 101 | BY193: 0 | BZ193: 0 | CA193: 0 | CB193: 0 | CC193: 0 | CD193: 0 | CF193: 101 | CG193: 0 | CH193: 0 | CI193: 0 | CJ193: 0 | CK193: 0 | CL193: 0
AY194: 103 | AZ194: 102 | BA194: 0 | BB194: 0 | BC194: 0 | BD194: 0 | BE194: 0 | BF194: 0 | BH194: 102 | BI194: 0 | BJ194: 0 | BK194: 0 | BL194: 0 | BM194: 0 | BN194: 0 | BP194: 102 | BQ194: 0 | BR194: 0 | BS194: 0 | BT194: 0 | BU194: 0 | BV194: 0 | BX194: 102 | BY194: 0 | BZ194: 0 | CA194: 0 | CB194: 0 | CC194: 0 | CD194: 0 | CF194: 102 | CG194: 0 | CH194: 0 | CI194: 0 | CJ194: 0 | CK194: 0 | CL194: 0
AY195: 104 | AZ195: 103 | BA195: 0 | BB195: 0 | BC195: 0 | BD195: 0 | BE195: 0 | BF195: 0 | BH195: 103 | BI195: 0 | BJ195: 0 | BK195: 0 | BL195: 0 | BM195: 0 | BN195: 0 | BP195: 103 | BQ195: 0 | BR195: 0 | BS195: 0 | BT195: 0 | BU195: 0 | BV195: 0 | BX195: 103 | BY195: 0 | BZ195: 0 | CA195: 0 | CB195: 0 | CC195: 0 | CD195: 0 | CF195: 103 | CG195: 0 | CH195: 0 | CI195: 0 | CJ195: 0 | CK195: 0 | CL195: 0
AY196: 105 | AZ196: 104 | BA196: 0 | BB196: 0 | BC196: 0 | BD196: 0 | BE196: 0 | BF196: 0 | BH196: 104 | BI196: 0 | BJ196: 0 | BK196: 0 | BL196: 0 | BM196: 0 | BN196: 0 | BP196: 104 | BQ196: 0 | BR196: 0 | BS196: 0 | BT196: 0 | BU196: 0 | BV196: 0 | BX196: 104 | BY196: 0 | BZ196: 0 | CA196: 0 | CB196: 0 | CC196: 0 | CD196: 0 | CF196: 104 | CG196: 0 | CH196: 0 | CI196: 0 | CJ196: 0 | CK196: 0 | CL196: 0
AY197: 106 | AZ197: 105 | BA197: 0 | BB197: 0 | BC197: 0 | BD197: 0 | BE197: 0 | BF197: 0 | BH197: 105 | BI197: 0 | BJ197: 0 | BK197: 0 | BL197: 0 | BM197: 0 | BN197: 0 | BP197: 105 | BQ197: 0 | BR197: 0 | BS197: 0 | BT197: 0 | BU197: 0 | BV197: 0 | BX197: 105 | BY197: 0 | BZ197: 0 | CA197: 0 | CB197: 0 | CC197: 0 | CD197: 0 | CF197: 105 | CG197: 0 | CH197: 0 | CI197: 0 | CJ197: 0 | CK197: 0 | CL197: 0
AY198: 107 | AZ198: 106 | BA198: 0 | BB198: 0 | BC198: 0 | BD198: 0 | BE198: 0 | BF198: 0 | BH198: 106 | BI198: 0 | BJ198: 0 | BK198: 0 | BL198: 0 | BM198: 0 | BN198: 0 | BP198: 106 | BQ198: 0 | BR198: 0 | BS198: 0 | BT198: 0 | BU198: 0 | BV198: 0 | BX198: 106 | BY198: 0 | BZ198: 0 | CA198: 0 | CB198: 0 | CC198: 0 | CD198: 0 | CF198: 106 | CG198: 0 | CH198: 0 | CI198: 0 | CJ198: 0 | CK198: 0 | CL198: 0
AY199: 108 | AZ199: 107 | BA199: 0 | BB199: 0 | BC199: 0 | BD199: 0 | BE199: 0 | BF199: 0 | BH199: 107 | BI199: 0 | BJ199: 0 | BK199: 0 | BL199: 0 | BM199: 0 | BN199: 0 | BP199: 107 | BQ199: 0 | BR199: 0 | BS199: 0 | BT199: 0 | BU199: 0 | BV199: 0 | BX199: 107 | BY199: 0 | BZ199: 0 | CA199: 0 | CB199: 0 | CC199: 0 | CD199: 0 | CF199: 107 | CG199: 0 | CH199: 0 | CI199: 0 | CJ199: 0 | CK199: 0 | CL199: 0

Sheet F - Flooding
S1: Flooding | U1: >>HIDE_ALONG
B2: =ProjDetails -> PROJECT DETAILS - No.: 41521691, Name: Killingworth & Longbenton SuDS, Assmt. Version: 3, Date: Sep 2015.
B4: K E Y
B5: Evidence: Qualitative summary and written evidence
B6: 1 | C6: Provision of additional storage area will reduce flood risk to properties and roads around Killingworth Lake/West Moor roundabout, as well as reducing peak flows in the downstream sewer and drainage systems.
B7: 2 | C7: Detailed assessment used the multi-coloured manual to generate an expected benefit arising from reduced flood risk of £36,566,464 (NPV)
B8: 3 | C8: Estimated that 300 hours could be saved as a result of reduced traffic disruption from flooding at West Moor roundabout.
B9: 4 | C9: Benefits assumed to start in 2017 and end in 2117
B10: 5 | C10: Assessment based on feasibility study and further detailed modelling. Therefore, confidence level of 100% selected for both property flood risk benefits and reduced travel disruption.
C12: Notes
C13: Overview of the sections to help choose which section to capture the flooding impact
C14: Section F1 should be completed on its own or complete one of F2 to F4 and F5.
E17: Section F1 | G17: Section F2 | K17: Section F3 | O17: Section F4 | S17: Section F5
E18: This is if you have already completed a damages assessment of the flooding and calculated the present value | G18: This is if you are working with a water company and are considering willingness to pay approaches to assess the benefit | K18: This is if you have calculated the average annual damages for property and other areas, but have not calculated the present value | O18: This is if you are using the FCRM GiA calculator to estimate the impacts. | S18: Estimates wider impacts beyond property flooding
B22: SECTION F1
E24: Notes:
E25: Have you undertaken an assessment of the reduced flooding your scheme will give you for the baseline and proposed scenario, and calculated the present value?
E26: This assumes that a consistent discount rate has been applied to the calculation that the user defines within this tool, and that the start and end years have been used to calculate the present value.
E28: Scenario | G28: Present value damage before certainty confidence applied | I28: Level of certainty of the quantity calculated (select from list) | K28: Level of confidence of the monetary value selected/used | M28: Present value damage after certainty / confidence applied | Q28: Confirm the start and end year of the evaluation
C30: Baseline scenario | E30: ='Project Inputs'!$D$14 -> Includes grasslands, farmland, woodland, freshwater, semi-urban. With no intervention, flood risk, water quality will worsen. See report Table 1 | G30: 49750302.78 | I30: 1 | K30: 1 | M30: =G30*I30*K30 -> 49750302.78 | Q30: Start | S30: End
C32: Proposed scenario | E32: ='Project Inputs'!$D$16 -> Combination of surface water separation measures, inc attenuation areas, diversion of Longbenton Letch & underground pipeline (sites 1, 3, 5, 7) | G32: 0 | I32: 1 | K32: 1 | M32: =G32*I32*K32 -> 0 | Q32: 2017 | S32: 2117
B36: SECTION F2
E38: Notes:
E39: For retrofit only schemes using Water Company Willingness to Pay information, please provide the present value of benefits to properties or areas with a lower risk of flooding from the proposed scenario
E40: This assumes that a consistent discount rate has been applied to the calculation that the user defines within this tool, and that the start and end years have been used to calculate the present value.
E43: Scenario | G43: Present value before certainty / confidence applied | I43: Level of certainty of the quantity calculated (select from list) | K43: Level of confidence of the monetary value selected/used | M43: Present value benefit after certainty / confidence applied | Q43: Confirm the start and end year of the evaluation | Z43: Baseline scenario | AA43: ='Project Inputs'!$D$14 -> Includes grasslands, farmland, woodland, freshwater, semi-urban. With no intervention, flood risk, water quality will worsen. See report Table 1
C45: Proposed scenario | E45: ='Project Inputs'!$D$16 -> Combination of surface water separation measures, inc attenuation areas, diversion of Longbenton Letch & underground pipeline (sites 1, 3, 5, 7) | M45: =G45*I45*K45 -> 0 | Q45: Start | S45: End | Z45: Proposed scenario | AA45: ='Project Inputs'!$D$16 -> Combination of surface water separation measures, inc attenuation areas, diversion of Longbenton Letch & underground pipeline (sites 1, 3, 5, 7)
B51: SECTION F3
E53: Notes:
E54: Complete this table if you have calculated the average annual damages assessment for the baseline and proposed scenarios for the scheme
E56: Scenario | G56: Damage to property: AAD (£) | I56: Other damage costs: AAD (£) | K56: Other damage costs: description | M56: Level of certainty of the quantity calculated (select from list) | O56: Level of confidence of the monetary value selected/used | Q56: Present value before certainty / confidence applied | S56: Present value after certainty / confidence applied
C58: Baseline scenario | E58: ='Project Inputs'!$D$14 -> Includes grasslands, farmland, woodland, freshwater, semi-urban. With no intervention, flood risk, water quality will worsen. See report Table 1 | G58: 0 | I58: 0 | K58: User to insert text | Q58: ='Present Value Calcs'!BA13 -> 0 | S58: =Q58*O58*M58 -> 0
C60: Proposed scenario | E60: ='Project Inputs'!$D$16 -> Combination of surface water separation measures, inc attenuation areas, diversion of Longbenton Letch & underground pipeline (sites 1, 3, 5, 7) | G60: 0 | I60: 0 | K60: User to insert text | Q60: ='Present Value Calcs'!BC13 -> 0 | S60: =Q60*O60*M60 -> 0
G62: Start | I62: End
E64: Evaluation time frame (year) | O64: Difference | Q64: =Q58-Q60 -> 0 | S64: =S58-S60 -> 0
B68: SECTION F4
E70: Notes
E71: Complete this table if you have already calculated the damages using Flooding Grant in Aid (FCRM GiA) calculator.
E72: This presumes you know the number of properties, the type of properties and frequency of flooding through modelling, site investigation or engineering judgement. Enter the values below and select the certainty / confidence values.
E74: Scenario | G74: Qualified benefits discounted (present value) | I74: Level of certainty of the quantity calculated (select from list) | K74: Level of confidence of the monetary value selected/used | M74: Present value before certainty / confidence applied | O74: Present value after certainty / confidence applied
C76: Baseline scenario | E76: ='Project Inputs'!$D$14 -> Includes grasslands, farmland, woodland, freshwater, semi-urban. With no intervention, flood risk, water quality will worsen. See report Table 1 | M76: =G76 -> 0 | O76: =M76*K76*I76 -> 0
C78: Proposed scenario | E78: ='Project Inputs'!$D$16 -> Combination of surface water separation measures, inc attenuation areas, diversion of Longbenton Letch & underground pipeline (sites 1, 3, 5, 7) | M78: =G78 -> 0 | O78: =M78*K78*I78 -> 0
G80: Start | I80: End
E82: Evaluation time frame (year) | K82: Difference | M82: =M76-M78 -> 0 | O82: =O76-O78 -> 0
K83: Note: record the start finish years applied within the FCRM GiA calculator
B86: SECTION F5
E88: Notes
E89: Complete this table if you are estimating the reduction in time lost (travel disruption) per year.
E90: This presumes you know the number of properties, the type of properties and frequency of flooding through modelling, site investigation or engineering judgement. Enter the values below and select the certainty / confidence values.
E92: Scenario | G92: Estimated reduced hours per year lost due to scheme | I92: Estimated financial impact per year | K92: Level of certainty of the quantity calculated (select from list) | M92: Level of confidence of the monetary value selected/used | O92: Present value before certainty / confidence applied | Q92: Present value after certainty / confidence applied
C94: Proposed scenario | E94: ='Project Inputs'!$D$16 -> Combination of surface water separation measures, inc attenuation areas, diversion of Longbenton Letch & underground pipeline (sites 1, 3, 5, 7) | G94: 300 | I94: =G94*ValuesLibrary!K116 -> 3468 | K94: 1 | M94: 1 | O94: ='Present Value Calcs'!BE13 -> 87202.19591 | Q94: =O94*M94*K94 -> 87202.19591
G96: Start | I96: End
E98: Evaluation time frame (year) | G98: 2017 | I98: 2117
A101: >>HIDE_BELOW
K103: AVERAGE
K105: Level of certainty of the quantity calculated (select from list) | M105: Level of confidence of the monetary value selected/used
I106: F2,3,4 | K106: =IFERROR(AVERAGE(I78,I76,M60,M58,I45),0) -> 0 | M106: =IFERROR(AVERAGE(K78,K76,O60,O58,K45),0) -> 0

Sheet GW - Groundwater recharge (hidden)
L1: Groundwater recharge | R1: >>HIDE_ALONG
B2: =ProjDetails -> PROJECT DETAILS - No.: 41521691, Name: Killingworth & Longbenton SuDS, Assmt. Version: 3, Date: Sep 2015.
B4: K E Y
B6: Evidence: Qualitative summary and written evidence
B7: 1
B8: 2
B9: 3
B10: 4
B11: 5
D13: Notes
D14: Overview of the sections to help assess the impacts on groundwater
D15: Only complete one section.
F18: SECTION CS1 | H18: SECTION CS2
F19: You have undertaken an independent or more detailed assessment of the impacts of groundwater recharge and drought avoidance | H19: You need support to estimate the value of increasing infiltration.
B22: SECTION GW1
B24: Notes | D24: Use this section if you already know the present value benefit.
H28: Confirm the confidence you have in the calculation method and valuation | N28: Confirm the start and end year of the evaluation
F30: Confirm the present value of the benefit £ | H30: Quantity | J30: Valuation (£) | L30: Present benefit after applying the confidence values | N30: Start | P30: End
L32: =J32*H32*F32 -> 0
B36: SECTION GW2
B39: Notes | D39: Use this section to help you estimate the present value.
J44: Confirm the confidence you have in the calculation method and valuation
B46: Scenario | F46: Quantity m3/yr | H46: Monetised value (£/m3) | J46: Quantity | L46: Valuation (£) | N46: Present value before certainty applied | P46: Present value after certainty applied
B48: Baseline scenario | D48: ='Project Inputs'!$D$14 -> Includes grasslands, farmland, woodland, freshwater, semi-urban. With no intervention, flood risk, water quality will worsen. See report Table 1 | N48: ='Present Value Calcs'!DX13 -> 0 | P48: =N48*L48*J48 -> 0
B50: Proposed scenario | D50: ='Project Inputs'!$D$16 -> Combination of surface water separation measures, inc attenuation areas, diversion of Longbenton Letch & underground pipeline (sites 1, 3, 5, 7) | N50: ='Present Value Calcs'!DZ13 -> 0 | P50: =N50*L50*J50 -> 0
D52: Confirm the start and end year of the evaluation | L52: Difference | N52: =N50-N48 -> 0 | P52: =P50-P48 -> 0
D54: Start | F54: End
A60: >>HIDE_BELOW
F65: =ValuesLibrary!L109 -> 23768.83114 | G65: High
F67: =ValuesLibrary!L111 -> High not defined | G67: High
F84: =ValuesLibrary!J130 -> 0.1651045239 | G84: Low
F85: =ValuesLibrary!K129 -> 0.4496353567 | G85: Central
F86: =ValuesLibrary!L131 -> 0.8645503829 | G86: High

Sheet H - Health (hidden)
F1: Health | U1: Health | X1: >>HIDE_ALONG
AD3: quality or potential improvement | AE3: H
B4: K E Y | AE4: M
B5: Evidence: Qualitative summary and written evidence | AE5: L | AF5: LL | AG5: LM | AH5: M
B6: 1 | AF6: L | AG6: M | AH6: H
B7: 2 | AF7: size of area/number of people
B8: 3
B9: 4
B10: 5
D13: Notes
D14: Overview of the sections to help choose which one to use to assess the potential health benefits
D15: Complete either section H1 or the relevant sections in H2a and H2b.
F17: SECTION H1 | H17: SECTION H2a | J17: Section H2b
F18: Enables you to enter your own present value calculations as a result of health impacts | H18: Enter the values for the impact the scheme has on increased walking and cycling here using the HEAT Tool. | J18: Enter the values that contribute to emotional well being
B21: SECTION H1
D23: Notes
D24: If you have calculated the health benefits for the option as a present value, enter it here.
H26: Confirm the confidence you have in the calculation method and valuation | P26: Confirm the start and end year of the evaluation
AD27: discount time | AE27: 50 years
F28: Confirm the present value of the benefit £ | H28: Quantity | J28: Valuation (£) | L28: Present benefit after applying the confidence values | P28: Start | R28: End
AD29: discount time | AE29: 50 years
L30: =J30*H30*F30 -> 0
B35: SECTION H2a
D38: Notes
D39: Estimating the health benefits of walking or cycling by estimating the value of reduced mortality that results from specified amounts of walking or cycling. | AD39: Examples of the sensitivity in the tool, for information only
D40: Use the World Health Organisation HEAT tool to estimate the impact on physical health by increased walking and cycling at: | R40: http://heatwalkingcycling.org/ | AD40: no. of people | AE40: 10 people | AF40: 10 people | AG40: 10 people | AH40: 10 people
D41: Use the guidance (to be developed further) to help you estimate the increase in walking as a result of introducing SuDS (based on the visual / aesthetic improvement, change or new addition) | AD41: take up | AE41: 0.5 | AF41: 0.75 | AG41: 0.25 | AH41: 1
D43: Walking | N43: Cycling
AD44: discount time | AE44: 50 years | AF44: 50 years | AG44: 50 years | AH44: 50 years
D45: Proportion walking in the tool (% for confidence) | N45: Proportion cycling in the tool (% for confidence) | AD45: Present value | AE45: 53000 | AF45: 80000 | AG45: 27000 | AH45: 107000
D47: Discount period (years) | N47: Discount period (years)
AD48: walking per week | AE48: 30 mins / week
D49: Discount rate (%) applied to the benefit | H49: ='Project Inputs'!D28 -> 0.035 | N49: Discount rate (%) applied to the benefit | R49: ='Project Inputs'!D28 -> 0.035 | AD49: no. of people | AE49: 10 people
AD50: when start after | AE50: 5 year
D51: Present value benefit (after Confidence) | N51: Present value benefit (after Confidence) | AD51: take up | AE51: 0.5
AD52: discount time | AE52: 50 years
D53: Please insert the summary of the results from the HEAT Tool Here | N53: Please insert the summary of the results from the HEAT Tool Here
AD54: discount time | AE54: 50 years
B73: SECTION H2b - Emotional well being
B76: Notes:
AD77: Examples of the sensitivity in the tool, for information only
B81: View over green space from homes | J81: Confirm the confidence you have in the calculation method and valuation
B83: Scenario | F83: Estimated no. of adults having a view over green space from house | H83: Select appropriate monetary value description (or enter used defined) £/p/yr | J83: Quantity | L83: Valuation (£) | N83: Present value before certainty applied | P83: Present value after certainty applied
B85: Baseline scenario | D85: ='Project Inputs'!$D$14 -> Includes grasslands, farmland, woodland, freshwater, semi-urban. With no intervention, flood risk, water quality will worsen. See report Table 1 | N85: ='Present Value Calcs'!CI13 -> 0 | P85: =N85*L85*J85 -> 0
B87: Proposed scenario | D87: ='Project Inputs'!$D$16 -> Combination of surface water separation measures, inc attenuation areas, diversion of Longbenton Letch & underground pipeline (sites 1, 3, 5, 7) | N87: ='Present Value Calcs'!CK13 -> 0 | P87: =N87*L87*J87 -> 0
D89: Confirm the start and end year of the evaluation | L89: Difference | N89: =N87-N85 -> 0 | P89: =P87-P85 -> 0
D91: Start | F91: End
B97: Access to freshwater/permanent water or wetlands | J97: Confirm the confidence you have in the calculation method and valuation
B99: Scenario | F99: Estimated no. of adults with freshwater or wetland within 1km of home | H99: Select appropriate monetary value description (or enter used defined) | J99: Quantity | L99: Valuation (£) | N99: Present value before certainty applied | P99: Present value after certainty applied
B101: Baseline scenario | D101: ='Project Inputs'!$D$14 -> Includes grasslands, farmland, woodland, freshwater, semi-urban. With no intervention, flood risk, water quality will worsen. See report Table 1 | N101: ='Present Value Calcs'!CM13 -> 0 | P101: =N101*L101*J101 -> 0
B103: Proposed scenario | D103: ='Project Inputs'!$D$16 -> Combination of surface water separation measures, inc attenuation areas, diversion of Longbenton Letch & underground pipeline (sites 1, 3, 5, 7) | N103: ='Present Value Calcs'!CO13 -> 0 | P103: =N103*L103*J103 -> 0
D105: Confirm the start and end year of the evaluation | L105: Difference | N105: =N103-N101 -> 0 | P105: =P103-P101 -> 0
D107: Start | F107: End
B113: Access to non-countryside green space | J113: Confirm the confidence you have in the calculation method and valuation
B115: Scenario | F115: Estimated no. of people using non-countryside green space monthly or more | H115: Select appropriate monetary value description (or enter used defined) | J115: Quantity | L115: Valuation (£) | N115: Present value before certainty applied | P115: Present value after certainty applied
B117: Baseline scenario | D117: ='Project Inputs'!$D$14 -> Includes grasslands, farmland, woodland, freshwater, semi-urban. With no intervention, flood risk, water quality will worsen. See report Table 1 | N117: ='Present Value Calcs'!CQ13 -> 0 | P117: =N117*L117*J117 -> 0
B119: Proposed scenario | D119: ='Project Inputs'!$D$16 -> Combination of surface water separation measures, inc attenuation areas, diversion of Longbenton Letch & underground pipeline (sites 1, 3, 5, 7) | N119: ='Present Value Calcs'!CS13 -> 0 | P119: =N119*L119*J119 -> 0
D121: Confirm the start and end year of the evaluation | L121: Difference | N121: =N119-N117 -> 0 | P121: =P119-P117 -> 0
D123: Start | F123: End
A130: >>HIDE_BELOW

Sheet P - Pumping (hidden)
AD1: Pumping wastewater | AI1: >>HIDE_ALONG | AK1: COL_RESET | AR1: COL_SHOW | AU1: ROW HEIGHTS | AW1: Quantity | AX1: Units | AY1: Level of certainty of the quantity calculated | AZ1: Level of confidence of the monetary value selected/used | BA1: Qualitative description | BB1: Indication of scale | BC1: Quantitative estimate
B2: =ProjDetails -> PROJECT DETAILS - No.: 41521691, Name: Killingworth & Longbenton SuDS, Assmt. Version: 3, Date: Sep 2015. | AJ2: ANSWER | AR2: Y
B4: K E Y | AM4: RESET PAGE
B6: Evidence: Qualitative summary and written evidence
B7: 1
B8: 2
B9: 3
B10: 4
B11: 5
AR12: Y
C13: Notes
C14: Overview of the sections to help choose which section to capture the impact on pumping (including carbon)
C15: Only complete one section.
C16: Further help (to be developed) is provided in the guidance
E18: Section P1 | K18: Section P2 | R18: Section P3
E19: Use this section if you already assessed the impact on pumping stations | K19: Use this section if you need support to estimate the impact on pumping stations if you know information about the pumps and run times | R19: Use this section if you need support to estimate the impact on pumping stations if you only know information about the pumped flows and run times
B22: SECTION P1
E24: Note: If you have undertaken an assessment of the financial impact of the changing the flows to pumping stations enter the data here. If not, proceed to P2 or P3. For solutions where the grey infrastructure was to build storage, and increase the flow entering the sewer network (e.g. in the case of where CSO storage is required) then the increase should be recorded in the impact the grey infrastructure has on the network negatively. Similar questions can be asked for the grey infrastructure approach.
M27: Confirm the confidence you have in the calculation method and valuation
E29: Scenario | I29: Present value before confidence applied | M29: Quantity | P29: Valuation (£) | R29: Present value after confidence applied | AA29: Confirm the start and end year of the evaluation
B31: Baseline scenario | E31: ='Project Inputs'!$D$14 -> Includes grasslands, farmland, woodland, freshwater, semi-urban. With no intervention, flood risk, water quality will worsen. See report Table 1 | R31: =I31*M31*P31 -> 0 | AA31: Start | AD31: End
B33: Proposed scenario | E33: ='Project Inputs'!$D$16 -> Combination of surface water separation measures, inc attenuation areas, diversion of Longbenton Letch & underground pipeline (sites 1, 3, 5, 7) | R33: =I33*M33*P33 -> 0
E35: Comparative Present Value of the options | I35: =I33-I31 -> 0 | R35: =R33-R31 -> 0
B38: SECTION P2
E40: Notes:
E41: Use this section if you know the pump run time and kw rating to determine energy use. Once complete go to the bottom of the page to complete final questions. If you don't know the KW rating, then proceed to the next section. For solutions where the grey infrastructure was to build storage, and increase the flow entering the sewer network (e.g. in the case of where CSO storage is required) then the increase should be recorded in the impact the grey infrastructure has on the network negatively. Similar questions can be asked for the grey infrastructure approach.
E44: Baseline scenario | G44: ='Project Inputs'!$D$14 -> Includes grasslands, farmland, woodland, freshwater, semi-urban. With no intervention, flood risk, water quality will worsen. See report Table 1 | P44: Proposed scenario | R44: ='Project Inputs'!$D$16 -> Combination of surface water separation measures, inc attenuation areas, diversion of Longbenton Letch & underground pipeline (sites 1, 3, 5, 7) | Z44: Saving | AB44: Confirm the confidence you have in the calculation method and valuation | BE44: =IF(strSchemeType="Retrofit","lstScnPumpBase1a",IF(strSchemeType="New Development","lstScnPumpBase2a","lstScnPumpBase")) -> lstScnPumpBase1a | BF44: =IF(strSchemeType="Retrofit","lstScnPumpBase1b",IF(strSchemeType="New Development","lstScnPumpBase2b","lstScnPumpBase")) -> lstScnPumpBase1b | BG44: .
E46: Pump reference (text) | G46: run time hrs / yr | I46: kW rating | K46: KW/year | P46: Pump reference (text) | R46: run time hrs / yr | T46: kW rating | V46: KW/year | Z46: KW/year | AB46: Quantity | AD46: Valuation (£)
K48: =I48*G48 -> 0 | V48: =T48*R48 -> 0 | Z48: =IFERROR(K48-V48,"") -> 0
K50: =I50*G50 -> 0 | P50: =IF(E50<>"",E50,"") ->  | V50: =T50*R50 -> 0 | Z50: =IFERROR(K50-V50,"") -> 0 | AF50: =IF(AND(AR50="Y",AJ50<>"Add Another.."),"Add Another..","") -> 
K52: =I52*G52 -> 0 | P52: =IF(E52<>"",E52,"") ->  | V52: =T52*R52 -> 0 | Z52: =IFERROR(K52-V52,"") -> 0 | AF52: =IF(AND(AR52="Y",AJ52<>"Add Another.."),"Add Another..","") -> 
K54: =I54*G54 -> 0 | P54: =IF(E54<>"",E54,"") ->  | V54: =T54*R54 -> 0 | Z54: =IFERROR(K54-V54,"") -> 0 | AF54: =IF(AND(AR54="Y",AJ54<>"Add Another.."),"Add Another..","") -> 
K56: =I56*G56 -> 0 | P56: =IF(E56<>"",E56,"") ->  | V56: =T56*R56 -> 0 | Z56: =IFERROR(K56-V56,"") -> 0 | AF56: =IF(AND(AR56="Y",AJ56<>"Add Another.."),"Add Another..","") -> 
K58: =I58*G58 -> 0 | P58: =IF(E58<>"",E58,"") ->  | V58: =T58*R58 -> 0 | Z58: =IFERROR(K58-V58,"") -> 0 | AF58: =IF(AND(AR58="Y",AJ58<>"Add Another.."),"Add Another..","") -> 
K60: =I60*G60 -> 0 | P60: =IF(E60<>"",E60,"") ->  | V60: =T60*R60 -> 0 | Z60: =IFERROR(K60-V60,"") -> 0 | AF60: =IF(AND(AR60="Y",AJ60<>"Add Another.."),"Add Another..","") -> 
K62: =I62*G62 -> 0 | P62: =IF(E62<>"",E62,"") ->  | V62: =T62*R62 -> 0 | Z62: =IFERROR(K62-V62,"") -> 0 | AF62: =IF(AND(AR62="Y",AJ62<>"Add Another.."),"Add Another..","") -> 
K64: =I64*G64 -> 0 | P64: =IF(E64<>"",E64,"") ->  | V64: =T64*R64 -> 0 | Z64: =IFERROR(K64-V64,"") -> 0 | AF64: =IF(AND(AR64="Y",AJ64<>"Add Another.."),"Add Another..","") -> 
K66: =I66*G66 -> 0 | P66: =IF(E66<>"",E66,"") ->  | V66: =T66*R66 -> 0 | Z66: =IFERROR(K66-V66,"") -> 0
B69: SECTION P3
E71: Notes:
E72: Use this section if you know the pump flows, run times and estimated head to determine energy use. Once complete go to the bottom of the page to complete final questions. For solutions where the grey infrastructure was to build storage, and increase the flow entering the sewer network (e.g. in the case of where CSO storage is required) then the increase should be recorded in the impact the grey infrastructure has on the network negatively. Similar questions can be asked for the grey infrastructure approach.
E74: Baseline scenario | G74: ='Project Inputs'!$D$14 -> Includes grasslands, farmland, woodland, freshwater, semi-urban. With no intervention, flood risk, water quality will worsen. See report Table 1 | P74: Proposed scenario | R74: ='Project Inputs'!$D$16 -> Combination of surface water separation measures, inc attenuation areas, diversion of Longbenton Letch & underground pipeline (sites 1, 3, 5, 7) | Z74: Saving | AB74: Confirm the confidence you have in the calculation method and valuation
E76: Pump reference | G76: run time hrs / yr | I76: flow rate l/s | K76: estimated head (m) | M76: KW/year | P76: Pump reference | R76: run time hrs / yr | T76: flow rate l/s | V76: estimated head (m) | X76: KW/year | Z76: KW/year | AB76: Quantity | AD76: Valuation (£) | BE76: =pumpdrop1 -> lstScnPumpBase1a
M78: =IF(OR(G78="",I78="",K78=""),"",1.05*G78*I78*K78/80) ->  | P78: =IF(E78<>"",E78,"") ->  | X78: =IF(OR(R78="",T78="",V78=""),"",1.05*R78*T78*V78/80) ->  | Z78: =IFERROR(M78-X78,"") ->  | BE78: lstScnPumpBase
M80: =IF(OR(G80="",I80="",K80=""),"",1.05*G80*I80*K80/80) ->  | P80: =IF(E80<>"",E80,"") ->  | X80: =IF(OR(R80="",T80="",V80=""),"",1.05*R80*T80*V80/80) ->  | Z80: =IFERROR(K80-X80,"") ->  | AF80: =IF(AND(AR80="Y",AJ80<>"Add Another.."),"Add Another..","") ->  | BE80: lstScnPumpBase1b
M82: =IF(OR(G82="",I82="",K82=""),"",1.05*G82*I82*K82/80) ->  | P82: =IF(E82<>"",E82,"") ->  | X82: =IF(OR(R82="",T82="",V82=""),"",1.05*R82*T82*V82/80) ->  | Z82: =IFERROR(M82-X82,"") ->  | AF82: =IF(MAX(AN80:AN82)=ROW(),"Add Another..","") ->  | BE82: lstScnPumpBase2b
M84: =IF(OR(G84="",I84="",K84=""),"",1.05*G84*I84*K84/80) ->  | P84: =IF(E84<>"",E84,"") ->  | X84: =IF(OR(R84="",T84="",V84=""),"",1.05*R84*T84*V84/80) ->  | Z84: =IFERROR(M84-X84,"") ->  | AF84: =IF(MAX(AN82:AN84)=ROW(),"Add Another..","") -> 
M86: =IF(OR(G86="",I86="",K86=""),"",1.05*G86*I86*K86/80) ->  | P86: =IF(E86<>"",E86,"") ->  | X86: =IF(OR(R86="",T86="",V86=""),"",1.05*R86*T86*V86/80) ->  | Z86: =IFERROR(M86-X86,"") ->  | AF86: =IF(MAX(AN84:AN86)=ROW(),"Add Another..","") -> 
M88: =IF(OR(G88="",I88="",K88=""),"",1.05*G88*I88*K88/80) ->  | P88: =IF(E88<>"",E88,"") ->  | X88: =IF(OR(R88="",T88="",V88=""),"",1.05*R88*T88*V88/80) ->  | Z88: =IFERROR(M88-X88,"") ->  | AF88: =IF(MAX(AN86:AN88)=ROW(),"Add Another..","") -> 
M90: =IF(OR(G90="",I90="",K90=""),"",1.05*G90*I90*K90/80) ->  | P90: =IF(E90<>"",E90,"") ->  | X90: =IF(OR(R90="",T90="",V90=""),"",1.05*R90*T90*V90/80) ->  | Z90: =IFERROR(M90-X90,"") ->  | AF90: =IF(MAX(AN88:AN90)=ROW(),"Add Another..","") -> 
M92: =IF(OR(G92="",I92="",K92=""),"",1.05*G92*I92*K92/80) ->  | P92: =IF(E92<>"",E92,"") ->  | X92: =IF(OR(R92="",T92="",V92=""),"",1.05*R92*T92*V92/80) ->  | Z92: =IFERROR(M92-X92,"") ->  | AF92: =IF(MAX(AN90:AN92)=ROW(),"Add Another..","") -> 
M94: =IF(OR(G94="",I94="",K94=""),"",1.05*G94*I94*K94/80) ->  | P94: =IF(E94<>"",E94,"") ->  | X94: =IF(OR(R94="",T94="",V94=""),"",1.05*R94*T94*V94/80) ->  | Z94: =IFERROR(M94-X94,"") ->  | AF94: =IF(MAX(AN92:AN94)=ROW(),"Add Another..","") -> 
M96: =IF(OR(G96="",I96="",K96=""),"",1.05*G96*I96*K96/80) ->  | P96: =IF(E96<>"",E96,"") ->  | X96: =IF(OR(R96="",T96="",V96=""),"",1.05*R96*T96*V96/80) ->  | Z96: =IFERROR(M96-X96,"") -> 
E99: Summary of impact of pumping from P2 and P3
E100: Please complete these | V100: Confirm the start and end year of the evaluation | AB100: Average quantity confidence | AD100: Average monetary confidence
E102: Traded Carbon | I102: Energy Tariff Type | M102: Energy Rate | V102: Start | X102: End
AB104: =IFERROR(AVERAGE(AB78,AB80,AB82,AB84,AB86,AB88,AB90,AB92,AB94,AB96,AB48,AB50,AB52,AB54,AB56,AB58,AB60,AB62,AB64,AB66),0) -> 0 | AD104: =IFERROR(AVERAGE(AD78,AD80,AD82,AD84,AD86,AD88,AD90,AD92,AD94,AD96,AD48,AD50,AD52,AD54,AD56,AD58,AD60,AD62,AD64,AD66),0) -> 0
P106: Before Confidence Applied | R106: After Confidence Applied
I108: Total Present Value for Energy | P108: ='Present Value Calcs'!F13 -> 0 | R108: =P108*AD104*AB104 -> 0 | V108: Annual Energy Saving KWh | Z108: =IFERROR(SUM(Z78,Z80,Z82,Z84,Z86,Z88,Z90,Z92,Z94,Z96,Z48,Z50,Z52,Z54,Z56,Z58,Z60,Z62,Z64,Z66),0) -> 0
I110: Total Present Value for Carbon | P110: ='Present Value Calcs'!H13 -> 0 | R110: =P110*AD104*AB104 -> 0
A114: >>HIDE_BELOW

Sheet RWH - Rainwater harvesting (hidden)
R1: Rainwater harvesting | X1: >>HIDE_ALONG
B2: =ProjDetails -> PROJECT DETAILS - No.: 41521691, Name: Killingworth & Longbenton SuDS, Assmt. Version: 3, Date: Sep 2015.
B4: K E Y
B5: Evidence: Qualitative summary and written evidence
B6: 1
B7: 2
B8: 3
B9: 4
B10: 5
D13: Notes
D14: Overview of the sections to help choose which one to use to assess the potential for rainwater harvesting
D15: Only complete one section.
D16: You can complete this section whether you are rainwater harvesting under a retrofit, redevelopment or new development
F18: SECTION RWH1 | H18: SECTION RWH2 | L18: SECTION RWH3
F19: You have already assessed the present value benefit of rainwater harvesting. Enter values in here. | H19: If you have calculated the reduction in water usage, use this section to calculate the impact | L19: If you do not the water saving, use this section to estimate the impact
B22: SECTION RWH1
D24: Notes:
D25: If you have calculated the impact of rainwater harvesting and present value, enter the values here. | AI25: Note to check: Do we need to consider the positive and negative impact to the WaSC (loss of revenue)
H27: Confirm the confidence you have in the calculation method and valuation | P27: Confirm the start and end year of the evaluation
F29: Confirm the present value of the benefit £ | H29: Quantity | J29: Valuation (£) | L29: Present benefit after applying the confidence values | P29: Start | R29: End
L31: =J31*H31*F31 -> 0
B35: SECTION RWH2
D37: Notes:
D38: If you have calculated the reduction in water usage (m3) through rain water harvesting then please enter your values here. If you have not, move to the next section below.
D39: Costs to run pumps (if required) should be included as part of the operational costs. | AJ39: Water UK (2010) 0.34 tonnes of Co2 per ML
AJ40: =1000000/1000 -> 1000
J41: Confirm the start and end year of the evaluation | AJ41: 0.34 kg/m3
D43: Total reduction in water use (m3) | F43: Input the consumer cost of a m3 of water (£) | H43: Input the cost to treat water per / m3 (£) | J43: Start | L43: End | N43: Traded Carbon | P43: Annual customer bill reduction (£) | R43: Annual cost to treat reduction (£) | T43: Annual Carbon Emissions to treat (kg CO2/ML) | AJ43: Cost £ of m3
P45: =D45*F45 -> 0 | R45: =D45*H45 -> 0 | T45: =D45*0.34 -> 0 | AI45: SWW | AJ45: 2.0494 | AK45: http://southwestwater.custhelp.com/app/answers/detail/a_id/172/~/how-much-water-is-a-cubic-metre-and-how-much-does-it-cost%3F
AI46: Sussex | AJ46: 1.6065 | AK46: http://www.southeastwater.co.uk/media/472642/SEW_Charges%20Scheme_%2014_15a.pdf
AI47: W Kent | AJ47: 1.6065 | AK47: http://www.southeastwater.co.uk/media/472642/SEW_Charges%20Scheme_%2014_15a.pdf
AI48: Mid Southern | AJ48: 1.169 | AK48: http://www.southeastwater.co.uk/media/472642/SEW_Charges%20Scheme_%2014_15a.pdf
AI49: Mid Kent | AJ49: 1.515 | AK49: http://www.southeastwater.co.uk/media/472642/SEW_Charges%20Scheme_%2014_15a.pdf
H50: Estimated present value before confidence scores | J50: Confirm the confidence you have in the calculation method and valuation | N50: Estimated present value after confidence scores | AI50: SW | AJ50: 1.201 | AK50: http://www.southeastwater.co.uk/media/472642/SEW_Charges%20Scheme_%2014_15a.pdf
J52: Quantity | L52: Valuation (£) | N52: £
F54: Estimated reduction for customer bills (£) | H54: ='Present Value Calcs'!AU13 -> 0 | N54: =L54*J54*H54 -> 0 | AK54: from code for sustainable homes
F56: Estimated reduction of cost to treat (£) | H56: ='Present Value Calcs'!AX13 -> 0 | N56: =L56*J56*H56 -> 0 | AK56: http://www.ech2o.co.uk/downloads/Water%20and%20the%20Code%20article%20in%20GBM%20Aut%2008.pdf
F58: Estimated reduction of carbon to treat | H58: ='Present Value Calcs'!AQ13 -> 0 | N58: =L58*J58*H58 -> 0 | AK58: On average in the
AK59: UK it takes 1.2 kWh of (mostly) electrical energy to supply
AK60: and treat 1m3 of mains water, which results in 0.7 kg of
AK61: CO2 emissions per m3 of mains water used.
AK63: from Water, Energy and Climate Change - A contribution from the business community
AK64: http://www.gwp.org/Global/ToolBox/References/WaterEnergyandClimateChangeWBCSD_2009.pdf
B65: SECTION RWH3
D67: Notes:
D68: If you have not calculated the reduction in water usage, use the simplified approach to estimate the benefits of rainwater harvesting.
D69: Costs to run pumps (if required) should be included as part of the operational costs.
D73: Annual Rainfall (SAAR) | F73: Population per property | H73: Water use l/hd/d | J73: Maximum % non-potable water supplied by RWH | L73: Typical tank size per property (l) | N73: Typical roof size per property (m2) | P73: Number of properties | T73: Total Volume of water used (m3/yr) | V73: Reduction in water use (m3/yr) | X73: Adjusted volume used | Z73: Consumption with harvester (m3/yr)
T75: =P75*F75*H75*365.25/1000 -> 0 | V75: =X75-Z75 -> 0 | X75: =F75*(100*J75/30)*H75*P75*365.25/1000 -> 0 | Z75: =IFERROR((((1.846*(F75*(J75/30)*H75*30)^1.061)/((L75^0.0424)*(N75^0.0217)*(D75^0.0854)))*P75),"0") -> 0
T77: =P77*F77*H77*365.25/1000 -> 0 | V77: =X77-Z77 -> 0 | X77: =F77*(100*J77/30)*H77*P77*365.25/1000 -> 0 | Z77: =IFERROR((((1.846*(F77*(J77/30)*H77*30)^1.061)/((L77^0.0424)*(N77^0.0217)*(D77^0.0854)))*P77),"0") -> 0
T79: =P79*F79*H79*365.25/1000 -> 0 | V79: =X79-Z79 -> 0 | X79: =F79*(100*J79/30)*H79*P79*365.25/1000 -> 0 | Z79: =IFERROR((((1.846*(F79*(J79/30)*H79*30)^1.061)/((L79^0.0424)*(N79^0.0217)*(D79^0.0854)))*P79),"0") -> 0
T81: =P81*F81*H81*365.25/1000 -> 0 | V81: =X81-Z81 -> 0 | X81: =F81*(100*J81/30)*H81*P81*365.25/1000 -> 0 | Z81: =IFERROR((((1.846*(F81*(J81/30)*H81*30)^1.061)/((L81^0.0424)*(N81^0.0217)*(D81^0.0854)))*P81),"0") -> 0
T83: =P83*F83*H83*365.25/1000 -> 0 | V83: =X83-Z83 -> 0 | X83: =F83*(100*J83/30)*H83*P83*365.25/1000 -> 0 | Z83: =IFERROR((((1.846*(F83*(J83/30)*H83*30)^1.061)/((L83^0.0424)*(N83^0.0217)*(D83^0.0854)))*P83),"0") -> 0
T85: =P85*F85*H85*365.25/1000 -> 0 | V85: =X85-Z85 -> 0 | X85: =F85*(100*J85/30)*H85*P85*365.25/1000 -> 0 | Z85: =IFERROR((((1.846*(F85*(J85/30)*H85*30)^1.061)/((L85^0.0424)*(N85^0.0217)*(D85^0.0854)))*P85),"0") -> 0
T87: =P87*F87*H87*365.25/1000 -> 0 | V87: =X87-Z87 -> 0 | X87: =F87*(100*J87/30)*H87*P87*365.25/1000 -> 0 | Z87: =IFERROR((((1.846*(F87*(J87/30)*H87*30)^1.061)/((L87^0.0424)*(N87^0.0217)*(D87^0.0854)))*P87),"0") -> 0
T89: =P89*F89*H89*365.25/1000 -> 0 | V89: =X89-Z89 -> 0 | X89: =F89*(100*J89/30)*H89*P89*365.25/1000 -> 0 | Z89: =IFERROR((((1.846*(F89*(J89/30)*H89*30)^1.061)/((L89^0.0424)*(N89^0.0217)*(D89^0.0854)))*P89),"0") -> 0
T91: =P91*F91*H91*365.25/1000 -> 0 | V91: =X91-Z91 -> 0 | X91: =F91*(100*J91/30)*H91*P91*365.25/1000 -> 0 | Z91: =IFERROR((((1.846*(F91*(J91/30)*H91*30)^1.061)/((L91^0.0424)*(N91^0.0217)*(D91^0.0854)))*P91),"0") -> 0
T93: =P93*F93*H93*365.25/1000 -> 0 | V93: =T93-Z93 -> 0 | Z93: =IFERROR((((1.846*(F93*H93*J93)^1.061)/((L93^0.0424)*(N93^0.0217)*(D93^0.0854)))*P93),"0") -> 0
T95: =P95*F95*H95*365.25/1000 -> 0 | V95: =T95-Z95 -> 0 | Z95: =IFERROR((((1.846*(F95*H95*J95)^1.061)/((L95^0.0424)*(N95^0.0217)*(D95^0.0854)))*P95),"0") -> 0
T97: =P97*F97*H97*365.25/1000 -> 0 | V97: =T97-Z97 -> 0 | Z97: =IFERROR((((1.846*(F97*H97*J97)^1.061)/((L97^0.0424)*(N97^0.0217)*(D97^0.0854)))*P97),"0") -> 0
T99: =P99*F99*H99*365.25/1000 -> 0 | V99: =T99-Z99 -> 0 | Z99: =IFERROR((((1.846*(F99*H99*J99)^1.061)/((L99^0.0424)*(N99^0.0217)*(D99^0.0854)))*P99),"0") -> 0
T101: =P101*F101*H101*365.25/1000 -> 0 | V101: =T101-Z101 -> 0 | Z101: =IFERROR((((1.846*(F101*H101*J101)^1.061)/((L101^0.0424)*(N101^0.0217)*(D101^0.0854)))*P101),"0") -> 0
T103: =P103*F103*H103*365.25/1000 -> 0 | V103: =T103-Z103 -> 0 | Z103: =IFERROR((((1.846*(F103*H103*J103)^1.061)/((L103^0.0424)*(N103^0.0217)*(D103^0.0854)))*P103),"0") -> 0
T105: =P105*F105*H105*365.25/1000 -> 0 | V105: =T105-Z105 -> 0 | Z105: =IFERROR((((1.846*(F105*H105*J105)^1.061)/((L105^0.0424)*(N105^0.0217)*(D105^0.0854)))*P105),"0") -> 0
T107: =P107*F107*H107*365.25/1000 -> 0 | V107: =T107-Z107 -> 0 | Z107: =IFERROR((((1.846*(F107*H107*J107)^1.061)/((L107^0.0424)*(N107^0.0217)*(D107^0.0854)))*P107),"0") -> 0
R109: Total (m3/yr) | T109: =SUM(T75:T108) -> 0 | V109: =SUM(V75:V108) -> 0
J111: Confirm the start and end year of the evaluation
F113: Input the consumer cost of a m3 of water (£) | H113: Input the cost (£) to treat water per / m3 | J113: Start | L113: End | N113: Traded Carbon | P113: Annual customer bill reduction (£) | R113: Annual cost (£) to treat reduction | T113: Annual Carbon Emissions to treat (kg CO2/ML)
P115: =V109*F115 -> 0 | R115: =V109*H115 -> 0 | T115: =0.34*V109 -> 0
H120: Estimated present value before confidence scores | J120: Confirm the confidence you have in the calculation method and valuation | N120: Estimated present value after confidence scores
J122: Quantity | L122: Valuation (£) | N122: £
F124: Estimated reduction for customer bills (£) | H124: ='Present Value Calcs'!AJ13 -> 0 | N124: =L124*J124*H124 -> 0 | P124: Not used in the final calculation of benefits
F126: Estimated reduction of cost to treat (£) | H126: ='Present Value Calcs'!AM13 -> 0 | N126: =L126*J126*H126 -> 0
F128: Estimated reduction of carbon to treat | H128: ='Present Value Calcs'!AF13 -> 0 | N128: =L128*J128*H128 -> 0
A130: >>HIDE_BELOW

Sheet R - Recreation
P1: Recreation | T1: >>HIDE_ALONG
B2: =ProjDetails -> PROJECT DETAILS - No.: 41521691, Name: Killingworth & Longbenton SuDS, Assmt. Version: 3, Date: Sep 2015.
B4: K E Y
B6: Evidence: Qualitative summary and written evidence
B7: 1 | D7: Reduced CSOs and improved water quality in Letches, West Moor tributary and further downstream in Jesmond Dene, along with new detention areas, will make area more attractive for walkers and other users, as well as reducing odour, increasing local recreational opportunities.
B8: 2 | D8: No information available on use of letches or Killingworth Lake for recreation. However, Newcastle City Council (A Stroll Through Ouseburn Parks, Nov 2012) estimates that there are 34,100 visits to Jesmond Dene per week during the summer. Applying this to a 12 week summer period gives 409,200. Assuming the number of visits for the rest of year (40 weeks) is half the amount in the summer gives (40 x 17,050) 682,000 visits. Total annual visits therefore estimated at 1,091,200. Same source found that 2% of visitors cited unpleasant smell from Ouseburn as key dislike associated with visiting the Dene. Apply this to total annual visits to get estimate of likely additional visits to the Dene following the improvements, i.e. 21,824 visits.
B9: 3 | D9: Apply this to Sen et al value of general recreational visit (grassland), since this most closely matches habitat types in area and recreational benefits expected
B10: 4 | D10: Confidence score for quantity is 50%, reflecting broad nature of estimate above. Score for value as 75% as this matches quite closely type of benefit expected.
B11: 5 | D11: Benefits expected to start in 2017 and end in 2055
D13: Notes
D14: Overview of the sections to help assess the impact on recreation
D15: Only complete one section unless you are accounting for other benefits not included in section R1.
F18: SECTION R1 | H18: SECTION R2
F19: Enables you to enter site specific values of recreational activities that are supported through the construction of SuDS. | H19: Use this section to supports you to calculate some common recreational activities that SuDS may enhance
B22: SECTION R1 - User calculated present value from recreation
D24: Notes
D25: If you have calculated the recreational benefits for a specific site or catchment (as a present value), enter it here.
H27: Confirm the confidence you have in the calculation method and valuation | P27: Confirm the start and end year of the evaluation
F29: Confirm the present value of the benefit £ | H29: Quantity | J29: Valuation (£) | L29: Present benefit after applying the confidence values | P29: Start | R29: End
L31: =J31*H31*F31 -> 0
B35: SECTION R2 - Specific activities to support recreation assessment
D37: Notes: Where you have identified and monetised other benefits, consider adding them to the Section R1.
B43: General recreational visits | J43: Confirm the confidence you have in the calculation method and valuation
B45: Scenario | F45: Estimated no. of general recreational visits (per year) | H45: Select appropriate monetary value description (or enter used defined) £/visit | J45: Quantity | L45: Valuation (£) | N45: Present value before certainty applied | P45: Present value after certainty applied | AC45: FROM VALUES LIBRARY | AD45: =ValuesLibrary!K83 -> 1.54 | AE45: =ValuesLibrary!K84 -> 1.82 | AF45: =ValuesLibrary!K85 -> 5.36 | AG45: =ValuesLibrary!M86 -> user not defined
B47: Baseline scenario | D47: ='Project Inputs'!$D$14 -> Includes grasslands, farmland, woodland, freshwater, semi-urban. With no intervention, flood risk, water quality will worsen. See report Table 1 | N47: ='Present Value Calcs'!DG13 -> 0 | P47: =N47*L47*J47 -> 0
B49: Proposed scenario | D49: ='Project Inputs'!$D$16 -> Combination of surface water separation measures, inc attenuation areas, diversion of Longbenton Letch & underground pipeline (sites 1, 3, 5, 7) | F49: 21824 | H49: 1.54 | J49: 0.5 | L49: 0.75 | N49: ='Present Value Calcs'!DI13 -> 641614.5588 | P49: =N49*L49*J49 -> 240605.4595
D51: Confirm the start and end year of the evaluation | L51: Difference | N51: =N49-N47 -> 641614.5588 | P51: =P49-P47 -> 240605.4595
D53: Start | F53: End
D55: 2017 | F55: 2055 | AC55: Grasslands
AC56: Freshwater and floodplains
AC57: Greenbelt and urban fringe
AC58: User defined for recreational visits
B59: Constructed wetlands | J59: Confirm the confidence you have in the calculation method and valuation
B61: Scenario | F61: Area of constructed wetlands (ha) | H61: Select appropriate monetary value description (or enter used defined) £/ha/yr | J61: Quantity | L61: Valuation (£) | N61: Present value before certainty applied | P61: Present value after certainty applied
B63: Baseline scenario | D63: ='Project Inputs'!$D$14 -> Includes grasslands, farmland, woodland, freshwater, semi-urban. With no intervention, flood risk, water quality will worsen. See report Table 1 | N63: ='Present Value Calcs'!DK13 -> 0 | P63: =N63*L63*J63 -> 0
B65: Proposed scenario | D65: ='Project Inputs'!$D$16 -> Combination of surface water separation measures, inc attenuation areas, diversion of Longbenton Letch & underground pipeline (sites 1, 3, 5, 7) | N65: ='Present Value Calcs'!DM13 -> 0 | P65: =N65*L65*J65 -> 0
D67: Confirm the start and end year of the evaluation | L67: Difference | N67: =N65-N63 -> 0 | P67: =P65-P63 -> 0
D69: Start | F69: End
B74: Coarse angling | J74: Confirm the confidence you have in the calculation method and valuation
B76: Scenario | F76: Estimated no. of coarse angling visits (per year) | H76: Select appropriate monetary value description (or enter used defined) £/visit | J76: Quantity | L76: Valuation (£) | N76: Present value before certainty applied | P76: Present value after certainty applied
B78: Baseline scenario | D78: ='Project Inputs'!$D$14 -> Includes grasslands, farmland, woodland, freshwater, semi-urban. With no intervention, flood risk, water quality will worsen. See report Table 1 | N78: ='Present Value Calcs'!DO13 -> 0 | P78: =N78*L78*J78 -> 0
B80: Proposed scenario | D80: ='Project Inputs'!$D$16 -> Combination of surface water separation measures, inc attenuation areas, diversion of Longbenton Letch & underground pipeline (sites 1, 3, 5, 7) | N80: ='Present Value Calcs'!DQ13 -> 0 | P80: =N80*L80*J80 -> 0
D82: Confirm the start and end year of the evaluation | L82: Difference | N82: =N80-N78 -> 0 | P82: =P80-P78 -> 0
D84: Start | F84: End
B89: Game angling | J89: Confirm the confidence you have in the calculation method and valuation
B91: Scenario | F91: Estimated no. of coarse angling visits (per year) | H91: Select appropriate monetary value description (or enter used defined) £/visit | J91: Quantity | L91: Valuation (£) | N91: Present value before certainty applied | P91: Present value after certainty applied
B93: Baseline scenario | D93: ='Project Inputs'!$D$14 -> Includes grasslands, farmland, woodland, freshwater, semi-urban. With no intervention, flood risk, water quality will worsen. See report Table 1 | N93: ='Present Value Calcs'!DS13 -> 0 | P93: =N93*L93*J93 -> 0
B95: Proposed scenario | D95: ='Project Inputs'!$D$16 -> Combination of surface water separation measures, inc attenuation areas, diversion of Longbenton Letch & underground pipeline (sites 1, 3, 5, 7) | N95: ='Present Value Calcs'!DU13 -> 0 | P95: =N95*L95*J95 -> 0
D97: Confirm the start and end year of the evaluation | L97: Difference | N97: =N95-N93 -> 0 | P97: =P95-P93 -> 0
D99: Start | F99: End
A104: >>HIDE_BELOW

Sheet TW - Treating wastewater
U1: Treating wastewater | W1: >>HIDE_ALONG
B2: =ProjDetails -> PROJECT DETAILS - No.: 41521691, Name: Killingworth & Longbenton SuDS, Assmt. Version: 3, Date: Sep 2015.
B4: K E Y
B5: Evidence: Qualitative summary and written evidence
B6: 1 | C6: The change in flows to works under the proposed option, and the category of works, is not currently known. Therefore, benefits in this category cannot currently be estimated.
B7: 2
B8: 3
B9: 4
B10: 5
C13: Notes
C14: Overview of the sections to help choose which one to use to assess the potential reduction in treatment
C15: Only complete one section.
C16: Its expected that a change in flows to the works will only occur for a retrofit or redevelopment scheme
E18: SECTION TW1 | G18: SECTION TW2
E19: You have already assessed the present value benefit of reducing flows to the works. Enter values in here. | G19: Use this section if you need to estimate the impact by understanding the change in flows to the works
B22: SECTION TW1
C24: Notes:
C25: Have you undertaken an assessment of the impact from a change in flows to the wastewater treatment works and calculated the present value?
C26: If Yes please enter the information below.
C27: If not, please go to section TW2 and estimate the impact on the works based on a change in volume.
E29: Scenario | G29: Present value before certainty / confidence applied | I29: Level of certainty of the quantity calculated (select from list) | K29: Level of confidence of the monetary value selected/used | M29: Present value after certainty / confidence applied | Q29: Confirm the start and end year of the evaluation
C31: Proposed scenario | E31: ='Project Inputs'!$D$16 -> Combination of surface water separation measures, inc attenuation areas, diversion of Longbenton Letch & underground pipeline (sites 1, 3, 5, 7) | M31: =G31*I31*K31 -> 0 | Q31: Start | S31: End
B37: SECTION TW2
C39: Notes
C40: Use this section to estimate the present value impact on the works by knowing the average change in flows and type of works. Match your works to the closest type in the table below (see guidance - under development)
E43: Scenario | G43: Daily average flow (m3/d) | Q43: Confirm the start and end year of the evaluation
C45: Baseline scenario | E45: ='Project Inputs'!$D$14 -> Includes grasslands, farmland, woodland, freshwater, semi-urban. With no intervention, flood risk, water quality will worsen. See report Table 1 | I45: Traded Carbon (Electricity) | K45: Non-Traded Carbon (Process Emissions) | M45: Energy Type | O45: Energy Rate | Q45: Start | S45: End
C47: Proposed scenario | E47: ='Project Inputs'!$D$16 -> Combination of surface water separation measures, inc attenuation areas, diversion of Longbenton Letch & underground pipeline (sites 1, 3, 5, 7) | K47: Central | M47: Commercial/ Public sector | O47: Central
E51: Works Category | G51: Size | I51: Application | M51: Typical PE range | O51: Gravity or pumped
G53: Large | I53: =IFERROR(VLOOKUP($E$53&$G$53,CHOOSE({1,2},$AF$66:$AF$75&$AG$66:$AG$75,$AH$66:$AH$75),2,0),"Choice Error!") -> Choice Error! | K53: Nutrient Removal | M53: =IFERROR(VLOOKUP($G$53&$I$53&$K$53,CHOOSE({1,2},$AG$66:$AG$75&$AH$66:$AH$75&$AI$66:$AI$75,$AJ$66:$AJ$75),2,0),"Choice Error!") -> Choice Error! | O53: Pumped | X53: =IFERROR(VLOOKUP($E$53&$G$53&$I$53&$K$53&$M$53,CHOOSE({1,2},$AF$66:$AF$75&$AG$66:$AG$75&$AH$66:$AH$75&$AI$66:$AI$75&$AJ$66:$AJ$75,$AE$66:$AE$75),2,0),0) -> 0 | Y53: =IFERROR(MATCH(O53,$AL$65:$AM$65,0),0) -> 2 | AC53: Large | AD53: URBAN | AE53: Sensitive receiving water
X54: ROW | Y54: COLUMN | AC54: option doesn't exist for instance.. But is selectedable in the dropdowns
E55: Annual value Operating (£), Energy (KwH), Carbon (Tonnes CO2e) | G55: Present value before certainty / confidence applied | I55: Level of certainty of the quantity calculated (select from list) | K55: Level of confidence of the monetary value selected/used | M55: Present value after certainty / confidence applied | AC55: have cleaned up the equations to remove the 'helpeer' columns which worked ok but in the longer term will prove confusing and need more nmanagement,
C57: Operating | E57: =IF(OR(X53=0,Y53=0),"Choose WwTW Category and Type",OFFSET($AK$65,$X$53,$Y$53,1,1)) -> Choose WwTW Category and Type | G57: ='Present Value Calcs'!BM13 -> 0 | I57: 0.75 | K57: 0.75 | M57: =G57*I57*K57 -> 0
C59: Energy | E59: =IF(OR(X53=0,Y53=0),"Choose WwTW Category and Type",OFFSET($AN$65,$X$53,$Y$53,1,1)) -> Choose WwTW Category and Type | G59: ='Present Value Calcs'!BI13 -> 0 | I59: 0.75 | K59: 1 | M59: =G59*I59*K59 -> 0
C61: Carbon (electricity) | G61: ='Present Value Calcs'!BK13 -> 0 | I61: 0.75 | K61: 1 | M61: =G61*I61*K61 -> 0
C63: Carbon (process emissions) | E63: =IF(OR(X53=0,Y53=0),"Choose WwTW Category and Type",OFFSET($AQ$65,$X$53,$Y$53,1,1)) -> Choose WwTW Category and Type | G63: ='Present Value Calcs'!BO13 -> 0 | I63: 0.75 | K63: 1 | M63: =G63*I63*K63 -> 0 | AL63: OPERATING | AO63: ENERGY | AR63: CARBON
A64: >>HIDE_BELOW | X64: Daily Average Flow (m3/d) | AC64: inconsistent naming | AL64: Annual benefit estimate | AO64: Annual benefit estimate | AR64: Annual benefit estimate
X65: 115045 | Y65: (331301*J42)-130.37 | AA65: DataSource6URBAN | AB65: DataSource4RURAL | AC65: DataSource3RURAL | AF65: Works OFWAT Category | AG65: Size | AH65: Application | AJ65: Typical PE range | AL65: Gravity | AM65: Pumped | AO65: Gravity | AP65: Pumped | AR65: Gravity | AS65: Pumped
G66: Traded Carbon | K66: Energy Tariff Type | O66: Energy Rate | X66: 115045 | Y66: =(368723*J43)-32.956 | AA66: Nutrient Removal | AB66: Sensitive receiving water | AC66: UWWTD | AE66: 1 | AF66: 6 | AG66: Large | AH66: URBAN | AI66: Nutrient Removal | AJ66: > 150k | AL66: =($G$45/$X65)*IFERROR((994167*(1-($G$47/$G$45))+2484.3),"0") -> 0 | AM66: =AL66+($G$45/$X65)*IFERROR((119181*(1-($G$47/$G$45))-3.4615),"0") -> 0 | AO66: =($G$45/$X65)*IFERROR((253350*(1-($G$47/$G$45))-144.34),"0") -> 0 | AP66: =($G$45/$X65)*IFERROR((2000000*(1-($G$47/$G$45))-144.34),"0") -> 0 | AR66: =($G$45/$X65)*IFERROR((9.1*(1-($G$47/$G$45))*100),"0") -> 0 | AS66: =($G$45/$X65)*IFERROR((5.081*(1-($G$47/$G$45))*100),"0") -> 0
X67: 46138.36302 | Y67: (65377*J44)+24.01 | AA67: UWWTD | AB67: UWWTD | AE67: 2 | AF67: 6 | AG67: Large | AH67: URBAN | AI67: UWWTD | AJ67: > 150k | AL67: =($G$45/$X$66)*IFERROR(((1000000*(1-($G$47/$G$45)))+2575.9),"0") -> 0 | AM67: =AL67+($G$45/$X$66)*IFERROR(((123576*(1-($G$47/$G$45)))-3.5891),"0") -> 0 | AO67: =($G$45/$X$66)*IFERROR(((205243*(1-($G$47/$G$45)))-11.125),"0") -> 0 | AP67: =($G$45/$X$66)*IFERROR(((2000000*(1-($G$47/$G$45)))-11.125),"0") -> 0 | AR67: =($G$45/$X66)*IFERROR((9.213*(1-($G$47/$G$45))*100),"0") -> 0 | AS67: =($G$45/$X66)*IFERROR((8.601*(1-($G$47/$G$45))*100),"0") -> 0
G68: Central | K68: Commercial/ Public sector | O68: Central | X68: 60075.84792 | Y68: 175948*J45-415.01 | AE68: 3 | AF68: 6 | AG68: Medium | AH68: URBAN | AI68: Nutrient Removal | AJ68: 75-150k | AL68: =($G$45/$X$67)*IFERROR((513617*(1-($G$47/$G$45))-0.504),"0") -> 0 | AM68: =AL68+($G$45/$X$67)*IFERROR((49507*(1-($G$47/$G$45))-0.9732),"0") -> 0 | AO68: =($G$45/$X$67)*IFERROR((2560.7*(1-($G$47/$G$45))-0.0567),"0") -> 0 | AP68: =($G$45/$X$67)*IFERROR((398179*(1-($G$47/$G$45))-42.764),"0") -> 0 | AR68: =($G$45/$X67)*IFERROR((0.0032*(1-($G$47/$G$45))*100),"0") -> 0 | AS68: =($G$45/$X67)*IFERROR((1.958*(1-($G$47/$G$45))*100),"0") -> 0
X69: 10403.95133 | Y69: (28298*J46)+8.6671 | AE69: 4 | AF69: 6 | AG69: Medium | AH69: URBAN | AI69: UWWTD | AJ69: 75-150k | AL69: =($G$45/$X$68)*IFERROR((210799*(1-($G$47/$G$45))-1.165),"0") -> 0 | AM69: =AL69+($G$45/$X$68)*IFERROR((30353*(1-($G$47/$G$45))-0.5842),"0") -> 0 | AO69: =($G$45/$X$68)*IFERROR((430688*(1-($G$47/$G$45))+ 1.6807),"0") -> 0 | AP69: =($G$45/$X$68)*IFERROR((1000000*(1-($G$47/$G$45))-3187.1),"0") -> 0 | AR69: =($G$45/$X68)*IFERROR((1.6462*(1-($G$47/$G$45))*100),"0") -> 0 | AS69: =($G$45/$X68)*IFERROR((1.673*(1-($G$47/$G$45))*100),"0") -> 0
X70: 30822.92811 | Y70: (71545*J47)-0.0053 | AE70: 5 | AF70: 6 | AG70: Small | AH70: URBAN | AI70: Nutrient Removal | AJ70: < 75k | AL70: =($G$45/$X$69)*IFERROR(((83609*(1-($G$47/$G$45)))-0.2422),"0") -> 0 | AM70: =AL70+($G$45/$X$69)*IFERROR(((32434*(1-($G$47/$G$45)))-0.2581),"0") -> 0 | AO70: =($G$45/$X$69)*IFERROR(((0*(1-($G$47/$G$45)))-0),"0") -> 0 | AP70: =($G$45/$X$69)*IFERROR(((129041*(1-($G$47/$G$45)))-0.123),"0") -> 0 | AR70: =($G$45/$X69)*IFERROR((0.0394*(1-($G$47/$G$45))*100),"0") -> 0 | AS70: =($G$45/$X69)*IFERROR((0.394*(1-($G$47/$G$45))*100),"0") -> 0
X71: 2737 | Y71: (6386.9*J48)+2.3834 | AE71: 6 | AF71: 6 | AG71: Small | AH71: URBAN | AI71: UWWTD | AJ71: < 75k | AL71: =($G$45/$X$70)*IFERROR(((341250*(1-($G$47/$G$45)))-0.4527),"0") -> 0 | AM71: =AL71+($G$45/$X$70)*IFERROR(((3.5991*(1-($G$47/$G$45)))-0.0035),"0") -> 0 | AO71: =($G$45/$X$70)*IFERROR(((559901*(1-($G$47/$G$45)))-0.0265),"0") -> 0 | AP71: =($G$45/$X$70)*IFERROR(((958284*(1-($G$47/$G$45)))-0.0265),"0") -> 0 | AR71: =($G$45/$X70)*IFERROR((1.473*(1-($G$47/$G$45))*100),"0") -> 0 | AS71: =($G$45/$X70)*IFERROR((1.473*(1-($G$47/$G$45))*100),"0") -> 0
X72: 1878.472545 | Y72: (956.91*J49)+1.6309 | AE72: 7 | AF72: 4 | AG72: Medium | AH72: RURAL | AI72: Sensitive receiving water | AJ72: > 5k | AL72: =($G$45/$X$71)*IFERROR(((7068.5*(1-($G$47/$G$45)))-0.0234),"0") -> 0 | AM72: =AL72+($G$45/$X$71)*IFERROR(((23.613*(1-($G$47/$G$45)))-0.0221),"0") -> 0 | AO72: =($G$45/$X$71)*IFERROR(((45321*(1-($G$47/$G$45)))-0.0087),"0") -> 0 | AP72: =($G$45/$X$71)*IFERROR(((80696*(1-($G$47/$G$45)))-0.0087),"0") -> 0 | AR72: =($G$45/$X71)*IFERROR((0.267*(1-($G$47/$G$45))*100),"0") -> 0 | AS72: =($G$45/$X71)*IFERROR((0.074*(1-($G$47/$G$45))*100),"0") -> 0
X73: 839.2777778 | Y73: (1981.1*J50)+2.7449 | AE73: 8 | AF73: 4 | AG73: Medium | AH73: RURAL | AI73: UWWTD | AJ73: > 5k | AL73: =($G$45/$X$72)*IFERROR(((7612.8*(1-($G$47/$G$45)))-0.436),"0") -> 0 | AM73: =AL73+($G$45/$X$72)*IFERROR(((28.514*(1-($G$47/$G$45)))-0.0268),"0") -> 0 | AO73: =($G$45/$X$72)*IFERROR(((233.66*(1-($G$47/$G$45)))+0.1435),"0") -> 0 | AP73: =($G$45/$X$72)*IFERROR(((24279*(1-($G$47/$G$45)))-0.000000000002),"0") -> 0 | AR73: =($G$45/$X72)*IFERROR((0.28*(1-($G$47/$G$45))*100),"0") -> 0 | AS73: =($G$45/$X72)*IFERROR((0.089*(1-($G$47/$G$45))*100),"0") -> 0
X74: 123.9380926 | Y74: (180.19*J51)-0.0037 | AE74: 9 | AF74: 4 | AG74: Small | AH74: RURAL | AI74: Sensitive receiving water | AJ74: < 5k | AL74: =($G$45/$X$73)*IFERROR(((4638.5*(1-($G$47/$G$45)))-1.746),"0") -> 0 | AM74: =AL74+($G$45/$X$73)*IFERROR(((24.561*(1-($G$47/$G$45)))-0.023),"0") -> 0 | AO74: =($G$45/$X$73)*IFERROR(((6117.6*(1-($G$47/$G$45)))+25.165),"0") -> 0 | AP74: =($G$45/$X$73)*IFERROR(((16965*(1-($G$47/$G$45)))+25.165),"0") -> 0 | AR74: =($G$45/$X73)*IFERROR((0.084*(1-($G$47/$G$45))*100),"0") -> 0 | AS74: =($G$45/$X73)*IFERROR((0.048*(1-($G$47/$G$45))*100),"0") -> 0
AE75: 10 | AF75: 3 | AG75: Small | AH75: RURAL | AI75: UWWTD | AJ75: < 5k | AL75: =($G$45/$X$74)*IFERROR(((1082.4*(1-($G$47/$G$45)))+7.3316),"0") -> 0 | AM75: =AL75+($G$45/$X$74)*IFERROR(((3.9262*(1-($G$47/$G$45)))-0.0037),"0") -> 0 | AO75: =($G$45/$X$74)*IFERROR(((0*(1-($G$47/$G$45)))-0),"0") -> 0 | AP75: =($G$45/$X$74)*IFERROR(((1601.9*(1-($G$47/$G$45)))),"0") -> 0 | AR75: =($G$45/$X74)*IFERROR((0.023*(1-($G$47/$G$45))*100),"0") -> 0 | AS75: =($G$45/$X74)*IFERROR((0.008*(1-($G$47/$G$45))*100),"0") -> 0
AL76: done | AM76: done | AO76: done | AP76: to do | AR76: done | AS76: to do
AO81: used to calculate the energy and carbon automatically from the energy
AR82: Used to calculate the carbon process emissions

Sheet WQ - Water quality
W1: Water quality | Y1: >>HIDE_ALONG
B2: =ProjDetails -> PROJECT DETAILS - No.: 41521691, Name: Killingworth & Longbenton SuDS, Assmt. Version: 3, Date: Sep 2015.
B4: K E Y
B5: Evidence: Qualitative summary and written evidence
B6: 1 | C6: Improved water quality in letches and potentially in Ouseburn due to reduced number, frequency and volume of CSO spills.
B7: 2 | C7: Along the upstream portion of the Forest Hall Letch approximately 900 m of letch will be improved. At the downstream end of Longbenton Letch, 50-100 m of new watercourse will be created / daylighted. In addition, around 5km of Ouseburn (all the way down to the Tyne) will improve
B8: 3 | C8: Current water quality in letches and Ouseburn is 'moderate', which could move to good if CSO issues are resolved
B9: 4 | C9: Confidence level for quantitative estimate is 50% (as water quality also impacted by other issues), and for monetary value is 100% (based on EA national survey)
B10: 5 | C10: Benefits expected to start in 2017 and end in 2055
C13: Notes
C14: Overview of the sections to help choose which one to capture the impact on water quality (in receiving waters)
C15: Only complete one section.
C16: Further help (to be developed) is provided in the guidance on how to estimate the impact depending upon the available data
E18: SECTION WQ1 | G18: SECTION WQ2
E19: You have already assessed the present value benefit of the impact on water quality, enter values in here. | G19: If you require some support to estimate the impact, based on the location of the change in water quality classification and distance improved, enter values here.
B22: SECTION WQ1
C24: Notes:
C25: If you have calculated the impact of the proposals on water quality enter the present values here. For a retrofit, you only need to enter the present value for the proposed scenario | AE25: Note to check: Do we need to consider the positive and negative impact to the WaSC (loss of revenue)
E27: Scenario | G27: Present value before certainty / confidence applied | I27: Level of certainty of the quantity calculated (select from list) | K27: Level of confidence of the monetary value selected/used | M27: Present value damage after certainty / confidence applied | Q27: Confirm the start and end year of the evaluation
C29: Baseline scenario | E29: ='Project Inputs'!$D$14 -> Includes grasslands, farmland, woodland, freshwater, semi-urban. With no intervention, flood risk, water quality will worsen. See report Table 1 | G29: 0 | M29: =G29*I29*K29 -> 0 | Q29: Start | S29: End
C31: Proposed scenario | E31: ='Project Inputs'!$D$16 -> Combination of surface water separation measures, inc attenuation areas, diversion of Longbenton Letch & underground pipeline (sites 1, 3, 5, 7) | M31: =G31*I31*K31 -> 0
I32: Average confidence values
E33: Sum of benefits | G33: =G31-G29 -> 0 | I33: =IFERROR(AVERAGE(I21:I31),"") ->  | K33: =IFERROR(AVERAGE(K21:K31),"") ->  | M33: =M31-M29 -> 0
B38: SECTION WQ2
C40: Notes:
C41: Use this section to estimate the impact of the proposals on the water quality of the receiving water. For a retrofit, you only need to enter the present value for the proposed scenario. Refer to the guidance (under development) to help you calculate the impact the SuDS may have, based upon the available information (and the updated SuDS Manual (2015). | AE41: Note to check: Do we need to consider the positive and negative impact to the WaSC (loss of revenue)
G43: Confirm the start and end year of the evaluation
G45: Start | I45: End
G47: 2017 | I47: 2055
E49: Scenario | G49: Select the change in water quality classification (from - to) | I49: Select region | K49: Select the monetary value of change per km | M49: Monetary value selected (£) | O49: Length of the water course (km) | Q49: Present value before certainty / confidence applied | S49: Level of certainty of the quantity calculated (select from list) | U49: Level of confidence of the monetary value selected/used | W49: Present value after certainty / confidence applied
C51: Baseline scenario | E51: ='Project Inputs'!$D$14 -> Includes grasslands, farmland, woodland, freshwater, semi-urban. With no intervention, flood risk, water quality will worsen. See report Table 1 | M51: =SUMPRODUCT((rngWaterGrade=G51)*(rngWaterRegion=I51)*(rngWaterSubGrade=K51)*(rngWaterValues)) -> 0 | Q51: ='Present Value Calcs'!EC13 -> 0 | W51: =Q51*S51*U51 -> 0
C53: Proposed scenario | E53: ='Project Inputs'!$D$16 -> Combination of surface water separation measures, inc attenuation areas, diversion of Longbenton Letch & underground pipeline (sites 1, 3, 5, 7) | G53: Moderate to Good | I53: Northumbria | K53: Central | M53: =SUMPRODUCT((rngWaterGrade=G53)*(rngWaterRegion=I53)*(rngWaterSubGrade=K53)*(rngWaterValues)) -> 19300 | O53: 6 | Q53: ='Present Value Calcs'!EE13 -> 2210689.23 | S53: 0.5 | U53: 1 | W53: =Q53*S53*U53 -> 1105344.615
O55: Difference between base and proposal | Q55: =Q53-Q51 -> 2210689.23 | W55: =W53-W51 -> 1105344.615
A57: >>HIDE_BELOW | G57: lstWaterGrade | I57: lstWaterRegion | K57: lstWaterSubGrade

Sheet User-defined benefits
Q1: User defined benefits | Z1: >>HIDE_ALONG
B2: =ProjDetails -> PROJECT DETAILS - No.: 41521691, Name: Killingworth & Longbenton SuDS, Assmt. Version: 3, Date: Sep 2015.
B4: K E Y
B6: Evidence: Qualitative summary and written evidence
B7: 1 | C7: UD1 - loss of crops / revenue. Amount of land currently around Forest Hall Letch used for crops to form 2-stage channel at upper end and attenuation storage at lower end near Quorum: Area 1 – Palmersville west (north of Woodlands Grange) ~3,000m²; Area 2 – Palmersville (north of Palmers Green) ~ 1,700m²; Area 3 – Palmersville (north of Laurel Avenue) ~ 4,500m². Total = 9,200m². For monetary value, use value of unequipped arable land per hectare in Northumberland (£12,227 per ha) (Government Valuation Office, 2011 Property Market Report http://www.voa.gov.uk/dvs/_downloads/pmr_2011.pdf). This is annual cost occurring from 2017 until 2055
B8: 2 | C8: UD2 - Noise and disruption from the construction work. Assume 300 (same as amenity category) of the 20,000 properties in the area experience an increase in noise and disruption. For monetary value, use £58.17 per household per year (Department of Transport, 2012, The Noise Sub-Objective, http://www.dft.gov.uk/webtag/documents/expert/pdf/unit3_3_2-noise-05-12.pdf). This is one-off cost occurring in 2016 only
B9: 3 | C9: Assume 75% confidence level for both quantity and monetary estimates for both impacts
B10: 4
B11: 5
C13: Notes
C14: Overview of the sections to help include other impacts
C15: Complete as many sections as required.
E17: SECTION UD1 | G17: SECTION UD2 | I17: SECTION UD3 | K17: SECTION UD4 | M17: SECTION UD5
E18: Define your own benefit if you have your own values | G18: Define your own benefit if you have your own values | I18: Define your own benefit if you have your own values | K18: Define your own benefit if you have your own values | M18: Define your own benefit if you have your own values
B21: SECTION UD1
C23: Notes
C24: Complete this section where you have defined the yearly benefit for your impact to calculate the present value
C25: If you are only calculating the difference, complete the proposed option only.
C27: Impact name/category | G27: Crops
O28: Confirm the confidence you have in the calculation method and valuation | U28: Confirm the start and end year of the evaluation
E30: Option | G30: Record the annual quantity and units | I30: Record the monetary value and units | K30: Confirm the annual monetised impact (£/yr) | M30: Present value of the benefit £ | O30: Quantity | Q30: Valuation (£) | S30: Present value after applying confidence | U30: Start | W30: End
C32: Baseline option | E32: ='Project Inputs'!$D$14 -> Includes grasslands, farmland, woodland, freshwater, semi-urban. With no intervention, flood risk, water quality will worsen. See report Table 1 | K32: 11249 | M32: ='Present Value Calcs'!EH13 -> 214749.9408 | O32: 0.75 | Q32: 0.75 | S32: =Q32*O32*M32 -> 120796.8417 | U32: 2017 | W32: 2055
C34: Proposed scenario | E34: ='Project Inputs'!$D$16 -> Combination of surface water separation measures, inc attenuation areas, diversion of Longbenton Letch & underground pipeline (sites 1, 3, 5, 7) | M34: ='Present Value Calcs'!EJ13 -> 0 | S34: =Q34*O34*M34 -> 0
O35: Average confidence values
K36: Sum of benefits | M36: =M34-M32 -> -214749.9408 | O36: =IFERROR(AVERAGE(O23:O34),"") -> 0.75 | Q36: =IFERROR(AVERAGE(Q23:Q34),"") -> 0.75 | S36: =S34-S32 -> -120796.8417
B39: SECTION UD2
C41: Notes
C42: Complete this section where you have defined the yearly benefit for your impact to calculate the present value
C43: If you are only calculating the difference, complete the proposed option only.
C45: Impact name/category | G45: Noise & disruption
O46: Confirm the confidence you have in the calculation method and valuation | U46: Confirm the start and end year of the evaluation
E48: Option | G48: Record the annual quantity and units | I48: Record the monetary value and units | K48: Confirm the annual monetised impact (£/yr) | M48: Present value of the benefit £ | O48: Quantity | Q48: Valuation (£) | S48: Present value after applying confidence | U48: Start | W48: End
C50: Baseline option | E50: ='Project Inputs'!$D$14 -> Includes grasslands, farmland, woodland, freshwater, semi-urban. With no intervention, flood risk, water quality will worsen. See report Table 1 | M50: ='Present Value Calcs'!EL13 -> 0 | S50: =Q50*O50*M50 -> 0
C52: Proposed scenario | E52: ='Project Inputs'!$D$16 -> Combination of surface water separation measures, inc attenuation areas, diversion of Longbenton Letch & underground pipeline (sites 1, 3, 5, 7) | G52: 300 | I52: 58.17 | K52: =-G52*I52 -> -17451 | M52: ='Present Value Calcs'!EN13 -> -30947.34047 | O52: 0.75 | Q52: 0.75 | S52: =Q52*O52*M52 -> -17407.87902 | U52: 2016 | W52: 2017
O53: Average confidence values
K54: Sum of benefits | M54: =M52-M50 -> -30947.34047 | O54: =IFERROR(AVERAGE(O41:O52),"") -> 0.75 | Q54: =IFERROR(AVERAGE(Q41:Q52),"") -> 0.75 | S54: =S52-S50 -> -17407.87902
B57: SECTION UD3
C59: Notes
C60: Complete this section where you have defined the yearly benefit for your impact to calculate the present value
C61: If you are only calculating the difference, complete the proposed option only.
C63: Impact name/category | G63: Vehicle Damage Avoided (MCM)
O64: Confirm the confidence you have in the calculation method and valuation | U64: Confirm the start and end year of the evaluation
E66: Option | G66: Record the annual quantity and units | I66: Record the monetary value and units | K66: Confirm the annual monetised impact (£/yr) | M66: Present value of the benefit £ | O66: Quantity | Q66: Valuation (£) | S66: Present value after applying confidence | U66: Start | W66: End
C68: Baseline option | E68: ='Project Inputs'!$D$14 -> Includes grasslands, farmland, woodland, freshwater, semi-urban. With no intervention, flood risk, water quality will worsen. See report Table 1 | M68: ='Present Value Calcs'!EP13 -> 0 | S68: =Q68*O68*M68 -> 0
C70: Proposed scenario | E70: ='Project Inputs'!$D$16 -> Combination of surface water separation measures, inc attenuation areas, diversion of Longbenton Letch & underground pipeline (sites 1, 3, 5, 7) | K70: 45906 | M70: ='Present Value Calcs'!ER13 -> 40004.4269 | O70: 1 | Q70: 1 | S70: =Q70*O70*M70 -> 40004.4269 | U70: 2017 | W70: 2017
O71: Average confidence values
K72: Sum of benefits | M72: =M70-M68 -> 40004.4269 | O72: =IFERROR(AVERAGE(O59:O70),"") -> 1 | Q72: =IFERROR(AVERAGE(Q59:Q70),"") -> 1 | S72: =S70-S68 -> 40004.4269
B75: SECTION UD4
C77: Notes
C78: Complete this section where you have defined the yearly benefit for your impact to calculate the present value
C79: If you are only calculating the difference, complete the proposed option only.
C81: Impact name/category
O82: Confirm the confidence you have in the calculation method and valuation | U82: Confirm the start and end year of the evaluation
E84: Option | G84: Record the annual quantity and units | I84: Record the monetary value and units | K84: Confirm the annual monetised impact (£/yr) | M84: Present value of the benefit £ | O84: Quantity | Q84: Valuation (£) | S84: Present value after applying confidence | U84: Start | W84: End
C86: Baseline option | E86: ='Project Inputs'!$D$14 -> Includes grasslands, farmland, woodland, freshwater, semi-urban. With no intervention, flood risk, water quality will worsen. See report Table 1 | M86: ='Present Value Calcs'!ET13 -> 0 | S86: =Q86*O86*M86 -> 0
C88: Proposed scenario | E88: ='Project Inputs'!$D$16 -> Combination of surface water separation measures, inc attenuation areas, diversion of Longbenton Letch & underground pipeline (sites 1, 3, 5, 7) | M88: ='Present Value Calcs'!EV13 -> 0 | S88: =Q88*O88*M88 -> 0
O89: Average confidence values
K90: Sum of benefits | M90: =M88-M86 -> 0 | O90: =IFERROR(AVERAGE(O77:O88),"") ->  | Q90: =IFERROR(AVERAGE(Q77:Q88),"") ->  | S90: =S88-S86 -> 0
B93: SECTION UD5
C95: Notes
C96: Complete this section where you have defined the yearly benefit for your impact to calculate the present value
C97: If you are only calculating the difference, complete the proposed option only.
C99: Impact name/category
O100: Confirm the confidence you have in the calculation method and valuation | U100: Confirm the start and end year of the evaluation
E102: Option | G102: Record the annual quantity and units | I102: Record the monetary value and units | K102: Confirm the annual monetised impact (£/yr) | M102: Present value of the benefit £ | O102: Quantity | Q102: Valuation (£) | S102: Present value after applying confidence | U102: Start | W102: End
C104: Baseline option | E104: ='Project Inputs'!$D$14 -> Includes grasslands, farmland, woodland, freshwater, semi-urban. With no intervention, flood risk, water quality will worsen. See report Table 1 | M104: ='Present Value Calcs'!EX13 -> 0 | S104: =Q104*O104*M104 -> 0
C106: Proposed scenario | E106: ='Project Inputs'!$D$16 -> Combination of surface water separation measures, inc attenuation areas, diversion of Longbenton Letch & underground pipeline (sites 1, 3, 5, 7) | M106: ='Present Value Calcs'!EZ13 -> 0 | S106: =Q106*O106*M106 -> 0
O107: Average confidence values
K108: Sum of benefits | M108: =M106-M104 -> 0 | O108: =IFERROR(AVERAGE(O95:O106),"") ->  | Q108: =IFERROR(AVERAGE(Q95:Q106),"") ->  | S108: =S106-S104 -> 0
A112: >>HIDE_BELOW

Sheet CR - Crime (hidden)
T1: Crime | Z1: >>HIDE_ALONG
B2: =ProjDetails -> PROJECT DETAILS - No.: 41521691, Name: Killingworth & Longbenton SuDS, Assmt. Version: 3, Date: Sep 2015.
B4: K E Y
C6: Notes
C7: Overview of the sections to help evaluate the impact of SuDS on crime
C8: This is likely to be a qualitative assessment, however if you have evidence and can quantify the impact, use section Cr2
E11: SECTION Cr1 | I11: SECTION EG2
E12: Qualitative assessment of the impact of building SuDS on crime | I12: Quantitative assessment of the impact of building SuDS on crime
B15: SECTION Cr1
C17: Notes
C18: Use the matrix to consider qualitatively the impact that the SuDS may have on crime and the extent of the area
B22: Evidence and Qualitative summary
B23: 1
B24: 2
B25: 3
B26: 4
B27: Summary
E29: Scale of the likely reduction in crime | G29: High | I29: 3 | K29: 4 | M29: 5
G31: Medium | I31: 2 | K31: 3 | M31: 4
G33: Low | I33: 1 | K33: 2 | M33: 3
I35: Small | K35: Medium | M35: Large
I37: Size of area or number of people impacted
AB38: Small | AC38: Medium | AD38: Large
E39: Record the estimated impact | AB39: Low | AC39: Medium | AD39: High
E41: Magnitude | G41: Size of area | I41: Potential Impact value | K41: Confirm the confidence you have in the estimation method | O41: Revised impact value
O43: =IF(I43>0,K43*I43,"-") -> -
B46: SECTION Cr2
E48: Note: Use this section where evidence is available to support that SuDS create an impact.
V50: Confirm the start and end year of the evaluation
E52: Scenario | I52: Lump sum or present value benefit from a local study | M52: Level of certainty of the quantity calculated (select from list) | Q52: Level of confidence of the monetary value used | S52: Lump sum / present value after confidence applied | V52: Start | X52: End
B54: Proposed scenario | E54: ='Project Inputs'!$D$16 -> Combination of surface water separation measures, inc attenuation areas, diversion of Longbenton Letch & underground pipeline (sites 1, 3, 5, 7) | I54: 0 | S54: =I54*M54*Q54 -> 0
A64: >>HIDE_BELOW
B68: Johnstone, P. Adamowicz, R. et al (2012). Liveability and the Water Sensitive City. Science Policy Partnership for Water Sensitive Cities. Melbourne, Australia: Cooperative Research Centre for Water Sensitive Cities, ISBN 978-1-921912-17‐7, August.
B69: Wise S., Braden J., Ghalayini D. et al (2010). Integrating Valuation Methods to Recognize Green Infrastructure's Multiple Benefits. Low Impact Development 2010: Redefining Water in the City © 2010 ASCE. P1123-1143.
B70: City of Portland (2010) Portland’s Green Infrastructure: Quantifying the Health, Energy, and Community Liveability Benefits, City of Portland Bureau of Environmental Services
B71: Clarke & Gilbertson, 2011 | G71: Not focused on these aspects

Sheet EG - Economic growth (hidden)
T1: Economic growth | Z1: >>HIDE_ALONG
B2: =ProjDetails -> PROJECT DETAILS - No.: 41521691, Name: Killingworth & Longbenton SuDS, Assmt. Version: 3, Date: Sep 2015.
B4: K E Y
C6: Notes
C7: Overview of the sections to help evaluate the impact of SuDS on economic growth
C8: This is likely to be a qualitative assessment, however if you have evidence and can quantify the impact, use section EG2.
E11: SECTION EG1 | I11: SECTION EG2
E12: Qualitative assessment of the impact of building SuDS on economic growth | I12: Quantitative assessment of the impact of building SuDS on economic growth
B15: SECTION EG1 - Impact of SuDS on economic growth
C17: Notes
C18: Use the matrix to consider qualitatively the impact that the SuDS may have on economic growth
B22: Evidence and Qualitative summary
B23: 1
B24: 2
B25: 3
B26: 4
B27: Summary
E29: Magnitude of the contribution to supporting economic growth | G29: High | I29: 3 | K29: 4 | M29: 5
G31: Medium | I31: 2 | K31: 3 | M31: 4
G33: Low | I33: 1 | K33: 2 | M33: 3
I35: Small | K35: Medium | M35: Large
I37: Size of area impacted
AB38: Small | AC38: Medium | AD38: Large
E39: Record the estimated impact | AB39: Low | AC39: Medium | AD39: High
E41: Magnitude | G41: Size of area | I41: Potential Impact value | K41: Confirm the confidence you have in the estimation method | O41: Revised impact value
O43: =IF(I43>0,K43*I43,"-") -> -
B46: SECTION EG2 - Impact of SuDS on Economic Growth - Quantification and monetisation
E48: Note: Use this section where evidence is available to support that SuDS create an impact.
V50: Confirm the start and end year of the evaluation
E52: Scenario | I52: Lump sum or present value benefit from a local study | M52: Level of certainty of the quantity calculated (select from list) | Q52: Level of confidence of the monetary value used | S52: Lump sum / present value after confidence applied | V52: Start | X52: End
B54: Proposed scenario | E54: ='Project Inputs'!$D$16 -> Combination of surface water separation measures, inc attenuation areas, diversion of Longbenton Letch & underground pipeline (sites 1, 3, 5, 7) | S54: =I54*M54*Q54 -> 0
A59: >>HIDE_BELOW

Sheet Edu - Education
S1: Education | Y1: >>HIDE_ALONG
B2: =ProjDetails -> PROJECT DETAILS - No.: 41521691, Name: Killingworth & Longbenton SuDS, Assmt. Version: 3, Date: Sep 2015.
B4: K E Y
C6: Notes
C7: Overview of the sections to help evaluate the impact of SuDS on enhancing education
C8: This is likely to be a qualitative assessment, however if you have evidence and can quantify the impact, use section Edu2
D11: SECTION Edu1
D12: Qualitative assessment of the impact of building SuDS and its contribution to education | H12: Quantitative assessment of the impact of building SuDS and its contribution to education
B15: SECTION Edu1
C17: Notes
C18: Use the matrix to consider qualitatively the impact that the SuDS may have in contributing to education
B22: Evidence and Qualitative summary
B23: 1 | C23: Site 3 exceedance areas will be built on school grounds, which will provide educational opportunities.
B24: 2 | C24: Both magnitude and scale of impact expected to be 'medium'. With a reasonable confidence score of 75%, this gives an impact value of 2.25, i.e. 'little improvement'
B25: 3 | C25: As set out in BeST guidance, this benefit is not valued as there is no additional evidence to support further assessment
B26: 4
B27: Summary
D29: Magnitude of the contribution to enhance education | F29: High | H29: 3 | J29: 4 | L29: 5
F31: Medium | H31: 2 | J31: 3 | L31: 4
F33: Low | H33: 1 | J33: 2 | L33: 3
H35: Small | J35: Medium | L35: Large
H37: Population impacted
AB38: Small | AC38: Medium | AD38: Large
D39: Record the estimated impact | AB39: Low | AC39: Medium | AD39: High
D41: Magnitude | F41: Size of area | H41: Potential Impact value | J41: Confirm the confidence you have in the estimation method | N41: Revised impact value
D43: Medium | F43: Medium | H43: 3 | J43: 0.75 | N43: =IF(H43>0,J43*H43,"-") -> 2.25
B46: SECTION Edu2
D48: Note: Use this section where evidence is available to support that SuDS create an impact.
U50: Confirm the start and end year of the evaluation
D52: Scenario | H52: Lump sum or present value benefit from a local study | L52: Level of certainty of the quantity calculated (select from list) | P52: Level of confidence of the monetary value used | R52: Lump sum / present value after confidence applied | U52: Start | W52: End
B54: Proposed scenario | D54: ='Project Inputs'!$D$16 -> Combination of surface water separation measures, inc attenuation areas, diversion of Longbenton Letch & underground pipeline (sites 1, 3, 5, 7) | H54: 0 | R54: =H54*L54*P54 -> 0
A60: >>HIDE_BELOW

Sheet ED - Enabling development
V1: Enabling development | AB1: >>HIDE_ALONG | AE1: >>HIDE_ALONG
B2: =ProjDetails -> PROJECT DETAILS - No.: 41521691, Name: Killingworth & Longbenton SuDS, Assmt. Version: 3, Date: Sep 2015. | AF2: ANSWER | AN2: Y
B4: K E Y
AN6: Y
C7: Notes
C8: Complete the qualitative estimate in ED1 or if you know the avoided infrastructure cost (and is not included as part as a cost of another option being compared) use ED2.
C9: Only complete one section.
C10: Further help is provided in the guidance
E12: Section ED1 | I12: Section ED2
E13: Qualitative assessment of the impact of building SuDS on enabling development | I13: Quantitative assessment of the impact of building SuDS on enabling development
B17: SECTION ED1
C19: Notes
C20: Use the matrix to consider qualitatively the impact that the SuDS may have in enabling development that supports population growth
C21: Quantification and valuation of impacts not expected in this category, unless clear evidence is available linking SuDS to enable development
B24: Evidence and Qualitative summary
B25: 1 | C25: Drainage capacity is a barrier to growth in this area
B26: 2 | C26: However, there is currently no evidence of the process by which additional land would become available as a result of the proposed option, the amount and location of land that could become available, the potential uses of this land and associated values, or other factors/barriers that may be relevant to enabling development.
B27: 3 | C27: Therefore, no monetary assessment can be undertaken.
B28: 4 | C28: Assuming both magnitude and scale of impact expected are 'medium' and a relatively low confidence score of 50%, this gives an impact value of 1.5, i.e. 'negligible' or 'little improvement'
B29: Summary
E31: Magnitude of the likely capacity created for growth | G31: High | I31: 3 | K31: 4 | M31: 5
G33: Medium | I33: 2 | K33: 3 | M33: 4
G35: Low | I35: 1 | K35: 2 | M35: 3
I37: Small | K37: Medium | M37: Large
I39: Potential size of area or number of people | AB39: Small | AC39: Medium | AD39: Large
AB40: Low | AC40: Medium | AD40: High
E41: Record the estimated impact
E43: Magnitude | G43: Size of area | I43: Potential Impact value | K43: Confirm the confidence you have in the estimation method | O43: Revised impact value
E45: Medium | G45: Medium | I45: 3 | K45: 0.5 | O45: =IF(I45>0,K45*I45,"-") -> 1.5
B49: SECTION ED2
E51: Note: Use this section where evidence is available to support that SuDS create an impact. It may be appropriate to calculate the avoided infrastructure costs if other options (such as grey infrastructure only) do not provide the same benefit and enable development.
W53: Confirm the start and end year of the evaluation
E55: Scenario | I55: Lump sum benefit or avoided cost of infrastructure as result of using SuDS | M55: Level of certainty of the quantity calculated (select from list) | Q55: Level of confidence of the monetary value selected/used | S55: Lump sum after certainty / confidence applied | W55: Start | Y55: End
B57: Proposed scenario | E57: ='Project Inputs'!$D$16 -> Combination of surface water separation measures, inc attenuation areas, diversion of Longbenton Letch & underground pipeline (sites 1, 3, 5, 7) | S57: =I57*M57*Q57 -> 0
A62: >>HIDE_BELOW

Sheet T - Tourism (hidden)
T1: Tourism | Z1: >>HIDE_ALONG
B2: =ProjDetails -> PROJECT DETAILS - No.: 41521691, Name: Killingworth & Longbenton SuDS, Assmt. Version: 3, Date: Sep 2015.
B4: K E Y
C6: Notes
C7: Overview of the sections to help evaluate the impact of SuDS on development of tourism
C8: This is likely to be a qualitative assessment, however if you have evidence and can quantify the impact, use section T2.
E11: SECTION T1 | I11: SECTION T2
E12: Qualitative assessment of the impact of building SuDS on tourism | I12: Quantitative assessment of the impact of building SuDS on tourism
B15: SECTION T1
C17: Notes
C18: Use the matrix to consider qualitatively the impact that the SuDS may have on developing tourism
B22: Evidence and Qualitative summary
B23: 1
B24: 2
B25: 3
B26: 4
B27: Summary
E29: Magnitude of the contribution to developing tourism | G29: High | I29: 3 | K29: 4 | M29: 5
G31: Medium | I31: 2 | K31: 3 | M31: 4
G33: Low | I33: 1 | K33: 2 | M33: 3
I35: Small | K35: Medium | M35: Large
I37: Size of area impacted
AD38: Small | AE38: Medium | AF38: Large
E39: Record the estimated impact | AD39: Low | AE39: Medium | AF39: High
E41: Magnitude | G41: Size of area | I41: Potential Impact value | K41: Confirm the confidence you have in the estimation method | M41: Revised impact value
M43: =IF(I43>0,K43*I43,"-") -> -
B49: SECTION T2
E51: Note: Use this section where evidence is available to support that SuDS create an impact.
U53: Confirm the start and end year of the evaluation
E55: Scenario | I55: Lump sum or present value benefit from a local study | M55: Level of certainty of the quantity calculated (select from list) | P55: Level of confidence of the monetary value used | R55: Lump sum / present value after confidence applied | U55: Start | W55: End
B57: Proposed scenario | E57: ='Project Inputs'!$D$16 -> Combination of surface water separation measures, inc attenuation areas, diversion of Longbenton Letch & underground pipeline (sites 1, 3, 5, 7) | I57: 0 | R57: =I57*M57*P57 -> 0
A60: >>HIDE_BELOW

Sheet TC - Traffic calming (hidden)
U1: Traffic calming | AA1: >>HIDE_ALONG
B2: =ProjDetails -> PROJECT DETAILS - No.: 41521691, Name: Killingworth & Longbenton SuDS, Assmt. Version: 3, Date: Sep 2015.
B4: K E Y
C6: Notes
C7: Overview of the sections to help evaluate the impact of SuDS on traffic calming
C8: This is likely to be a qualitative assessment, however if you have evidence and can quantify the impact, use section TC2.
E11: SECTION TC1 | I11: SECTION TC2
E12: Qualitative assessment of the impact of building SuDS on traffic calming | I12: Quantitative assessment of the impact of building SuDS on traffic calming
B15: SECTION TC1
C17: Notes
C18: Use the matrix to consider qualitatively the impact that the SuDS may have on traffic calming
B22: Evidence and Qualitative summary
B23: 1
B24: 2
B25: 3
B26: 4
B27: Summary
E29: Magnitude of the contribution to supporting traffic calming | G29: High | I29: 3 | K29: 4 | M29: 5
G31: Medium | I31: 2 | K31: 3 | M31: 4
G33: Low | I33: 1 | K33: 2 | M33: 3
I35: Small | K35: Medium | M35: Large
I37: Size of area impacted
AF38: Low | AG38: Medium | AH38: High
E39: Record the estimated impact | AF39: Small | AG39: Medium | AH39: Large
E41: Magnitude | G41: Size of area | I41: Potential Impact value | K41: Confirm the confidence you have in the estimation method | O41: Revised impact value
O43: =IF(I43>0,K43*I43,"-") -> -
B49: SECTION TC2
E51: Note: Use this section where evidence is available to support that SuDS create an impact.
V53: Confirm the start and end year of the evaluation
E55: Scenario | I55: Lump sum or present value benefit from a local study | M55: Level of certainty of the quantity calculated (select from list) | Q55: Level of confidence of the monetary value used | S55: Lump sum / present value after confidence applied | V55: Start | X55: End
B57: Proposed scenario | E57: ='Project Inputs'!$D$16 -> Combination of surface water separation measures, inc attenuation areas, diversion of Longbenton Letch & underground pipeline (sites 1, 3, 5, 7) | S57: =I57*M57*Q57 -> 0
A63: >>HIDE_BELOW

Sheet Summary of outputs-Qualitative
L1: Summary of Outputs - Qualitative | O1: >>HIDE_ALONG | T1: Summary of Outputs
B2: =ProjDetails -> PROJECT DETAILS - No.: 41521691, Name: Killingworth & Longbenton SuDS, Assmt. Version: 3, Date: Sep 2015.
B5: Notes: Table automatically updates with information from the benefit assessment sheets
B7: Non-monetised impacts | D7: Indication of magnitude of impact | F7: Size of area impacted | H7: Potential Impact before confidence | J7: Potential imact after confidence | L7: Qualitative description | M7: Comments
B9: Crime | D9: ='CR - Crime'!E43 -> 0 | F9: ='CR - Crime'!G43 -> 0 | H9: ='CR - Crime'!I43 -> 0 | J9: ='CR - Crime'!O43 -> - | L9: =IFERROR(IF('CR - Crime'!C27<>"",'CR - Crime'!C27,""),"") -> 
B11: Flexible infrastructure | M11: To be developed
B13: Economic growth | D13: ='EG - Economic growth'!E43 -> 0 | F13: ='EG - Economic growth'!G43 -> 0 | H13: ='EG - Economic growth'!I43 -> 0 | J13: ='EG - Economic growth'!O43 -> - | L13: =IFERROR(IF('EG - Economic growth'!C27<>"",'EG - Economic growth'!C27,""),"") -> 
B15: Education | D15: ='Edu - Education'!D43 -> Medium | F15: ='Edu - Education'!F43 -> Medium | H15: ='Edu - Education'!H43 -> 3 | J15: ='Edu - Education'!N43 -> 2.25 | L15: =IFERROR(IF('Edu - Education'!C27<>"",'Edu - Education'!C27,""),"") -> 
B17: Enabling development | D17: ='ED - Enabling development'!E45 -> Medium | F17: ='ED - Enabling development'!G45 -> Medium | H17: ='ED - Enabling development'!I45 -> 3 | J17: ='ED - Enabling development'!O45 -> 1.5 | L17: =IFERROR(IF('ED - Enabling development'!C29<>"",'ED - Enabling development'!C29,""),"") -> 
B19: Tourism | D19: ='TC - Traffic calming'!E43 -> 0 | F19: ='TC - Traffic calming'!G43 -> 0 | H19: ='TC - Traffic calming'!I43 -> 0 | J19: ='TC - Traffic calming'!O43 -> - | L19: =IFERROR(IF('T - Tourism'!C27<>"",'T - Tourism'!C27,""),"") -> 
B21: Traffic Calming | D21: ='TC - Traffic calming'!E43 -> 0 | F21: ='TC - Traffic calming'!G43 -> 0 | H21: ='TC - Traffic calming'!I43 -> 0 | J21: ='TC - Traffic calming'!O43 -> - | L21: =IFERROR(IF('TC - Traffic calming'!C27<>"",'TC - Traffic calming'!C27,""),"") -> 
A33: >>HIDE_BELOW
A35: Questions | H35: annual + start + end implies that there is a current/ should current be stored/visible in a cell at the top? | J35: pull this over or set here? | L35: . | M35: calculated on this page, despite having the equation below; am unsure exactly how this should work | N35: I have pulled across an average from the pumping.. Is this right??.. Only other option is to pull across each pumpig line.. Which is not really ideal or relevant../ | O35: . | S35: presume that a single line should be returned form the pumping page../ if so - then we need to have this highlighted/ or inputted specifically on the pumping page../ currently I have just written this value in what is currently the hidden area on the pumping page. | T35: <<-- same | U35: <<-- same
D37: Total PV benefits | J37: Uncertainty applied | L37: Total PV benefits | M37: Benefit-cost ratio | N37: Net present value
D38: =SUM(M5:M29) -> 0 | L38: =SUM(P5:P29) -> 0
D42: Pumping | H42: yearly value | J42: 2015 | L42: 2080 | M42: calculated | N42: from impact sheet | O42: from impact sheet | P42: calculated
S43: from impact tab | T43: from impact tab | U43: from impact tab
D44: Air quality | H44: AV | M44: PV | N44: Q | O44: M | P44: PVA = PV * (Q+M)/2 | R44: Air quality
D45: Air quality | H45: 1 | M45: 2 | N45: 1 | O45: 1 | P45: =M45*((N45+O45)/2) -> 2
D46: Biodiversity | M46: ** PV (year t) = PV(t-1)/1+discount rate | R46: Biodiversity
D47: Flooding | R47: ….
N49: (colour coded)
N51: from impact tab | O51: from impact tab
B54: Comments | H54: Bruce Horton: | M54: Bruce Horton: | N54: Bruce Horton: | O54: Bruce Horton:
H55: we need flexibility for annual value to be same every year (from 'year start' to 'year end') or for users to vary this, e.g. increase gradually | M55: This is sum of discounted annual values from 'year start' to 'year end', where PV (year t) = PV(t-1)/1+discount rate | N55: Allow user to add value from 0 (no certainty) to 1 (certain) | O55: Allow user to insert level of confidence in result (e.g. high, med, low)
B59: Show On Results | D59: ü | F59: ü | H59: ü | R59: Function to be developed for printing results

Sheet Summary of outputs - Monetised
N1: Summary of Outputs - Monetised | V1: >>HIDE_ALONG
B2: =ProjDetails -> PROJECT DETAILS - No.: 41521691, Name: Killingworth & Longbenton SuDS, Assmt. Version: 3, Date: Sep 2015.
B4: Notes: Table automatically updates with information from the benefit tabs completed. Column B highlighted depending upon the proportion the impact has overall prior to confidence applied: Green (>20%), Amber (10-20%) and Red (<10%).
B6: Discount factor applied | D6: ='Project Inputs'!D28 -> 0.035
B8: Significant proportion | D8: Main impacts | F8: Monetised sub-impact | H8: Year start | J8: Year end | L8: Present value | N8: Level of confidence of the quantity calculated | P8: Level of confidence of the monetary value selected/used | R8: Present value after confidence adjustment | T8: Comments | V8: Percentage of total | X8: monetised Lookup | AB8: Annual value (£)
B10: Air quality | D10: Air quality | F10: External assessment | H10: ='AQ - Air quality'!Q28 -> 0 | J10: ='AQ - Air quality'!S28 -> 0 | L10: ='AQ - Air quality'!G28 -> 0 | N10: ='AQ - Air quality'!I28 -> 0 | P10: ='AQ - Air quality'!K28 -> 0 | R10: ='AQ - Air quality'!M28 -> 0 | V10: =R10/SUM(TotalValue) -> 0 | W10: =SUM(V10:V13) -> 0 | X10: AIR QUALITY | Y10: =IF(W10>=LimOuputGreen,"G",IF(W10>=LimOuputAmber,"A","")) ->  | AB10: ='AQ - Air quality'!I83 -> Annual pollutant removal benefit (£)
D11: Air quality | F11: ='AQ - Air quality'!C85 -> SO2 | H11: ='AQ - Air quality'!$O$72 -> 0 | J11: ='AQ - Air quality'!$Q$72 -> 0 | L11: ='AQ - Air quality'!O85 -> 0 | N11: ='AQ - Air quality'!K85 -> 0 | P11: ='AQ - Air quality'!M85 -> 0 | R11: ='AQ - Air quality'!Q85 -> 0 | V11: =R11/SUM(TotalValue) -> 0 | AB11: ='AQ - Air quality'!I85 -> 0
D12: Air quality | F12: ='AQ - Air quality'!C87 -> NO2 | H12: ='AQ - Air quality'!$O$72 -> 0 | J12: ='AQ - Air quality'!$Q$72 -> 0 | L12: ='AQ - Air quality'!O87 -> 0 | N12: ='AQ - Air quality'!K87 -> 0 | P12: ='AQ - Air quality'!M87 -> 0 | R12: ='AQ - Air quality'!Q87 -> 0 | V12: =R12/SUM(TotalValue) -> 0 | AB12: ='AQ - Air quality'!I87 -> 0
D13: Air quality | F13: ='AQ - Air quality'!C91 -> PM-10 | H13: ='AQ - Air quality'!$O$72 -> 0 | J13: ='AQ - Air quality'!$Q$72 -> 0 | L13: ='AQ - Air quality'!O91 -> 0 | N13: ='AQ - Air quality'!K91 -> 0 | P13: ='AQ - Air quality'!M91 -> 0 | R13: ='AQ - Air quality'!Q91 -> 0 | V13: =R13/SUM(TotalValue) -> 0 | AB13: ='AQ - Air quality'!I91 -> 0
B15: Amenity | D15: Amenity - Quality of space | F15: External assessment | H15: ='Am - Amenity'!P31 -> 0 | J15: ='Am - Amenity'!R31 -> 0 | L15: ='Am - Amenity'!F31 -> 0 | N15: ='Am - Amenity'!H31 -> 0 | P15: ='Am - Amenity'!J31 -> 0 | R15: ='Am - Amenity'!L31 -> 0 | V15: =R15/SUM(TotalValue) -> 0 | W15: =SUM(V15:V18) -> 0.001958123653 | X15: AMENITY | Y15: =IF(W15>=LimOuputGreen,"G",IF(W15>=LimOuputAmber,"A","")) -> 
D16: Amenity - Quality of space | F16: Street improvements | H16: ='Am - Amenity'!D53 -> 0 | J16: ='Am - Amenity'!F53 -> 0 | L16: ='Am - Amenity'!N49 -> 0 | N16: ='Am - Amenity'!J47 -> 0 | P16: ='Am - Amenity'!L47 -> 0 | R16: ='Am - Amenity'!P49 -> 0 | V16: =R16/SUM(TotalValue) -> 0
D17: Amenity - Quality of space | F17: Permanent body of works | H17: ='Am - Amenity'!D69 -> 0 | J17: ='Am - Amenity'!F69 -> 0 | L17: ='Am - Amenity'!N65 -> 0 | N17: ='Am - Amenity'!J63 -> 0 | P17: ='Am - Amenity'!L63 -> 0 | R17: ='Am - Amenity'!P65 -> 0 | V17: =R17/SUM(TotalValue) -> 0
D18: Amenity - Quality of space | F18: Property increase | H18: n/a | J18: n/a | L18: ='Am - Amenity'!L96 -> 178297.0798 | N18: ='Am - Amenity'!N96 -> 0.75 | P18: ='Am - Amenity'!P96 -> 0.75 | R18: ='Am - Amenity'!R96 -> 100292.1074 | T18: Lump sum, single benefits | V18: =R18/SUM(TotalValue) -> 0.001958123653
B20: Biodiversity and habitats | D20: Biodiversity (Habitats) | F20: External assessment | H20: ='BE - Biodiversity & Ecology'!Q30 -> 0 | J20: ='BE - Biodiversity & Ecology'!S30 -> 0 | L20: ='BE - Biodiversity & Ecology'!G32 -> 0 | N20: ='BE - Biodiversity & Ecology'!I30 -> 0 | P20: ='BE - Biodiversity & Ecology'!K30 -> 0 | R20: ='BE - Biodiversity & Ecology'!M32 -> 0 | V20: =R20/SUM(TotalValue) -> 0 | W20: =SUM(V20:V21) -> 0.0006428959932 | X20: BIODIVERSITY AND ECOLOGY | Y20: =IF(W20>=LimOuputGreen,"G",IF(W20>=LimOuputAmber,"A","")) -> 
D21: Biodiversity (Habitats) | F21: n/a | H21: ='BE - Biodiversity & Ecology'!Q30+'BE - Biodiversity & Ecology'!E124 -> 2017 | J21: ='BE - Biodiversity & Ecology'!S30+'BE - Biodiversity & Ecology'!G124 -> 2055 | L21: ='BE - Biodiversity & Ecology'!K124 -> 43904.20315 | N21: ='BE - Biodiversity & Ecology'!M124 -> 1 | P21: ='BE - Biodiversity & Ecology'!O124 -> 0.75 | R21: ='BE - Biodiversity & Ecology'!Q124 -> 32928.15236 | V21: =R21/SUM(TotalValue) -> 0.0006428959932
B23: Building temperature | D23: Building temperature | F23: External assessment, energy | H23: ='BT - Building Temperature'!N31 -> 0 | J23: ='BT - Building Temperature'!P31 -> 0 | L23: ='BT - Building Temperature'!H42+'BT - Building Temperature'!H44 -> 0 | N23: ='BT - Building Temperature'!F31 -> 0 | P23: ='BT - Building Temperature'!H31 -> 0 | R23: ='BT - Building Temperature'!J42+'BT - Building Temperature'!J44 -> 0 | V23: =R23/SUM(TotalValue) -> 0 | W23: =SUM(V23:V24) -> 0 | X23: BUILDING TEMPERATURE | Y23: =IF(W23>=LimOuputGreen,"G",IF(W23>=LimOuputAmber,"A","")) -> 
D24: Building temperature | F24: Green roofs | H24: =('BT - Building Temperature'!N69) -> 0 | J24: =('BT - Building Temperature'!P69) -> 0 | L24: ='BT - Building Temperature'!H88+'BT - Building Temperature'!H112+'BT - Building Temperature'!H90 -> 0 | N24: ='BT - Building Temperature'!F148 -> 0 | P24: ='BT - Building Temperature'!H148 -> 0 | R24: ='BT - Building Temperature'!J88+'BT - Building Temperature'!J112+'BT - Building Temperature'!J90 -> 0 | V24: =R24/SUM(TotalValue) -> 0
B26: Carbon reduction | D26: Carbon | F26: External assessment, reduced energy heating & cooling | H26: ='BT - Building Temperature'!N31 -> 0 | J26: ='BT - Building Temperature'!P31 -> 0 | L26: ='BT - Building Temperature'!H46+'BT - Building Temperature'!H48 -> 0 | N26: ='BT - Building Temperature'!F31 -> 0 | P26: ='BT - Building Temperature'!H31 -> 0 | R26: ='BT - Building Temperature'!J46+'BT - Building Temperature'!J48 -> 0 | V26: =R26/SUM(TotalValue) -> 0 | W26: =SUM(V26:V31) -> 0 | X26: CARBON REDUCTION | Y26: =IF(W26>=LimOuputGreen,"G",IF(W26>=LimOuputAmber,"A","")) -> 
D27: Carbon | F27: Reduced energy heating and cooling | H27: ='BT - Building Temperature'!N69 -> 0 | J27: ='BT - Building Temperature'!P69 -> 0 | L27: ='BT - Building Temperature'!H92+'BT - Building Temperature'!H94+'BT - Building Temperature'!H114 -> 0 | N27: ='BT - Building Temperature'!F77 -> 0 | P27: ='BT - Building Temperature'!H77 -> 0 | R27: ='BT - Building Temperature'!J92+'BT - Building Temperature'!J94+'BT - Building Temperature'!J114 -> 0 | V27: 0
D28: Carbon | F28: Reduced energy pumping | H28: ='P - Pumping'!AA33 -> 0 | J28: ='P - Pumping'!AD33 -> 0 | L28: ='P - Pumping'!P110 -> 0 | N28: ='P - Pumping'!AB104 -> 0 | P28: ='P - Pumping'!AD104 -> 0 | R28: ='P - Pumping'!R110 -> 0 | V28: 0
D29: Carbon | F29: Reduced energy RWH | H29: ='RWH - Rainwater harvesting'!J45+'RWH - Rainwater harvesting'!J115 -> 0 | J29: ='RWH - Rainwater harvesting'!L45+'RWH - Rainwater harvesting'!L115 -> 0 | L29: ='RWH - Rainwater harvesting'!H58+'RWH - Rainwater harvesting'!H128 -> 0 | N29: ='RWH - Rainwater harvesting'!J58+'RWH - Rainwater harvesting'!J128 -> 0 | P29: ='RWH - Rainwater harvesting'!L58+'RWH - Rainwater harvesting'!L128 -> 0 | R29: ='RWH - Rainwater harvesting'!N58+'RWH - Rainwater harvesting'!N128 -> 0 | V29: 0
D30: Carbon | F30: Reduced energy treating wastewater | H30: ='TW - Treating wastewater'!Q47 -> 0 | J30: ='TW - Treating wastewater'!S47 -> 0 | L30: ='TW - Treating wastewater'!G61 -> 0 | N30: ='TW - Treating wastewater'!I61 -> 0.75 | P30: ='TW - Treating wastewater'!K61 -> 1 | R30: ='TW - Treating wastewater'!M61 -> 0 | V30: 0
D31: Carbon | F31: Reduced process emissions | H31: ='TW - Treating wastewater'!Q47 -> 0 | J31: ='TW - Treating wastewater'!S47 -> 0 | L31: ='TW - Treating wastewater'!G63 -> 0 | N31: ='TW - Treating wastewater'!I63 -> 0.75 | P31: ='TW - Treating wastewater'!K63 -> 1 | R31: ='TW - Treating wastewater'!M63 -> 0 | V31: 0
B33: Carbon sequestration | D33: Carbon sequestration | F33: External assessment | H33: ='CS - Carbon sequestration'!N32 -> 0 | J33: ='CS - Carbon sequestration'!P32 -> 0 | L33: ='CS - Carbon sequestration'!D32 -> 0 | N33: ='CS - Carbon sequestration'!F32 -> 0 | P33: ='CS - Carbon sequestration'!H32 -> 0 | R33: ='CS - Carbon sequestration'!J32 -> 0 | V33: =R33/SUM(TotalValue) -> 0 | W33: =SUM(V33:V34) -> 0 | X33: CARBON SEQUESTRATION | Y33: =IF(W33>=LimOuputGreen,"G",IF(W33>=LimOuputAmber,"A","")) ->  | AB33: n/a
D34: Carbon sequestration | F34: Benefit from trees | H34: ='CS - Carbon sequestration'!H65 -> 0 | J34: ='CS - Carbon sequestration'!J65 -> 0 | L34: ='CS - Carbon sequestration'!H59 -> 0 | N34: ='CS - Carbon sequestration'!P65 -> 0 | P34: ='CS - Carbon sequestration'!R65 -> 0 | R34: ='CS - Carbon sequestration'!J59 -> 0 | T34: Takes the average start and finish year, and average confidence values | V34: =R34/SUM(TotalValue) -> 0 | AB34: n/a
B36: Crime | D36: Crime | F36: External assessment | H36: ='CR - Crime'!V54 -> 0 | J36: ='CR - Crime'!X54 -> 0 | L36: ='CR - Crime'!I54 -> 0 | N36: ='CR - Crime'!M54 -> 0 | P36: ='CR - Crime'!Q54 -> 0 | R36: ='CR - Crime'!S54 -> 0 | V36: =R36/SUM(TotalValue) -> 0 | W36: =V36 -> 0 | X36: Crime | Y36: =IF(W36>=LimOuputGreen,"G",IF(W36>=LimOuputAmber,"A","")) -> 
B38: Economic Growth | D38: Economic Growth | F38: External assessment | H38: ='EG - Economic growth'!V54 -> 0 | J38: ='EG - Economic growth'!X54 -> 0 | L38: ='EG - Economic growth'!I54 -> 0 | N38: ='EG - Economic growth'!M54 -> 0 | P38: ='EG - Economic growth'!Q54 -> 0 | R38: ='EG - Economic growth'!S54 -> 0 | V38: =R38/SUM(TotalValue) -> 0 | W38: =V38 -> 0 | X38: Economic Growth | Y38: =IF(W38>=LimOuputGreen,"G",IF(W38>=LimOuputAmber,"A","")) -> 
B40: Education | D40: Education | F40: External assessment | H40: ='Edu - Education'!U54 -> 0 | J40: ='Edu - Education'!W54 -> 0 | L40: ='Edu - Education'!H54 -> 0 | N40: ='Edu - Education'!L54 -> 0 | P40: ='Edu - Education'!P54 -> 0 | R40: ='Edu - Education'!R54 -> 0 | V40: =R40/SUM(TotalValue) -> 0 | W40: =V40 -> 0 | X40: Education | Y40: =IF(W40>=LimOuputGreen,"G",IF(W40>=LimOuputAmber,"A","")) -> 
B42: Enabling development | D42: Enabling development | F42: External assessment | H42: ='ED - Enabling development'!W57 -> 0 | J42: ='ED - Enabling development'!Y57 -> 0 | L42: ='ED - Enabling development'!I57 -> 0 | N42: ='ED - Enabling development'!M57 -> 0 | P42: ='ED - Enabling development'!Q57 -> 0 | R42: ='ED - Enabling development'!S57 -> 0 | V42: =R42/SUM(TotalValue) -> 0 | W42: =V42 -> 0 | X42: Enabling development | Y42: =IF(W42>=LimOuputGreen,"G",IF(W42>=LimOuputAmber,"A","")) -> 
B44: Flooding | D44: Flooding | F44: External assessment | H44: ='F - Flooding'!Q32 -> 2017 | J44: ='F - Flooding'!S32 -> 2117 | L44: ='F - Flooding'!G30-'F - Flooding'!G32 -> 49750302.78 | N44: ='F - Flooding'!I32 -> 1 | P44: ='F - Flooding'!K32 -> 1 | R44: =('F - Flooding'!M30-'F - Flooding'!M32) -> 49750302.78 | V44: =R44/SUM(TotalValue) -> 0.9713351045 | W44: =SUM(V44:V46) -> 0.973037658 | X44: FLOODING | Y44: =IF(W44>=LimOuputGreen,"G",IF(W44>=LimOuputAmber,"A","")) -> G | AB44: n/a
D45: Flooding | F45: Damage to property | H45: =SUM('F - Flooding'!Q47,'F - Flooding'!G82,'F - Flooding'!G64) -> 0 | J45: =SUM('F - Flooding'!S47,'F - Flooding'!I64,'F - Flooding'!I82) -> 0 | L45: ='F - Flooding'!G45+'F - Flooding'!Q64+'F - Flooding'!M82 -> 0 | N45: ='F - Flooding'!K106 -> 0 | P45: ='F - Flooding'!M106 -> 0 | R45: ='F - Flooding'!M45+'F - Flooding'!S64+'F - Flooding'!O82 -> 0 | V45: =R45/SUM(TotalValue) -> 0 | AB45: n/a
D46: Flooding | F46: Loss of time | H46: ='F - Flooding'!G98 -> 2017 | J46: ='F - Flooding'!I98 -> 2117 | L46: ='F - Flooding'!O94 -> 87202.19591 | N46: ='F - Flooding'!K94 -> 1 | P46: ='F - Flooding'!M94 -> 1 | R46: ='F - Flooding'!Q94 -> 87202.19591 | V46: =R46/SUM(TotalValue) -> 0.001702553539
B48: Groundwater recharge | D48: Groundwater recharge | F48: External assessment | H48: ='GW - Groundwater recharge'!N32 -> 0 | J48: ='GW - Groundwater recharge'!P32 -> 0 | L48: ='GW - Groundwater recharge'!F32 -> 0 | N48: ='GW - Groundwater recharge'!H32 -> 0 | P48: ='GW - Groundwater recharge'!J32 -> 0 | R48: ='GW - Groundwater recharge'!L32 -> 0 | V48: =R48/SUM(TotalValue) -> 0 | W48: =SUM(V48:V49) -> 0 | X48: GROUNDWATER RECHARGE | Y48: =IF(W48>=LimOuputGreen,"G",IF(W48>=LimOuputAmber,"A","")) -> 
D49: Groundwater recharge | F49: Avoided abstraction savings | H49: ='GW - Groundwater recharge'!D56 -> 0 | J49: ='GW - Groundwater recharge'!F56 -> 0 | L49: ='GW - Groundwater recharge'!N52 -> 0 | N49: ='GW - Groundwater recharge'!J50 -> 0 | P49: ='GW - Groundwater recharge'!L50 -> 0 | R49: ='GW - Groundwater recharge'!P52 -> 0 | V49: =R49/SUM(TotalValue) -> 0
B51: Health | D51: Health | F51: External assessment | H51: ='H - Health'!P30 -> 0 | J51: ='H - Health'!R30 -> 0 | L51: ='H - Health'!F30 -> 0 | N51: ='H - Health'!H30 -> 0 | P51: ='H - Health'!J30 -> 0 | R51: ='H - Health'!L30 -> 0 | V51: =R51/SUM(TotalValue) -> 0 | W51: =SUM(V51:V56) -> 0 | X51: HEALTH | Y51: =IF(W51>=LimOuputGreen,"G",IF(W51>=LimOuputAmber,"A","")) ->  | AB51: n/a
D52: Health | F52: Walking | H52: n/a | J52: ='H - Health'!H47 -> 0 | L52: =IFERROR('H - Health'!H51*(100%/N52),0) -> 0 | N52: ='H - Health'!H45 -> 0 | P52: 1 | R52: ='H - Health'!H51 -> 0 | T52: No start / end, only number of years | V52: 0 | AB52: n/a
D53: Health | F53: Cycling | H53: n/a | J53: ='H - Health'!R47 -> 0 | L53: =IFERROR('H - Health'!R51*(100%/N53),0) -> 0 | N53: ='H - Health'!R45 -> 0 | P53: 1 | R53: ='H - Health'!R51 -> 0 | T53: No start / end, only number of years | V53: 0 | AB53: n/a
D54: Health | F54: View of green space | H54: ='H - Health'!D93 -> 0 | J54: ='H - Health'!F93 -> 0 | L54: ='H - Health'!N89 -> 0 | N54: ='H - Health'!J87 -> 0 | P54: ='H - Health'!L87 -> 0 | R54: ='H - Health'!P89 -> 0 | V54: 0 | AB54: ='H - Health'!F87-'H - Health'!F85 -> 0
D55: Health | F55: Access to permanent water | H55: ='H - Health'!D109 -> 0 | J55: ='H - Health'!F109 -> 0 | L55: ='H - Health'!N105 -> 0 | N55: ='H - Health'!J103 -> 0 | P55: ='H - Health'!L103 -> 0 | R55: ='H - Health'!P105 -> 0 | V55: 0
D56: Health | F56: Access to green space | H56: ='H - Health'!D125 -> 0 | J56: ='H - Health'!F125 -> 0 | L56: ='H - Health'!N121 -> 0 | N56: ='H - Health'!J119 -> 0 | P56: ='H - Health'!L119 -> 0 | R56: ='H - Health'!P121 -> 0 | V56: 0
B58: Pumping wastewater | D58: Pumping wastewater | F58: External assessment | H58: ='P - Pumping'!AA33 -> 0 | J58: ='P - Pumping'!AD33 -> 0 | L58: ='P - Pumping'!I35 -> 0 | N58: ='P - Pumping'!M33 -> 0 | P58: ='P - Pumping'!P33 -> 0 | R58: ='P - Pumping'!R35 -> 0 | V58: =R58/SUM(TotalValue) -> 0 | W58: =SUM(V58:V59) -> 0 | X58: Pumping wastewater | Y58: =IF(W58>=LimOuputGreen,"G",IF(W58>=LimOuputAmber,"A","")) ->  | AB58: ='Present Value Calcs'!F16 -> 
D59: Pumping wastewater | F59: Reduced energy | H59: ='P - Pumping'!AA33 -> 0 | J59: ='P - Pumping'!AD33 -> 0 | L59: ='P - Pumping'!P108 -> 0 | N59: ='P - Pumping'!AB104 -> 0 | P59: ='P - Pumping'!AD104 -> 0 | R59: ='P - Pumping'!R108 -> 0 | V59: =R59/SUM(TotalValue) -> 0 | AB59: ='Present Value Calcs'!F17 -> 
B61: Rain water harvesting | D61: Rain Water harvesting | F61: External assessment | H61: ='RWH - Rainwater harvesting'!P31 -> 0 | J61: ='RWH - Rainwater harvesting'!R31 -> 0 | L61: ='RWH - Rainwater harvesting'!F31 -> 0 | N61: ='RWH - Rainwater harvesting'!H31 -> 0 | P61: ='RWH - Rainwater harvesting'!J31 -> 0 | R61: ='RWH - Rainwater harvesting'!L31 -> 0 | V61: =R61/SUM(TotalValue) -> 0 | W61: =SUM(V61:V63) -> 0 | X61: RAINWATER HARVESTING | Y61: =IF(W61>=LimOuputGreen,"G",IF(W61>=LimOuputAmber,"A","")) -> 
D62: Rain Water harvesting | F62: Reduction in energy usage by Water Co | H62: ='RWH - Rainwater harvesting'!$J$45+'RWH - Rainwater harvesting'!$J$115 -> 0 | J62: ='RWH - Rainwater harvesting'!$L$45+'RWH - Rainwater harvesting'!$L$115 -> 0 | L62: ='RWH - Rainwater harvesting'!H56+'RWH - Rainwater harvesting'!H126 -> 0 | N62: ='RWH - Rainwater harvesting'!J56+'RWH - Rainwater harvesting'!J126 -> 0 | P62: ='RWH - Rainwater harvesting'!L56+'RWH - Rainwater harvesting'!L126 -> 0 | R62: ='RWH - Rainwater harvesting'!N56+'RWH - Rainwater harvesting'!N126 -> 0 | V62: =R62/SUM(TotalValue) -> 0
D63: Rain Water harvesting | F63: Customer bill reduction | H63: ='RWH - Rainwater harvesting'!$J$45+'RWH - Rainwater harvesting'!$J$115 -> 0 | J63: ='RWH - Rainwater harvesting'!$L$45+'RWH - Rainwater harvesting'!$L$115 -> 0 | L63: ='RWH - Rainwater harvesting'!F31+'RWH - Rainwater harvesting'!H54+'RWH - Rainwater harvesting'!H124 -> 0 | N63: ='RWH - Rainwater harvesting'!J54+'RWH - Rainwater harvesting'!J124 -> 0 | P63: ='RWH - Rainwater harvesting'!L54+'RWH - Rainwater harvesting'!L124 -> 0 | R63: ='RWH - Rainwater harvesting'!N54+'RWH - Rainwater harvesting'!N124 -> 0 | T63: This is not taken forward further as part of the assessment | V63: =R63/SUM(TotalValue) -> 0
B65: Recreation | D65: Recreation | F65: External assessment | H65: ='R - Recreation'!P31 -> 0 | J65: ='R - Recreation'!R31 -> 0 | L65: ='R - Recreation'!F31 -> 0 | N65: ='R - Recreation'!H31 -> 0 | P65: ='R - Recreation'!J31 -> 0 | R65: ='R - Recreation'!L31 -> 0 | V65: =R65/SUM(TotalValue) -> 0 | W65: =SUM(V65:V69) -> 0.004697630288 | X65: RECREATION | Y65: =IF(W65>=LimOuputGreen,"G",IF(W65>=LimOuputAmber,"A","")) -> 
D66: Recreation | F66: General Recreation Activities | H66: ='R - Recreation'!D55 -> 2017 | J66: ='R - Recreation'!F55 -> 2055 | L66: ='R - Recreation'!N51 -> 641614.5588 | N66: ='R - Recreation'!J49 -> 0.5 | P66: ='R - Recreation'!L49 -> 0.75 | R66: ='R - Recreation'!P51 -> 240605.4595 | V66: =R66/SUM(TotalValue) -> 0.004697630288
D67: Recreation | F67: Constructed wetlands | H67: ='R - Recreation'!D71 -> 0 | J67: ='R - Recreation'!F71 -> 0 | L67: ='R - Recreation'!N67 -> 0 | N67: ='R - Recreation'!J65 -> 0 | P67: ='R - Recreation'!L65 -> 0 | R67: ='R - Recreation'!P67 -> 0 | V67: =R67/SUM(TotalValue) -> 0
D68: Recreation | F68: Coarse angling | H68: ='R - Recreation'!D86 -> 0 | J68: ='R - Recreation'!F86 -> 0 | L68: ='R - Recreation'!N82 -> 0 | N68: ='R - Recreation'!J80 -> 0 | P68: ='R - Recreation'!L80 -> 0 | R68: ='R - Recreation'!P82 -> 0 | V68: =R68/SUM(TotalValue) -> 0
D69: Recreation | F69: Game angling | H69: ='R - Recreation'!D101 -> 0 | J69: ='R - Recreation'!F101 -> 0 | L69: ='R - Recreation'!N97 -> 0 | N69: ='R - Recreation'!J95 -> 0 | P69: ='R - Recreation'!L95 -> 0 | R69: ='R - Recreation'!P97 -> 0 | V69: =R69/SUM(TotalValue) -> 0
B71: Tourism | D71: Tourism | F71: External assessment | H71: ='T - Tourism'!U57 -> 0 | J71: ='T - Tourism'!W57 -> 0 | L71: ='T - Tourism'!I57 -> 0 | N71: ='T - Tourism'!M57 -> 0 | P71: ='T - Tourism'!P57 -> 0 | R71: ='T - Tourism'!R57 -> 0 | V71: =R71/SUM(TotalValue) -> 0 | W71: =V71 -> 0 | X71: Tourism | Y71: =IF(W71>=LimOuputGreen,"G",IF(W71>=LimOuputAmber,"A","")) ->  | AB71: ='Present Value Calcs'!F13 -> 0
B73: Traffic calming | D73: Traffic calming | F73: External assessment | H73: ='TC - Traffic calming'!V57 -> 0 | J73: ='TC - Traffic calming'!X57 -> 0 | L73: ='TC - Traffic calming'!I57 -> 0 | N73: ='TC - Traffic calming'!M57 -> 0 | P73: ='TC - Traffic calming'!Q57 -> 0 | R73: ='TC - Traffic calming'!S57 -> 0 | V73: =R73/SUM(TotalValue) -> 0 | W73: =V73 -> 0 | X73: Traffic calming | Y73: =IF(W73>=LimOuputGreen,"G",IF(W73>=LimOuputAmber,"A","")) ->  | AB73: ='Present Value Calcs'!F15 -> 
B75: Treating wastewater | D75: Treating wastewater | F75: External assessment | H75: ='TW - Treating wastewater'!Q33 -> 0 | J75: ='TW - Treating wastewater'!S33 -> 0 | L75: ='TW - Treating wastewater'!G31 -> 0 | N75: ='TW - Treating wastewater'!I31 -> 0 | P75: ='TW - Treating wastewater'!K31 -> 0 | R75: ='TW - Treating wastewater'!M31 -> 0 | V75: =R75/SUM(TotalValue) -> 0 | W75: =SUM(V75:V76) -> 0 | X75: TREATING WASTEWATER | Y75: =IF(W75>=LimOuputGreen,"G",IF(W75>=LimOuputAmber,"A","")) -> 
D76: Treating wastewater | F76: Overall assessment | H76: ='TW - Treating wastewater'!Q47 -> 0 | J76: ='TW - Treating wastewater'!S47 -> 0 | L76: ='TW - Treating wastewater'!G57+'TW - Treating wastewater'!G59 -> 0 | N76: =IFERROR(AVERAGE('TW - Treating wastewater'!I57,'TW - Treating wastewater'!I59),0) -> 0.75 | P76: =IFERROR(AVERAGE('TW - Treating wastewater'!K57,'TW - Treating wastewater'!K59),0) -> 0.875 | R76: ='TW - Treating wastewater'!M57+'TW - Treating wastewater'!M59 -> 0 | V76: =R76/SUM(TotalValue) -> 0
